Workbook

Sheet Version (hidden)
A7: Version
B9: Name | C9: SAP Non-Prismatic Generator
B10: Version | C10: 01.02.04
B11: Owner | C11: RW
B13: Version | C13: Date | D13: # | E13: Description
A14: Insert -> | AA14: <-Insert
B15: 01.02.04 | C15: 2021-05-04 | E15: Minor update for logo and color scheme update
D16: 1 | F16: Logo and colors updated
B17: 01.02.03 | C17: 2020-01-31 | E17: Minor revision for marketing initiative
D18: 1 | F18: Implement new SidePlate logos on each tab
B19: 01.02.02 | C19: 2019-01-15 | E19: Minor revision for marketing initiative
D20: 1 | F20: Implement new SidePlate logos on each tab
B21: 01.02.01 | C21: 2018-08-08 | E21: General bug fixes and minor improvements
D22: 1 | F22: If standard section does not exist, the tool will automatically import it from the library
D23: 2 | F23: Error Handling added to the VBA code
B25: 01.01.01 | C25: 2018-04-19 | E25: Implementation of SP standardized tools and standards, including naming, versioning, ownership, and format
B27: V00 | C27: 2016-11-02 | E27: Tool created
B28: V01 | C28: 2016-12-07 | E28: Added the option to use different versions of ETABS
B29: V02 | C29: 2017-02-09 | E29: SP Tables for OSHPD projects added
B30: V03 | C30: 2017-06-20 | E30: SP Tables for R=3 projects added
B31: V04 | C31: 2017-08-31 | E31: Feature to change units added
B32: V05 | C32: 2017-11-17 | E32: SP Tables for R=3 projects were change to use Zx'=3*Zx
B33: V06 | C33: 2017-12-15 | E33: Change Units button removed and it automatically change the units when needed

Sheet SAP-SP_NP
O2: Project No: | P2: XXX | AF2: dbUNITS: | AH2: =VLOOKUP('Non-prismatic'!AB2,'Non-prismatic'!$AE$2:$AF$20,2,FALSE) -> kip_ft_F
E3: Steel Material: | F3: A992Fy50 | O3: Project Name: | P3: XXX | AF3: presentUNITS | AH3: =VLOOKUP('Non-prismatic'!AB3,'Non-prismatic'!$AE$2:$AF$20,2,FALSE) -> lb_in_F
E4: Criteria: | F4: Capacity (Non-OSHPD) | O4: Date: | P4: =TODAY() -> 2021-05-04
O5: Reviewed by: | P5: XX
A7: SAP2000 Non-Prismatic SidePlate Section Generator
B10: Section | C10: SP length (in) | D10: Area | E10: Shear A2 | F10: Shear A3 | G10: Ixx | H10: Iyy | I10: Sxx | J10: Syy | K10: rx | L10: ry | M10: Zx | N10: Zy | O10: Tor. | P10: Bf | Q10: SP depth
B11: W18X50 | C11: =IF(B11<>"",VLOOKUP($B11,'Non-prismatic'!$B$2:$U$274,4,FALSE),"") -> 16 | D11: =IF(AND($B11<>"",$F$4="Capacity (Non-OSHPD)"),VLOOKUP($B11,'Non-prismatic'!$B$2:$U$274,6,FALSE)*VLOOKUP($F$4,Sheet1!$B$8:$N$10,2,FALSE),IF(AND($B11<>"",$F$4="Capacity (OSHPD)"),VLOOKUP($B11,'Non-prismatic'!$B$2:$U$274,6,FALSE)*VLOOKUP($F$4,Sheet1!$B$8:$N$10,2,FALSE),IF(AND($B11<>"",$F$4="R=3"),VLOOKUP($B11,'Non-prismatic'!$B$2:$U$274,6,FALSE)*VLOOKUP($F$4,Sheet1!$B$8:$N$10,2,FALSE),""))) -> 44.1 | E11: =IF(AND($B11<>"",$F$4="Capacity (Non-OSHPD)"),VLOOKUP($B11,'Non-prismatic'!$B$2:$U$274,7,FALSE)*VLOOKUP($F$4,Sheet1!$B$8:$N$10,3,FALSE),IF(AND($B11<>"",$F$4="Capacity (OSHPD)"),VLOOKUP($B11,'Non-prismatic'!$B$2:$U$274,7,FALSE)*VLOOKUP($F$4,Sheet1!$B$8:$N$10,3,FALSE),IF(AND($B11<>"",$F$4="R=3"),VLOOKUP($B11,'Non-prismatic'!$B$2:$U$274,7,FALSE)*VLOOKUP($F$4,Sheet1!$B$8:$N$10,3,FALSE),""))) -> 19.17 | F11: =IF(AND($B11<>"",$F$4="Capacity (Non-OSHPD)"),VLOOKUP($B11,'Non-prismatic'!$B$2:$U$274,8,FALSE)*VLOOKUP($F$4,Sheet1!$B$8:$N$10,4,FALSE),IF(AND($B11<>"",$F$4="Capacity (OSHPD)"),VLOOKUP($B11,'Non-prismatic'!$B$2:$U$274,8,FALSE)*VLOOKUP($F$4,Sheet1!$B$8:$N$10,4,FALSE),IF(AND($B11<>"",$F$4="R=3"),VLOOKUP($B11,'Non-prismatic'!$B$2:$U$274,8,FALSE)*VLOOKUP($F$4,Sheet1!$B$8:$N$10,4,FALSE),""))) -> 25.65 | G11: =IF(AND($B11<>"",$F$4="Capacity (Non-OSHPD)"),VLOOKUP($B11,'Non-prismatic'!$B$2:$U$274,9,FALSE)*VLOOKUP($F$4,Sheet1!$B$8:$N$10,5,FALSE),IF(AND($B11<>"",$F$4="Capacity (OSHPD)"),VLOOKUP($B11,'Non-prismatic'!$B$2:$U$274,9,FALSE)*VLOOKUP($F$4,Sheet1!$B$8:$N$10,5,FALSE),IF(AND($B11<>"",$F$4="R=3"),VLOOKUP($B11,'Non-prismatic'!$B$2:$U$274,9,FALSE)*VLOOKUP($F$4,Sheet1!$B$8:$N$10,5,FALSE),""))) -> 2400 | H11: =IF(AND($B11<>"",$F$4="Capacity (Non-OSHPD)"),VLOOKUP($B11,'Non-prismatic'!$B$2:$U$274,10,FALSE)*VLOOKUP($F$4,Sheet1!$B$8:$N$10,6,FALSE),IF(AND($B11<>"",$F$4="Capacity (OSHPD)"),VLOOKUP($B11,'Non-prismatic'!$B$2:$U$274,10,FALSE)*VLOOKUP($F$4,Sheet1!$B$8:$N$10,6,FALSE),IF(AND($B11<>"",$F$4="R=3"),VLOOKUP($B11,'Non-prismatic'!$B$2:$U$274,10,FALSE)*VLOOKUP($F$4,Sheet1!$B$8:$N$10,6,FALSE),""))) -> 120.3 | I11: =IF(AND($B11<>"",$F$4="Capacity (Non-OSHPD)"),VLOOKUP($B11,'Non-prismatic'!$B$2:$U$274,12,FALSE)*VLOOKUP($F$4,Sheet1!$B$8:$N$10,7,FALSE),IF(AND($B11<>"",$F$4="Capacity (OSHPD)"),2*3*VLOOKUP($B11,'Non-prismatic'!$B$2:$U$274,9,FALSE)/VLOOKUP($B11,'Non-prismatic'!$B$2:$U$274,3,FALSE),IF(AND($B11<>"",$F$4="R=3"),VLOOKUP($B11,'Non-prismatic'!$B$2:$U$274,12,FALSE)*VLOOKUP($F$4,Sheet1!$B$8:$N$10,7,FALSE),""))) -> 266.7 | J11: =IF(AND($B11<>"",$F$4="Capacity (Non-OSHPD)"),VLOOKUP($B11,'Non-prismatic'!$B$2:$U$274,13,FALSE)*VLOOKUP($F$4,Sheet1!$B$8:$N$10,8,FALSE),IF(AND($B11<>"",$F$4="Capacity (OSHPD)"),VLOOKUP($B11,'Non-prismatic'!$B$2:$U$274,13,FALSE)*VLOOKUP($F$4,Sheet1!$B$8:$N$10,8,FALSE),IF(AND($B11<>"",$F$4="R=3"),VLOOKUP($B11,'Non-prismatic'!$B$2:$U$274,13,FALSE)*VLOOKUP($F$4,Sheet1!$B$8:$N$10,8,FALSE),""))) -> 32.1 | K11: =IF(AND($B11<>"",$F$4="Capacity (Non-OSHPD)"),VLOOKUP($B11,'Non-prismatic'!$B$2:$U$274,14,FALSE)*VLOOKUP($F$4,Sheet1!$B$8:$N$10,9,FALSE),IF(AND($B11<>"",$F$4="Capacity (OSHPD)"),VLOOKUP($B11,'Non-prismatic'!$B$2:$U$274,14,FALSE)*VLOOKUP($F$4,Sheet1!$B$8:$N$10,9,FALSE),IF(AND($B11<>"",$F$4="R=3"),VLOOKUP($B11,'Non-prismatic'!$B$2:$U$274,14,FALSE)*VLOOKUP($F$4,Sheet1!$B$8:$N$10,9,FALSE),""))) -> 22.14 | L11: =IF(AND($B11<>"",$F$4="Capacity (Non-OSHPD)"),VLOOKUP($B11,'Non-prismatic'!$B$2:$U$274,15,FALSE)*VLOOKUP($F$4,Sheet1!$B$8:$N$10,10,FALSE),IF(AND($B11<>"",$F$4="Capacity (OSHPD)"),VLOOKUP($B11,'Non-prismatic'!$B$2:$U$274,15,FALSE)*VLOOKUP($F$4,Sheet1!$B$8:$N$10,10,FALSE),IF(AND($B11<>"",$F$4="R=3"),VLOOKUP($B11,'Non-prismatic'!$B$2:$U$274,15,FALSE)*VLOOKUP($F$4,Sheet1!$B$8:$N$10,10,FALSE),""))) -> 4.95 | M11: =IF(AND($B11<>"",$F$4="Capacity (Non-OSHPD)"),VLOOKUP($B11,'Non-prismatic'!$B$2:$U$274,16,FALSE)*VLOOKUP($F$4,Sheet1!$B$8:$N$10,11,FALSE),IF(AND($B11<>"",$F$4="Capacity (OSHPD)"),1.15*2*3*VLOOKUP($B11,'Non-prismatic'!$B$2:$U$274,9,FALSE)/VLOOKUP($B11,'Non-prismatic'!$B$2:$U$274,3,FALSE),IF(AND($B11<>"",$F$4="R=3"),VLOOKUP($B11,'Non-prismatic'!$B$2:$U$274,16,FALSE)*VLOOKUP($F$4,Sheet1!$B$8:$N$10,11,FALSE),""))) -> 303 | N11: =IF(AND($B11<>"",$F$4="Capacity (Non-OSHPD)"),VLOOKUP($B11,'Non-prismatic'!$B$2:$U$274,17,FALSE)*VLOOKUP($F$4,Sheet1!$B$8:$N$10,12,FALSE),IF(AND($B11<>"",$F$4="Capacity (OSHPD)"),VLOOKUP($B11,'Non-prismatic'!$B$2:$U$274,17,FALSE)*VLOOKUP($F$4,Sheet1!$B$8:$N$10,12,FALSE),IF(AND($B11<>"",$F$4="R=3"),VLOOKUP($B11,'Non-prismatic'!$B$2:$U$274,17,FALSE)*VLOOKUP($F$4,Sheet1!$B$8:$N$10,12,FALSE),""))) -> 49.8 | O11: =IF(AND(B11<>"",$F$4="Capacity (Non-OSHPD)"),VLOOKUP($B11,'Non-prismatic'!$B$2:$U$274,18,FALSE),IF(AND(B11<>"",OR($F$4="Capacity (OSHPD)",$F$4="R=3")),VLOOKUP($B11,'Non-prismatic'!$B$2:$U$274,19,FALSE),"")) -> 100 | P11: =IF(B11<>"",VLOOKUP($B11,'Non-prismatic'!$B$2:$V$274,21,FALSE),"") -> 7.5 | Q11: =IF(B11<>"",VLOOKUP($B11,'Non-prismatic'!$B$2:$U$274,3,FALSE),"") -> 21 | U11: User Notes
B12: W21X83 | C12: =IF(B12<>"",VLOOKUP($B12,'Non-prismatic'!$B$2:$U$274,4,FALSE),"") -> 16 | D12: =IF(AND($B12<>"",$F$4="Capacity (Non-OSHPD)"),VLOOKUP($B12,'Non-prismatic'!$B$2:$U$274,6,FALSE)*VLOOKUP($F$4,Sheet1!$B$8:$N$10,2,FALSE),IF(AND($B12<>"",$F$4="Capacity (OSHPD)"),VLOOKUP($B12,'Non-prismatic'!$B$2:$U$274,6,FALSE)*VLOOKUP($F$4,Sheet1!$B$8:$N$10,2,FALSE),IF(AND($B12<>"",$F$4="R=3"),VLOOKUP($B12,'Non-prismatic'!$B$2:$U$274,6,FALSE)*VLOOKUP($F$4,Sheet1!$B$8:$N$10,2,FALSE),""))) -> 73.2 | E12: =IF(AND($B12<>"",$F$4="Capacity (Non-OSHPD)"),VLOOKUP($B12,'Non-prismatic'!$B$2:$U$274,7,FALSE)*VLOOKUP($F$4,Sheet1!$B$8:$N$10,3,FALSE),IF(AND($B12<>"",$F$4="Capacity (OSHPD)"),VLOOKUP($B12,'Non-prismatic'!$B$2:$U$274,7,FALSE)*VLOOKUP($F$4,Sheet1!$B$8:$N$10,3,FALSE),IF(AND($B12<>"",$F$4="R=3"),VLOOKUP($B12,'Non-prismatic'!$B$2:$U$274,7,FALSE)*VLOOKUP($F$4,Sheet1!$B$8:$N$10,3,FALSE),""))) -> 33.063 | F12: =IF(AND($B12<>"",$F$4="Capacity (Non-OSHPD)"),VLOOKUP($B12,'Non-prismatic'!$B$2:$U$274,8,FALSE)*VLOOKUP($F$4,Sheet1!$B$8:$N$10,4,FALSE),IF(AND($B12<>"",$F$4="Capacity (OSHPD)"),VLOOKUP($B12,'Non-prismatic'!$B$2:$U$274,8,FALSE)*VLOOKUP($F$4,Sheet1!$B$8:$N$10,4,FALSE),IF(AND($B12<>"",$F$4="R=3"),VLOOKUP($B12,'Non-prismatic'!$B$2:$U$274,8,FALSE)*VLOOKUP($F$4,Sheet1!$B$8:$N$10,4,FALSE),""))) -> 41.8836 | G12: =IF(AND($B12<>"",$F$4="Capacity (Non-OSHPD)"),VLOOKUP($B12,'Non-prismatic'!$B$2:$U$274,9,FALSE)*VLOOKUP($F$4,Sheet1!$B$8:$N$10,5,FALSE),IF(AND($B12<>"",$F$4="Capacity (OSHPD)"),VLOOKUP($B12,'Non-prismatic'!$B$2:$U$274,9,FALSE)*VLOOKUP($F$4,Sheet1!$B$8:$N$10,5,FALSE),IF(AND($B12<>"",$F$4="R=3"),VLOOKUP($B12,'Non-prismatic'!$B$2:$U$274,9,FALSE)*VLOOKUP($F$4,Sheet1!$B$8:$N$10,5,FALSE),""))) -> 5490 | H12: =IF(AND($B12<>"",$F$4="Capacity (Non-OSHPD)"),VLOOKUP($B12,'Non-prismatic'!$B$2:$U$274,10,FALSE)*VLOOKUP($F$4,Sheet1!$B$8:$N$10,6,FALSE),IF(AND($B12<>"",$F$4="Capacity (OSHPD)"),VLOOKUP($B12,'Non-prismatic'!$B$2:$U$274,10,FALSE)*VLOOKUP($F$4,Sheet1!$B$8:$N$10,6,FALSE),IF(AND($B12<>"",$F$4="R=3"),VLOOKUP($B12,'Non-prismatic'!$B$2:$U$274,10,FALSE)*VLOOKUP($F$4,Sheet1!$B$8:$N$10,6,FALSE),""))) -> 244.2 | I12: =IF(AND($B12<>"",$F$4="Capacity (Non-OSHPD)"),VLOOKUP($B12,'Non-prismatic'!$B$2:$U$274,12,FALSE)*VLOOKUP($F$4,Sheet1!$B$8:$N$10,7,FALSE),IF(AND($B12<>"",$F$4="Capacity (OSHPD)"),2*3*VLOOKUP($B12,'Non-prismatic'!$B$2:$U$274,9,FALSE)/VLOOKUP($B12,'Non-prismatic'!$B$2:$U$274,3,FALSE),IF(AND($B12<>"",$F$4="R=3"),VLOOKUP($B12,'Non-prismatic'!$B$2:$U$274,12,FALSE)*VLOOKUP($F$4,Sheet1!$B$8:$N$10,7,FALSE),""))) -> 513 | J12: =IF(AND($B12<>"",$F$4="Capacity (Non-OSHPD)"),VLOOKUP($B12,'Non-prismatic'!$B$2:$U$274,13,FALSE)*VLOOKUP($F$4,Sheet1!$B$8:$N$10,8,FALSE),IF(AND($B12<>"",$F$4="Capacity (OSHPD)"),VLOOKUP($B12,'Non-prismatic'!$B$2:$U$274,13,FALSE)*VLOOKUP($F$4,Sheet1!$B$8:$N$10,8,FALSE),IF(AND($B12<>"",$F$4="R=3"),VLOOKUP($B12,'Non-prismatic'!$B$2:$U$274,13,FALSE)*VLOOKUP($F$4,Sheet1!$B$8:$N$10,8,FALSE),""))) -> 58.5 | K12: =IF(AND($B12<>"",$F$4="Capacity (Non-OSHPD)"),VLOOKUP($B12,'Non-prismatic'!$B$2:$U$274,14,FALSE)*VLOOKUP($F$4,Sheet1!$B$8:$N$10,9,FALSE),IF(AND($B12<>"",$F$4="Capacity (OSHPD)"),VLOOKUP($B12,'Non-prismatic'!$B$2:$U$274,14,FALSE)*VLOOKUP($F$4,Sheet1!$B$8:$N$10,9,FALSE),IF(AND($B12<>"",$F$4="R=3"),VLOOKUP($B12,'Non-prismatic'!$B$2:$U$274,14,FALSE)*VLOOKUP($F$4,Sheet1!$B$8:$N$10,9,FALSE),""))) -> 26.01 | L12: =IF(AND($B12<>"",$F$4="Capacity (Non-OSHPD)"),VLOOKUP($B12,'Non-prismatic'!$B$2:$U$274,15,FALSE)*VLOOKUP($F$4,Sheet1!$B$8:$N$10,10,FALSE),IF(AND($B12<>"",$F$4="Capacity (OSHPD)"),VLOOKUP($B12,'Non-prismatic'!$B$2:$U$274,15,FALSE)*VLOOKUP($F$4,Sheet1!$B$8:$N$10,10,FALSE),IF(AND($B12<>"",$F$4="R=3"),VLOOKUP($B12,'Non-prismatic'!$B$2:$U$274,15,FALSE)*VLOOKUP($F$4,Sheet1!$B$8:$N$10,10,FALSE),""))) -> 5.49 | M12: =IF(AND($B12<>"",$F$4="Capacity (Non-OSHPD)"),VLOOKUP($B12,'Non-prismatic'!$B$2:$U$274,16,FALSE)*VLOOKUP($F$4,Sheet1!$B$8:$N$10,11,FALSE),IF(AND($B12<>"",$F$4="Capacity (OSHPD)"),1.15*2*3*VLOOKUP($B12,'Non-prismatic'!$B$2:$U$274,9,FALSE)/VLOOKUP($B12,'Non-prismatic'!$B$2:$U$274,3,FALSE),IF(AND($B12<>"",$F$4="R=3"),VLOOKUP($B12,'Non-prismatic'!$B$2:$U$274,16,FALSE)*VLOOKUP($F$4,Sheet1!$B$8:$N$10,11,FALSE),""))) -> 588 | N12: =IF(AND($B12<>"",$F$4="Capacity (Non-OSHPD)"),VLOOKUP($B12,'Non-prismatic'!$B$2:$U$274,17,FALSE)*VLOOKUP($F$4,Sheet1!$B$8:$N$10,12,FALSE),IF(AND($B12<>"",$F$4="Capacity (OSHPD)"),VLOOKUP($B12,'Non-prismatic'!$B$2:$U$274,17,FALSE)*VLOOKUP($F$4,Sheet1!$B$8:$N$10,12,FALSE),IF(AND($B12<>"",$F$4="R=3"),VLOOKUP($B12,'Non-prismatic'!$B$2:$U$274,17,FALSE)*VLOOKUP($F$4,Sheet1!$B$8:$N$10,12,FALSE),""))) -> 91.5 | O12: =IF(AND(B12<>"",$F$4="Capacity (Non-OSHPD)"),VLOOKUP($B12,'Non-prismatic'!$B$2:$U$274,18,FALSE),IF(AND(B12<>"",OR($F$4="Capacity (OSHPD)",$F$4="R=3")),VLOOKUP($B12,'Non-prismatic'!$B$2:$U$274,19,FALSE),"")) -> 100 | P12: =IF(B12<>"",VLOOKUP($B12,'Non-prismatic'!$B$2:$V$274,21,FALSE),"") -> 8.375 | Q12: =IF(B12<>"",VLOOKUP($B12,'Non-prismatic'!$B$2:$U$274,3,FALSE),"") -> 24 | U12: 1. SAP2000 model must be unlocked
B13: W24X94 | C13: =IF(B13<>"",VLOOKUP($B13,'Non-prismatic'!$B$2:$U$274,4,FALSE),"") -> 19 | D13: =IF(AND($B13<>"",$F$4="Capacity (Non-OSHPD)"),VLOOKUP($B13,'Non-prismatic'!$B$2:$U$274,6,FALSE)*VLOOKUP($F$4,Sheet1!$B$8:$N$10,2,FALSE),IF(AND($B13<>"",$F$4="Capacity (OSHPD)"),VLOOKUP($B13,'Non-prismatic'!$B$2:$U$274,6,FALSE)*VLOOKUP($F$4,Sheet1!$B$8:$N$10,2,FALSE),IF(AND($B13<>"",$F$4="R=3"),VLOOKUP($B13,'Non-prismatic'!$B$2:$U$274,6,FALSE)*VLOOKUP($F$4,Sheet1!$B$8:$N$10,2,FALSE),""))) -> 83.1 | E13: =IF(AND($B13<>"",$F$4="Capacity (Non-OSHPD)"),VLOOKUP($B13,'Non-prismatic'!$B$2:$U$274,7,FALSE)*VLOOKUP($F$4,Sheet1!$B$8:$N$10,3,FALSE),IF(AND($B13<>"",$F$4="Capacity (OSHPD)"),VLOOKUP($B13,'Non-prismatic'!$B$2:$U$274,7,FALSE)*VLOOKUP($F$4,Sheet1!$B$8:$N$10,3,FALSE),IF(AND($B13<>"",$F$4="R=3"),VLOOKUP($B13,'Non-prismatic'!$B$2:$U$274,7,FALSE)*VLOOKUP($F$4,Sheet1!$B$8:$N$10,3,FALSE),""))) -> 37.5435 | F13: =IF(AND($B13<>"",$F$4="Capacity (Non-OSHPD)"),VLOOKUP($B13,'Non-prismatic'!$B$2:$U$274,8,FALSE)*VLOOKUP($F$4,Sheet1!$B$8:$N$10,4,FALSE),IF(AND($B13<>"",$F$4="Capacity (OSHPD)"),VLOOKUP($B13,'Non-prismatic'!$B$2:$U$274,8,FALSE)*VLOOKUP($F$4,Sheet1!$B$8:$N$10,4,FALSE),IF(AND($B13<>"",$F$4="R=3"),VLOOKUP($B13,'Non-prismatic'!$B$2:$U$274,8,FALSE)*VLOOKUP($F$4,Sheet1!$B$8:$N$10,4,FALSE),""))) -> 47.6175 | G13: =IF(AND($B13<>"",$F$4="Capacity (Non-OSHPD)"),VLOOKUP($B13,'Non-prismatic'!$B$2:$U$274,9,FALSE)*VLOOKUP($F$4,Sheet1!$B$8:$N$10,5,FALSE),IF(AND($B13<>"",$F$4="Capacity (OSHPD)"),VLOOKUP($B13,'Non-prismatic'!$B$2:$U$274,9,FALSE)*VLOOKUP($F$4,Sheet1!$B$8:$N$10,5,FALSE),IF(AND($B13<>"",$F$4="R=3"),VLOOKUP($B13,'Non-prismatic'!$B$2:$U$274,9,FALSE)*VLOOKUP($F$4,Sheet1!$B$8:$N$10,5,FALSE),""))) -> 8100 | H13: =IF(AND($B13<>"",$F$4="Capacity (Non-OSHPD)"),VLOOKUP($B13,'Non-prismatic'!$B$2:$U$274,10,FALSE)*VLOOKUP($F$4,Sheet1!$B$8:$N$10,6,FALSE),IF(AND($B13<>"",$F$4="Capacity (OSHPD)"),VLOOKUP($B13,'Non-prismatic'!$B$2:$U$274,10,FALSE)*VLOOKUP($F$4,Sheet1!$B$8:$N$10,6,FALSE),IF(AND($B13<>"",$F$4="R=3"),VLOOKUP($B13,'Non-prismatic'!$B$2:$U$274,10,FALSE)*VLOOKUP($F$4,Sheet1!$B$8:$N$10,6,FALSE),""))) -> 327 | I13: =IF(AND($B13<>"",$F$4="Capacity (Non-OSHPD)"),VLOOKUP($B13,'Non-prismatic'!$B$2:$U$274,12,FALSE)*VLOOKUP($F$4,Sheet1!$B$8:$N$10,7,FALSE),IF(AND($B13<>"",$F$4="Capacity (OSHPD)"),2*3*VLOOKUP($B13,'Non-prismatic'!$B$2:$U$274,9,FALSE)/VLOOKUP($B13,'Non-prismatic'!$B$2:$U$274,3,FALSE),IF(AND($B13<>"",$F$4="R=3"),VLOOKUP($B13,'Non-prismatic'!$B$2:$U$274,12,FALSE)*VLOOKUP($F$4,Sheet1!$B$8:$N$10,7,FALSE),""))) -> 666 | J13: =IF(AND($B13<>"",$F$4="Capacity (Non-OSHPD)"),VLOOKUP($B13,'Non-prismatic'!$B$2:$U$274,13,FALSE)*VLOOKUP($F$4,Sheet1!$B$8:$N$10,8,FALSE),IF(AND($B13<>"",$F$4="Capacity (OSHPD)"),VLOOKUP($B13,'Non-prismatic'!$B$2:$U$274,13,FALSE)*VLOOKUP($F$4,Sheet1!$B$8:$N$10,8,FALSE),IF(AND($B13<>"",$F$4="R=3"),VLOOKUP($B13,'Non-prismatic'!$B$2:$U$274,13,FALSE)*VLOOKUP($F$4,Sheet1!$B$8:$N$10,8,FALSE),""))) -> 72 | K13: =IF(AND($B13<>"",$F$4="Capacity (Non-OSHPD)"),VLOOKUP($B13,'Non-prismatic'!$B$2:$U$274,14,FALSE)*VLOOKUP($F$4,Sheet1!$B$8:$N$10,9,FALSE),IF(AND($B13<>"",$F$4="Capacity (OSHPD)"),VLOOKUP($B13,'Non-prismatic'!$B$2:$U$274,14,FALSE)*VLOOKUP($F$4,Sheet1!$B$8:$N$10,9,FALSE),IF(AND($B13<>"",$F$4="R=3"),VLOOKUP($B13,'Non-prismatic'!$B$2:$U$274,14,FALSE)*VLOOKUP($F$4,Sheet1!$B$8:$N$10,9,FALSE),""))) -> 29.61 | L13: =IF(AND($B13<>"",$F$4="Capacity (Non-OSHPD)"),VLOOKUP($B13,'Non-prismatic'!$B$2:$U$274,15,FALSE)*VLOOKUP($F$4,Sheet1!$B$8:$N$10,10,FALSE),IF(AND($B13<>"",$F$4="Capacity (OSHPD)"),VLOOKUP($B13,'Non-prismatic'!$B$2:$U$274,15,FALSE)*VLOOKUP($F$4,Sheet1!$B$8:$N$10,10,FALSE),IF(AND($B13<>"",$F$4="R=3"),VLOOKUP($B13,'Non-prismatic'!$B$2:$U$274,15,FALSE)*VLOOKUP($F$4,Sheet1!$B$8:$N$10,10,FALSE),""))) -> 5.94 | M13: =IF(AND($B13<>"",$F$4="Capacity (Non-OSHPD)"),VLOOKUP($B13,'Non-prismatic'!$B$2:$U$274,16,FALSE)*VLOOKUP($F$4,Sheet1!$B$8:$N$10,11,FALSE),IF(AND($B13<>"",$F$4="Capacity (OSHPD)"),1.15*2*3*VLOOKUP($B13,'Non-prismatic'!$B$2:$U$274,9,FALSE)/VLOOKUP($B13,'Non-prismatic'!$B$2:$U$274,3,FALSE),IF(AND($B13<>"",$F$4="R=3"),VLOOKUP($B13,'Non-prismatic'!$B$2:$U$274,16,FALSE)*VLOOKUP($F$4,Sheet1!$B$8:$N$10,11,FALSE),""))) -> 762 | N13: =IF(AND($B13<>"",$F$4="Capacity (Non-OSHPD)"),VLOOKUP($B13,'Non-prismatic'!$B$2:$U$274,17,FALSE)*VLOOKUP($F$4,Sheet1!$B$8:$N$10,12,FALSE),IF(AND($B13<>"",$F$4="Capacity (OSHPD)"),VLOOKUP($B13,'Non-prismatic'!$B$2:$U$274,17,FALSE)*VLOOKUP($F$4,Sheet1!$B$8:$N$10,12,FALSE),IF(AND($B13<>"",$F$4="R=3"),VLOOKUP($B13,'Non-prismatic'!$B$2:$U$274,17,FALSE)*VLOOKUP($F$4,Sheet1!$B$8:$N$10,12,FALSE),""))) -> 112.5 | O13: =IF(AND(B13<>"",$F$4="Capacity (Non-OSHPD)"),VLOOKUP($B13,'Non-prismatic'!$B$2:$U$274,18,FALSE),IF(AND(B13<>"",OR($F$4="Capacity (OSHPD)",$F$4="R=3")),VLOOKUP($B13,'Non-prismatic'!$B$2:$U$274,19,FALSE),"")) -> 100 | P13: =IF(B13<>"",VLOOKUP($B13,'Non-prismatic'!$B$2:$V$274,21,FALSE),"") -> 9.125 | Q13: =IF(B13<>"",VLOOKUP($B13,'Non-prismatic'!$B$2:$U$274,3,FALSE),"") -> 27 | U13: 2. You must have your SAP2000 model open
C14: =IF(B14<>"",VLOOKUP($B14,'Non-prismatic'!$B$2:$U$274,4,FALSE),"") ->  | D14: =IF(AND($B14<>"",$F$4="Capacity (Non-OSHPD)"),VLOOKUP($B14,'Non-prismatic'!$B$2:$U$274,6,FALSE)*VLOOKUP($F$4,Sheet1!$B$8:$N$10,2,FALSE),IF(AND($B14<>"",$F$4="Capacity (OSHPD)"),VLOOKUP($B14,'Non-prismatic'!$B$2:$U$274,6,FALSE)*VLOOKUP($F$4,Sheet1!$B$8:$N$10,2,FALSE),IF(AND($B14<>"",$F$4="R=3"),VLOOKUP($B14,'Non-prismatic'!$B$2:$U$274,6,FALSE)*VLOOKUP($F$4,Sheet1!$B$8:$N$10,2,FALSE),""))) ->  | E14: =IF(AND($B14<>"",$F$4="Capacity (Non-OSHPD)"),VLOOKUP($B14,'Non-prismatic'!$B$2:$U$274,7,FALSE)*VLOOKUP($F$4,Sheet1!$B$8:$N$10,3,FALSE),IF(AND($B14<>"",$F$4="Capacity (OSHPD)"),VLOOKUP($B14,'Non-prismatic'!$B$2:$U$274,7,FALSE)*VLOOKUP($F$4,Sheet1!$B$8:$N$10,3,FALSE),IF(AND($B14<>"",$F$4="R=3"),VLOOKUP($B14,'Non-prismatic'!$B$2:$U$274,7,FALSE)*VLOOKUP($F$4,Sheet1!$B$8:$N$10,3,FALSE),""))) ->  | F14: =IF(AND($B14<>"",$F$4="Capacity (Non-OSHPD)"),VLOOKUP($B14,'Non-prismatic'!$B$2:$U$274,8,FALSE)*VLOOKUP($F$4,Sheet1!$B$8:$N$10,4,FALSE),IF(AND($B14<>"",$F$4="Capacity (OSHPD)"),VLOOKUP($B14,'Non-prismatic'!$B$2:$U$274,8,FALSE)*VLOOKUP($F$4,Sheet1!$B$8:$N$10,4,FALSE),IF(AND($B14<>"",$F$4="R=3"),VLOOKUP($B14,'Non-prismatic'!$B$2:$U$274,8,FALSE)*VLOOKUP($F$4,Sheet1!$B$8:$N$10,4,FALSE),""))) ->  | G14: =IF(AND($B14<>"",$F$4="Capacity (Non-OSHPD)"),VLOOKUP($B14,'Non-prismatic'!$B$2:$U$274,9,FALSE)*VLOOKUP($F$4,Sheet1!$B$8:$N$10,5,FALSE),IF(AND($B14<>"",$F$4="Capacity (OSHPD)"),VLOOKUP($B14,'Non-prismatic'!$B$2:$U$274,9,FALSE)*VLOOKUP($F$4,Sheet1!$B$8:$N$10,5,FALSE),IF(AND($B14<>"",$F$4="R=3"),VLOOKUP($B14,'Non-prismatic'!$B$2:$U$274,9,FALSE)*VLOOKUP($F$4,Sheet1!$B$8:$N$10,5,FALSE),""))) ->  | H14: =IF(AND($B14<>"",$F$4="Capacity (Non-OSHPD)"),VLOOKUP($B14,'Non-prismatic'!$B$2:$U$274,10,FALSE)*VLOOKUP($F$4,Sheet1!$B$8:$N$10,6,FALSE),IF(AND($B14<>"",$F$4="Capacity (OSHPD)"),VLOOKUP($B14,'Non-prismatic'!$B$2:$U$274,10,FALSE)*VLOOKUP($F$4,Sheet1!$B$8:$N$10,6,FALSE),IF(AND($B14<>"",$F$4="R=3"),VLOOKUP($B14,'Non-prismatic'!$B$2:$U$274,10,FALSE)*VLOOKUP($F$4,Sheet1!$B$8:$N$10,6,FALSE),""))) ->  | I14: =IF(AND($B14<>"",$F$4="Capacity (Non-OSHPD)"),VLOOKUP($B14,'Non-prismatic'!$B$2:$U$274,12,FALSE)*VLOOKUP($F$4,Sheet1!$B$8:$N$10,7,FALSE),IF(AND($B14<>"",$F$4="Capacity (OSHPD)"),2*3*VLOOKUP($B14,'Non-prismatic'!$B$2:$U$274,9,FALSE)/VLOOKUP($B14,'Non-prismatic'!$B$2:$U$274,3,FALSE),IF(AND($B14<>"",$F$4="R=3"),VLOOKUP($B14,'Non-prismatic'!$B$2:$U$274,12,FALSE)*VLOOKUP($F$4,Sheet1!$B$8:$N$10,7,FALSE),""))) ->  | J14: =IF(AND($B14<>"",$F$4="Capacity (Non-OSHPD)"),VLOOKUP($B14,'Non-prismatic'!$B$2:$U$274,13,FALSE)*VLOOKUP($F$4,Sheet1!$B$8:$N$10,8,FALSE),IF(AND($B14<>"",$F$4="Capacity (OSHPD)"),VLOOKUP($B14,'Non-prismatic'!$B$2:$U$274,13,FALSE)*VLOOKUP($F$4,Sheet1!$B$8:$N$10,8,FALSE),IF(AND($B14<>"",$F$4="R=3"),VLOOKUP($B14,'Non-prismatic'!$B$2:$U$274,13,FALSE)*VLOOKUP($F$4,Sheet1!$B$8:$N$10,8,FALSE),""))) ->  | K14: =IF(AND($B14<>"",$F$4="Capacity (Non-OSHPD)"),VLOOKUP($B14,'Non-prismatic'!$B$2:$U$274,14,FALSE)*VLOOKUP($F$4,Sheet1!$B$8:$N$10,9,FALSE),IF(AND($B14<>"",$F$4="Capacity (OSHPD)"),VLOOKUP($B14,'Non-prismatic'!$B$2:$U$274,14,FALSE)*VLOOKUP($F$4,Sheet1!$B$8:$N$10,9,FALSE),IF(AND($B14<>"",$F$4="R=3"),VLOOKUP($B14,'Non-prismatic'!$B$2:$U$274,14,FALSE)*VLOOKUP($F$4,Sheet1!$B$8:$N$10,9,FALSE),""))) ->  | L14: =IF(AND($B14<>"",$F$4="Capacity (Non-OSHPD)"),VLOOKUP($B14,'Non-prismatic'!$B$2:$U$274,15,FALSE)*VLOOKUP($F$4,Sheet1!$B$8:$N$10,10,FALSE),IF(AND($B14<>"",$F$4="Capacity (OSHPD)"),VLOOKUP($B14,'Non-prismatic'!$B$2:$U$274,15,FALSE)*VLOOKUP($F$4,Sheet1!$B$8:$N$10,10,FALSE),IF(AND($B14<>"",$F$4="R=3"),VLOOKUP($B14,'Non-prismatic'!$B$2:$U$274,15,FALSE)*VLOOKUP($F$4,Sheet1!$B$8:$N$10,10,FALSE),""))) ->  | M14: =IF(AND($B14<>"",$F$4="Capacity (Non-OSHPD)"),VLOOKUP($B14,'Non-prismatic'!$B$2:$U$274,16,FALSE)*VLOOKUP($F$4,Sheet1!$B$8:$N$10,11,FALSE),IF(AND($B14<>"",$F$4="Capacity (OSHPD)"),1.15*2*3*VLOOKUP($B14,'Non-prismatic'!$B$2:$U$274,9,FALSE)/VLOOKUP($B14,'Non-prismatic'!$B$2:$U$274,3,FALSE),IF(AND($B14<>"",$F$4="R=3"),VLOOKUP($B14,'Non-prismatic'!$B$2:$U$274,16,FALSE)*VLOOKUP($F$4,Sheet1!$B$8:$N$10,11,FALSE),""))) ->  | N14: =IF(AND($B14<>"",$F$4="Capacity (Non-OSHPD)"),VLOOKUP($B14,'Non-prismatic'!$B$2:$U$274,17,FALSE)*VLOOKUP($F$4,Sheet1!$B$8:$N$10,12,FALSE),IF(AND($B14<>"",$F$4="Capacity (OSHPD)"),VLOOKUP($B14,'Non-prismatic'!$B$2:$U$274,17,FALSE)*VLOOKUP($F$4,Sheet1!$B$8:$N$10,12,FALSE),IF(AND($B14<>"",$F$4="R=3"),VLOOKUP($B14,'Non-prismatic'!$B$2:$U$274,17,FALSE)*VLOOKUP($F$4,Sheet1!$B$8:$N$10,12,FALSE),""))) ->  | O14: =IF(AND(B14<>"",$F$4="Capacity (Non-OSHPD)"),VLOOKUP($B14,'Non-prismatic'!$B$2:$U$274,18,FALSE),IF(AND(B14<>"",OR($F$4="Capacity (OSHPD)",$F$4="R=3")),VLOOKUP($B14,'Non-prismatic'!$B$2:$U$274,19,FALSE),"")) ->  | P14: =IF(B14<>"",VLOOKUP($B14,'Non-prismatic'!$B$2:$V$274,21,FALSE),"") ->  | Q14: =IF(B14<>"",VLOOKUP($B14,'Non-prismatic'!$B$2:$U$274,3,FALSE),"") ->  | U14: 3. You can only have 1 SAP2000 model opened at the time you use this spreadsheet
C15: =IF(B15<>"",VLOOKUP($B15,'Non-prismatic'!$B$2:$U$274,4,FALSE),"") ->  | D15: =IF(AND($B15<>"",$F$4="Capacity (Non-OSHPD)"),VLOOKUP($B15,'Non-prismatic'!$B$2:$U$274,6,FALSE)*VLOOKUP($F$4,Sheet1!$B$8:$N$10,2,FALSE),IF(AND($B15<>"",$F$4="Capacity (OSHPD)"),VLOOKUP($B15,'Non-prismatic'!$B$2:$U$274,6,FALSE)*VLOOKUP($F$4,Sheet1!$B$8:$N$10,2,FALSE),IF(AND($B15<>"",$F$4="R=3"),VLOOKUP($B15,'Non-prismatic'!$B$2:$U$274,6,FALSE)*VLOOKUP($F$4,Sheet1!$B$8:$N$10,2,FALSE),""))) ->  | E15: =IF(AND($B15<>"",$F$4="Capacity (Non-OSHPD)"),VLOOKUP($B15,'Non-prismatic'!$B$2:$U$274,7,FALSE)*VLOOKUP($F$4,Sheet1!$B$8:$N$10,3,FALSE),IF(AND($B15<>"",$F$4="Capacity (OSHPD)"),VLOOKUP($B15,'Non-prismatic'!$B$2:$U$274,7,FALSE)*VLOOKUP($F$4,Sheet1!$B$8:$N$10,3,FALSE),IF(AND($B15<>"",$F$4="R=3"),VLOOKUP($B15,'Non-prismatic'!$B$2:$U$274,7,FALSE)*VLOOKUP($F$4,Sheet1!$B$8:$N$10,3,FALSE),""))) ->  | F15: =IF(AND($B15<>"",$F$4="Capacity (Non-OSHPD)"),VLOOKUP($B15,'Non-prismatic'!$B$2:$U$274,8,FALSE)*VLOOKUP($F$4,Sheet1!$B$8:$N$10,4,FALSE),IF(AND($B15<>"",$F$4="Capacity (OSHPD)"),VLOOKUP($B15,'Non-prismatic'!$B$2:$U$274,8,FALSE)*VLOOKUP($F$4,Sheet1!$B$8:$N$10,4,FALSE),IF(AND($B15<>"",$F$4="R=3"),VLOOKUP($B15,'Non-prismatic'!$B$2:$U$274,8,FALSE)*VLOOKUP($F$4,Sheet1!$B$8:$N$10,4,FALSE),""))) ->  | G15: =IF(AND($B15<>"",$F$4="Capacity (Non-OSHPD)"),VLOOKUP($B15,'Non-prismatic'!$B$2:$U$274,9,FALSE)*VLOOKUP($F$4,Sheet1!$B$8:$N$10,5,FALSE),IF(AND($B15<>"",$F$4="Capacity (OSHPD)"),VLOOKUP($B15,'Non-prismatic'!$B$2:$U$274,9,FALSE)*VLOOKUP($F$4,Sheet1!$B$8:$N$10,5,FALSE),IF(AND($B15<>"",$F$4="R=3"),VLOOKUP($B15,'Non-prismatic'!$B$2:$U$274,9,FALSE)*VLOOKUP($F$4,Sheet1!$B$8:$N$10,5,FALSE),""))) ->  | H15: =IF(AND($B15<>"",$F$4="Capacity (Non-OSHPD)"),VLOOKUP($B15,'Non-prismatic'!$B$2:$U$274,10,FALSE)*VLOOKUP($F$4,Sheet1!$B$8:$N$10,6,FALSE),IF(AND($B15<>"",$F$4="Capacity (OSHPD)"),VLOOKUP($B15,'Non-prismatic'!$B$2:$U$274,10,FALSE)*VLOOKUP($F$4,Sheet1!$B$8:$N$10,6,FALSE),IF(AND($B15<>"",$F$4="R=3"),VLOOKUP($B15,'Non-prismatic'!$B$2:$U$274,10,FALSE)*VLOOKUP($F$4,Sheet1!$B$8:$N$10,6,FALSE),""))) ->  | I15: =IF(AND($B15<>"",$F$4="Capacity (Non-OSHPD)"),VLOOKUP($B15,'Non-prismatic'!$B$2:$U$274,12,FALSE)*VLOOKUP($F$4,Sheet1!$B$8:$N$10,7,FALSE),IF(AND($B15<>"",$F$4="Capacity (OSHPD)"),2*3*VLOOKUP($B15,'Non-prismatic'!$B$2:$U$274,9,FALSE)/VLOOKUP($B15,'Non-prismatic'!$B$2:$U$274,3,FALSE),IF(AND($B15<>"",$F$4="R=3"),VLOOKUP($B15,'Non-prismatic'!$B$2:$U$274,12,FALSE)*VLOOKUP($F$4,Sheet1!$B$8:$N$10,7,FALSE),""))) ->  | J15: =IF(AND($B15<>"",$F$4="Capacity (Non-OSHPD)"),VLOOKUP($B15,'Non-prismatic'!$B$2:$U$274,13,FALSE)*VLOOKUP($F$4,Sheet1!$B$8:$N$10,8,FALSE),IF(AND($B15<>"",$F$4="Capacity (OSHPD)"),VLOOKUP($B15,'Non-prismatic'!$B$2:$U$274,13,FALSE)*VLOOKUP($F$4,Sheet1!$B$8:$N$10,8,FALSE),IF(AND($B15<>"",$F$4="R=3"),VLOOKUP($B15,'Non-prismatic'!$B$2:$U$274,13,FALSE)*VLOOKUP($F$4,Sheet1!$B$8:$N$10,8,FALSE),""))) ->  | K15: =IF(AND($B15<>"",$F$4="Capacity (Non-OSHPD)"),VLOOKUP($B15,'Non-prismatic'!$B$2:$U$274,14,FALSE)*VLOOKUP($F$4,Sheet1!$B$8:$N$10,9,FALSE),IF(AND($B15<>"",$F$4="Capacity (OSHPD)"),VLOOKUP($B15,'Non-prismatic'!$B$2:$U$274,14,FALSE)*VLOOKUP($F$4,Sheet1!$B$8:$N$10,9,FALSE),IF(AND($B15<>"",$F$4="R=3"),VLOOKUP($B15,'Non-prismatic'!$B$2:$U$274,14,FALSE)*VLOOKUP($F$4,Sheet1!$B$8:$N$10,9,FALSE),""))) ->  | L15: =IF(AND($B15<>"",$F$4="Capacity (Non-OSHPD)"),VLOOKUP($B15,'Non-prismatic'!$B$2:$U$274,15,FALSE)*VLOOKUP($F$4,Sheet1!$B$8:$N$10,10,FALSE),IF(AND($B15<>"",$F$4="Capacity (OSHPD)"),VLOOKUP($B15,'Non-prismatic'!$B$2:$U$274,15,FALSE)*VLOOKUP($F$4,Sheet1!$B$8:$N$10,10,FALSE),IF(AND($B15<>"",$F$4="R=3"),VLOOKUP($B15,'Non-prismatic'!$B$2:$U$274,15,FALSE)*VLOOKUP($F$4,Sheet1!$B$8:$N$10,10,FALSE),""))) ->  | M15: =IF(AND($B15<>"",$F$4="Capacity (Non-OSHPD)"),VLOOKUP($B15,'Non-prismatic'!$B$2:$U$274,16,FALSE)*VLOOKUP($F$4,Sheet1!$B$8:$N$10,11,FALSE),IF(AND($B15<>"",$F$4="Capacity (OSHPD)"),1.15*2*3*VLOOKUP($B15,'Non-prismatic'!$B$2:$U$274,9,FALSE)/VLOOKUP($B15,'Non-prismatic'!$B$2:$U$274,3,FALSE),IF(AND($B15<>"",$F$4="R=3"),VLOOKUP($B15,'Non-prismatic'!$B$2:$U$274,16,FALSE)*VLOOKUP($F$4,Sheet1!$B$8:$N$10,11,FALSE),""))) ->  | N15: =IF(AND($B15<>"",$F$4="Capacity (Non-OSHPD)"),VLOOKUP($B15,'Non-prismatic'!$B$2:$U$274,17,FALSE)*VLOOKUP($F$4,Sheet1!$B$8:$N$10,12,FALSE),IF(AND($B15<>"",$F$4="Capacity (OSHPD)"),VLOOKUP($B15,'Non-prismatic'!$B$2:$U$274,17,FALSE)*VLOOKUP($F$4,Sheet1!$B$8:$N$10,12,FALSE),IF(AND($B15<>"",$F$4="R=3"),VLOOKUP($B15,'Non-prismatic'!$B$2:$U$274,17,FALSE)*VLOOKUP($F$4,Sheet1!$B$8:$N$10,12,FALSE),""))) ->  | O15: =IF(AND(B15<>"",$F$4="Capacity (Non-OSHPD)"),VLOOKUP($B15,'Non-prismatic'!$B$2:$U$274,18,FALSE),IF(AND(B15<>"",OR($F$4="Capacity (OSHPD)",$F$4="R=3")),VLOOKUP($B15,'Non-prismatic'!$B$2:$U$274,19,FALSE),"")) ->  | P15: =IF(B15<>"",VLOOKUP($B15,'Non-prismatic'!$B$2:$V$274,21,FALSE),"") ->  | Q15: =IF(B15<>"",VLOOKUP($B15,'Non-prismatic'!$B$2:$U$274,3,FALSE),"") ->  | U15: 4. Cells with blue text and blue fill are editable
C16: =IF(B16<>"",VLOOKUP($B16,'Non-prismatic'!$B$2:$U$274,4,FALSE),"") ->  | D16: =IF(AND($B16<>"",$F$4="Capacity (Non-OSHPD)"),VLOOKUP($B16,'Non-prismatic'!$B$2:$U$274,6,FALSE)*VLOOKUP($F$4,Sheet1!$B$8:$N$10,2,FALSE),IF(AND($B16<>"",$F$4="Capacity (OSHPD)"),VLOOKUP($B16,'Non-prismatic'!$B$2:$U$274,6,FALSE)*VLOOKUP($F$4,Sheet1!$B$8:$N$10,2,FALSE),IF(AND($B16<>"",$F$4="R=3"),VLOOKUP($B16,'Non-prismatic'!$B$2:$U$274,6,FALSE)*VLOOKUP($F$4,Sheet1!$B$8:$N$10,2,FALSE),""))) ->  | E16: =IF(AND($B16<>"",$F$4="Capacity (Non-OSHPD)"),VLOOKUP($B16,'Non-prismatic'!$B$2:$U$274,7,FALSE)*VLOOKUP($F$4,Sheet1!$B$8:$N$10,3,FALSE),IF(AND($B16<>"",$F$4="Capacity (OSHPD)"),VLOOKUP($B16,'Non-prismatic'!$B$2:$U$274,7,FALSE)*VLOOKUP($F$4,Sheet1!$B$8:$N$10,3,FALSE),IF(AND($B16<>"",$F$4="R=3"),VLOOKUP($B16,'Non-prismatic'!$B$2:$U$274,7,FALSE)*VLOOKUP($F$4,Sheet1!$B$8:$N$10,3,FALSE),""))) ->  | F16: =IF(AND($B16<>"",$F$4="Capacity (Non-OSHPD)"),VLOOKUP($B16,'Non-prismatic'!$B$2:$U$274,8,FALSE)*VLOOKUP($F$4,Sheet1!$B$8:$N$10,4,FALSE),IF(AND($B16<>"",$F$4="Capacity (OSHPD)"),VLOOKUP($B16,'Non-prismatic'!$B$2:$U$274,8,FALSE)*VLOOKUP($F$4,Sheet1!$B$8:$N$10,4,FALSE),IF(AND($B16<>"",$F$4="R=3"),VLOOKUP($B16,'Non-prismatic'!$B$2:$U$274,8,FALSE)*VLOOKUP($F$4,Sheet1!$B$8:$N$10,4,FALSE),""))) ->  | G16: =IF(AND($B16<>"",$F$4="Capacity (Non-OSHPD)"),VLOOKUP($B16,'Non-prismatic'!$B$2:$U$274,9,FALSE)*VLOOKUP($F$4,Sheet1!$B$8:$N$10,5,FALSE),IF(AND($B16<>"",$F$4="Capacity (OSHPD)"),VLOOKUP($B16,'Non-prismatic'!$B$2:$U$274,9,FALSE)*VLOOKUP($F$4,Sheet1!$B$8:$N$10,5,FALSE),IF(AND($B16<>"",$F$4="R=3"),VLOOKUP($B16,'Non-prismatic'!$B$2:$U$274,9,FALSE)*VLOOKUP($F$4,Sheet1!$B$8:$N$10,5,FALSE),""))) ->  | H16: =IF(AND($B16<>"",$F$4="Capacity (Non-OSHPD)"),VLOOKUP($B16,'Non-prismatic'!$B$2:$U$274,10,FALSE)*VLOOKUP($F$4,Sheet1!$B$8:$N$10,6,FALSE),IF(AND($B16<>"",$F$4="Capacity (OSHPD)"),VLOOKUP($B16,'Non-prismatic'!$B$2:$U$274,10,FALSE)*VLOOKUP($F$4,Sheet1!$B$8:$N$10,6,FALSE),IF(AND($B16<>"",$F$4="R=3"),VLOOKUP($B16,'Non-prismatic'!$B$2:$U$274,10,FALSE)*VLOOKUP($F$4,Sheet1!$B$8:$N$10,6,FALSE),""))) ->  | I16: =IF(AND($B16<>"",$F$4="Capacity (Non-OSHPD)"),VLOOKUP($B16,'Non-prismatic'!$B$2:$U$274,12,FALSE)*VLOOKUP($F$4,Sheet1!$B$8:$N$10,7,FALSE),IF(AND($B16<>"",$F$4="Capacity (OSHPD)"),2*3*VLOOKUP($B16,'Non-prismatic'!$B$2:$U$274,9,FALSE)/VLOOKUP($B16,'Non-prismatic'!$B$2:$U$274,3,FALSE),IF(AND($B16<>"",$F$4="R=3"),VLOOKUP($B16,'Non-prismatic'!$B$2:$U$274,12,FALSE)*VLOOKUP($F$4,Sheet1!$B$8:$N$10,7,FALSE),""))) ->  | J16: =IF(AND($B16<>"",$F$4="Capacity (Non-OSHPD)"),VLOOKUP($B16,'Non-prismatic'!$B$2:$U$274,13,FALSE)*VLOOKUP($F$4,Sheet1!$B$8:$N$10,8,FALSE),IF(AND($B16<>"",$F$4="Capacity (OSHPD)"),VLOOKUP($B16,'Non-prismatic'!$B$2:$U$274,13,FALSE)*VLOOKUP($F$4,Sheet1!$B$8:$N$10,8,FALSE),IF(AND($B16<>"",$F$4="R=3"),VLOOKUP($B16,'Non-prismatic'!$B$2:$U$274,13,FALSE)*VLOOKUP($F$4,Sheet1!$B$8:$N$10,8,FALSE),""))) ->  | K16: =IF(AND($B16<>"",$F$4="Capacity (Non-OSHPD)"),VLOOKUP($B16,'Non-prismatic'!$B$2:$U$274,14,FALSE)*VLOOKUP($F$4,Sheet1!$B$8:$N$10,9,FALSE),IF(AND($B16<>"",$F$4="Capacity (OSHPD)"),VLOOKUP($B16,'Non-prismatic'!$B$2:$U$274,14,FALSE)*VLOOKUP($F$4,Sheet1!$B$8:$N$10,9,FALSE),IF(AND($B16<>"",$F$4="R=3"),VLOOKUP($B16,'Non-prismatic'!$B$2:$U$274,14,FALSE)*VLOOKUP($F$4,Sheet1!$B$8:$N$10,9,FALSE),""))) ->  | L16: =IF(AND($B16<>"",$F$4="Capacity (Non-OSHPD)"),VLOOKUP($B16,'Non-prismatic'!$B$2:$U$274,15,FALSE)*VLOOKUP($F$4,Sheet1!$B$8:$N$10,10,FALSE),IF(AND($B16<>"",$F$4="Capacity (OSHPD)"),VLOOKUP($B16,'Non-prismatic'!$B$2:$U$274,15,FALSE)*VLOOKUP($F$4,Sheet1!$B$8:$N$10,10,FALSE),IF(AND($B16<>"",$F$4="R=3"),VLOOKUP($B16,'Non-prismatic'!$B$2:$U$274,15,FALSE)*VLOOKUP($F$4,Sheet1!$B$8:$N$10,10,FALSE),""))) ->  | M16: =IF(AND($B16<>"",$F$4="Capacity (Non-OSHPD)"),VLOOKUP($B16,'Non-prismatic'!$B$2:$U$274,16,FALSE)*VLOOKUP($F$4,Sheet1!$B$8:$N$10,11,FALSE),IF(AND($B16<>"",$F$4="Capacity (OSHPD)"),1.15*2*3*VLOOKUP($B16,'Non-prismatic'!$B$2:$U$274,9,FALSE)/VLOOKUP($B16,'Non-prismatic'!$B$2:$U$274,3,FALSE),IF(AND($B16<>"",$F$4="R=3"),VLOOKUP($B16,'Non-prismatic'!$B$2:$U$274,16,FALSE)*VLOOKUP($F$4,Sheet1!$B$8:$N$10,11,FALSE),""))) ->  | N16: =IF(AND($B16<>"",$F$4="Capacity (Non-OSHPD)"),VLOOKUP($B16,'Non-prismatic'!$B$2:$U$274,17,FALSE)*VLOOKUP($F$4,Sheet1!$B$8:$N$10,12,FALSE),IF(AND($B16<>"",$F$4="Capacity (OSHPD)"),VLOOKUP($B16,'Non-prismatic'!$B$2:$U$274,17,FALSE)*VLOOKUP($F$4,Sheet1!$B$8:$N$10,12,FALSE),IF(AND($B16<>"",$F$4="R=3"),VLOOKUP($B16,'Non-prismatic'!$B$2:$U$274,17,FALSE)*VLOOKUP($F$4,Sheet1!$B$8:$N$10,12,FALSE),""))) ->  | O16: =IF(AND(B16<>"",$F$4="Capacity (Non-OSHPD)"),VLOOKUP($B16,'Non-prismatic'!$B$2:$U$274,18,FALSE),IF(AND(B16<>"",OR($F$4="Capacity (OSHPD)",$F$4="R=3")),VLOOKUP($B16,'Non-prismatic'!$B$2:$U$274,19,FALSE),"")) ->  | P16: =IF(B16<>"",VLOOKUP($B16,'Non-prismatic'!$B$2:$V$274,21,FALSE),"") ->  | Q16: =IF(B16<>"",VLOOKUP($B16,'Non-prismatic'!$B$2:$U$274,3,FALSE),"") ->  | U16: 5. Duplicate sections will only be imported once into the SAP2000 model
C17: =IF(B17<>"",VLOOKUP($B17,'Non-prismatic'!$B$2:$U$274,4,FALSE),"") ->  | D17: =IF(AND($B17<>"",$F$4="Capacity (Non-OSHPD)"),VLOOKUP($B17,'Non-prismatic'!$B$2:$U$274,6,FALSE)*VLOOKUP($F$4,Sheet1!$B$8:$N$10,2,FALSE),IF(AND($B17<>"",$F$4="Capacity (OSHPD)"),VLOOKUP($B17,'Non-prismatic'!$B$2:$U$274,6,FALSE)*VLOOKUP($F$4,Sheet1!$B$8:$N$10,2,FALSE),IF(AND($B17<>"",$F$4="R=3"),VLOOKUP($B17,'Non-prismatic'!$B$2:$U$274,6,FALSE)*VLOOKUP($F$4,Sheet1!$B$8:$N$10,2,FALSE),""))) ->  | E17: =IF(AND($B17<>"",$F$4="Capacity (Non-OSHPD)"),VLOOKUP($B17,'Non-prismatic'!$B$2:$U$274,7,FALSE)*VLOOKUP($F$4,Sheet1!$B$8:$N$10,3,FALSE),IF(AND($B17<>"",$F$4="Capacity (OSHPD)"),VLOOKUP($B17,'Non-prismatic'!$B$2:$U$274,7,FALSE)*VLOOKUP($F$4,Sheet1!$B$8:$N$10,3,FALSE),IF(AND($B17<>"",$F$4="R=3"),VLOOKUP($B17,'Non-prismatic'!$B$2:$U$274,7,FALSE)*VLOOKUP($F$4,Sheet1!$B$8:$N$10,3,FALSE),""))) ->  | F17: =IF(AND($B17<>"",$F$4="Capacity (Non-OSHPD)"),VLOOKUP($B17,'Non-prismatic'!$B$2:$U$274,8,FALSE)*VLOOKUP($F$4,Sheet1!$B$8:$N$10,4,FALSE),IF(AND($B17<>"",$F$4="Capacity (OSHPD)"),VLOOKUP($B17,'Non-prismatic'!$B$2:$U$274,8,FALSE)*VLOOKUP($F$4,Sheet1!$B$8:$N$10,4,FALSE),IF(AND($B17<>"",$F$4="R=3"),VLOOKUP($B17,'Non-prismatic'!$B$2:$U$274,8,FALSE)*VLOOKUP($F$4,Sheet1!$B$8:$N$10,4,FALSE),""))) ->  | G17: =IF(AND($B17<>"",$F$4="Capacity (Non-OSHPD)"),VLOOKUP($B17,'Non-prismatic'!$B$2:$U$274,9,FALSE)*VLOOKUP($F$4,Sheet1!$B$8:$N$10,5,FALSE),IF(AND($B17<>"",$F$4="Capacity (OSHPD)"),VLOOKUP($B17,'Non-prismatic'!$B$2:$U$274,9,FALSE)*VLOOKUP($F$4,Sheet1!$B$8:$N$10,5,FALSE),IF(AND($B17<>"",$F$4="R=3"),VLOOKUP($B17,'Non-prismatic'!$B$2:$U$274,9,FALSE)*VLOOKUP($F$4,Sheet1!$B$8:$N$10,5,FALSE),""))) ->  | H17: =IF(AND($B17<>"",$F$4="Capacity (Non-OSHPD)"),VLOOKUP($B17,'Non-prismatic'!$B$2:$U$274,10,FALSE)*VLOOKUP($F$4,Sheet1!$B$8:$N$10,6,FALSE),IF(AND($B17<>"",$F$4="Capacity (OSHPD)"),VLOOKUP($B17,'Non-prismatic'!$B$2:$U$274,10,FALSE)*VLOOKUP($F$4,Sheet1!$B$8:$N$10,6,FALSE),IF(AND($B17<>"",$F$4="R=3"),VLOOKUP($B17,'Non-prismatic'!$B$2:$U$274,10,FALSE)*VLOOKUP($F$4,Sheet1!$B$8:$N$10,6,FALSE),""))) ->  | I17: =IF(AND($B17<>"",$F$4="Capacity (Non-OSHPD)"),VLOOKUP($B17,'Non-prismatic'!$B$2:$U$274,12,FALSE)*VLOOKUP($F$4,Sheet1!$B$8:$N$10,7,FALSE),IF(AND($B17<>"",$F$4="Capacity (OSHPD)"),2*3*VLOOKUP($B17,'Non-prismatic'!$B$2:$U$274,9,FALSE)/VLOOKUP($B17,'Non-prismatic'!$B$2:$U$274,3,FALSE),IF(AND($B17<>"",$F$4="R=3"),VLOOKUP($B17,'Non-prismatic'!$B$2:$U$274,12,FALSE)*VLOOKUP($F$4,Sheet1!$B$8:$N$10,7,FALSE),""))) ->  | J17: =IF(AND($B17<>"",$F$4="Capacity (Non-OSHPD)"),VLOOKUP($B17,'Non-prismatic'!$B$2:$U$274,13,FALSE)*VLOOKUP($F$4,Sheet1!$B$8:$N$10,8,FALSE),IF(AND($B17<>"",$F$4="Capacity (OSHPD)"),VLOOKUP($B17,'Non-prismatic'!$B$2:$U$274,13,FALSE)*VLOOKUP($F$4,Sheet1!$B$8:$N$10,8,FALSE),IF(AND($B17<>"",$F$4="R=3"),VLOOKUP($B17,'Non-prismatic'!$B$2:$U$274,13,FALSE)*VLOOKUP($F$4,Sheet1!$B$8:$N$10,8,FALSE),""))) ->  | K17: =IF(AND($B17<>"",$F$4="Capacity (Non-OSHPD)"),VLOOKUP($B17,'Non-prismatic'!$B$2:$U$274,14,FALSE)*VLOOKUP($F$4,Sheet1!$B$8:$N$10,9,FALSE),IF(AND($B17<>"",$F$4="Capacity (OSHPD)"),VLOOKUP($B17,'Non-prismatic'!$B$2:$U$274,14,FALSE)*VLOOKUP($F$4,Sheet1!$B$8:$N$10,9,FALSE),IF(AND($B17<>"",$F$4="R=3"),VLOOKUP($B17,'Non-prismatic'!$B$2:$U$274,14,FALSE)*VLOOKUP($F$4,Sheet1!$B$8:$N$10,9,FALSE),""))) ->  | L17: =IF(AND($B17<>"",$F$4="Capacity (Non-OSHPD)"),VLOOKUP($B17,'Non-prismatic'!$B$2:$U$274,15,FALSE)*VLOOKUP($F$4,Sheet1!$B$8:$N$10,10,FALSE),IF(AND($B17<>"",$F$4="Capacity (OSHPD)"),VLOOKUP($B17,'Non-prismatic'!$B$2:$U$274,15,FALSE)*VLOOKUP($F$4,Sheet1!$B$8:$N$10,10,FALSE),IF(AND($B17<>"",$F$4="R=3"),VLOOKUP($B17,'Non-prismatic'!$B$2:$U$274,15,FALSE)*VLOOKUP($F$4,Sheet1!$B$8:$N$10,10,FALSE),""))) ->  | M17: =IF(AND($B17<>"",$F$4="Capacity (Non-OSHPD)"),VLOOKUP($B17,'Non-prismatic'!$B$2:$U$274,16,FALSE)*VLOOKUP($F$4,Sheet1!$B$8:$N$10,11,FALSE),IF(AND($B17<>"",$F$4="Capacity (OSHPD)"),1.15*2*3*VLOOKUP($B17,'Non-prismatic'!$B$2:$U$274,9,FALSE)/VLOOKUP($B17,'Non-prismatic'!$B$2:$U$274,3,FALSE),IF(AND($B17<>"",$F$4="R=3"),VLOOKUP($B17,'Non-prismatic'!$B$2:$U$274,16,FALSE)*VLOOKUP($F$4,Sheet1!$B$8:$N$10,11,FALSE),""))) ->  | N17: =IF(AND($B17<>"",$F$4="Capacity (Non-OSHPD)"),VLOOKUP($B17,'Non-prismatic'!$B$2:$U$274,17,FALSE)*VLOOKUP($F$4,Sheet1!$B$8:$N$10,12,FALSE),IF(AND($B17<>"",$F$4="Capacity (OSHPD)"),VLOOKUP($B17,'Non-prismatic'!$B$2:$U$274,17,FALSE)*VLOOKUP($F$4,Sheet1!$B$8:$N$10,12,FALSE),IF(AND($B17<>"",$F$4="R=3"),VLOOKUP($B17,'Non-prismatic'!$B$2:$U$274,17,FALSE)*VLOOKUP($F$4,Sheet1!$B$8:$N$10,12,FALSE),""))) ->  | O17: =IF(AND(B17<>"",$F$4="Capacity (Non-OSHPD)"),VLOOKUP($B17,'Non-prismatic'!$B$2:$U$274,18,FALSE),IF(AND(B17<>"",OR($F$4="Capacity (OSHPD)",$F$4="R=3")),VLOOKUP($B17,'Non-prismatic'!$B$2:$U$274,19,FALSE),"")) ->  | P17: =IF(B17<>"",VLOOKUP($B17,'Non-prismatic'!$B$2:$V$274,21,FALSE),"") ->  | Q17: =IF(B17<>"",VLOOKUP($B17,'Non-prismatic'!$B$2:$U$274,3,FALSE),"") ->  | U17: 6. Refer to procedures manual for other requirements for modeling SidePlate in SAP2000
C18: =IF(B18<>"",VLOOKUP($B18,'Non-prismatic'!$B$2:$U$274,4,FALSE),"") ->  | D18: =IF(AND($B18<>"",$F$4="Capacity (Non-OSHPD)"),VLOOKUP($B18,'Non-prismatic'!$B$2:$U$274,6,FALSE)*VLOOKUP($F$4,Sheet1!$B$8:$N$10,2,FALSE),IF(AND($B18<>"",$F$4="Capacity (OSHPD)"),VLOOKUP($B18,'Non-prismatic'!$B$2:$U$274,6,FALSE)*VLOOKUP($F$4,Sheet1!$B$8:$N$10,2,FALSE),IF(AND($B18<>"",$F$4="R=3"),VLOOKUP($B18,'Non-prismatic'!$B$2:$U$274,6,FALSE)*VLOOKUP($F$4,Sheet1!$B$8:$N$10,2,FALSE),""))) ->  | E18: =IF(AND($B18<>"",$F$4="Capacity (Non-OSHPD)"),VLOOKUP($B18,'Non-prismatic'!$B$2:$U$274,7,FALSE)*VLOOKUP($F$4,Sheet1!$B$8:$N$10,3,FALSE),IF(AND($B18<>"",$F$4="Capacity (OSHPD)"),VLOOKUP($B18,'Non-prismatic'!$B$2:$U$274,7,FALSE)*VLOOKUP($F$4,Sheet1!$B$8:$N$10,3,FALSE),IF(AND($B18<>"",$F$4="R=3"),VLOOKUP($B18,'Non-prismatic'!$B$2:$U$274,7,FALSE)*VLOOKUP($F$4,Sheet1!$B$8:$N$10,3,FALSE),""))) ->  | F18: =IF(AND($B18<>"",$F$4="Capacity (Non-OSHPD)"),VLOOKUP($B18,'Non-prismatic'!$B$2:$U$274,8,FALSE)*VLOOKUP($F$4,Sheet1!$B$8:$N$10,4,FALSE),IF(AND($B18<>"",$F$4="Capacity (OSHPD)"),VLOOKUP($B18,'Non-prismatic'!$B$2:$U$274,8,FALSE)*VLOOKUP($F$4,Sheet1!$B$8:$N$10,4,FALSE),IF(AND($B18<>"",$F$4="R=3"),VLOOKUP($B18,'Non-prismatic'!$B$2:$U$274,8,FALSE)*VLOOKUP($F$4,Sheet1!$B$8:$N$10,4,FALSE),""))) ->  | G18: =IF(AND($B18<>"",$F$4="Capacity (Non-OSHPD)"),VLOOKUP($B18,'Non-prismatic'!$B$2:$U$274,9,FALSE)*VLOOKUP($F$4,Sheet1!$B$8:$N$10,5,FALSE),IF(AND($B18<>"",$F$4="Capacity (OSHPD)"),VLOOKUP($B18,'Non-prismatic'!$B$2:$U$274,9,FALSE)*VLOOKUP($F$4,Sheet1!$B$8:$N$10,5,FALSE),IF(AND($B18<>"",$F$4="R=3"),VLOOKUP($B18,'Non-prismatic'!$B$2:$U$274,9,FALSE)*VLOOKUP($F$4,Sheet1!$B$8:$N$10,5,FALSE),""))) ->  | H18: =IF(AND($B18<>"",$F$4="Capacity (Non-OSHPD)"),VLOOKUP($B18,'Non-prismatic'!$B$2:$U$274,10,FALSE)*VLOOKUP($F$4,Sheet1!$B$8:$N$10,6,FALSE),IF(AND($B18<>"",$F$4="Capacity (OSHPD)"),VLOOKUP($B18,'Non-prismatic'!$B$2:$U$274,10,FALSE)*VLOOKUP($F$4,Sheet1!$B$8:$N$10,6,FALSE),IF(AND($B18<>"",$F$4="R=3"),VLOOKUP($B18,'Non-prismatic'!$B$2:$U$274,10,FALSE)*VLOOKUP($F$4,Sheet1!$B$8:$N$10,6,FALSE),""))) ->  | I18: =IF(AND($B18<>"",$F$4="Capacity (Non-OSHPD)"),VLOOKUP($B18,'Non-prismatic'!$B$2:$U$274,12,FALSE)*VLOOKUP($F$4,Sheet1!$B$8:$N$10,7,FALSE),IF(AND($B18<>"",$F$4="Capacity (OSHPD)"),2*3*VLOOKUP($B18,'Non-prismatic'!$B$2:$U$274,9,FALSE)/VLOOKUP($B18,'Non-prismatic'!$B$2:$U$274,3,FALSE),IF(AND($B18<>"",$F$4="R=3"),VLOOKUP($B18,'Non-prismatic'!$B$2:$U$274,12,FALSE)*VLOOKUP($F$4,Sheet1!$B$8:$N$10,7,FALSE),""))) ->  | J18: =IF(AND($B18<>"",$F$4="Capacity (Non-OSHPD)"),VLOOKUP($B18,'Non-prismatic'!$B$2:$U$274,13,FALSE)*VLOOKUP($F$4,Sheet1!$B$8:$N$10,8,FALSE),IF(AND($B18<>"",$F$4="Capacity (OSHPD)"),VLOOKUP($B18,'Non-prismatic'!$B$2:$U$274,13,FALSE)*VLOOKUP($F$4,Sheet1!$B$8:$N$10,8,FALSE),IF(AND($B18<>"",$F$4="R=3"),VLOOKUP($B18,'Non-prismatic'!$B$2:$U$274,13,FALSE)*VLOOKUP($F$4,Sheet1!$B$8:$N$10,8,FALSE),""))) ->  | K18: =IF(AND($B18<>"",$F$4="Capacity (Non-OSHPD)"),VLOOKUP($B18,'Non-prismatic'!$B$2:$U$274,14,FALSE)*VLOOKUP($F$4,Sheet1!$B$8:$N$10,9,FALSE),IF(AND($B18<>"",$F$4="Capacity (OSHPD)"),VLOOKUP($B18,'Non-prismatic'!$B$2:$U$274,14,FALSE)*VLOOKUP($F$4,Sheet1!$B$8:$N$10,9,FALSE),IF(AND($B18<>"",$F$4="R=3"),VLOOKUP($B18,'Non-prismatic'!$B$2:$U$274,14,FALSE)*VLOOKUP($F$4,Sheet1!$B$8:$N$10,9,FALSE),""))) ->  | L18: =IF(AND($B18<>"",$F$4="Capacity (Non-OSHPD)"),VLOOKUP($B18,'Non-prismatic'!$B$2:$U$274,15,FALSE)*VLOOKUP($F$4,Sheet1!$B$8:$N$10,10,FALSE),IF(AND($B18<>"",$F$4="Capacity (OSHPD)"),VLOOKUP($B18,'Non-prismatic'!$B$2:$U$274,15,FALSE)*VLOOKUP($F$4,Sheet1!$B$8:$N$10,10,FALSE),IF(AND($B18<>"",$F$4="R=3"),VLOOKUP($B18,'Non-prismatic'!$B$2:$U$274,15,FALSE)*VLOOKUP($F$4,Sheet1!$B$8:$N$10,10,FALSE),""))) ->  | M18: =IF(AND($B18<>"",$F$4="Capacity (Non-OSHPD)"),VLOOKUP($B18,'Non-prismatic'!$B$2:$U$274,16,FALSE)*VLOOKUP($F$4,Sheet1!$B$8:$N$10,11,FALSE),IF(AND($B18<>"",$F$4="Capacity (OSHPD)"),1.15*2*3*VLOOKUP($B18,'Non-prismatic'!$B$2:$U$274,9,FALSE)/VLOOKUP($B18,'Non-prismatic'!$B$2:$U$274,3,FALSE),IF(AND($B18<>"",$F$4="R=3"),VLOOKUP($B18,'Non-prismatic'!$B$2:$U$274,16,FALSE)*VLOOKUP($F$4,Sheet1!$B$8:$N$10,11,FALSE),""))) ->  | N18: =IF(AND($B18<>"",$F$4="Capacity (Non-OSHPD)"),VLOOKUP($B18,'Non-prismatic'!$B$2:$U$274,17,FALSE)*VLOOKUP($F$4,Sheet1!$B$8:$N$10,12,FALSE),IF(AND($B18<>"",$F$4="Capacity (OSHPD)"),VLOOKUP($B18,'Non-prismatic'!$B$2:$U$274,17,FALSE)*VLOOKUP($F$4,Sheet1!$B$8:$N$10,12,FALSE),IF(AND($B18<>"",$F$4="R=3"),VLOOKUP($B18,'Non-prismatic'!$B$2:$U$274,17,FALSE)*VLOOKUP($F$4,Sheet1!$B$8:$N$10,12,FALSE),""))) ->  | O18: =IF(AND(B18<>"",$F$4="Capacity (Non-OSHPD)"),VLOOKUP($B18,'Non-prismatic'!$B$2:$U$274,18,FALSE),IF(AND(B18<>"",OR($F$4="Capacity (OSHPD)",$F$4="R=3")),VLOOKUP($B18,'Non-prismatic'!$B$2:$U$274,19,FALSE),"")) ->  | P18: =IF(B18<>"",VLOOKUP($B18,'Non-prismatic'!$B$2:$V$274,21,FALSE),"") ->  | Q18: =IF(B18<>"",VLOOKUP($B18,'Non-prismatic'!$B$2:$U$274,3,FALSE),"") -> 
C19: =IF(B19<>"",VLOOKUP($B19,'Non-prismatic'!$B$2:$U$274,4,FALSE),"") ->  | D19: =IF(AND($B19<>"",$F$4="Capacity (Non-OSHPD)"),VLOOKUP($B19,'Non-prismatic'!$B$2:$U$274,6,FALSE)*VLOOKUP($F$4,Sheet1!$B$8:$N$10,2,FALSE),IF(AND($B19<>"",$F$4="Capacity (OSHPD)"),VLOOKUP($B19,'Non-prismatic'!$B$2:$U$274,6,FALSE)*VLOOKUP($F$4,Sheet1!$B$8:$N$10,2,FALSE),IF(AND($B19<>"",$F$4="R=3"),VLOOKUP($B19,'Non-prismatic'!$B$2:$U$274,6,FALSE)*VLOOKUP($F$4,Sheet1!$B$8:$N$10,2,FALSE),""))) ->  | E19: =IF(AND($B19<>"",$F$4="Capacity (Non-OSHPD)"),VLOOKUP($B19,'Non-prismatic'!$B$2:$U$274,7,FALSE)*VLOOKUP($F$4,Sheet1!$B$8:$N$10,3,FALSE),IF(AND($B19<>"",$F$4="Capacity (OSHPD)"),VLOOKUP($B19,'Non-prismatic'!$B$2:$U$274,7,FALSE)*VLOOKUP($F$4,Sheet1!$B$8:$N$10,3,FALSE),IF(AND($B19<>"",$F$4="R=3"),VLOOKUP($B19,'Non-prismatic'!$B$2:$U$274,7,FALSE)*VLOOKUP($F$4,Sheet1!$B$8:$N$10,3,FALSE),""))) ->  | F19: =IF(AND($B19<>"",$F$4="Capacity (Non-OSHPD)"),VLOOKUP($B19,'Non-prismatic'!$B$2:$U$274,8,FALSE)*VLOOKUP($F$4,Sheet1!$B$8:$N$10,4,FALSE),IF(AND($B19<>"",$F$4="Capacity (OSHPD)"),VLOOKUP($B19,'Non-prismatic'!$B$2:$U$274,8,FALSE)*VLOOKUP($F$4,Sheet1!$B$8:$N$10,4,FALSE),IF(AND($B19<>"",$F$4="R=3"),VLOOKUP($B19,'Non-prismatic'!$B$2:$U$274,8,FALSE)*VLOOKUP($F$4,Sheet1!$B$8:$N$10,4,FALSE),""))) ->  | G19: =IF(AND($B19<>"",$F$4="Capacity (Non-OSHPD)"),VLOOKUP($B19,'Non-prismatic'!$B$2:$U$274,9,FALSE)*VLOOKUP($F$4,Sheet1!$B$8:$N$10,5,FALSE),IF(AND($B19<>"",$F$4="Capacity (OSHPD)"),VLOOKUP($B19,'Non-prismatic'!$B$2:$U$274,9,FALSE)*VLOOKUP($F$4,Sheet1!$B$8:$N$10,5,FALSE),IF(AND($B19<>"",$F$4="R=3"),VLOOKUP($B19,'Non-prismatic'!$B$2:$U$274,9,FALSE)*VLOOKUP($F$4,Sheet1!$B$8:$N$10,5,FALSE),""))) ->  | H19: =IF(AND($B19<>"",$F$4="Capacity (Non-OSHPD)"),VLOOKUP($B19,'Non-prismatic'!$B$2:$U$274,10,FALSE)*VLOOKUP($F$4,Sheet1!$B$8:$N$10,6,FALSE),IF(AND($B19<>"",$F$4="Capacity (OSHPD)"),VLOOKUP($B19,'Non-prismatic'!$B$2:$U$274,10,FALSE)*VLOOKUP($F$4,Sheet1!$B$8:$N$10,6,FALSE),IF(AND($B19<>"",$F$4="R=3"),VLOOKUP($B19,'Non-prismatic'!$B$2:$U$274,10,FALSE)*VLOOKUP($F$4,Sheet1!$B$8:$N$10,6,FALSE),""))) ->  | I19: =IF(AND($B19<>"",$F$4="Capacity (Non-OSHPD)"),VLOOKUP($B19,'Non-prismatic'!$B$2:$U$274,12,FALSE)*VLOOKUP($F$4,Sheet1!$B$8:$N$10,7,FALSE),IF(AND($B19<>"",$F$4="Capacity (OSHPD)"),2*3*VLOOKUP($B19,'Non-prismatic'!$B$2:$U$274,9,FALSE)/VLOOKUP($B19,'Non-prismatic'!$B$2:$U$274,3,FALSE),IF(AND($B19<>"",$F$4="R=3"),VLOOKUP($B19,'Non-prismatic'!$B$2:$U$274,12,FALSE)*VLOOKUP($F$4,Sheet1!$B$8:$N$10,7,FALSE),""))) ->  | J19: =IF(AND($B19<>"",$F$4="Capacity (Non-OSHPD)"),VLOOKUP($B19,'Non-prismatic'!$B$2:$U$274,13,FALSE)*VLOOKUP($F$4,Sheet1!$B$8:$N$10,8,FALSE),IF(AND($B19<>"",$F$4="Capacity (OSHPD)"),VLOOKUP($B19,'Non-prismatic'!$B$2:$U$274,13,FALSE)*VLOOKUP($F$4,Sheet1!$B$8:$N$10,8,FALSE),IF(AND($B19<>"",$F$4="R=3"),VLOOKUP($B19,'Non-prismatic'!$B$2:$U$274,13,FALSE)*VLOOKUP($F$4,Sheet1!$B$8:$N$10,8,FALSE),""))) ->  | K19: =IF(AND($B19<>"",$F$4="Capacity (Non-OSHPD)"),VLOOKUP($B19,'Non-prismatic'!$B$2:$U$274,14,FALSE)*VLOOKUP($F$4,Sheet1!$B$8:$N$10,9,FALSE),IF(AND($B19<>"",$F$4="Capacity (OSHPD)"),VLOOKUP($B19,'Non-prismatic'!$B$2:$U$274,14,FALSE)*VLOOKUP($F$4,Sheet1!$B$8:$N$10,9,FALSE),IF(AND($B19<>"",$F$4="R=3"),VLOOKUP($B19,'Non-prismatic'!$B$2:$U$274,14,FALSE)*VLOOKUP($F$4,Sheet1!$B$8:$N$10,9,FALSE),""))) ->  | L19: =IF(AND($B19<>"",$F$4="Capacity (Non-OSHPD)"),VLOOKUP($B19,'Non-prismatic'!$B$2:$U$274,15,FALSE)*VLOOKUP($F$4,Sheet1!$B$8:$N$10,10,FALSE),IF(AND($B19<>"",$F$4="Capacity (OSHPD)"),VLOOKUP($B19,'Non-prismatic'!$B$2:$U$274,15,FALSE)*VLOOKUP($F$4,Sheet1!$B$8:$N$10,10,FALSE),IF(AND($B19<>"",$F$4="R=3"),VLOOKUP($B19,'Non-prismatic'!$B$2:$U$274,15,FALSE)*VLOOKUP($F$4,Sheet1!$B$8:$N$10,10,FALSE),""))) ->  | M19: =IF(AND($B19<>"",$F$4="Capacity (Non-OSHPD)"),VLOOKUP($B19,'Non-prismatic'!$B$2:$U$274,16,FALSE)*VLOOKUP($F$4,Sheet1!$B$8:$N$10,11,FALSE),IF(AND($B19<>"",$F$4="Capacity (OSHPD)"),1.15*2*3*VLOOKUP($B19,'Non-prismatic'!$B$2:$U$274,9,FALSE)/VLOOKUP($B19,'Non-prismatic'!$B$2:$U$274,3,FALSE),IF(AND($B19<>"",$F$4="R=3"),VLOOKUP($B19,'Non-prismatic'!$B$2:$U$274,16,FALSE)*VLOOKUP($F$4,Sheet1!$B$8:$N$10,11,FALSE),""))) ->  | N19: =IF(AND($B19<>"",$F$4="Capacity (Non-OSHPD)"),VLOOKUP($B19,'Non-prismatic'!$B$2:$U$274,17,FALSE)*VLOOKUP($F$4,Sheet1!$B$8:$N$10,12,FALSE),IF(AND($B19<>"",$F$4="Capacity (OSHPD)"),VLOOKUP($B19,'Non-prismatic'!$B$2:$U$274,17,FALSE)*VLOOKUP($F$4,Sheet1!$B$8:$N$10,12,FALSE),IF(AND($B19<>"",$F$4="R=3"),VLOOKUP($B19,'Non-prismatic'!$B$2:$U$274,17,FALSE)*VLOOKUP($F$4,Sheet1!$B$8:$N$10,12,FALSE),""))) ->  | O19: =IF(AND(B19<>"",$F$4="Capacity (Non-OSHPD)"),VLOOKUP($B19,'Non-prismatic'!$B$2:$U$274,18,FALSE),IF(AND(B19<>"",OR($F$4="Capacity (OSHPD)",$F$4="R=3")),VLOOKUP($B19,'Non-prismatic'!$B$2:$U$274,19,FALSE),"")) ->  | P19: =IF(B19<>"",VLOOKUP($B19,'Non-prismatic'!$B$2:$V$274,21,FALSE),"") ->  | Q19: =IF(B19<>"",VLOOKUP($B19,'Non-prismatic'!$B$2:$U$274,3,FALSE),"") ->  | U19: Creating Non-Prismatic Sections
C20: =IF(B20<>"",VLOOKUP($B20,'Non-prismatic'!$B$2:$U$274,4,FALSE),"") ->  | D20: =IF(AND($B20<>"",$F$4="Capacity (Non-OSHPD)"),VLOOKUP($B20,'Non-prismatic'!$B$2:$U$274,6,FALSE)*VLOOKUP($F$4,Sheet1!$B$8:$N$10,2,FALSE),IF(AND($B20<>"",$F$4="Capacity (OSHPD)"),VLOOKUP($B20,'Non-prismatic'!$B$2:$U$274,6,FALSE)*VLOOKUP($F$4,Sheet1!$B$8:$N$10,2,FALSE),IF(AND($B20<>"",$F$4="R=3"),VLOOKUP($B20,'Non-prismatic'!$B$2:$U$274,6,FALSE)*VLOOKUP($F$4,Sheet1!$B$8:$N$10,2,FALSE),""))) ->  | E20: =IF(AND($B20<>"",$F$4="Capacity (Non-OSHPD)"),VLOOKUP($B20,'Non-prismatic'!$B$2:$U$274,7,FALSE)*VLOOKUP($F$4,Sheet1!$B$8:$N$10,3,FALSE),IF(AND($B20<>"",$F$4="Capacity (OSHPD)"),VLOOKUP($B20,'Non-prismatic'!$B$2:$U$274,7,FALSE)*VLOOKUP($F$4,Sheet1!$B$8:$N$10,3,FALSE),IF(AND($B20<>"",$F$4="R=3"),VLOOKUP($B20,'Non-prismatic'!$B$2:$U$274,7,FALSE)*VLOOKUP($F$4,Sheet1!$B$8:$N$10,3,FALSE),""))) ->  | F20: =IF(AND($B20<>"",$F$4="Capacity (Non-OSHPD)"),VLOOKUP($B20,'Non-prismatic'!$B$2:$U$274,8,FALSE)*VLOOKUP($F$4,Sheet1!$B$8:$N$10,4,FALSE),IF(AND($B20<>"",$F$4="Capacity (OSHPD)"),VLOOKUP($B20,'Non-prismatic'!$B$2:$U$274,8,FALSE)*VLOOKUP($F$4,Sheet1!$B$8:$N$10,4,FALSE),IF(AND($B20<>"",$F$4="R=3"),VLOOKUP($B20,'Non-prismatic'!$B$2:$U$274,8,FALSE)*VLOOKUP($F$4,Sheet1!$B$8:$N$10,4,FALSE),""))) ->  | G20: =IF(AND($B20<>"",$F$4="Capacity (Non-OSHPD)"),VLOOKUP($B20,'Non-prismatic'!$B$2:$U$274,9,FALSE)*VLOOKUP($F$4,Sheet1!$B$8:$N$10,5,FALSE),IF(AND($B20<>"",$F$4="Capacity (OSHPD)"),VLOOKUP($B20,'Non-prismatic'!$B$2:$U$274,9,FALSE)*VLOOKUP($F$4,Sheet1!$B$8:$N$10,5,FALSE),IF(AND($B20<>"",$F$4="R=3"),VLOOKUP($B20,'Non-prismatic'!$B$2:$U$274,9,FALSE)*VLOOKUP($F$4,Sheet1!$B$8:$N$10,5,FALSE),""))) ->  | H20: =IF(AND($B20<>"",$F$4="Capacity (Non-OSHPD)"),VLOOKUP($B20,'Non-prismatic'!$B$2:$U$274,10,FALSE)*VLOOKUP($F$4,Sheet1!$B$8:$N$10,6,FALSE),IF(AND($B20<>"",$F$4="Capacity (OSHPD)"),VLOOKUP($B20,'Non-prismatic'!$B$2:$U$274,10,FALSE)*VLOOKUP($F$4,Sheet1!$B$8:$N$10,6,FALSE),IF(AND($B20<>"",$F$4="R=3"),VLOOKUP($B20,'Non-prismatic'!$B$2:$U$274,10,FALSE)*VLOOKUP($F$4,Sheet1!$B$8:$N$10,6,FALSE),""))) ->  | I20: =IF(AND($B20<>"",$F$4="Capacity (Non-OSHPD)"),VLOOKUP($B20,'Non-prismatic'!$B$2:$U$274,12,FALSE)*VLOOKUP($F$4,Sheet1!$B$8:$N$10,7,FALSE),IF(AND($B20<>"",$F$4="Capacity (OSHPD)"),2*3*VLOOKUP($B20,'Non-prismatic'!$B$2:$U$274,9,FALSE)/VLOOKUP($B20,'Non-prismatic'!$B$2:$U$274,3,FALSE),IF(AND($B20<>"",$F$4="R=3"),VLOOKUP($B20,'Non-prismatic'!$B$2:$U$274,12,FALSE)*VLOOKUP($F$4,Sheet1!$B$8:$N$10,7,FALSE),""))) ->  | J20: =IF(AND($B20<>"",$F$4="Capacity (Non-OSHPD)"),VLOOKUP($B20,'Non-prismatic'!$B$2:$U$274,13,FALSE)*VLOOKUP($F$4,Sheet1!$B$8:$N$10,8,FALSE),IF(AND($B20<>"",$F$4="Capacity (OSHPD)"),VLOOKUP($B20,'Non-prismatic'!$B$2:$U$274,13,FALSE)*VLOOKUP($F$4,Sheet1!$B$8:$N$10,8,FALSE),IF(AND($B20<>"",$F$4="R=3"),VLOOKUP($B20,'Non-prismatic'!$B$2:$U$274,13,FALSE)*VLOOKUP($F$4,Sheet1!$B$8:$N$10,8,FALSE),""))) ->  | K20: =IF(AND($B20<>"",$F$4="Capacity (Non-OSHPD)"),VLOOKUP($B20,'Non-prismatic'!$B$2:$U$274,14,FALSE)*VLOOKUP($F$4,Sheet1!$B$8:$N$10,9,FALSE),IF(AND($B20<>"",$F$4="Capacity (OSHPD)"),VLOOKUP($B20,'Non-prismatic'!$B$2:$U$274,14,FALSE)*VLOOKUP($F$4,Sheet1!$B$8:$N$10,9,FALSE),IF(AND($B20<>"",$F$4="R=3"),VLOOKUP($B20,'Non-prismatic'!$B$2:$U$274,14,FALSE)*VLOOKUP($F$4,Sheet1!$B$8:$N$10,9,FALSE),""))) ->  | L20: =IF(AND($B20<>"",$F$4="Capacity (Non-OSHPD)"),VLOOKUP($B20,'Non-prismatic'!$B$2:$U$274,15,FALSE)*VLOOKUP($F$4,Sheet1!$B$8:$N$10,10,FALSE),IF(AND($B20<>"",$F$4="Capacity (OSHPD)"),VLOOKUP($B20,'Non-prismatic'!$B$2:$U$274,15,FALSE)*VLOOKUP($F$4,Sheet1!$B$8:$N$10,10,FALSE),IF(AND($B20<>"",$F$4="R=3"),VLOOKUP($B20,'Non-prismatic'!$B$2:$U$274,15,FALSE)*VLOOKUP($F$4,Sheet1!$B$8:$N$10,10,FALSE),""))) ->  | M20: =IF(AND($B20<>"",$F$4="Capacity (Non-OSHPD)"),VLOOKUP($B20,'Non-prismatic'!$B$2:$U$274,16,FALSE)*VLOOKUP($F$4,Sheet1!$B$8:$N$10,11,FALSE),IF(AND($B20<>"",$F$4="Capacity (OSHPD)"),1.15*2*3*VLOOKUP($B20,'Non-prismatic'!$B$2:$U$274,9,FALSE)/VLOOKUP($B20,'Non-prismatic'!$B$2:$U$274,3,FALSE),IF(AND($B20<>"",$F$4="R=3"),VLOOKUP($B20,'Non-prismatic'!$B$2:$U$274,16,FALSE)*VLOOKUP($F$4,Sheet1!$B$8:$N$10,11,FALSE),""))) ->  | N20: =IF(AND($B20<>"",$F$4="Capacity (Non-OSHPD)"),VLOOKUP($B20,'Non-prismatic'!$B$2:$U$274,17,FALSE)*VLOOKUP($F$4,Sheet1!$B$8:$N$10,12,FALSE),IF(AND($B20<>"",$F$4="Capacity (OSHPD)"),VLOOKUP($B20,'Non-prismatic'!$B$2:$U$274,17,FALSE)*VLOOKUP($F$4,Sheet1!$B$8:$N$10,12,FALSE),IF(AND($B20<>"",$F$4="R=3"),VLOOKUP($B20,'Non-prismatic'!$B$2:$U$274,17,FALSE)*VLOOKUP($F$4,Sheet1!$B$8:$N$10,12,FALSE),""))) ->  | O20: =IF(AND(B20<>"",$F$4="Capacity (Non-OSHPD)"),VLOOKUP($B20,'Non-prismatic'!$B$2:$U$274,18,FALSE),IF(AND(B20<>"",OR($F$4="Capacity (OSHPD)",$F$4="R=3")),VLOOKUP($B20,'Non-prismatic'!$B$2:$U$274,19,FALSE),"")) ->  | P20: =IF(B20<>"",VLOOKUP($B20,'Non-prismatic'!$B$2:$V$274,21,FALSE),"") ->  | Q20: =IF(B20<>"",VLOOKUP($B20,'Non-prismatic'!$B$2:$U$274,3,FALSE),"") ->  | U20: 1. Open the SAP2000 model you wish to add SP Non-prismatic sections to.
C21: =IF(B21<>"",VLOOKUP($B21,'Non-prismatic'!$B$2:$U$274,4,FALSE),"") ->  | D21: =IF(AND($B21<>"",$F$4="Capacity (Non-OSHPD)"),VLOOKUP($B21,'Non-prismatic'!$B$2:$U$274,6,FALSE)*VLOOKUP($F$4,Sheet1!$B$8:$N$10,2,FALSE),IF(AND($B21<>"",$F$4="Capacity (OSHPD)"),VLOOKUP($B21,'Non-prismatic'!$B$2:$U$274,6,FALSE)*VLOOKUP($F$4,Sheet1!$B$8:$N$10,2,FALSE),IF(AND($B21<>"",$F$4="R=3"),VLOOKUP($B21,'Non-prismatic'!$B$2:$U$274,6,FALSE)*VLOOKUP($F$4,Sheet1!$B$8:$N$10,2,FALSE),""))) ->  | E21: =IF(AND($B21<>"",$F$4="Capacity (Non-OSHPD)"),VLOOKUP($B21,'Non-prismatic'!$B$2:$U$274,7,FALSE)*VLOOKUP($F$4,Sheet1!$B$8:$N$10,3,FALSE),IF(AND($B21<>"",$F$4="Capacity (OSHPD)"),VLOOKUP($B21,'Non-prismatic'!$B$2:$U$274,7,FALSE)*VLOOKUP($F$4,Sheet1!$B$8:$N$10,3,FALSE),IF(AND($B21<>"",$F$4="R=3"),VLOOKUP($B21,'Non-prismatic'!$B$2:$U$274,7,FALSE)*VLOOKUP($F$4,Sheet1!$B$8:$N$10,3,FALSE),""))) ->  | F21: =IF(AND($B21<>"",$F$4="Capacity (Non-OSHPD)"),VLOOKUP($B21,'Non-prismatic'!$B$2:$U$274,8,FALSE)*VLOOKUP($F$4,Sheet1!$B$8:$N$10,4,FALSE),IF(AND($B21<>"",$F$4="Capacity (OSHPD)"),VLOOKUP($B21,'Non-prismatic'!$B$2:$U$274,8,FALSE)*VLOOKUP($F$4,Sheet1!$B$8:$N$10,4,FALSE),IF(AND($B21<>"",$F$4="R=3"),VLOOKUP($B21,'Non-prismatic'!$B$2:$U$274,8,FALSE)*VLOOKUP($F$4,Sheet1!$B$8:$N$10,4,FALSE),""))) ->  | G21: =IF(AND($B21<>"",$F$4="Capacity (Non-OSHPD)"),VLOOKUP($B21,'Non-prismatic'!$B$2:$U$274,9,FALSE)*VLOOKUP($F$4,Sheet1!$B$8:$N$10,5,FALSE),IF(AND($B21<>"",$F$4="Capacity (OSHPD)"),VLOOKUP($B21,'Non-prismatic'!$B$2:$U$274,9,FALSE)*VLOOKUP($F$4,Sheet1!$B$8:$N$10,5,FALSE),IF(AND($B21<>"",$F$4="R=3"),VLOOKUP($B21,'Non-prismatic'!$B$2:$U$274,9,FALSE)*VLOOKUP($F$4,Sheet1!$B$8:$N$10,5,FALSE),""))) ->  | H21: =IF(AND($B21<>"",$F$4="Capacity (Non-OSHPD)"),VLOOKUP($B21,'Non-prismatic'!$B$2:$U$274,10,FALSE)*VLOOKUP($F$4,Sheet1!$B$8:$N$10,6,FALSE),IF(AND($B21<>"",$F$4="Capacity (OSHPD)"),VLOOKUP($B21,'Non-prismatic'!$B$2:$U$274,10,FALSE)*VLOOKUP($F$4,Sheet1!$B$8:$N$10,6,FALSE),IF(AND($B21<>"",$F$4="R=3"),VLOOKUP($B21,'Non-prismatic'!$B$2:$U$274,10,FALSE)*VLOOKUP($F$4,Sheet1!$B$8:$N$10,6,FALSE),""))) ->  | I21: =IF(AND($B21<>"",$F$4="Capacity (Non-OSHPD)"),VLOOKUP($B21,'Non-prismatic'!$B$2:$U$274,12,FALSE)*VLOOKUP($F$4,Sheet1!$B$8:$N$10,7,FALSE),IF(AND($B21<>"",$F$4="Capacity (OSHPD)"),2*3*VLOOKUP($B21,'Non-prismatic'!$B$2:$U$274,9,FALSE)/VLOOKUP($B21,'Non-prismatic'!$B$2:$U$274,3,FALSE),IF(AND($B21<>"",$F$4="R=3"),VLOOKUP($B21,'Non-prismatic'!$B$2:$U$274,12,FALSE)*VLOOKUP($F$4,Sheet1!$B$8:$N$10,7,FALSE),""))) ->  | J21: =IF(AND($B21<>"",$F$4="Capacity (Non-OSHPD)"),VLOOKUP($B21,'Non-prismatic'!$B$2:$U$274,13,FALSE)*VLOOKUP($F$4,Sheet1!$B$8:$N$10,8,FALSE),IF(AND($B21<>"",$F$4="Capacity (OSHPD)"),VLOOKUP($B21,'Non-prismatic'!$B$2:$U$274,13,FALSE)*VLOOKUP($F$4,Sheet1!$B$8:$N$10,8,FALSE),IF(AND($B21<>"",$F$4="R=3"),VLOOKUP($B21,'Non-prismatic'!$B$2:$U$274,13,FALSE)*VLOOKUP($F$4,Sheet1!$B$8:$N$10,8,FALSE),""))) ->  | K21: =IF(AND($B21<>"",$F$4="Capacity (Non-OSHPD)"),VLOOKUP($B21,'Non-prismatic'!$B$2:$U$274,14,FALSE)*VLOOKUP($F$4,Sheet1!$B$8:$N$10,9,FALSE),IF(AND($B21<>"",$F$4="Capacity (OSHPD)"),VLOOKUP($B21,'Non-prismatic'!$B$2:$U$274,14,FALSE)*VLOOKUP($F$4,Sheet1!$B$8:$N$10,9,FALSE),IF(AND($B21<>"",$F$4="R=3"),VLOOKUP($B21,'Non-prismatic'!$B$2:$U$274,14,FALSE)*VLOOKUP($F$4,Sheet1!$B$8:$N$10,9,FALSE),""))) ->  | L21: =IF(AND($B21<>"",$F$4="Capacity (Non-OSHPD)"),VLOOKUP($B21,'Non-prismatic'!$B$2:$U$274,15,FALSE)*VLOOKUP($F$4,Sheet1!$B$8:$N$10,10,FALSE),IF(AND($B21<>"",$F$4="Capacity (OSHPD)"),VLOOKUP($B21,'Non-prismatic'!$B$2:$U$274,15,FALSE)*VLOOKUP($F$4,Sheet1!$B$8:$N$10,10,FALSE),IF(AND($B21<>"",$F$4="R=3"),VLOOKUP($B21,'Non-prismatic'!$B$2:$U$274,15,FALSE)*VLOOKUP($F$4,Sheet1!$B$8:$N$10,10,FALSE),""))) ->  | M21: =IF(AND($B21<>"",$F$4="Capacity (Non-OSHPD)"),VLOOKUP($B21,'Non-prismatic'!$B$2:$U$274,16,FALSE)*VLOOKUP($F$4,Sheet1!$B$8:$N$10,11,FALSE),IF(AND($B21<>"",$F$4="Capacity (OSHPD)"),1.15*2*3*VLOOKUP($B21,'Non-prismatic'!$B$2:$U$274,9,FALSE)/VLOOKUP($B21,'Non-prismatic'!$B$2:$U$274,3,FALSE),IF(AND($B21<>"",$F$4="R=3"),VLOOKUP($B21,'Non-prismatic'!$B$2:$U$274,16,FALSE)*VLOOKUP($F$4,Sheet1!$B$8:$N$10,11,FALSE),""))) ->  | N21: =IF(AND($B21<>"",$F$4="Capacity (Non-OSHPD)"),VLOOKUP($B21,'Non-prismatic'!$B$2:$U$274,17,FALSE)*VLOOKUP($F$4,Sheet1!$B$8:$N$10,12,FALSE),IF(AND($B21<>"",$F$4="Capacity (OSHPD)"),VLOOKUP($B21,'Non-prismatic'!$B$2:$U$274,17,FALSE)*VLOOKUP($F$4,Sheet1!$B$8:$N$10,12,FALSE),IF(AND($B21<>"",$F$4="R=3"),VLOOKUP($B21,'Non-prismatic'!$B$2:$U$274,17,FALSE)*VLOOKUP($F$4,Sheet1!$B$8:$N$10,12,FALSE),""))) ->  | O21: =IF(AND(B21<>"",$F$4="Capacity (Non-OSHPD)"),VLOOKUP($B21,'Non-prismatic'!$B$2:$U$274,18,FALSE),IF(AND(B21<>"",OR($F$4="Capacity (OSHPD)",$F$4="R=3")),VLOOKUP($B21,'Non-prismatic'!$B$2:$U$274,19,FALSE),"")) ->  | P21: =IF(B21<>"",VLOOKUP($B21,'Non-prismatic'!$B$2:$V$274,21,FALSE),"") ->  | Q21: =IF(B21<>"",VLOOKUP($B21,'Non-prismatic'!$B$2:$U$274,3,FALSE),"") ->  | U21: 2. Make sure the standard W Section you want to create into a SP Non-prismatic section already exists in SAP2000. If not, import them from the SAP2000 section library.
C22: =IF(B22<>"",VLOOKUP($B22,'Non-prismatic'!$B$2:$U$274,4,FALSE),"") ->  | D22: =IF(AND($B22<>"",$F$4="Capacity (Non-OSHPD)"),VLOOKUP($B22,'Non-prismatic'!$B$2:$U$274,6,FALSE)*VLOOKUP($F$4,Sheet1!$B$8:$N$10,2,FALSE),IF(AND($B22<>"",$F$4="Capacity (OSHPD)"),VLOOKUP($B22,'Non-prismatic'!$B$2:$U$274,6,FALSE)*VLOOKUP($F$4,Sheet1!$B$8:$N$10,2,FALSE),IF(AND($B22<>"",$F$4="R=3"),VLOOKUP($B22,'Non-prismatic'!$B$2:$U$274,6,FALSE)*VLOOKUP($F$4,Sheet1!$B$8:$N$10,2,FALSE),""))) ->  | E22: =IF(AND($B22<>"",$F$4="Capacity (Non-OSHPD)"),VLOOKUP($B22,'Non-prismatic'!$B$2:$U$274,7,FALSE)*VLOOKUP($F$4,Sheet1!$B$8:$N$10,3,FALSE),IF(AND($B22<>"",$F$4="Capacity (OSHPD)"),VLOOKUP($B22,'Non-prismatic'!$B$2:$U$274,7,FALSE)*VLOOKUP($F$4,Sheet1!$B$8:$N$10,3,FALSE),IF(AND($B22<>"",$F$4="R=3"),VLOOKUP($B22,'Non-prismatic'!$B$2:$U$274,7,FALSE)*VLOOKUP($F$4,Sheet1!$B$8:$N$10,3,FALSE),""))) ->  | F22: =IF(AND($B22<>"",$F$4="Capacity (Non-OSHPD)"),VLOOKUP($B22,'Non-prismatic'!$B$2:$U$274,8,FALSE)*VLOOKUP($F$4,Sheet1!$B$8:$N$10,4,FALSE),IF(AND($B22<>"",$F$4="Capacity (OSHPD)"),VLOOKUP($B22,'Non-prismatic'!$B$2:$U$274,8,FALSE)*VLOOKUP($F$4,Sheet1!$B$8:$N$10,4,FALSE),IF(AND($B22<>"",$F$4="R=3"),VLOOKUP($B22,'Non-prismatic'!$B$2:$U$274,8,FALSE)*VLOOKUP($F$4,Sheet1!$B$8:$N$10,4,FALSE),""))) ->  | G22: =IF(AND($B22<>"",$F$4="Capacity (Non-OSHPD)"),VLOOKUP($B22,'Non-prismatic'!$B$2:$U$274,9,FALSE)*VLOOKUP($F$4,Sheet1!$B$8:$N$10,5,FALSE),IF(AND($B22<>"",$F$4="Capacity (OSHPD)"),VLOOKUP($B22,'Non-prismatic'!$B$2:$U$274,9,FALSE)*VLOOKUP($F$4,Sheet1!$B$8:$N$10,5,FALSE),IF(AND($B22<>"",$F$4="R=3"),VLOOKUP($B22,'Non-prismatic'!$B$2:$U$274,9,FALSE)*VLOOKUP($F$4,Sheet1!$B$8:$N$10,5,FALSE),""))) ->  | H22: =IF(AND($B22<>"",$F$4="Capacity (Non-OSHPD)"),VLOOKUP($B22,'Non-prismatic'!$B$2:$U$274,10,FALSE)*VLOOKUP($F$4,Sheet1!$B$8:$N$10,6,FALSE),IF(AND($B22<>"",$F$4="Capacity (OSHPD)"),VLOOKUP($B22,'Non-prismatic'!$B$2:$U$274,10,FALSE)*VLOOKUP($F$4,Sheet1!$B$8:$N$10,6,FALSE),IF(AND($B22<>"",$F$4="R=3"),VLOOKUP($B22,'Non-prismatic'!$B$2:$U$274,10,FALSE)*VLOOKUP($F$4,Sheet1!$B$8:$N$10,6,FALSE),""))) ->  | I22: =IF(AND($B22<>"",$F$4="Capacity (Non-OSHPD)"),VLOOKUP($B22,'Non-prismatic'!$B$2:$U$274,12,FALSE)*VLOOKUP($F$4,Sheet1!$B$8:$N$10,7,FALSE),IF(AND($B22<>"",$F$4="Capacity (OSHPD)"),2*3*VLOOKUP($B22,'Non-prismatic'!$B$2:$U$274,9,FALSE)/VLOOKUP($B22,'Non-prismatic'!$B$2:$U$274,3,FALSE),IF(AND($B22<>"",$F$4="R=3"),VLOOKUP($B22,'Non-prismatic'!$B$2:$U$274,12,FALSE)*VLOOKUP($F$4,Sheet1!$B$8:$N$10,7,FALSE),""))) ->  | J22: =IF(AND($B22<>"",$F$4="Capacity (Non-OSHPD)"),VLOOKUP($B22,'Non-prismatic'!$B$2:$U$274,13,FALSE)*VLOOKUP($F$4,Sheet1!$B$8:$N$10,8,FALSE),IF(AND($B22<>"",$F$4="Capacity (OSHPD)"),VLOOKUP($B22,'Non-prismatic'!$B$2:$U$274,13,FALSE)*VLOOKUP($F$4,Sheet1!$B$8:$N$10,8,FALSE),IF(AND($B22<>"",$F$4="R=3"),VLOOKUP($B22,'Non-prismatic'!$B$2:$U$274,13,FALSE)*VLOOKUP($F$4,Sheet1!$B$8:$N$10,8,FALSE),""))) ->  | K22: =IF(AND($B22<>"",$F$4="Capacity (Non-OSHPD)"),VLOOKUP($B22,'Non-prismatic'!$B$2:$U$274,14,FALSE)*VLOOKUP($F$4,Sheet1!$B$8:$N$10,9,FALSE),IF(AND($B22<>"",$F$4="Capacity (OSHPD)"),VLOOKUP($B22,'Non-prismatic'!$B$2:$U$274,14,FALSE)*VLOOKUP($F$4,Sheet1!$B$8:$N$10,9,FALSE),IF(AND($B22<>"",$F$4="R=3"),VLOOKUP($B22,'Non-prismatic'!$B$2:$U$274,14,FALSE)*VLOOKUP($F$4,Sheet1!$B$8:$N$10,9,FALSE),""))) ->  | L22: =IF(AND($B22<>"",$F$4="Capacity (Non-OSHPD)"),VLOOKUP($B22,'Non-prismatic'!$B$2:$U$274,15,FALSE)*VLOOKUP($F$4,Sheet1!$B$8:$N$10,10,FALSE),IF(AND($B22<>"",$F$4="Capacity (OSHPD)"),VLOOKUP($B22,'Non-prismatic'!$B$2:$U$274,15,FALSE)*VLOOKUP($F$4,Sheet1!$B$8:$N$10,10,FALSE),IF(AND($B22<>"",$F$4="R=3"),VLOOKUP($B22,'Non-prismatic'!$B$2:$U$274,15,FALSE)*VLOOKUP($F$4,Sheet1!$B$8:$N$10,10,FALSE),""))) ->  | M22: =IF(AND($B22<>"",$F$4="Capacity (Non-OSHPD)"),VLOOKUP($B22,'Non-prismatic'!$B$2:$U$274,16,FALSE)*VLOOKUP($F$4,Sheet1!$B$8:$N$10,11,FALSE),IF(AND($B22<>"",$F$4="Capacity (OSHPD)"),1.15*2*3*VLOOKUP($B22,'Non-prismatic'!$B$2:$U$274,9,FALSE)/VLOOKUP($B22,'Non-prismatic'!$B$2:$U$274,3,FALSE),IF(AND($B22<>"",$F$4="R=3"),VLOOKUP($B22,'Non-prismatic'!$B$2:$U$274,16,FALSE)*VLOOKUP($F$4,Sheet1!$B$8:$N$10,11,FALSE),""))) ->  | N22: =IF(AND($B22<>"",$F$4="Capacity (Non-OSHPD)"),VLOOKUP($B22,'Non-prismatic'!$B$2:$U$274,17,FALSE)*VLOOKUP($F$4,Sheet1!$B$8:$N$10,12,FALSE),IF(AND($B22<>"",$F$4="Capacity (OSHPD)"),VLOOKUP($B22,'Non-prismatic'!$B$2:$U$274,17,FALSE)*VLOOKUP($F$4,Sheet1!$B$8:$N$10,12,FALSE),IF(AND($B22<>"",$F$4="R=3"),VLOOKUP($B22,'Non-prismatic'!$B$2:$U$274,17,FALSE)*VLOOKUP($F$4,Sheet1!$B$8:$N$10,12,FALSE),""))) ->  | O22: =IF(AND(B22<>"",$F$4="Capacity (Non-OSHPD)"),VLOOKUP($B22,'Non-prismatic'!$B$2:$U$274,18,FALSE),IF(AND(B22<>"",OR($F$4="Capacity (OSHPD)",$F$4="R=3")),VLOOKUP($B22,'Non-prismatic'!$B$2:$U$274,19,FALSE),"")) ->  | P22: =IF(B22<>"",VLOOKUP($B22,'Non-prismatic'!$B$2:$V$274,21,FALSE),"") ->  | Q22: =IF(B22<>"",VLOOKUP($B22,'Non-prismatic'!$B$2:$U$274,3,FALSE),"") -> 
C23: =IF(B23<>"",VLOOKUP($B23,'Non-prismatic'!$B$2:$U$274,4,FALSE),"") ->  | D23: =IF(AND($B23<>"",$F$4="Capacity (Non-OSHPD)"),VLOOKUP($B23,'Non-prismatic'!$B$2:$U$274,6,FALSE)*VLOOKUP($F$4,Sheet1!$B$8:$N$10,2,FALSE),IF(AND($B23<>"",$F$4="Capacity (OSHPD)"),VLOOKUP($B23,'Non-prismatic'!$B$2:$U$274,6,FALSE)*VLOOKUP($F$4,Sheet1!$B$8:$N$10,2,FALSE),IF(AND($B23<>"",$F$4="R=3"),VLOOKUP($B23,'Non-prismatic'!$B$2:$U$274,6,FALSE)*VLOOKUP($F$4,Sheet1!$B$8:$N$10,2,FALSE),""))) ->  | E23: =IF(AND($B23<>"",$F$4="Capacity (Non-OSHPD)"),VLOOKUP($B23,'Non-prismatic'!$B$2:$U$274,7,FALSE)*VLOOKUP($F$4,Sheet1!$B$8:$N$10,3,FALSE),IF(AND($B23<>"",$F$4="Capacity (OSHPD)"),VLOOKUP($B23,'Non-prismatic'!$B$2:$U$274,7,FALSE)*VLOOKUP($F$4,Sheet1!$B$8:$N$10,3,FALSE),IF(AND($B23<>"",$F$4="R=3"),VLOOKUP($B23,'Non-prismatic'!$B$2:$U$274,7,FALSE)*VLOOKUP($F$4,Sheet1!$B$8:$N$10,3,FALSE),""))) ->  | F23: =IF(AND($B23<>"",$F$4="Capacity (Non-OSHPD)"),VLOOKUP($B23,'Non-prismatic'!$B$2:$U$274,8,FALSE)*VLOOKUP($F$4,Sheet1!$B$8:$N$10,4,FALSE),IF(AND($B23<>"",$F$4="Capacity (OSHPD)"),VLOOKUP($B23,'Non-prismatic'!$B$2:$U$274,8,FALSE)*VLOOKUP($F$4,Sheet1!$B$8:$N$10,4,FALSE),IF(AND($B23<>"",$F$4="R=3"),VLOOKUP($B23,'Non-prismatic'!$B$2:$U$274,8,FALSE)*VLOOKUP($F$4,Sheet1!$B$8:$N$10,4,FALSE),""))) ->  | G23: =IF(AND($B23<>"",$F$4="Capacity (Non-OSHPD)"),VLOOKUP($B23,'Non-prismatic'!$B$2:$U$274,9,FALSE)*VLOOKUP($F$4,Sheet1!$B$8:$N$10,5,FALSE),IF(AND($B23<>"",$F$4="Capacity (OSHPD)"),VLOOKUP($B23,'Non-prismatic'!$B$2:$U$274,9,FALSE)*VLOOKUP($F$4,Sheet1!$B$8:$N$10,5,FALSE),IF(AND($B23<>"",$F$4="R=3"),VLOOKUP($B23,'Non-prismatic'!$B$2:$U$274,9,FALSE)*VLOOKUP($F$4,Sheet1!$B$8:$N$10,5,FALSE),""))) ->  | H23: =IF(AND($B23<>"",$F$4="Capacity (Non-OSHPD)"),VLOOKUP($B23,'Non-prismatic'!$B$2:$U$274,10,FALSE)*VLOOKUP($F$4,Sheet1!$B$8:$N$10,6,FALSE),IF(AND($B23<>"",$F$4="Capacity (OSHPD)"),VLOOKUP($B23,'Non-prismatic'!$B$2:$U$274,10,FALSE)*VLOOKUP($F$4,Sheet1!$B$8:$N$10,6,FALSE),IF(AND($B23<>"",$F$4="R=3"),VLOOKUP($B23,'Non-prismatic'!$B$2:$U$274,10,FALSE)*VLOOKUP($F$4,Sheet1!$B$8:$N$10,6,FALSE),""))) ->  | I23: =IF(AND($B23<>"",$F$4="Capacity (Non-OSHPD)"),VLOOKUP($B23,'Non-prismatic'!$B$2:$U$274,12,FALSE)*VLOOKUP($F$4,Sheet1!$B$8:$N$10,7,FALSE),IF(AND($B23<>"",$F$4="Capacity (OSHPD)"),2*3*VLOOKUP($B23,'Non-prismatic'!$B$2:$U$274,9,FALSE)/VLOOKUP($B23,'Non-prismatic'!$B$2:$U$274,3,FALSE),IF(AND($B23<>"",$F$4="R=3"),VLOOKUP($B23,'Non-prismatic'!$B$2:$U$274,12,FALSE)*VLOOKUP($F$4,Sheet1!$B$8:$N$10,7,FALSE),""))) ->  | J23: =IF(AND($B23<>"",$F$4="Capacity (Non-OSHPD)"),VLOOKUP($B23,'Non-prismatic'!$B$2:$U$274,13,FALSE)*VLOOKUP($F$4,Sheet1!$B$8:$N$10,8,FALSE),IF(AND($B23<>"",$F$4="Capacity (OSHPD)"),VLOOKUP($B23,'Non-prismatic'!$B$2:$U$274,13,FALSE)*VLOOKUP($F$4,Sheet1!$B$8:$N$10,8,FALSE),IF(AND($B23<>"",$F$4="R=3"),VLOOKUP($B23,'Non-prismatic'!$B$2:$U$274,13,FALSE)*VLOOKUP($F$4,Sheet1!$B$8:$N$10,8,FALSE),""))) ->  | K23: =IF(AND($B23<>"",$F$4="Capacity (Non-OSHPD)"),VLOOKUP($B23,'Non-prismatic'!$B$2:$U$274,14,FALSE)*VLOOKUP($F$4,Sheet1!$B$8:$N$10,9,FALSE),IF(AND($B23<>"",$F$4="Capacity (OSHPD)"),VLOOKUP($B23,'Non-prismatic'!$B$2:$U$274,14,FALSE)*VLOOKUP($F$4,Sheet1!$B$8:$N$10,9,FALSE),IF(AND($B23<>"",$F$4="R=3"),VLOOKUP($B23,'Non-prismatic'!$B$2:$U$274,14,FALSE)*VLOOKUP($F$4,Sheet1!$B$8:$N$10,9,FALSE),""))) ->  | L23: =IF(AND($B23<>"",$F$4="Capacity (Non-OSHPD)"),VLOOKUP($B23,'Non-prismatic'!$B$2:$U$274,15,FALSE)*VLOOKUP($F$4,Sheet1!$B$8:$N$10,10,FALSE),IF(AND($B23<>"",$F$4="Capacity (OSHPD)"),VLOOKUP($B23,'Non-prismatic'!$B$2:$U$274,15,FALSE)*VLOOKUP($F$4,Sheet1!$B$8:$N$10,10,FALSE),IF(AND($B23<>"",$F$4="R=3"),VLOOKUP($B23,'Non-prismatic'!$B$2:$U$274,15,FALSE)*VLOOKUP($F$4,Sheet1!$B$8:$N$10,10,FALSE),""))) ->  | M23: =IF(AND($B23<>"",$F$4="Capacity (Non-OSHPD)"),VLOOKUP($B23,'Non-prismatic'!$B$2:$U$274,16,FALSE)*VLOOKUP($F$4,Sheet1!$B$8:$N$10,11,FALSE),IF(AND($B23<>"",$F$4="Capacity (OSHPD)"),1.15*2*3*VLOOKUP($B23,'Non-prismatic'!$B$2:$U$274,9,FALSE)/VLOOKUP($B23,'Non-prismatic'!$B$2:$U$274,3,FALSE),IF(AND($B23<>"",$F$4="R=3"),VLOOKUP($B23,'Non-prismatic'!$B$2:$U$274,16,FALSE)*VLOOKUP($F$4,Sheet1!$B$8:$N$10,11,FALSE),""))) ->  | N23: =IF(AND($B23<>"",$F$4="Capacity (Non-OSHPD)"),VLOOKUP($B23,'Non-prismatic'!$B$2:$U$274,17,FALSE)*VLOOKUP($F$4,Sheet1!$B$8:$N$10,12,FALSE),IF(AND($B23<>"",$F$4="Capacity (OSHPD)"),VLOOKUP($B23,'Non-prismatic'!$B$2:$U$274,17,FALSE)*VLOOKUP($F$4,Sheet1!$B$8:$N$10,12,FALSE),IF(AND($B23<>"",$F$4="R=3"),VLOOKUP($B23,'Non-prismatic'!$B$2:$U$274,17,FALSE)*VLOOKUP($F$4,Sheet1!$B$8:$N$10,12,FALSE),""))) ->  | O23: =IF(AND(B23<>"",$F$4="Capacity (Non-OSHPD)"),VLOOKUP($B23,'Non-prismatic'!$B$2:$U$274,18,FALSE),IF(AND(B23<>"",OR($F$4="Capacity (OSHPD)",$F$4="R=3")),VLOOKUP($B23,'Non-prismatic'!$B$2:$U$274,19,FALSE),"")) ->  | P23: =IF(B23<>"",VLOOKUP($B23,'Non-prismatic'!$B$2:$V$274,21,FALSE),"") ->  | Q23: =IF(B23<>"",VLOOKUP($B23,'Non-prismatic'!$B$2:$U$274,3,FALSE),"") ->  | U23: 3. Click the button "Get List of Materials from SAP" to extract from SAP2000 all the material names.
C24: =IF(B24<>"",VLOOKUP($B24,'Non-prismatic'!$B$2:$U$274,4,FALSE),"") ->  | D24: =IF(AND($B24<>"",$F$4="Capacity (Non-OSHPD)"),VLOOKUP($B24,'Non-prismatic'!$B$2:$U$274,6,FALSE)*VLOOKUP($F$4,Sheet1!$B$8:$N$10,2,FALSE),IF(AND($B24<>"",$F$4="Capacity (OSHPD)"),VLOOKUP($B24,'Non-prismatic'!$B$2:$U$274,6,FALSE)*VLOOKUP($F$4,Sheet1!$B$8:$N$10,2,FALSE),IF(AND($B24<>"",$F$4="R=3"),VLOOKUP($B24,'Non-prismatic'!$B$2:$U$274,6,FALSE)*VLOOKUP($F$4,Sheet1!$B$8:$N$10,2,FALSE),""))) ->  | E24: =IF(AND($B24<>"",$F$4="Capacity (Non-OSHPD)"),VLOOKUP($B24,'Non-prismatic'!$B$2:$U$274,7,FALSE)*VLOOKUP($F$4,Sheet1!$B$8:$N$10,3,FALSE),IF(AND($B24<>"",$F$4="Capacity (OSHPD)"),VLOOKUP($B24,'Non-prismatic'!$B$2:$U$274,7,FALSE)*VLOOKUP($F$4,Sheet1!$B$8:$N$10,3,FALSE),IF(AND($B24<>"",$F$4="R=3"),VLOOKUP($B24,'Non-prismatic'!$B$2:$U$274,7,FALSE)*VLOOKUP($F$4,Sheet1!$B$8:$N$10,3,FALSE),""))) ->  | F24: =IF(AND($B24<>"",$F$4="Capacity (Non-OSHPD)"),VLOOKUP($B24,'Non-prismatic'!$B$2:$U$274,8,FALSE)*VLOOKUP($F$4,Sheet1!$B$8:$N$10,4,FALSE),IF(AND($B24<>"",$F$4="Capacity (OSHPD)"),VLOOKUP($B24,'Non-prismatic'!$B$2:$U$274,8,FALSE)*VLOOKUP($F$4,Sheet1!$B$8:$N$10,4,FALSE),IF(AND($B24<>"",$F$4="R=3"),VLOOKUP($B24,'Non-prismatic'!$B$2:$U$274,8,FALSE)*VLOOKUP($F$4,Sheet1!$B$8:$N$10,4,FALSE),""))) ->  | G24: =IF(AND($B24<>"",$F$4="Capacity (Non-OSHPD)"),VLOOKUP($B24,'Non-prismatic'!$B$2:$U$274,9,FALSE)*VLOOKUP($F$4,Sheet1!$B$8:$N$10,5,FALSE),IF(AND($B24<>"",$F$4="Capacity (OSHPD)"),VLOOKUP($B24,'Non-prismatic'!$B$2:$U$274,9,FALSE)*VLOOKUP($F$4,Sheet1!$B$8:$N$10,5,FALSE),IF(AND($B24<>"",$F$4="R=3"),VLOOKUP($B24,'Non-prismatic'!$B$2:$U$274,9,FALSE)*VLOOKUP($F$4,Sheet1!$B$8:$N$10,5,FALSE),""))) ->  | H24: =IF(AND($B24<>"",$F$4="Capacity (Non-OSHPD)"),VLOOKUP($B24,'Non-prismatic'!$B$2:$U$274,10,FALSE)*VLOOKUP($F$4,Sheet1!$B$8:$N$10,6,FALSE),IF(AND($B24<>"",$F$4="Capacity (OSHPD)"),VLOOKUP($B24,'Non-prismatic'!$B$2:$U$274,10,FALSE)*VLOOKUP($F$4,Sheet1!$B$8:$N$10,6,FALSE),IF(AND($B24<>"",$F$4="R=3"),VLOOKUP($B24,'Non-prismatic'!$B$2:$U$274,10,FALSE)*VLOOKUP($F$4,Sheet1!$B$8:$N$10,6,FALSE),""))) ->  | I24: =IF(AND($B24<>"",$F$4="Capacity (Non-OSHPD)"),VLOOKUP($B24,'Non-prismatic'!$B$2:$U$274,12,FALSE)*VLOOKUP($F$4,Sheet1!$B$8:$N$10,7,FALSE),IF(AND($B24<>"",$F$4="Capacity (OSHPD)"),2*3*VLOOKUP($B24,'Non-prismatic'!$B$2:$U$274,9,FALSE)/VLOOKUP($B24,'Non-prismatic'!$B$2:$U$274,3,FALSE),IF(AND($B24<>"",$F$4="R=3"),VLOOKUP($B24,'Non-prismatic'!$B$2:$U$274,12,FALSE)*VLOOKUP($F$4,Sheet1!$B$8:$N$10,7,FALSE),""))) ->  | J24: =IF(AND($B24<>"",$F$4="Capacity (Non-OSHPD)"),VLOOKUP($B24,'Non-prismatic'!$B$2:$U$274,13,FALSE)*VLOOKUP($F$4,Sheet1!$B$8:$N$10,8,FALSE),IF(AND($B24<>"",$F$4="Capacity (OSHPD)"),VLOOKUP($B24,'Non-prismatic'!$B$2:$U$274,13,FALSE)*VLOOKUP($F$4,Sheet1!$B$8:$N$10,8,FALSE),IF(AND($B24<>"",$F$4="R=3"),VLOOKUP($B24,'Non-prismatic'!$B$2:$U$274,13,FALSE)*VLOOKUP($F$4,Sheet1!$B$8:$N$10,8,FALSE),""))) ->  | K24: =IF(AND($B24<>"",$F$4="Capacity (Non-OSHPD)"),VLOOKUP($B24,'Non-prismatic'!$B$2:$U$274,14,FALSE)*VLOOKUP($F$4,Sheet1!$B$8:$N$10,9,FALSE),IF(AND($B24<>"",$F$4="Capacity (OSHPD)"),VLOOKUP($B24,'Non-prismatic'!$B$2:$U$274,14,FALSE)*VLOOKUP($F$4,Sheet1!$B$8:$N$10,9,FALSE),IF(AND($B24<>"",$F$4="R=3"),VLOOKUP($B24,'Non-prismatic'!$B$2:$U$274,14,FALSE)*VLOOKUP($F$4,Sheet1!$B$8:$N$10,9,FALSE),""))) ->  | L24: =IF(AND($B24<>"",$F$4="Capacity (Non-OSHPD)"),VLOOKUP($B24,'Non-prismatic'!$B$2:$U$274,15,FALSE)*VLOOKUP($F$4,Sheet1!$B$8:$N$10,10,FALSE),IF(AND($B24<>"",$F$4="Capacity (OSHPD)"),VLOOKUP($B24,'Non-prismatic'!$B$2:$U$274,15,FALSE)*VLOOKUP($F$4,Sheet1!$B$8:$N$10,10,FALSE),IF(AND($B24<>"",$F$4="R=3"),VLOOKUP($B24,'Non-prismatic'!$B$2:$U$274,15,FALSE)*VLOOKUP($F$4,Sheet1!$B$8:$N$10,10,FALSE),""))) ->  | M24: =IF(AND($B24<>"",$F$4="Capacity (Non-OSHPD)"),VLOOKUP($B24,'Non-prismatic'!$B$2:$U$274,16,FALSE)*VLOOKUP($F$4,Sheet1!$B$8:$N$10,11,FALSE),IF(AND($B24<>"",$F$4="Capacity (OSHPD)"),1.15*2*3*VLOOKUP($B24,'Non-prismatic'!$B$2:$U$274,9,FALSE)/VLOOKUP($B24,'Non-prismatic'!$B$2:$U$274,3,FALSE),IF(AND($B24<>"",$F$4="R=3"),VLOOKUP($B24,'Non-prismatic'!$B$2:$U$274,16,FALSE)*VLOOKUP($F$4,Sheet1!$B$8:$N$10,11,FALSE),""))) ->  | N24: =IF(AND($B24<>"",$F$4="Capacity (Non-OSHPD)"),VLOOKUP($B24,'Non-prismatic'!$B$2:$U$274,17,FALSE)*VLOOKUP($F$4,Sheet1!$B$8:$N$10,12,FALSE),IF(AND($B24<>"",$F$4="Capacity (OSHPD)"),VLOOKUP($B24,'Non-prismatic'!$B$2:$U$274,17,FALSE)*VLOOKUP($F$4,Sheet1!$B$8:$N$10,12,FALSE),IF(AND($B24<>"",$F$4="R=3"),VLOOKUP($B24,'Non-prismatic'!$B$2:$U$274,17,FALSE)*VLOOKUP($F$4,Sheet1!$B$8:$N$10,12,FALSE),""))) ->  | O24: =IF(AND(B24<>"",$F$4="Capacity (Non-OSHPD)"),VLOOKUP($B24,'Non-prismatic'!$B$2:$U$274,18,FALSE),IF(AND(B24<>"",OR($F$4="Capacity (OSHPD)",$F$4="R=3")),VLOOKUP($B24,'Non-prismatic'!$B$2:$U$274,19,FALSE),"")) ->  | P24: =IF(B24<>"",VLOOKUP($B24,'Non-prismatic'!$B$2:$V$274,21,FALSE),"") ->  | Q24: =IF(B24<>"",VLOOKUP($B24,'Non-prismatic'!$B$2:$U$274,3,FALSE),"") ->  | U24: 4. Use the drop down menu to select the steel material name.
C25: =IF(B25<>"",VLOOKUP($B25,'Non-prismatic'!$B$2:$U$274,4,FALSE),"") ->  | D25: =IF(AND($B25<>"",$F$4="Capacity (Non-OSHPD)"),VLOOKUP($B25,'Non-prismatic'!$B$2:$U$274,6,FALSE)*VLOOKUP($F$4,Sheet1!$B$8:$N$10,2,FALSE),IF(AND($B25<>"",$F$4="Capacity (OSHPD)"),VLOOKUP($B25,'Non-prismatic'!$B$2:$U$274,6,FALSE)*VLOOKUP($F$4,Sheet1!$B$8:$N$10,2,FALSE),IF(AND($B25<>"",$F$4="R=3"),VLOOKUP($B25,'Non-prismatic'!$B$2:$U$274,6,FALSE)*VLOOKUP($F$4,Sheet1!$B$8:$N$10,2,FALSE),""))) ->  | E25: =IF(AND($B25<>"",$F$4="Capacity (Non-OSHPD)"),VLOOKUP($B25,'Non-prismatic'!$B$2:$U$274,7,FALSE)*VLOOKUP($F$4,Sheet1!$B$8:$N$10,3,FALSE),IF(AND($B25<>"",$F$4="Capacity (OSHPD)"),VLOOKUP($B25,'Non-prismatic'!$B$2:$U$274,7,FALSE)*VLOOKUP($F$4,Sheet1!$B$8:$N$10,3,FALSE),IF(AND($B25<>"",$F$4="R=3"),VLOOKUP($B25,'Non-prismatic'!$B$2:$U$274,7,FALSE)*VLOOKUP($F$4,Sheet1!$B$8:$N$10,3,FALSE),""))) ->  | F25: =IF(AND($B25<>"",$F$4="Capacity (Non-OSHPD)"),VLOOKUP($B25,'Non-prismatic'!$B$2:$U$274,8,FALSE)*VLOOKUP($F$4,Sheet1!$B$8:$N$10,4,FALSE),IF(AND($B25<>"",$F$4="Capacity (OSHPD)"),VLOOKUP($B25,'Non-prismatic'!$B$2:$U$274,8,FALSE)*VLOOKUP($F$4,Sheet1!$B$8:$N$10,4,FALSE),IF(AND($B25<>"",$F$4="R=3"),VLOOKUP($B25,'Non-prismatic'!$B$2:$U$274,8,FALSE)*VLOOKUP($F$4,Sheet1!$B$8:$N$10,4,FALSE),""))) ->  | G25: =IF(AND($B25<>"",$F$4="Capacity (Non-OSHPD)"),VLOOKUP($B25,'Non-prismatic'!$B$2:$U$274,9,FALSE)*VLOOKUP($F$4,Sheet1!$B$8:$N$10,5,FALSE),IF(AND($B25<>"",$F$4="Capacity (OSHPD)"),VLOOKUP($B25,'Non-prismatic'!$B$2:$U$274,9,FALSE)*VLOOKUP($F$4,Sheet1!$B$8:$N$10,5,FALSE),IF(AND($B25<>"",$F$4="R=3"),VLOOKUP($B25,'Non-prismatic'!$B$2:$U$274,9,FALSE)*VLOOKUP($F$4,Sheet1!$B$8:$N$10,5,FALSE),""))) ->  | H25: =IF(AND($B25<>"",$F$4="Capacity (Non-OSHPD)"),VLOOKUP($B25,'Non-prismatic'!$B$2:$U$274,10,FALSE)*VLOOKUP($F$4,Sheet1!$B$8:$N$10,6,FALSE),IF(AND($B25<>"",$F$4="Capacity (OSHPD)"),VLOOKUP($B25,'Non-prismatic'!$B$2:$U$274,10,FALSE)*VLOOKUP($F$4,Sheet1!$B$8:$N$10,6,FALSE),IF(AND($B25<>"",$F$4="R=3"),VLOOKUP($B25,'Non-prismatic'!$B$2:$U$274,10,FALSE)*VLOOKUP($F$4,Sheet1!$B$8:$N$10,6,FALSE),""))) ->  | I25: =IF(AND($B25<>"",$F$4="Capacity (Non-OSHPD)"),VLOOKUP($B25,'Non-prismatic'!$B$2:$U$274,12,FALSE)*VLOOKUP($F$4,Sheet1!$B$8:$N$10,7,FALSE),IF(AND($B25<>"",$F$4="Capacity (OSHPD)"),2*3*VLOOKUP($B25,'Non-prismatic'!$B$2:$U$274,9,FALSE)/VLOOKUP($B25,'Non-prismatic'!$B$2:$U$274,3,FALSE),IF(AND($B25<>"",$F$4="R=3"),VLOOKUP($B25,'Non-prismatic'!$B$2:$U$274,12,FALSE)*VLOOKUP($F$4,Sheet1!$B$8:$N$10,7,FALSE),""))) ->  | J25: =IF(AND($B25<>"",$F$4="Capacity (Non-OSHPD)"),VLOOKUP($B25,'Non-prismatic'!$B$2:$U$274,13,FALSE)*VLOOKUP($F$4,Sheet1!$B$8:$N$10,8,FALSE),IF(AND($B25<>"",$F$4="Capacity (OSHPD)"),VLOOKUP($B25,'Non-prismatic'!$B$2:$U$274,13,FALSE)*VLOOKUP($F$4,Sheet1!$B$8:$N$10,8,FALSE),IF(AND($B25<>"",$F$4="R=3"),VLOOKUP($B25,'Non-prismatic'!$B$2:$U$274,13,FALSE)*VLOOKUP($F$4,Sheet1!$B$8:$N$10,8,FALSE),""))) ->  | K25: =IF(AND($B25<>"",$F$4="Capacity (Non-OSHPD)"),VLOOKUP($B25,'Non-prismatic'!$B$2:$U$274,14,FALSE)*VLOOKUP($F$4,Sheet1!$B$8:$N$10,9,FALSE),IF(AND($B25<>"",$F$4="Capacity (OSHPD)"),VLOOKUP($B25,'Non-prismatic'!$B$2:$U$274,14,FALSE)*VLOOKUP($F$4,Sheet1!$B$8:$N$10,9,FALSE),IF(AND($B25<>"",$F$4="R=3"),VLOOKUP($B25,'Non-prismatic'!$B$2:$U$274,14,FALSE)*VLOOKUP($F$4,Sheet1!$B$8:$N$10,9,FALSE),""))) ->  | L25: =IF(AND($B25<>"",$F$4="Capacity (Non-OSHPD)"),VLOOKUP($B25,'Non-prismatic'!$B$2:$U$274,15,FALSE)*VLOOKUP($F$4,Sheet1!$B$8:$N$10,10,FALSE),IF(AND($B25<>"",$F$4="Capacity (OSHPD)"),VLOOKUP($B25,'Non-prismatic'!$B$2:$U$274,15,FALSE)*VLOOKUP($F$4,Sheet1!$B$8:$N$10,10,FALSE),IF(AND($B25<>"",$F$4="R=3"),VLOOKUP($B25,'Non-prismatic'!$B$2:$U$274,15,FALSE)*VLOOKUP($F$4,Sheet1!$B$8:$N$10,10,FALSE),""))) ->  | M25: =IF(AND($B25<>"",$F$4="Capacity (Non-OSHPD)"),VLOOKUP($B25,'Non-prismatic'!$B$2:$U$274,16,FALSE)*VLOOKUP($F$4,Sheet1!$B$8:$N$10,11,FALSE),IF(AND($B25<>"",$F$4="Capacity (OSHPD)"),1.15*2*3*VLOOKUP($B25,'Non-prismatic'!$B$2:$U$274,9,FALSE)/VLOOKUP($B25,'Non-prismatic'!$B$2:$U$274,3,FALSE),IF(AND($B25<>"",$F$4="R=3"),VLOOKUP($B25,'Non-prismatic'!$B$2:$U$274,16,FALSE)*VLOOKUP($F$4,Sheet1!$B$8:$N$10,11,FALSE),""))) ->  | N25: =IF(AND($B25<>"",$F$4="Capacity (Non-OSHPD)"),VLOOKUP($B25,'Non-prismatic'!$B$2:$U$274,17,FALSE)*VLOOKUP($F$4,Sheet1!$B$8:$N$10,12,FALSE),IF(AND($B25<>"",$F$4="Capacity (OSHPD)"),VLOOKUP($B25,'Non-prismatic'!$B$2:$U$274,17,FALSE)*VLOOKUP($F$4,Sheet1!$B$8:$N$10,12,FALSE),IF(AND($B25<>"",$F$4="R=3"),VLOOKUP($B25,'Non-prismatic'!$B$2:$U$274,17,FALSE)*VLOOKUP($F$4,Sheet1!$B$8:$N$10,12,FALSE),""))) ->  | O25: =IF(AND(B25<>"",$F$4="Capacity (Non-OSHPD)"),VLOOKUP($B25,'Non-prismatic'!$B$2:$U$274,18,FALSE),IF(AND(B25<>"",OR($F$4="Capacity (OSHPD)",$F$4="R=3")),VLOOKUP($B25,'Non-prismatic'!$B$2:$U$274,19,FALSE),"")) ->  | P25: =IF(B25<>"",VLOOKUP($B25,'Non-prismatic'!$B$2:$V$274,21,FALSE),"") ->  | Q25: =IF(B25<>"",VLOOKUP($B25,'Non-prismatic'!$B$2:$U$274,3,FALSE),"") ->  | U25: 5. Type the sections or use drop down menu to select sections you want to create SP Non-prismatic sections. All other parameters will be auto populated for reference.
C26: =IF(B26<>"",VLOOKUP($B26,'Non-prismatic'!$B$2:$U$274,4,FALSE),"") ->  | D26: =IF(AND($B26<>"",$F$4="Capacity (Non-OSHPD)"),VLOOKUP($B26,'Non-prismatic'!$B$2:$U$274,6,FALSE)*VLOOKUP($F$4,Sheet1!$B$8:$N$10,2,FALSE),IF(AND($B26<>"",$F$4="Capacity (OSHPD)"),VLOOKUP($B26,'Non-prismatic'!$B$2:$U$274,6,FALSE)*VLOOKUP($F$4,Sheet1!$B$8:$N$10,2,FALSE),IF(AND($B26<>"",$F$4="R=3"),VLOOKUP($B26,'Non-prismatic'!$B$2:$U$274,6,FALSE)*VLOOKUP($F$4,Sheet1!$B$8:$N$10,2,FALSE),""))) ->  | E26: =IF(AND($B26<>"",$F$4="Capacity (Non-OSHPD)"),VLOOKUP($B26,'Non-prismatic'!$B$2:$U$274,7,FALSE)*VLOOKUP($F$4,Sheet1!$B$8:$N$10,3,FALSE),IF(AND($B26<>"",$F$4="Capacity (OSHPD)"),VLOOKUP($B26,'Non-prismatic'!$B$2:$U$274,7,FALSE)*VLOOKUP($F$4,Sheet1!$B$8:$N$10,3,FALSE),IF(AND($B26<>"",$F$4="R=3"),VLOOKUP($B26,'Non-prismatic'!$B$2:$U$274,7,FALSE)*VLOOKUP($F$4,Sheet1!$B$8:$N$10,3,FALSE),""))) ->  | F26: =IF(AND($B26<>"",$F$4="Capacity (Non-OSHPD)"),VLOOKUP($B26,'Non-prismatic'!$B$2:$U$274,8,FALSE)*VLOOKUP($F$4,Sheet1!$B$8:$N$10,4,FALSE),IF(AND($B26<>"",$F$4="Capacity (OSHPD)"),VLOOKUP($B26,'Non-prismatic'!$B$2:$U$274,8,FALSE)*VLOOKUP($F$4,Sheet1!$B$8:$N$10,4,FALSE),IF(AND($B26<>"",$F$4="R=3"),VLOOKUP($B26,'Non-prismatic'!$B$2:$U$274,8,FALSE)*VLOOKUP($F$4,Sheet1!$B$8:$N$10,4,FALSE),""))) ->  | G26: =IF(AND($B26<>"",$F$4="Capacity (Non-OSHPD)"),VLOOKUP($B26,'Non-prismatic'!$B$2:$U$274,9,FALSE)*VLOOKUP($F$4,Sheet1!$B$8:$N$10,5,FALSE),IF(AND($B26<>"",$F$4="Capacity (OSHPD)"),VLOOKUP($B26,'Non-prismatic'!$B$2:$U$274,9,FALSE)*VLOOKUP($F$4,Sheet1!$B$8:$N$10,5,FALSE),IF(AND($B26<>"",$F$4="R=3"),VLOOKUP($B26,'Non-prismatic'!$B$2:$U$274,9,FALSE)*VLOOKUP($F$4,Sheet1!$B$8:$N$10,5,FALSE),""))) ->  | H26: =IF(AND($B26<>"",$F$4="Capacity (Non-OSHPD)"),VLOOKUP($B26,'Non-prismatic'!$B$2:$U$274,10,FALSE)*VLOOKUP($F$4,Sheet1!$B$8:$N$10,6,FALSE),IF(AND($B26<>"",$F$4="Capacity (OSHPD)"),VLOOKUP($B26,'Non-prismatic'!$B$2:$U$274,10,FALSE)*VLOOKUP($F$4,Sheet1!$B$8:$N$10,6,FALSE),IF(AND($B26<>"",$F$4="R=3"),VLOOKUP($B26,'Non-prismatic'!$B$2:$U$274,10,FALSE)*VLOOKUP($F$4,Sheet1!$B$8:$N$10,6,FALSE),""))) ->  | I26: =IF(AND($B26<>"",$F$4="Capacity (Non-OSHPD)"),VLOOKUP($B26,'Non-prismatic'!$B$2:$U$274,12,FALSE)*VLOOKUP($F$4,Sheet1!$B$8:$N$10,7,FALSE),IF(AND($B26<>"",$F$4="Capacity (OSHPD)"),2*3*VLOOKUP($B26,'Non-prismatic'!$B$2:$U$274,9,FALSE)/VLOOKUP($B26,'Non-prismatic'!$B$2:$U$274,3,FALSE),IF(AND($B26<>"",$F$4="R=3"),VLOOKUP($B26,'Non-prismatic'!$B$2:$U$274,12,FALSE)*VLOOKUP($F$4,Sheet1!$B$8:$N$10,7,FALSE),""))) ->  | J26: =IF(AND($B26<>"",$F$4="Capacity (Non-OSHPD)"),VLOOKUP($B26,'Non-prismatic'!$B$2:$U$274,13,FALSE)*VLOOKUP($F$4,Sheet1!$B$8:$N$10,8,FALSE),IF(AND($B26<>"",$F$4="Capacity (OSHPD)"),VLOOKUP($B26,'Non-prismatic'!$B$2:$U$274,13,FALSE)*VLOOKUP($F$4,Sheet1!$B$8:$N$10,8,FALSE),IF(AND($B26<>"",$F$4="R=3"),VLOOKUP($B26,'Non-prismatic'!$B$2:$U$274,13,FALSE)*VLOOKUP($F$4,Sheet1!$B$8:$N$10,8,FALSE),""))) ->  | K26: =IF(AND($B26<>"",$F$4="Capacity (Non-OSHPD)"),VLOOKUP($B26,'Non-prismatic'!$B$2:$U$274,14,FALSE)*VLOOKUP($F$4,Sheet1!$B$8:$N$10,9,FALSE),IF(AND($B26<>"",$F$4="Capacity (OSHPD)"),VLOOKUP($B26,'Non-prismatic'!$B$2:$U$274,14,FALSE)*VLOOKUP($F$4,Sheet1!$B$8:$N$10,9,FALSE),IF(AND($B26<>"",$F$4="R=3"),VLOOKUP($B26,'Non-prismatic'!$B$2:$U$274,14,FALSE)*VLOOKUP($F$4,Sheet1!$B$8:$N$10,9,FALSE),""))) ->  | L26: =IF(AND($B26<>"",$F$4="Capacity (Non-OSHPD)"),VLOOKUP($B26,'Non-prismatic'!$B$2:$U$274,15,FALSE)*VLOOKUP($F$4,Sheet1!$B$8:$N$10,10,FALSE),IF(AND($B26<>"",$F$4="Capacity (OSHPD)"),VLOOKUP($B26,'Non-prismatic'!$B$2:$U$274,15,FALSE)*VLOOKUP($F$4,Sheet1!$B$8:$N$10,10,FALSE),IF(AND($B26<>"",$F$4="R=3"),VLOOKUP($B26,'Non-prismatic'!$B$2:$U$274,15,FALSE)*VLOOKUP($F$4,Sheet1!$B$8:$N$10,10,FALSE),""))) ->  | M26: =IF(AND($B26<>"",$F$4="Capacity (Non-OSHPD)"),VLOOKUP($B26,'Non-prismatic'!$B$2:$U$274,16,FALSE)*VLOOKUP($F$4,Sheet1!$B$8:$N$10,11,FALSE),IF(AND($B26<>"",$F$4="Capacity (OSHPD)"),1.15*2*3*VLOOKUP($B26,'Non-prismatic'!$B$2:$U$274,9,FALSE)/VLOOKUP($B26,'Non-prismatic'!$B$2:$U$274,3,FALSE),IF(AND($B26<>"",$F$4="R=3"),VLOOKUP($B26,'Non-prismatic'!$B$2:$U$274,16,FALSE)*VLOOKUP($F$4,Sheet1!$B$8:$N$10,11,FALSE),""))) ->  | N26: =IF(AND($B26<>"",$F$4="Capacity (Non-OSHPD)"),VLOOKUP($B26,'Non-prismatic'!$B$2:$U$274,17,FALSE)*VLOOKUP($F$4,Sheet1!$B$8:$N$10,12,FALSE),IF(AND($B26<>"",$F$4="Capacity (OSHPD)"),VLOOKUP($B26,'Non-prismatic'!$B$2:$U$274,17,FALSE)*VLOOKUP($F$4,Sheet1!$B$8:$N$10,12,FALSE),IF(AND($B26<>"",$F$4="R=3"),VLOOKUP($B26,'Non-prismatic'!$B$2:$U$274,17,FALSE)*VLOOKUP($F$4,Sheet1!$B$8:$N$10,12,FALSE),""))) ->  | O26: =IF(AND(B26<>"",$F$4="Capacity (Non-OSHPD)"),VLOOKUP($B26,'Non-prismatic'!$B$2:$U$274,18,FALSE),IF(AND(B26<>"",OR($F$4="Capacity (OSHPD)",$F$4="R=3")),VLOOKUP($B26,'Non-prismatic'!$B$2:$U$274,19,FALSE),"")) ->  | P26: =IF(B26<>"",VLOOKUP($B26,'Non-prismatic'!$B$2:$V$274,21,FALSE),"") ->  | Q26: =IF(B26<>"",VLOOKUP($B26,'Non-prismatic'!$B$2:$U$274,3,FALSE),"") -> 
C27: =IF(B27<>"",VLOOKUP($B27,'Non-prismatic'!$B$2:$U$274,4,FALSE),"") ->  | D27: =IF(AND($B27<>"",$F$4="Capacity (Non-OSHPD)"),VLOOKUP($B27,'Non-prismatic'!$B$2:$U$274,6,FALSE)*VLOOKUP($F$4,Sheet1!$B$8:$N$10,2,FALSE),IF(AND($B27<>"",$F$4="Capacity (OSHPD)"),VLOOKUP($B27,'Non-prismatic'!$B$2:$U$274,6,FALSE)*VLOOKUP($F$4,Sheet1!$B$8:$N$10,2,FALSE),IF(AND($B27<>"",$F$4="R=3"),VLOOKUP($B27,'Non-prismatic'!$B$2:$U$274,6,FALSE)*VLOOKUP($F$4,Sheet1!$B$8:$N$10,2,FALSE),""))) ->  | E27: =IF(AND($B27<>"",$F$4="Capacity (Non-OSHPD)"),VLOOKUP($B27,'Non-prismatic'!$B$2:$U$274,7,FALSE)*VLOOKUP($F$4,Sheet1!$B$8:$N$10,3,FALSE),IF(AND($B27<>"",$F$4="Capacity (OSHPD)"),VLOOKUP($B27,'Non-prismatic'!$B$2:$U$274,7,FALSE)*VLOOKUP($F$4,Sheet1!$B$8:$N$10,3,FALSE),IF(AND($B27<>"",$F$4="R=3"),VLOOKUP($B27,'Non-prismatic'!$B$2:$U$274,7,FALSE)*VLOOKUP($F$4,Sheet1!$B$8:$N$10,3,FALSE),""))) ->  | F27: =IF(AND($B27<>"",$F$4="Capacity (Non-OSHPD)"),VLOOKUP($B27,'Non-prismatic'!$B$2:$U$274,8,FALSE)*VLOOKUP($F$4,Sheet1!$B$8:$N$10,4,FALSE),IF(AND($B27<>"",$F$4="Capacity (OSHPD)"),VLOOKUP($B27,'Non-prismatic'!$B$2:$U$274,8,FALSE)*VLOOKUP($F$4,Sheet1!$B$8:$N$10,4,FALSE),IF(AND($B27<>"",$F$4="R=3"),VLOOKUP($B27,'Non-prismatic'!$B$2:$U$274,8,FALSE)*VLOOKUP($F$4,Sheet1!$B$8:$N$10,4,FALSE),""))) ->  | G27: =IF(AND($B27<>"",$F$4="Capacity (Non-OSHPD)"),VLOOKUP($B27,'Non-prismatic'!$B$2:$U$274,9,FALSE)*VLOOKUP($F$4,Sheet1!$B$8:$N$10,5,FALSE),IF(AND($B27<>"",$F$4="Capacity (OSHPD)"),VLOOKUP($B27,'Non-prismatic'!$B$2:$U$274,9,FALSE)*VLOOKUP($F$4,Sheet1!$B$8:$N$10,5,FALSE),IF(AND($B27<>"",$F$4="R=3"),VLOOKUP($B27,'Non-prismatic'!$B$2:$U$274,9,FALSE)*VLOOKUP($F$4,Sheet1!$B$8:$N$10,5,FALSE),""))) ->  | H27: =IF(AND($B27<>"",$F$4="Capacity (Non-OSHPD)"),VLOOKUP($B27,'Non-prismatic'!$B$2:$U$274,10,FALSE)*VLOOKUP($F$4,Sheet1!$B$8:$N$10,6,FALSE),IF(AND($B27<>"",$F$4="Capacity (OSHPD)"),VLOOKUP($B27,'Non-prismatic'!$B$2:$U$274,10,FALSE)*VLOOKUP($F$4,Sheet1!$B$8:$N$10,6,FALSE),IF(AND($B27<>"",$F$4="R=3"),VLOOKUP($B27,'Non-prismatic'!$B$2:$U$274,10,FALSE)*VLOOKUP($F$4,Sheet1!$B$8:$N$10,6,FALSE),""))) ->  | I27: =IF(AND($B27<>"",$F$4="Capacity (Non-OSHPD)"),VLOOKUP($B27,'Non-prismatic'!$B$2:$U$274,12,FALSE)*VLOOKUP($F$4,Sheet1!$B$8:$N$10,7,FALSE),IF(AND($B27<>"",$F$4="Capacity (OSHPD)"),2*3*VLOOKUP($B27,'Non-prismatic'!$B$2:$U$274,9,FALSE)/VLOOKUP($B27,'Non-prismatic'!$B$2:$U$274,3,FALSE),IF(AND($B27<>"",$F$4="R=3"),VLOOKUP($B27,'Non-prismatic'!$B$2:$U$274,12,FALSE)*VLOOKUP($F$4,Sheet1!$B$8:$N$10,7,FALSE),""))) ->  | J27: =IF(AND($B27<>"",$F$4="Capacity (Non-OSHPD)"),VLOOKUP($B27,'Non-prismatic'!$B$2:$U$274,13,FALSE)*VLOOKUP($F$4,Sheet1!$B$8:$N$10,8,FALSE),IF(AND($B27<>"",$F$4="Capacity (OSHPD)"),VLOOKUP($B27,'Non-prismatic'!$B$2:$U$274,13,FALSE)*VLOOKUP($F$4,Sheet1!$B$8:$N$10,8,FALSE),IF(AND($B27<>"",$F$4="R=3"),VLOOKUP($B27,'Non-prismatic'!$B$2:$U$274,13,FALSE)*VLOOKUP($F$4,Sheet1!$B$8:$N$10,8,FALSE),""))) ->  | K27: =IF(AND($B27<>"",$F$4="Capacity (Non-OSHPD)"),VLOOKUP($B27,'Non-prismatic'!$B$2:$U$274,14,FALSE)*VLOOKUP($F$4,Sheet1!$B$8:$N$10,9,FALSE),IF(AND($B27<>"",$F$4="Capacity (OSHPD)"),VLOOKUP($B27,'Non-prismatic'!$B$2:$U$274,14,FALSE)*VLOOKUP($F$4,Sheet1!$B$8:$N$10,9,FALSE),IF(AND($B27<>"",$F$4="R=3"),VLOOKUP($B27,'Non-prismatic'!$B$2:$U$274,14,FALSE)*VLOOKUP($F$4,Sheet1!$B$8:$N$10,9,FALSE),""))) ->  | L27: =IF(AND($B27<>"",$F$4="Capacity (Non-OSHPD)"),VLOOKUP($B27,'Non-prismatic'!$B$2:$U$274,15,FALSE)*VLOOKUP($F$4,Sheet1!$B$8:$N$10,10,FALSE),IF(AND($B27<>"",$F$4="Capacity (OSHPD)"),VLOOKUP($B27,'Non-prismatic'!$B$2:$U$274,15,FALSE)*VLOOKUP($F$4,Sheet1!$B$8:$N$10,10,FALSE),IF(AND($B27<>"",$F$4="R=3"),VLOOKUP($B27,'Non-prismatic'!$B$2:$U$274,15,FALSE)*VLOOKUP($F$4,Sheet1!$B$8:$N$10,10,FALSE),""))) ->  | M27: =IF(AND($B27<>"",$F$4="Capacity (Non-OSHPD)"),VLOOKUP($B27,'Non-prismatic'!$B$2:$U$274,16,FALSE)*VLOOKUP($F$4,Sheet1!$B$8:$N$10,11,FALSE),IF(AND($B27<>"",$F$4="Capacity (OSHPD)"),1.15*2*3*VLOOKUP($B27,'Non-prismatic'!$B$2:$U$274,9,FALSE)/VLOOKUP($B27,'Non-prismatic'!$B$2:$U$274,3,FALSE),IF(AND($B27<>"",$F$4="R=3"),VLOOKUP($B27,'Non-prismatic'!$B$2:$U$274,16,FALSE)*VLOOKUP($F$4,Sheet1!$B$8:$N$10,11,FALSE),""))) ->  | N27: =IF(AND($B27<>"",$F$4="Capacity (Non-OSHPD)"),VLOOKUP($B27,'Non-prismatic'!$B$2:$U$274,17,FALSE)*VLOOKUP($F$4,Sheet1!$B$8:$N$10,12,FALSE),IF(AND($B27<>"",$F$4="Capacity (OSHPD)"),VLOOKUP($B27,'Non-prismatic'!$B$2:$U$274,17,FALSE)*VLOOKUP($F$4,Sheet1!$B$8:$N$10,12,FALSE),IF(AND($B27<>"",$F$4="R=3"),VLOOKUP($B27,'Non-prismatic'!$B$2:$U$274,17,FALSE)*VLOOKUP($F$4,Sheet1!$B$8:$N$10,12,FALSE),""))) ->  | O27: =IF(AND(B27<>"",$F$4="Capacity (Non-OSHPD)"),VLOOKUP($B27,'Non-prismatic'!$B$2:$U$274,18,FALSE),IF(AND(B27<>"",OR($F$4="Capacity (OSHPD)",$F$4="R=3")),VLOOKUP($B27,'Non-prismatic'!$B$2:$U$274,19,FALSE),"")) ->  | P27: =IF(B27<>"",VLOOKUP($B27,'Non-prismatic'!$B$2:$V$274,21,FALSE),"") ->  | Q27: =IF(B27<>"",VLOOKUP($B27,'Non-prismatic'!$B$2:$U$274,3,FALSE),"") ->  | U27: 6. Once you have entered all the sections you wish to add into your model, click the button "Generate Non-Prismatic Sections"
C28: =IF(B28<>"",VLOOKUP($B28,'Non-prismatic'!$B$2:$U$274,4,FALSE),"") ->  | D28: =IF(AND($B28<>"",$F$4="Capacity (Non-OSHPD)"),VLOOKUP($B28,'Non-prismatic'!$B$2:$U$274,6,FALSE)*VLOOKUP($F$4,Sheet1!$B$8:$N$10,2,FALSE),IF(AND($B28<>"",$F$4="Capacity (OSHPD)"),VLOOKUP($B28,'Non-prismatic'!$B$2:$U$274,6,FALSE)*VLOOKUP($F$4,Sheet1!$B$8:$N$10,2,FALSE),IF(AND($B28<>"",$F$4="R=3"),VLOOKUP($B28,'Non-prismatic'!$B$2:$U$274,6,FALSE)*VLOOKUP($F$4,Sheet1!$B$8:$N$10,2,FALSE),""))) ->  | E28: =IF(AND($B28<>"",$F$4="Capacity (Non-OSHPD)"),VLOOKUP($B28,'Non-prismatic'!$B$2:$U$274,7,FALSE)*VLOOKUP($F$4,Sheet1!$B$8:$N$10,3,FALSE),IF(AND($B28<>"",$F$4="Capacity (OSHPD)"),VLOOKUP($B28,'Non-prismatic'!$B$2:$U$274,7,FALSE)*VLOOKUP($F$4,Sheet1!$B$8:$N$10,3,FALSE),IF(AND($B28<>"",$F$4="R=3"),VLOOKUP($B28,'Non-prismatic'!$B$2:$U$274,7,FALSE)*VLOOKUP($F$4,Sheet1!$B$8:$N$10,3,FALSE),""))) ->  | F28: =IF(AND($B28<>"",$F$4="Capacity (Non-OSHPD)"),VLOOKUP($B28,'Non-prismatic'!$B$2:$U$274,8,FALSE)*VLOOKUP($F$4,Sheet1!$B$8:$N$10,4,FALSE),IF(AND($B28<>"",$F$4="Capacity (OSHPD)"),VLOOKUP($B28,'Non-prismatic'!$B$2:$U$274,8,FALSE)*VLOOKUP($F$4,Sheet1!$B$8:$N$10,4,FALSE),IF(AND($B28<>"",$F$4="R=3"),VLOOKUP($B28,'Non-prismatic'!$B$2:$U$274,8,FALSE)*VLOOKUP($F$4,Sheet1!$B$8:$N$10,4,FALSE),""))) ->  | G28: =IF(AND($B28<>"",$F$4="Capacity (Non-OSHPD)"),VLOOKUP($B28,'Non-prismatic'!$B$2:$U$274,9,FALSE)*VLOOKUP($F$4,Sheet1!$B$8:$N$10,5,FALSE),IF(AND($B28<>"",$F$4="Capacity (OSHPD)"),VLOOKUP($B28,'Non-prismatic'!$B$2:$U$274,9,FALSE)*VLOOKUP($F$4,Sheet1!$B$8:$N$10,5,FALSE),IF(AND($B28<>"",$F$4="R=3"),VLOOKUP($B28,'Non-prismatic'!$B$2:$U$274,9,FALSE)*VLOOKUP($F$4,Sheet1!$B$8:$N$10,5,FALSE),""))) ->  | H28: =IF(AND($B28<>"",$F$4="Capacity (Non-OSHPD)"),VLOOKUP($B28,'Non-prismatic'!$B$2:$U$274,10,FALSE)*VLOOKUP($F$4,Sheet1!$B$8:$N$10,6,FALSE),IF(AND($B28<>"",$F$4="Capacity (OSHPD)"),VLOOKUP($B28,'Non-prismatic'!$B$2:$U$274,10,FALSE)*VLOOKUP($F$4,Sheet1!$B$8:$N$10,6,FALSE),IF(AND($B28<>"",$F$4="R=3"),VLOOKUP($B28,'Non-prismatic'!$B$2:$U$274,10,FALSE)*VLOOKUP($F$4,Sheet1!$B$8:$N$10,6,FALSE),""))) ->  | I28: =IF(AND($B28<>"",$F$4="Capacity (Non-OSHPD)"),VLOOKUP($B28,'Non-prismatic'!$B$2:$U$274,12,FALSE)*VLOOKUP($F$4,Sheet1!$B$8:$N$10,7,FALSE),IF(AND($B28<>"",$F$4="Capacity (OSHPD)"),2*3*VLOOKUP($B28,'Non-prismatic'!$B$2:$U$274,9,FALSE)/VLOOKUP($B28,'Non-prismatic'!$B$2:$U$274,3,FALSE),IF(AND($B28<>"",$F$4="R=3"),VLOOKUP($B28,'Non-prismatic'!$B$2:$U$274,12,FALSE)*VLOOKUP($F$4,Sheet1!$B$8:$N$10,7,FALSE),""))) ->  | J28: =IF(AND($B28<>"",$F$4="Capacity (Non-OSHPD)"),VLOOKUP($B28,'Non-prismatic'!$B$2:$U$274,13,FALSE)*VLOOKUP($F$4,Sheet1!$B$8:$N$10,8,FALSE),IF(AND($B28<>"",$F$4="Capacity (OSHPD)"),VLOOKUP($B28,'Non-prismatic'!$B$2:$U$274,13,FALSE)*VLOOKUP($F$4,Sheet1!$B$8:$N$10,8,FALSE),IF(AND($B28<>"",$F$4="R=3"),VLOOKUP($B28,'Non-prismatic'!$B$2:$U$274,13,FALSE)*VLOOKUP($F$4,Sheet1!$B$8:$N$10,8,FALSE),""))) ->  | K28: =IF(AND($B28<>"",$F$4="Capacity (Non-OSHPD)"),VLOOKUP($B28,'Non-prismatic'!$B$2:$U$274,14,FALSE)*VLOOKUP($F$4,Sheet1!$B$8:$N$10,9,FALSE),IF(AND($B28<>"",$F$4="Capacity (OSHPD)"),VLOOKUP($B28,'Non-prismatic'!$B$2:$U$274,14,FALSE)*VLOOKUP($F$4,Sheet1!$B$8:$N$10,9,FALSE),IF(AND($B28<>"",$F$4="R=3"),VLOOKUP($B28,'Non-prismatic'!$B$2:$U$274,14,FALSE)*VLOOKUP($F$4,Sheet1!$B$8:$N$10,9,FALSE),""))) ->  | L28: =IF(AND($B28<>"",$F$4="Capacity (Non-OSHPD)"),VLOOKUP($B28,'Non-prismatic'!$B$2:$U$274,15,FALSE)*VLOOKUP($F$4,Sheet1!$B$8:$N$10,10,FALSE),IF(AND($B28<>"",$F$4="Capacity (OSHPD)"),VLOOKUP($B28,'Non-prismatic'!$B$2:$U$274,15,FALSE)*VLOOKUP($F$4,Sheet1!$B$8:$N$10,10,FALSE),IF(AND($B28<>"",$F$4="R=3"),VLOOKUP($B28,'Non-prismatic'!$B$2:$U$274,15,FALSE)*VLOOKUP($F$4,Sheet1!$B$8:$N$10,10,FALSE),""))) ->  | M28: =IF(AND($B28<>"",$F$4="Capacity (Non-OSHPD)"),VLOOKUP($B28,'Non-prismatic'!$B$2:$U$274,16,FALSE)*VLOOKUP($F$4,Sheet1!$B$8:$N$10,11,FALSE),IF(AND($B28<>"",$F$4="Capacity (OSHPD)"),1.15*2*3*VLOOKUP($B28,'Non-prismatic'!$B$2:$U$274,9,FALSE)/VLOOKUP($B28,'Non-prismatic'!$B$2:$U$274,3,FALSE),IF(AND($B28<>"",$F$4="R=3"),VLOOKUP($B28,'Non-prismatic'!$B$2:$U$274,16,FALSE)*VLOOKUP($F$4,Sheet1!$B$8:$N$10,11,FALSE),""))) ->  | N28: =IF(AND($B28<>"",$F$4="Capacity (Non-OSHPD)"),VLOOKUP($B28,'Non-prismatic'!$B$2:$U$274,17,FALSE)*VLOOKUP($F$4,Sheet1!$B$8:$N$10,12,FALSE),IF(AND($B28<>"",$F$4="Capacity (OSHPD)"),VLOOKUP($B28,'Non-prismatic'!$B$2:$U$274,17,FALSE)*VLOOKUP($F$4,Sheet1!$B$8:$N$10,12,FALSE),IF(AND($B28<>"",$F$4="R=3"),VLOOKUP($B28,'Non-prismatic'!$B$2:$U$274,17,FALSE)*VLOOKUP($F$4,Sheet1!$B$8:$N$10,12,FALSE),""))) ->  | O28: =IF(AND(B28<>"",$F$4="Capacity (Non-OSHPD)"),VLOOKUP($B28,'Non-prismatic'!$B$2:$U$274,18,FALSE),IF(AND(B28<>"",OR($F$4="Capacity (OSHPD)",$F$4="R=3")),VLOOKUP($B28,'Non-prismatic'!$B$2:$U$274,19,FALSE),"")) ->  | P28: =IF(B28<>"",VLOOKUP($B28,'Non-prismatic'!$B$2:$V$274,21,FALSE),"") ->  | Q28: =IF(B28<>"",VLOOKUP($B28,'Non-prismatic'!$B$2:$U$274,3,FALSE),"") -> 
C29: =IF(B29<>"",VLOOKUP($B29,'Non-prismatic'!$B$2:$U$274,4,FALSE),"") ->  | D29: =IF(AND($B29<>"",$F$4="Capacity (Non-OSHPD)"),VLOOKUP($B29,'Non-prismatic'!$B$2:$U$274,6,FALSE)*VLOOKUP($F$4,Sheet1!$B$8:$N$10,2,FALSE),IF(AND($B29<>"",$F$4="Capacity (OSHPD)"),VLOOKUP($B29,'Non-prismatic'!$B$2:$U$274,6,FALSE)*VLOOKUP($F$4,Sheet1!$B$8:$N$10,2,FALSE),IF(AND($B29<>"",$F$4="R=3"),VLOOKUP($B29,'Non-prismatic'!$B$2:$U$274,6,FALSE)*VLOOKUP($F$4,Sheet1!$B$8:$N$10,2,FALSE),""))) ->  | E29: =IF(AND($B29<>"",$F$4="Capacity (Non-OSHPD)"),VLOOKUP($B29,'Non-prismatic'!$B$2:$U$274,7,FALSE)*VLOOKUP($F$4,Sheet1!$B$8:$N$10,3,FALSE),IF(AND($B29<>"",$F$4="Capacity (OSHPD)"),VLOOKUP($B29,'Non-prismatic'!$B$2:$U$274,7,FALSE)*VLOOKUP($F$4,Sheet1!$B$8:$N$10,3,FALSE),IF(AND($B29<>"",$F$4="R=3"),VLOOKUP($B29,'Non-prismatic'!$B$2:$U$274,7,FALSE)*VLOOKUP($F$4,Sheet1!$B$8:$N$10,3,FALSE),""))) ->  | F29: =IF(AND($B29<>"",$F$4="Capacity (Non-OSHPD)"),VLOOKUP($B29,'Non-prismatic'!$B$2:$U$274,8,FALSE)*VLOOKUP($F$4,Sheet1!$B$8:$N$10,4,FALSE),IF(AND($B29<>"",$F$4="Capacity (OSHPD)"),VLOOKUP($B29,'Non-prismatic'!$B$2:$U$274,8,FALSE)*VLOOKUP($F$4,Sheet1!$B$8:$N$10,4,FALSE),IF(AND($B29<>"",$F$4="R=3"),VLOOKUP($B29,'Non-prismatic'!$B$2:$U$274,8,FALSE)*VLOOKUP($F$4,Sheet1!$B$8:$N$10,4,FALSE),""))) ->  | G29: =IF(AND($B29<>"",$F$4="Capacity (Non-OSHPD)"),VLOOKUP($B29,'Non-prismatic'!$B$2:$U$274,9,FALSE)*VLOOKUP($F$4,Sheet1!$B$8:$N$10,5,FALSE),IF(AND($B29<>"",$F$4="Capacity (OSHPD)"),VLOOKUP($B29,'Non-prismatic'!$B$2:$U$274,9,FALSE)*VLOOKUP($F$4,Sheet1!$B$8:$N$10,5,FALSE),IF(AND($B29<>"",$F$4="R=3"),VLOOKUP($B29,'Non-prismatic'!$B$2:$U$274,9,FALSE)*VLOOKUP($F$4,Sheet1!$B$8:$N$10,5,FALSE),""))) ->  | H29: =IF(AND($B29<>"",$F$4="Capacity (Non-OSHPD)"),VLOOKUP($B29,'Non-prismatic'!$B$2:$U$274,10,FALSE)*VLOOKUP($F$4,Sheet1!$B$8:$N$10,6,FALSE),IF(AND($B29<>"",$F$4="Capacity (OSHPD)"),VLOOKUP($B29,'Non-prismatic'!$B$2:$U$274,10,FALSE)*VLOOKUP($F$4,Sheet1!$B$8:$N$10,6,FALSE),IF(AND($B29<>"",$F$4="R=3"),VLOOKUP($B29,'Non-prismatic'!$B$2:$U$274,10,FALSE)*VLOOKUP($F$4,Sheet1!$B$8:$N$10,6,FALSE),""))) ->  | I29: =IF(AND($B29<>"",$F$4="Capacity (Non-OSHPD)"),VLOOKUP($B29,'Non-prismatic'!$B$2:$U$274,12,FALSE)*VLOOKUP($F$4,Sheet1!$B$8:$N$10,7,FALSE),IF(AND($B29<>"",$F$4="Capacity (OSHPD)"),2*3*VLOOKUP($B29,'Non-prismatic'!$B$2:$U$274,9,FALSE)/VLOOKUP($B29,'Non-prismatic'!$B$2:$U$274,3,FALSE),IF(AND($B29<>"",$F$4="R=3"),VLOOKUP($B29,'Non-prismatic'!$B$2:$U$274,12,FALSE)*VLOOKUP($F$4,Sheet1!$B$8:$N$10,7,FALSE),""))) ->  | J29: =IF(AND($B29<>"",$F$4="Capacity (Non-OSHPD)"),VLOOKUP($B29,'Non-prismatic'!$B$2:$U$274,13,FALSE)*VLOOKUP($F$4,Sheet1!$B$8:$N$10,8,FALSE),IF(AND($B29<>"",$F$4="Capacity (OSHPD)"),VLOOKUP($B29,'Non-prismatic'!$B$2:$U$274,13,FALSE)*VLOOKUP($F$4,Sheet1!$B$8:$N$10,8,FALSE),IF(AND($B29<>"",$F$4="R=3"),VLOOKUP($B29,'Non-prismatic'!$B$2:$U$274,13,FALSE)*VLOOKUP($F$4,Sheet1!$B$8:$N$10,8,FALSE),""))) ->  | K29: =IF(AND($B29<>"",$F$4="Capacity (Non-OSHPD)"),VLOOKUP($B29,'Non-prismatic'!$B$2:$U$274,14,FALSE)*VLOOKUP($F$4,Sheet1!$B$8:$N$10,9,FALSE),IF(AND($B29<>"",$F$4="Capacity (OSHPD)"),VLOOKUP($B29,'Non-prismatic'!$B$2:$U$274,14,FALSE)*VLOOKUP($F$4,Sheet1!$B$8:$N$10,9,FALSE),IF(AND($B29<>"",$F$4="R=3"),VLOOKUP($B29,'Non-prismatic'!$B$2:$U$274,14,FALSE)*VLOOKUP($F$4,Sheet1!$B$8:$N$10,9,FALSE),""))) ->  | L29: =IF(AND($B29<>"",$F$4="Capacity (Non-OSHPD)"),VLOOKUP($B29,'Non-prismatic'!$B$2:$U$274,15,FALSE)*VLOOKUP($F$4,Sheet1!$B$8:$N$10,10,FALSE),IF(AND($B29<>"",$F$4="Capacity (OSHPD)"),VLOOKUP($B29,'Non-prismatic'!$B$2:$U$274,15,FALSE)*VLOOKUP($F$4,Sheet1!$B$8:$N$10,10,FALSE),IF(AND($B29<>"",$F$4="R=3"),VLOOKUP($B29,'Non-prismatic'!$B$2:$U$274,15,FALSE)*VLOOKUP($F$4,Sheet1!$B$8:$N$10,10,FALSE),""))) ->  | M29: =IF(AND($B29<>"",$F$4="Capacity (Non-OSHPD)"),VLOOKUP($B29,'Non-prismatic'!$B$2:$U$274,16,FALSE)*VLOOKUP($F$4,Sheet1!$B$8:$N$10,11,FALSE),IF(AND($B29<>"",$F$4="Capacity (OSHPD)"),1.15*2*3*VLOOKUP($B29,'Non-prismatic'!$B$2:$U$274,9,FALSE)/VLOOKUP($B29,'Non-prismatic'!$B$2:$U$274,3,FALSE),IF(AND($B29<>"",$F$4="R=3"),VLOOKUP($B29,'Non-prismatic'!$B$2:$U$274,16,FALSE)*VLOOKUP($F$4,Sheet1!$B$8:$N$10,11,FALSE),""))) ->  | N29: =IF(AND($B29<>"",$F$4="Capacity (Non-OSHPD)"),VLOOKUP($B29,'Non-prismatic'!$B$2:$U$274,17,FALSE)*VLOOKUP($F$4,Sheet1!$B$8:$N$10,12,FALSE),IF(AND($B29<>"",$F$4="Capacity (OSHPD)"),VLOOKUP($B29,'Non-prismatic'!$B$2:$U$274,17,FALSE)*VLOOKUP($F$4,Sheet1!$B$8:$N$10,12,FALSE),IF(AND($B29<>"",$F$4="R=3"),VLOOKUP($B29,'Non-prismatic'!$B$2:$U$274,17,FALSE)*VLOOKUP($F$4,Sheet1!$B$8:$N$10,12,FALSE),""))) ->  | O29: =IF(AND(B29<>"",$F$4="Capacity (Non-OSHPD)"),VLOOKUP($B29,'Non-prismatic'!$B$2:$U$274,18,FALSE),IF(AND(B29<>"",OR($F$4="Capacity (OSHPD)",$F$4="R=3")),VLOOKUP($B29,'Non-prismatic'!$B$2:$U$274,19,FALSE),"")) ->  | P29: =IF(B29<>"",VLOOKUP($B29,'Non-prismatic'!$B$2:$V$274,21,FALSE),"") ->  | Q29: =IF(B29<>"",VLOOKUP($B29,'Non-prismatic'!$B$2:$U$274,3,FALSE),"") ->  | U29: 7. Verify that the SP Non-prismatic sections were added to your SAP2000 model: Define -> Sections properties -> Frame Sections
C30: =IF(B30<>"",VLOOKUP($B30,'Non-prismatic'!$B$2:$U$274,4,FALSE),"") ->  | D30: =IF(AND($B30<>"",$F$4="Capacity (Non-OSHPD)"),VLOOKUP($B30,'Non-prismatic'!$B$2:$U$274,6,FALSE)*VLOOKUP($F$4,Sheet1!$B$8:$N$10,2,FALSE),IF(AND($B30<>"",$F$4="Capacity (OSHPD)"),VLOOKUP($B30,'Non-prismatic'!$B$2:$U$274,6,FALSE)*VLOOKUP($F$4,Sheet1!$B$8:$N$10,2,FALSE),IF(AND($B30<>"",$F$4="R=3"),VLOOKUP($B30,'Non-prismatic'!$B$2:$U$274,6,FALSE)*VLOOKUP($F$4,Sheet1!$B$8:$N$10,2,FALSE),""))) ->  | E30: =IF(AND($B30<>"",$F$4="Capacity (Non-OSHPD)"),VLOOKUP($B30,'Non-prismatic'!$B$2:$U$274,7,FALSE)*VLOOKUP($F$4,Sheet1!$B$8:$N$10,3,FALSE),IF(AND($B30<>"",$F$4="Capacity (OSHPD)"),VLOOKUP($B30,'Non-prismatic'!$B$2:$U$274,7,FALSE)*VLOOKUP($F$4,Sheet1!$B$8:$N$10,3,FALSE),IF(AND($B30<>"",$F$4="R=3"),VLOOKUP($B30,'Non-prismatic'!$B$2:$U$274,7,FALSE)*VLOOKUP($F$4,Sheet1!$B$8:$N$10,3,FALSE),""))) ->  | F30: =IF(AND($B30<>"",$F$4="Capacity (Non-OSHPD)"),VLOOKUP($B30,'Non-prismatic'!$B$2:$U$274,8,FALSE)*VLOOKUP($F$4,Sheet1!$B$8:$N$10,4,FALSE),IF(AND($B30<>"",$F$4="Capacity (OSHPD)"),VLOOKUP($B30,'Non-prismatic'!$B$2:$U$274,8,FALSE)*VLOOKUP($F$4,Sheet1!$B$8:$N$10,4,FALSE),IF(AND($B30<>"",$F$4="R=3"),VLOOKUP($B30,'Non-prismatic'!$B$2:$U$274,8,FALSE)*VLOOKUP($F$4,Sheet1!$B$8:$N$10,4,FALSE),""))) ->  | G30: =IF(AND($B30<>"",$F$4="Capacity (Non-OSHPD)"),VLOOKUP($B30,'Non-prismatic'!$B$2:$U$274,9,FALSE)*VLOOKUP($F$4,Sheet1!$B$8:$N$10,5,FALSE),IF(AND($B30<>"",$F$4="Capacity (OSHPD)"),VLOOKUP($B30,'Non-prismatic'!$B$2:$U$274,9,FALSE)*VLOOKUP($F$4,Sheet1!$B$8:$N$10,5,FALSE),IF(AND($B30<>"",$F$4="R=3"),VLOOKUP($B30,'Non-prismatic'!$B$2:$U$274,9,FALSE)*VLOOKUP($F$4,Sheet1!$B$8:$N$10,5,FALSE),""))) ->  | H30: =IF(AND($B30<>"",$F$4="Capacity (Non-OSHPD)"),VLOOKUP($B30,'Non-prismatic'!$B$2:$U$274,10,FALSE)*VLOOKUP($F$4,Sheet1!$B$8:$N$10,6,FALSE),IF(AND($B30<>"",$F$4="Capacity (OSHPD)"),VLOOKUP($B30,'Non-prismatic'!$B$2:$U$274,10,FALSE)*VLOOKUP($F$4,Sheet1!$B$8:$N$10,6,FALSE),IF(AND($B30<>"",$F$4="R=3"),VLOOKUP($B30,'Non-prismatic'!$B$2:$U$274,10,FALSE)*VLOOKUP($F$4,Sheet1!$B$8:$N$10,6,FALSE),""))) ->  | I30: =IF(AND($B30<>"",$F$4="Capacity (Non-OSHPD)"),VLOOKUP($B30,'Non-prismatic'!$B$2:$U$274,12,FALSE)*VLOOKUP($F$4,Sheet1!$B$8:$N$10,7,FALSE),IF(AND($B30<>"",$F$4="Capacity (OSHPD)"),2*3*VLOOKUP($B30,'Non-prismatic'!$B$2:$U$274,9,FALSE)/VLOOKUP($B30,'Non-prismatic'!$B$2:$U$274,3,FALSE),IF(AND($B30<>"",$F$4="R=3"),VLOOKUP($B30,'Non-prismatic'!$B$2:$U$274,12,FALSE)*VLOOKUP($F$4,Sheet1!$B$8:$N$10,7,FALSE),""))) ->  | J30: =IF(AND($B30<>"",$F$4="Capacity (Non-OSHPD)"),VLOOKUP($B30,'Non-prismatic'!$B$2:$U$274,13,FALSE)*VLOOKUP($F$4,Sheet1!$B$8:$N$10,8,FALSE),IF(AND($B30<>"",$F$4="Capacity (OSHPD)"),VLOOKUP($B30,'Non-prismatic'!$B$2:$U$274,13,FALSE)*VLOOKUP($F$4,Sheet1!$B$8:$N$10,8,FALSE),IF(AND($B30<>"",$F$4="R=3"),VLOOKUP($B30,'Non-prismatic'!$B$2:$U$274,13,FALSE)*VLOOKUP($F$4,Sheet1!$B$8:$N$10,8,FALSE),""))) ->  | K30: =IF(AND($B30<>"",$F$4="Capacity (Non-OSHPD)"),VLOOKUP($B30,'Non-prismatic'!$B$2:$U$274,14,FALSE)*VLOOKUP($F$4,Sheet1!$B$8:$N$10,9,FALSE),IF(AND($B30<>"",$F$4="Capacity (OSHPD)"),VLOOKUP($B30,'Non-prismatic'!$B$2:$U$274,14,FALSE)*VLOOKUP($F$4,Sheet1!$B$8:$N$10,9,FALSE),IF(AND($B30<>"",$F$4="R=3"),VLOOKUP($B30,'Non-prismatic'!$B$2:$U$274,14,FALSE)*VLOOKUP($F$4,Sheet1!$B$8:$N$10,9,FALSE),""))) ->  | L30: =IF(AND($B30<>"",$F$4="Capacity (Non-OSHPD)"),VLOOKUP($B30,'Non-prismatic'!$B$2:$U$274,15,FALSE)*VLOOKUP($F$4,Sheet1!$B$8:$N$10,10,FALSE),IF(AND($B30<>"",$F$4="Capacity (OSHPD)"),VLOOKUP($B30,'Non-prismatic'!$B$2:$U$274,15,FALSE)*VLOOKUP($F$4,Sheet1!$B$8:$N$10,10,FALSE),IF(AND($B30<>"",$F$4="R=3"),VLOOKUP($B30,'Non-prismatic'!$B$2:$U$274,15,FALSE)*VLOOKUP($F$4,Sheet1!$B$8:$N$10,10,FALSE),""))) ->  | M30: =IF(AND($B30<>"",$F$4="Capacity (Non-OSHPD)"),VLOOKUP($B30,'Non-prismatic'!$B$2:$U$274,16,FALSE)*VLOOKUP($F$4,Sheet1!$B$8:$N$10,11,FALSE),IF(AND($B30<>"",$F$4="Capacity (OSHPD)"),1.15*2*3*VLOOKUP($B30,'Non-prismatic'!$B$2:$U$274,9,FALSE)/VLOOKUP($B30,'Non-prismatic'!$B$2:$U$274,3,FALSE),IF(AND($B30<>"",$F$4="R=3"),VLOOKUP($B30,'Non-prismatic'!$B$2:$U$274,16,FALSE)*VLOOKUP($F$4,Sheet1!$B$8:$N$10,11,FALSE),""))) ->  | N30: =IF(AND($B30<>"",$F$4="Capacity (Non-OSHPD)"),VLOOKUP($B30,'Non-prismatic'!$B$2:$U$274,17,FALSE)*VLOOKUP($F$4,Sheet1!$B$8:$N$10,12,FALSE),IF(AND($B30<>"",$F$4="Capacity (OSHPD)"),VLOOKUP($B30,'Non-prismatic'!$B$2:$U$274,17,FALSE)*VLOOKUP($F$4,Sheet1!$B$8:$N$10,12,FALSE),IF(AND($B30<>"",$F$4="R=3"),VLOOKUP($B30,'Non-prismatic'!$B$2:$U$274,17,FALSE)*VLOOKUP($F$4,Sheet1!$B$8:$N$10,12,FALSE),""))) ->  | O30: =IF(AND(B30<>"",$F$4="Capacity (Non-OSHPD)"),VLOOKUP($B30,'Non-prismatic'!$B$2:$U$274,18,FALSE),IF(AND(B30<>"",OR($F$4="Capacity (OSHPD)",$F$4="R=3")),VLOOKUP($B30,'Non-prismatic'!$B$2:$U$274,19,FALSE),"")) ->  | P30: =IF(B30<>"",VLOOKUP($B30,'Non-prismatic'!$B$2:$V$274,21,FALSE),"") ->  | Q30: =IF(B30<>"",VLOOKUP($B30,'Non-prismatic'!$B$2:$U$274,3,FALSE),"") -> 
C31: =IF(B31<>"",VLOOKUP($B31,'Non-prismatic'!$B$2:$U$274,4,FALSE),"") ->  | D31: =IF(AND($B31<>"",$F$4="Capacity (Non-OSHPD)"),VLOOKUP($B31,'Non-prismatic'!$B$2:$U$274,6,FALSE)*VLOOKUP($F$4,Sheet1!$B$8:$N$10,2,FALSE),IF(AND($B31<>"",$F$4="Capacity (OSHPD)"),VLOOKUP($B31,'Non-prismatic'!$B$2:$U$274,6,FALSE)*VLOOKUP($F$4,Sheet1!$B$8:$N$10,2,FALSE),IF(AND($B31<>"",$F$4="R=3"),VLOOKUP($B31,'Non-prismatic'!$B$2:$U$274,6,FALSE)*VLOOKUP($F$4,Sheet1!$B$8:$N$10,2,FALSE),""))) ->  | E31: =IF(AND($B31<>"",$F$4="Capacity (Non-OSHPD)"),VLOOKUP($B31,'Non-prismatic'!$B$2:$U$274,7,FALSE)*VLOOKUP($F$4,Sheet1!$B$8:$N$10,3,FALSE),IF(AND($B31<>"",$F$4="Capacity (OSHPD)"),VLOOKUP($B31,'Non-prismatic'!$B$2:$U$274,7,FALSE)*VLOOKUP($F$4,Sheet1!$B$8:$N$10,3,FALSE),IF(AND($B31<>"",$F$4="R=3"),VLOOKUP($B31,'Non-prismatic'!$B$2:$U$274,7,FALSE)*VLOOKUP($F$4,Sheet1!$B$8:$N$10,3,FALSE),""))) ->  | F31: =IF(AND($B31<>"",$F$4="Capacity (Non-OSHPD)"),VLOOKUP($B31,'Non-prismatic'!$B$2:$U$274,8,FALSE)*VLOOKUP($F$4,Sheet1!$B$8:$N$10,4,FALSE),IF(AND($B31<>"",$F$4="Capacity (OSHPD)"),VLOOKUP($B31,'Non-prismatic'!$B$2:$U$274,8,FALSE)*VLOOKUP($F$4,Sheet1!$B$8:$N$10,4,FALSE),IF(AND($B31<>"",$F$4="R=3"),VLOOKUP($B31,'Non-prismatic'!$B$2:$U$274,8,FALSE)*VLOOKUP($F$4,Sheet1!$B$8:$N$10,4,FALSE),""))) ->  | G31: =IF(AND($B31<>"",$F$4="Capacity (Non-OSHPD)"),VLOOKUP($B31,'Non-prismatic'!$B$2:$U$274,9,FALSE)*VLOOKUP($F$4,Sheet1!$B$8:$N$10,5,FALSE),IF(AND($B31<>"",$F$4="Capacity (OSHPD)"),VLOOKUP($B31,'Non-prismatic'!$B$2:$U$274,9,FALSE)*VLOOKUP($F$4,Sheet1!$B$8:$N$10,5,FALSE),IF(AND($B31<>"",$F$4="R=3"),VLOOKUP($B31,'Non-prismatic'!$B$2:$U$274,9,FALSE)*VLOOKUP($F$4,Sheet1!$B$8:$N$10,5,FALSE),""))) ->  | H31: =IF(AND($B31<>"",$F$4="Capacity (Non-OSHPD)"),VLOOKUP($B31,'Non-prismatic'!$B$2:$U$274,10,FALSE)*VLOOKUP($F$4,Sheet1!$B$8:$N$10,6,FALSE),IF(AND($B31<>"",$F$4="Capacity (OSHPD)"),VLOOKUP($B31,'Non-prismatic'!$B$2:$U$274,10,FALSE)*VLOOKUP($F$4,Sheet1!$B$8:$N$10,6,FALSE),IF(AND($B31<>"",$F$4="R=3"),VLOOKUP($B31,'Non-prismatic'!$B$2:$U$274,10,FALSE)*VLOOKUP($F$4,Sheet1!$B$8:$N$10,6,FALSE),""))) ->  | I31: =IF(AND($B31<>"",$F$4="Capacity (Non-OSHPD)"),VLOOKUP($B31,'Non-prismatic'!$B$2:$U$274,12,FALSE)*VLOOKUP($F$4,Sheet1!$B$8:$N$10,7,FALSE),IF(AND($B31<>"",$F$4="Capacity (OSHPD)"),2*3*VLOOKUP($B31,'Non-prismatic'!$B$2:$U$274,9,FALSE)/VLOOKUP($B31,'Non-prismatic'!$B$2:$U$274,3,FALSE),IF(AND($B31<>"",$F$4="R=3"),VLOOKUP($B31,'Non-prismatic'!$B$2:$U$274,12,FALSE)*VLOOKUP($F$4,Sheet1!$B$8:$N$10,7,FALSE),""))) ->  | J31: =IF(AND($B31<>"",$F$4="Capacity (Non-OSHPD)"),VLOOKUP($B31,'Non-prismatic'!$B$2:$U$274,13,FALSE)*VLOOKUP($F$4,Sheet1!$B$8:$N$10,8,FALSE),IF(AND($B31<>"",$F$4="Capacity (OSHPD)"),VLOOKUP($B31,'Non-prismatic'!$B$2:$U$274,13,FALSE)*VLOOKUP($F$4,Sheet1!$B$8:$N$10,8,FALSE),IF(AND($B31<>"",$F$4="R=3"),VLOOKUP($B31,'Non-prismatic'!$B$2:$U$274,13,FALSE)*VLOOKUP($F$4,Sheet1!$B$8:$N$10,8,FALSE),""))) ->  | K31: =IF(AND($B31<>"",$F$4="Capacity (Non-OSHPD)"),VLOOKUP($B31,'Non-prismatic'!$B$2:$U$274,14,FALSE)*VLOOKUP($F$4,Sheet1!$B$8:$N$10,9,FALSE),IF(AND($B31<>"",$F$4="Capacity (OSHPD)"),VLOOKUP($B31,'Non-prismatic'!$B$2:$U$274,14,FALSE)*VLOOKUP($F$4,Sheet1!$B$8:$N$10,9,FALSE),IF(AND($B31<>"",$F$4="R=3"),VLOOKUP($B31,'Non-prismatic'!$B$2:$U$274,14,FALSE)*VLOOKUP($F$4,Sheet1!$B$8:$N$10,9,FALSE),""))) ->  | L31: =IF(AND($B31<>"",$F$4="Capacity (Non-OSHPD)"),VLOOKUP($B31,'Non-prismatic'!$B$2:$U$274,15,FALSE)*VLOOKUP($F$4,Sheet1!$B$8:$N$10,10,FALSE),IF(AND($B31<>"",$F$4="Capacity (OSHPD)"),VLOOKUP($B31,'Non-prismatic'!$B$2:$U$274,15,FALSE)*VLOOKUP($F$4,Sheet1!$B$8:$N$10,10,FALSE),IF(AND($B31<>"",$F$4="R=3"),VLOOKUP($B31,'Non-prismatic'!$B$2:$U$274,15,FALSE)*VLOOKUP($F$4,Sheet1!$B$8:$N$10,10,FALSE),""))) ->  | M31: =IF(AND($B31<>"",$F$4="Capacity (Non-OSHPD)"),VLOOKUP($B31,'Non-prismatic'!$B$2:$U$274,16,FALSE)*VLOOKUP($F$4,Sheet1!$B$8:$N$10,11,FALSE),IF(AND($B31<>"",$F$4="Capacity (OSHPD)"),1.15*2*3*VLOOKUP($B31,'Non-prismatic'!$B$2:$U$274,9,FALSE)/VLOOKUP($B31,'Non-prismatic'!$B$2:$U$274,3,FALSE),IF(AND($B31<>"",$F$4="R=3"),VLOOKUP($B31,'Non-prismatic'!$B$2:$U$274,16,FALSE)*VLOOKUP($F$4,Sheet1!$B$8:$N$10,11,FALSE),""))) ->  | N31: =IF(AND($B31<>"",$F$4="Capacity (Non-OSHPD)"),VLOOKUP($B31,'Non-prismatic'!$B$2:$U$274,17,FALSE)*VLOOKUP($F$4,Sheet1!$B$8:$N$10,12,FALSE),IF(AND($B31<>"",$F$4="Capacity (OSHPD)"),VLOOKUP($B31,'Non-prismatic'!$B$2:$U$274,17,FALSE)*VLOOKUP($F$4,Sheet1!$B$8:$N$10,12,FALSE),IF(AND($B31<>"",$F$4="R=3"),VLOOKUP($B31,'Non-prismatic'!$B$2:$U$274,17,FALSE)*VLOOKUP($F$4,Sheet1!$B$8:$N$10,12,FALSE),""))) ->  | O31: =IF(AND(B31<>"",$F$4="Capacity (Non-OSHPD)"),VLOOKUP($B31,'Non-prismatic'!$B$2:$U$274,18,FALSE),IF(AND(B31<>"",OR($F$4="Capacity (OSHPD)",$F$4="R=3")),VLOOKUP($B31,'Non-prismatic'!$B$2:$U$274,19,FALSE),"")) ->  | P31: =IF(B31<>"",VLOOKUP($B31,'Non-prismatic'!$B$2:$V$274,21,FALSE),"") ->  | Q31: =IF(B31<>"",VLOOKUP($B31,'Non-prismatic'!$B$2:$U$274,3,FALSE),"") -> 
C32: =IF(B32<>"",VLOOKUP($B32,'Non-prismatic'!$B$2:$U$274,4,FALSE),"") ->  | D32: =IF(AND($B32<>"",$F$4="Capacity (Non-OSHPD)"),VLOOKUP($B32,'Non-prismatic'!$B$2:$U$274,6,FALSE)*VLOOKUP($F$4,Sheet1!$B$8:$N$10,2,FALSE),IF(AND($B32<>"",$F$4="Capacity (OSHPD)"),VLOOKUP($B32,'Non-prismatic'!$B$2:$U$274,6,FALSE)*VLOOKUP($F$4,Sheet1!$B$8:$N$10,2,FALSE),IF(AND($B32<>"",$F$4="R=3"),VLOOKUP($B32,'Non-prismatic'!$B$2:$U$274,6,FALSE)*VLOOKUP($F$4,Sheet1!$B$8:$N$10,2,FALSE),""))) ->  | E32: =IF(AND($B32<>"",$F$4="Capacity (Non-OSHPD)"),VLOOKUP($B32,'Non-prismatic'!$B$2:$U$274,7,FALSE)*VLOOKUP($F$4,Sheet1!$B$8:$N$10,3,FALSE),IF(AND($B32<>"",$F$4="Capacity (OSHPD)"),VLOOKUP($B32,'Non-prismatic'!$B$2:$U$274,7,FALSE)*VLOOKUP($F$4,Sheet1!$B$8:$N$10,3,FALSE),IF(AND($B32<>"",$F$4="R=3"),VLOOKUP($B32,'Non-prismatic'!$B$2:$U$274,7,FALSE)*VLOOKUP($F$4,Sheet1!$B$8:$N$10,3,FALSE),""))) ->  | F32: =IF(AND($B32<>"",$F$4="Capacity (Non-OSHPD)"),VLOOKUP($B32,'Non-prismatic'!$B$2:$U$274,8,FALSE)*VLOOKUP($F$4,Sheet1!$B$8:$N$10,4,FALSE),IF(AND($B32<>"",$F$4="Capacity (OSHPD)"),VLOOKUP($B32,'Non-prismatic'!$B$2:$U$274,8,FALSE)*VLOOKUP($F$4,Sheet1!$B$8:$N$10,4,FALSE),IF(AND($B32<>"",$F$4="R=3"),VLOOKUP($B32,'Non-prismatic'!$B$2:$U$274,8,FALSE)*VLOOKUP($F$4,Sheet1!$B$8:$N$10,4,FALSE),""))) ->  | G32: =IF(AND($B32<>"",$F$4="Capacity (Non-OSHPD)"),VLOOKUP($B32,'Non-prismatic'!$B$2:$U$274,9,FALSE)*VLOOKUP($F$4,Sheet1!$B$8:$N$10,5,FALSE),IF(AND($B32<>"",$F$4="Capacity (OSHPD)"),VLOOKUP($B32,'Non-prismatic'!$B$2:$U$274,9,FALSE)*VLOOKUP($F$4,Sheet1!$B$8:$N$10,5,FALSE),IF(AND($B32<>"",$F$4="R=3"),VLOOKUP($B32,'Non-prismatic'!$B$2:$U$274,9,FALSE)*VLOOKUP($F$4,Sheet1!$B$8:$N$10,5,FALSE),""))) ->  | H32: =IF(AND($B32<>"",$F$4="Capacity (Non-OSHPD)"),VLOOKUP($B32,'Non-prismatic'!$B$2:$U$274,10,FALSE)*VLOOKUP($F$4,Sheet1!$B$8:$N$10,6,FALSE),IF(AND($B32<>"",$F$4="Capacity (OSHPD)"),VLOOKUP($B32,'Non-prismatic'!$B$2:$U$274,10,FALSE)*VLOOKUP($F$4,Sheet1!$B$8:$N$10,6,FALSE),IF(AND($B32<>"",$F$4="R=3"),VLOOKUP($B32,'Non-prismatic'!$B$2:$U$274,10,FALSE)*VLOOKUP($F$4,Sheet1!$B$8:$N$10,6,FALSE),""))) ->  | I32: =IF(AND($B32<>"",$F$4="Capacity (Non-OSHPD)"),VLOOKUP($B32,'Non-prismatic'!$B$2:$U$274,12,FALSE)*VLOOKUP($F$4,Sheet1!$B$8:$N$10,7,FALSE),IF(AND($B32<>"",$F$4="Capacity (OSHPD)"),2*3*VLOOKUP($B32,'Non-prismatic'!$B$2:$U$274,9,FALSE)/VLOOKUP($B32,'Non-prismatic'!$B$2:$U$274,3,FALSE),IF(AND($B32<>"",$F$4="R=3"),VLOOKUP($B32,'Non-prismatic'!$B$2:$U$274,12,FALSE)*VLOOKUP($F$4,Sheet1!$B$8:$N$10,7,FALSE),""))) ->  | J32: =IF(AND($B32<>"",$F$4="Capacity (Non-OSHPD)"),VLOOKUP($B32,'Non-prismatic'!$B$2:$U$274,13,FALSE)*VLOOKUP($F$4,Sheet1!$B$8:$N$10,8,FALSE),IF(AND($B32<>"",$F$4="Capacity (OSHPD)"),VLOOKUP($B32,'Non-prismatic'!$B$2:$U$274,13,FALSE)*VLOOKUP($F$4,Sheet1!$B$8:$N$10,8,FALSE),IF(AND($B32<>"",$F$4="R=3"),VLOOKUP($B32,'Non-prismatic'!$B$2:$U$274,13,FALSE)*VLOOKUP($F$4,Sheet1!$B$8:$N$10,8,FALSE),""))) ->  | K32: =IF(AND($B32<>"",$F$4="Capacity (Non-OSHPD)"),VLOOKUP($B32,'Non-prismatic'!$B$2:$U$274,14,FALSE)*VLOOKUP($F$4,Sheet1!$B$8:$N$10,9,FALSE),IF(AND($B32<>"",$F$4="Capacity (OSHPD)"),VLOOKUP($B32,'Non-prismatic'!$B$2:$U$274,14,FALSE)*VLOOKUP($F$4,Sheet1!$B$8:$N$10,9,FALSE),IF(AND($B32<>"",$F$4="R=3"),VLOOKUP($B32,'Non-prismatic'!$B$2:$U$274,14,FALSE)*VLOOKUP($F$4,Sheet1!$B$8:$N$10,9,FALSE),""))) ->  | L32: =IF(AND($B32<>"",$F$4="Capacity (Non-OSHPD)"),VLOOKUP($B32,'Non-prismatic'!$B$2:$U$274,15,FALSE)*VLOOKUP($F$4,Sheet1!$B$8:$N$10,10,FALSE),IF(AND($B32<>"",$F$4="Capacity (OSHPD)"),VLOOKUP($B32,'Non-prismatic'!$B$2:$U$274,15,FALSE)*VLOOKUP($F$4,Sheet1!$B$8:$N$10,10,FALSE),IF(AND($B32<>"",$F$4="R=3"),VLOOKUP($B32,'Non-prismatic'!$B$2:$U$274,15,FALSE)*VLOOKUP($F$4,Sheet1!$B$8:$N$10,10,FALSE),""))) ->  | M32: =IF(AND($B32<>"",$F$4="Capacity (Non-OSHPD)"),VLOOKUP($B32,'Non-prismatic'!$B$2:$U$274,16,FALSE)*VLOOKUP($F$4,Sheet1!$B$8:$N$10,11,FALSE),IF(AND($B32<>"",$F$4="Capacity (OSHPD)"),1.15*2*3*VLOOKUP($B32,'Non-prismatic'!$B$2:$U$274,9,FALSE)/VLOOKUP($B32,'Non-prismatic'!$B$2:$U$274,3,FALSE),IF(AND($B32<>"",$F$4="R=3"),VLOOKUP($B32,'Non-prismatic'!$B$2:$U$274,16,FALSE)*VLOOKUP($F$4,Sheet1!$B$8:$N$10,11,FALSE),""))) ->  | N32: =IF(AND($B32<>"",$F$4="Capacity (Non-OSHPD)"),VLOOKUP($B32,'Non-prismatic'!$B$2:$U$274,17,FALSE)*VLOOKUP($F$4,Sheet1!$B$8:$N$10,12,FALSE),IF(AND($B32<>"",$F$4="Capacity (OSHPD)"),VLOOKUP($B32,'Non-prismatic'!$B$2:$U$274,17,FALSE)*VLOOKUP($F$4,Sheet1!$B$8:$N$10,12,FALSE),IF(AND($B32<>"",$F$4="R=3"),VLOOKUP($B32,'Non-prismatic'!$B$2:$U$274,17,FALSE)*VLOOKUP($F$4,Sheet1!$B$8:$N$10,12,FALSE),""))) ->  | O32: =IF(AND(B32<>"",$F$4="Capacity (Non-OSHPD)"),VLOOKUP($B32,'Non-prismatic'!$B$2:$U$274,18,FALSE),IF(AND(B32<>"",OR($F$4="Capacity (OSHPD)",$F$4="R=3")),VLOOKUP($B32,'Non-prismatic'!$B$2:$U$274,19,FALSE),"")) ->  | P32: =IF(B32<>"",VLOOKUP($B32,'Non-prismatic'!$B$2:$V$274,21,FALSE),"") ->  | Q32: =IF(B32<>"",VLOOKUP($B32,'Non-prismatic'!$B$2:$U$274,3,FALSE),"") -> 
C33: =IF(B33<>"",VLOOKUP($B33,'Non-prismatic'!$B$2:$U$274,4,FALSE),"") ->  | D33: =IF(AND($B33<>"",$F$4="Capacity (Non-OSHPD)"),VLOOKUP($B33,'Non-prismatic'!$B$2:$U$274,6,FALSE)*VLOOKUP($F$4,Sheet1!$B$8:$N$10,2,FALSE),IF(AND($B33<>"",$F$4="Capacity (OSHPD)"),VLOOKUP($B33,'Non-prismatic'!$B$2:$U$274,6,FALSE)*VLOOKUP($F$4,Sheet1!$B$8:$N$10,2,FALSE),IF(AND($B33<>"",$F$4="R=3"),VLOOKUP($B33,'Non-prismatic'!$B$2:$U$274,6,FALSE)*VLOOKUP($F$4,Sheet1!$B$8:$N$10,2,FALSE),""))) ->  | E33: =IF(AND($B33<>"",$F$4="Capacity (Non-OSHPD)"),VLOOKUP($B33,'Non-prismatic'!$B$2:$U$274,7,FALSE)*VLOOKUP($F$4,Sheet1!$B$8:$N$10,3,FALSE),IF(AND($B33<>"",$F$4="Capacity (OSHPD)"),VLOOKUP($B33,'Non-prismatic'!$B$2:$U$274,7,FALSE)*VLOOKUP($F$4,Sheet1!$B$8:$N$10,3,FALSE),IF(AND($B33<>"",$F$4="R=3"),VLOOKUP($B33,'Non-prismatic'!$B$2:$U$274,7,FALSE)*VLOOKUP($F$4,Sheet1!$B$8:$N$10,3,FALSE),""))) ->  | F33: =IF(AND($B33<>"",$F$4="Capacity (Non-OSHPD)"),VLOOKUP($B33,'Non-prismatic'!$B$2:$U$274,8,FALSE)*VLOOKUP($F$4,Sheet1!$B$8:$N$10,4,FALSE),IF(AND($B33<>"",$F$4="Capacity (OSHPD)"),VLOOKUP($B33,'Non-prismatic'!$B$2:$U$274,8,FALSE)*VLOOKUP($F$4,Sheet1!$B$8:$N$10,4,FALSE),IF(AND($B33<>"",$F$4="R=3"),VLOOKUP($B33,'Non-prismatic'!$B$2:$U$274,8,FALSE)*VLOOKUP($F$4,Sheet1!$B$8:$N$10,4,FALSE),""))) ->  | G33: =IF(AND($B33<>"",$F$4="Capacity (Non-OSHPD)"),VLOOKUP($B33,'Non-prismatic'!$B$2:$U$274,9,FALSE)*VLOOKUP($F$4,Sheet1!$B$8:$N$10,5,FALSE),IF(AND($B33<>"",$F$4="Capacity (OSHPD)"),VLOOKUP($B33,'Non-prismatic'!$B$2:$U$274,9,FALSE)*VLOOKUP($F$4,Sheet1!$B$8:$N$10,5,FALSE),IF(AND($B33<>"",$F$4="R=3"),VLOOKUP($B33,'Non-prismatic'!$B$2:$U$274,9,FALSE)*VLOOKUP($F$4,Sheet1!$B$8:$N$10,5,FALSE),""))) ->  | H33: =IF(AND($B33<>"",$F$4="Capacity (Non-OSHPD)"),VLOOKUP($B33,'Non-prismatic'!$B$2:$U$274,10,FALSE)*VLOOKUP($F$4,Sheet1!$B$8:$N$10,6,FALSE),IF(AND($B33<>"",$F$4="Capacity (OSHPD)"),VLOOKUP($B33,'Non-prismatic'!$B$2:$U$274,10,FALSE)*VLOOKUP($F$4,Sheet1!$B$8:$N$10,6,FALSE),IF(AND($B33<>"",$F$4="R=3"),VLOOKUP($B33,'Non-prismatic'!$B$2:$U$274,10,FALSE)*VLOOKUP($F$4,Sheet1!$B$8:$N$10,6,FALSE),""))) ->  | I33: =IF(AND($B33<>"",$F$4="Capacity (Non-OSHPD)"),VLOOKUP($B33,'Non-prismatic'!$B$2:$U$274,12,FALSE)*VLOOKUP($F$4,Sheet1!$B$8:$N$10,7,FALSE),IF(AND($B33<>"",$F$4="Capacity (OSHPD)"),2*3*VLOOKUP($B33,'Non-prismatic'!$B$2:$U$274,9,FALSE)/VLOOKUP($B33,'Non-prismatic'!$B$2:$U$274,3,FALSE),IF(AND($B33<>"",$F$4="R=3"),VLOOKUP($B33,'Non-prismatic'!$B$2:$U$274,12,FALSE)*VLOOKUP($F$4,Sheet1!$B$8:$N$10,7,FALSE),""))) ->  | J33: =IF(AND($B33<>"",$F$4="Capacity (Non-OSHPD)"),VLOOKUP($B33,'Non-prismatic'!$B$2:$U$274,13,FALSE)*VLOOKUP($F$4,Sheet1!$B$8:$N$10,8,FALSE),IF(AND($B33<>"",$F$4="Capacity (OSHPD)"),VLOOKUP($B33,'Non-prismatic'!$B$2:$U$274,13,FALSE)*VLOOKUP($F$4,Sheet1!$B$8:$N$10,8,FALSE),IF(AND($B33<>"",$F$4="R=3"),VLOOKUP($B33,'Non-prismatic'!$B$2:$U$274,13,FALSE)*VLOOKUP($F$4,Sheet1!$B$8:$N$10,8,FALSE),""))) ->  | K33: =IF(AND($B33<>"",$F$4="Capacity (Non-OSHPD)"),VLOOKUP($B33,'Non-prismatic'!$B$2:$U$274,14,FALSE)*VLOOKUP($F$4,Sheet1!$B$8:$N$10,9,FALSE),IF(AND($B33<>"",$F$4="Capacity (OSHPD)"),VLOOKUP($B33,'Non-prismatic'!$B$2:$U$274,14,FALSE)*VLOOKUP($F$4,Sheet1!$B$8:$N$10,9,FALSE),IF(AND($B33<>"",$F$4="R=3"),VLOOKUP($B33,'Non-prismatic'!$B$2:$U$274,14,FALSE)*VLOOKUP($F$4,Sheet1!$B$8:$N$10,9,FALSE),""))) ->  | L33: =IF(AND($B33<>"",$F$4="Capacity (Non-OSHPD)"),VLOOKUP($B33,'Non-prismatic'!$B$2:$U$274,15,FALSE)*VLOOKUP($F$4,Sheet1!$B$8:$N$10,10,FALSE),IF(AND($B33<>"",$F$4="Capacity (OSHPD)"),VLOOKUP($B33,'Non-prismatic'!$B$2:$U$274,15,FALSE)*VLOOKUP($F$4,Sheet1!$B$8:$N$10,10,FALSE),IF(AND($B33<>"",$F$4="R=3"),VLOOKUP($B33,'Non-prismatic'!$B$2:$U$274,15,FALSE)*VLOOKUP($F$4,Sheet1!$B$8:$N$10,10,FALSE),""))) ->  | M33: =IF(AND($B33<>"",$F$4="Capacity (Non-OSHPD)"),VLOOKUP($B33,'Non-prismatic'!$B$2:$U$274,16,FALSE)*VLOOKUP($F$4,Sheet1!$B$8:$N$10,11,FALSE),IF(AND($B33<>"",$F$4="Capacity (OSHPD)"),1.15*2*3*VLOOKUP($B33,'Non-prismatic'!$B$2:$U$274,9,FALSE)/VLOOKUP($B33,'Non-prismatic'!$B$2:$U$274,3,FALSE),IF(AND($B33<>"",$F$4="R=3"),VLOOKUP($B33,'Non-prismatic'!$B$2:$U$274,16,FALSE)*VLOOKUP($F$4,Sheet1!$B$8:$N$10,11,FALSE),""))) ->  | N33: =IF(AND($B33<>"",$F$4="Capacity (Non-OSHPD)"),VLOOKUP($B33,'Non-prismatic'!$B$2:$U$274,17,FALSE)*VLOOKUP($F$4,Sheet1!$B$8:$N$10,12,FALSE),IF(AND($B33<>"",$F$4="Capacity (OSHPD)"),VLOOKUP($B33,'Non-prismatic'!$B$2:$U$274,17,FALSE)*VLOOKUP($F$4,Sheet1!$B$8:$N$10,12,FALSE),IF(AND($B33<>"",$F$4="R=3"),VLOOKUP($B33,'Non-prismatic'!$B$2:$U$274,17,FALSE)*VLOOKUP($F$4,Sheet1!$B$8:$N$10,12,FALSE),""))) ->  | O33: =IF(AND(B33<>"",$F$4="Capacity (Non-OSHPD)"),VLOOKUP($B33,'Non-prismatic'!$B$2:$U$274,18,FALSE),IF(AND(B33<>"",OR($F$4="Capacity (OSHPD)",$F$4="R=3")),VLOOKUP($B33,'Non-prismatic'!$B$2:$U$274,19,FALSE),"")) ->  | P33: =IF(B33<>"",VLOOKUP($B33,'Non-prismatic'!$B$2:$V$274,21,FALSE),"") ->  | Q33: =IF(B33<>"",VLOOKUP($B33,'Non-prismatic'!$B$2:$U$274,3,FALSE),"") -> 
C34: =IF(B34<>"",VLOOKUP($B34,'Non-prismatic'!$B$2:$U$274,4,FALSE),"") ->  | D34: =IF(AND($B34<>"",$F$4="Capacity (Non-OSHPD)"),VLOOKUP($B34,'Non-prismatic'!$B$2:$U$274,6,FALSE)*VLOOKUP($F$4,Sheet1!$B$8:$N$10,2,FALSE),IF(AND($B34<>"",$F$4="Capacity (OSHPD)"),VLOOKUP($B34,'Non-prismatic'!$B$2:$U$274,6,FALSE)*VLOOKUP($F$4,Sheet1!$B$8:$N$10,2,FALSE),IF(AND($B34<>"",$F$4="R=3"),VLOOKUP($B34,'Non-prismatic'!$B$2:$U$274,6,FALSE)*VLOOKUP($F$4,Sheet1!$B$8:$N$10,2,FALSE),""))) ->  | E34: =IF(AND($B34<>"",$F$4="Capacity (Non-OSHPD)"),VLOOKUP($B34,'Non-prismatic'!$B$2:$U$274,7,FALSE)*VLOOKUP($F$4,Sheet1!$B$8:$N$10,3,FALSE),IF(AND($B34<>"",$F$4="Capacity (OSHPD)"),VLOOKUP($B34,'Non-prismatic'!$B$2:$U$274,7,FALSE)*VLOOKUP($F$4,Sheet1!$B$8:$N$10,3,FALSE),IF(AND($B34<>"",$F$4="R=3"),VLOOKUP($B34,'Non-prismatic'!$B$2:$U$274,7,FALSE)*VLOOKUP($F$4,Sheet1!$B$8:$N$10,3,FALSE),""))) ->  | F34: =IF(AND($B34<>"",$F$4="Capacity (Non-OSHPD)"),VLOOKUP($B34,'Non-prismatic'!$B$2:$U$274,8,FALSE)*VLOOKUP($F$4,Sheet1!$B$8:$N$10,4,FALSE),IF(AND($B34<>"",$F$4="Capacity (OSHPD)"),VLOOKUP($B34,'Non-prismatic'!$B$2:$U$274,8,FALSE)*VLOOKUP($F$4,Sheet1!$B$8:$N$10,4,FALSE),IF(AND($B34<>"",$F$4="R=3"),VLOOKUP($B34,'Non-prismatic'!$B$2:$U$274,8,FALSE)*VLOOKUP($F$4,Sheet1!$B$8:$N$10,4,FALSE),""))) ->  | G34: =IF(AND($B34<>"",$F$4="Capacity (Non-OSHPD)"),VLOOKUP($B34,'Non-prismatic'!$B$2:$U$274,9,FALSE)*VLOOKUP($F$4,Sheet1!$B$8:$N$10,5,FALSE),IF(AND($B34<>"",$F$4="Capacity (OSHPD)"),VLOOKUP($B34,'Non-prismatic'!$B$2:$U$274,9,FALSE)*VLOOKUP($F$4,Sheet1!$B$8:$N$10,5,FALSE),IF(AND($B34<>"",$F$4="R=3"),VLOOKUP($B34,'Non-prismatic'!$B$2:$U$274,9,FALSE)*VLOOKUP($F$4,Sheet1!$B$8:$N$10,5,FALSE),""))) ->  | H34: =IF(AND($B34<>"",$F$4="Capacity (Non-OSHPD)"),VLOOKUP($B34,'Non-prismatic'!$B$2:$U$274,10,FALSE)*VLOOKUP($F$4,Sheet1!$B$8:$N$10,6,FALSE),IF(AND($B34<>"",$F$4="Capacity (OSHPD)"),VLOOKUP($B34,'Non-prismatic'!$B$2:$U$274,10,FALSE)*VLOOKUP($F$4,Sheet1!$B$8:$N$10,6,FALSE),IF(AND($B34<>"",$F$4="R=3"),VLOOKUP($B34,'Non-prismatic'!$B$2:$U$274,10,FALSE)*VLOOKUP($F$4,Sheet1!$B$8:$N$10,6,FALSE),""))) ->  | I34: =IF(AND($B34<>"",$F$4="Capacity (Non-OSHPD)"),VLOOKUP($B34,'Non-prismatic'!$B$2:$U$274,12,FALSE)*VLOOKUP($F$4,Sheet1!$B$8:$N$10,7,FALSE),IF(AND($B34<>"",$F$4="Capacity (OSHPD)"),2*3*VLOOKUP($B34,'Non-prismatic'!$B$2:$U$274,9,FALSE)/VLOOKUP($B34,'Non-prismatic'!$B$2:$U$274,3,FALSE),IF(AND($B34<>"",$F$4="R=3"),VLOOKUP($B34,'Non-prismatic'!$B$2:$U$274,12,FALSE)*VLOOKUP($F$4,Sheet1!$B$8:$N$10,7,FALSE),""))) ->  | J34: =IF(AND($B34<>"",$F$4="Capacity (Non-OSHPD)"),VLOOKUP($B34,'Non-prismatic'!$B$2:$U$274,13,FALSE)*VLOOKUP($F$4,Sheet1!$B$8:$N$10,8,FALSE),IF(AND($B34<>"",$F$4="Capacity (OSHPD)"),VLOOKUP($B34,'Non-prismatic'!$B$2:$U$274,13,FALSE)*VLOOKUP($F$4,Sheet1!$B$8:$N$10,8,FALSE),IF(AND($B34<>"",$F$4="R=3"),VLOOKUP($B34,'Non-prismatic'!$B$2:$U$274,13,FALSE)*VLOOKUP($F$4,Sheet1!$B$8:$N$10,8,FALSE),""))) ->  | K34: =IF(AND($B34<>"",$F$4="Capacity (Non-OSHPD)"),VLOOKUP($B34,'Non-prismatic'!$B$2:$U$274,14,FALSE)*VLOOKUP($F$4,Sheet1!$B$8:$N$10,9,FALSE),IF(AND($B34<>"",$F$4="Capacity (OSHPD)"),VLOOKUP($B34,'Non-prismatic'!$B$2:$U$274,14,FALSE)*VLOOKUP($F$4,Sheet1!$B$8:$N$10,9,FALSE),IF(AND($B34<>"",$F$4="R=3"),VLOOKUP($B34,'Non-prismatic'!$B$2:$U$274,14,FALSE)*VLOOKUP($F$4,Sheet1!$B$8:$N$10,9,FALSE),""))) ->  | L34: =IF(AND($B34<>"",$F$4="Capacity (Non-OSHPD)"),VLOOKUP($B34,'Non-prismatic'!$B$2:$U$274,15,FALSE)*VLOOKUP($F$4,Sheet1!$B$8:$N$10,10,FALSE),IF(AND($B34<>"",$F$4="Capacity (OSHPD)"),VLOOKUP($B34,'Non-prismatic'!$B$2:$U$274,15,FALSE)*VLOOKUP($F$4,Sheet1!$B$8:$N$10,10,FALSE),IF(AND($B34<>"",$F$4="R=3"),VLOOKUP($B34,'Non-prismatic'!$B$2:$U$274,15,FALSE)*VLOOKUP($F$4,Sheet1!$B$8:$N$10,10,FALSE),""))) ->  | M34: =IF(AND($B34<>"",$F$4="Capacity (Non-OSHPD)"),VLOOKUP($B34,'Non-prismatic'!$B$2:$U$274,16,FALSE)*VLOOKUP($F$4,Sheet1!$B$8:$N$10,11,FALSE),IF(AND($B34<>"",$F$4="Capacity (OSHPD)"),1.15*2*3*VLOOKUP($B34,'Non-prismatic'!$B$2:$U$274,9,FALSE)/VLOOKUP($B34,'Non-prismatic'!$B$2:$U$274,3,FALSE),IF(AND($B34<>"",$F$4="R=3"),VLOOKUP($B34,'Non-prismatic'!$B$2:$U$274,16,FALSE)*VLOOKUP($F$4,Sheet1!$B$8:$N$10,11,FALSE),""))) ->  | N34: =IF(AND($B34<>"",$F$4="Capacity (Non-OSHPD)"),VLOOKUP($B34,'Non-prismatic'!$B$2:$U$274,17,FALSE)*VLOOKUP($F$4,Sheet1!$B$8:$N$10,12,FALSE),IF(AND($B34<>"",$F$4="Capacity (OSHPD)"),VLOOKUP($B34,'Non-prismatic'!$B$2:$U$274,17,FALSE)*VLOOKUP($F$4,Sheet1!$B$8:$N$10,12,FALSE),IF(AND($B34<>"",$F$4="R=3"),VLOOKUP($B34,'Non-prismatic'!$B$2:$U$274,17,FALSE)*VLOOKUP($F$4,Sheet1!$B$8:$N$10,12,FALSE),""))) ->  | O34: =IF(AND(B34<>"",$F$4="Capacity (Non-OSHPD)"),VLOOKUP($B34,'Non-prismatic'!$B$2:$U$274,18,FALSE),IF(AND(B34<>"",OR($F$4="Capacity (OSHPD)",$F$4="R=3")),VLOOKUP($B34,'Non-prismatic'!$B$2:$U$274,19,FALSE),"")) ->  | P34: =IF(B34<>"",VLOOKUP($B34,'Non-prismatic'!$B$2:$V$274,21,FALSE),"") ->  | Q34: =IF(B34<>"",VLOOKUP($B34,'Non-prismatic'!$B$2:$U$274,3,FALSE),"") -> 
C35: =IF(B35<>"",VLOOKUP($B35,'Non-prismatic'!$B$2:$U$274,4,FALSE),"") ->  | D35: =IF(AND($B35<>"",$F$4="Capacity (Non-OSHPD)"),VLOOKUP($B35,'Non-prismatic'!$B$2:$U$274,6,FALSE)*VLOOKUP($F$4,Sheet1!$B$8:$N$10,2,FALSE),IF(AND($B35<>"",$F$4="Capacity (OSHPD)"),VLOOKUP($B35,'Non-prismatic'!$B$2:$U$274,6,FALSE)*VLOOKUP($F$4,Sheet1!$B$8:$N$10,2,FALSE),IF(AND($B35<>"",$F$4="R=3"),VLOOKUP($B35,'Non-prismatic'!$B$2:$U$274,6,FALSE)*VLOOKUP($F$4,Sheet1!$B$8:$N$10,2,FALSE),""))) ->  | E35: =IF(AND($B35<>"",$F$4="Capacity (Non-OSHPD)"),VLOOKUP($B35,'Non-prismatic'!$B$2:$U$274,7,FALSE)*VLOOKUP($F$4,Sheet1!$B$8:$N$10,3,FALSE),IF(AND($B35<>"",$F$4="Capacity (OSHPD)"),VLOOKUP($B35,'Non-prismatic'!$B$2:$U$274,7,FALSE)*VLOOKUP($F$4,Sheet1!$B$8:$N$10,3,FALSE),IF(AND($B35<>"",$F$4="R=3"),VLOOKUP($B35,'Non-prismatic'!$B$2:$U$274,7,FALSE)*VLOOKUP($F$4,Sheet1!$B$8:$N$10,3,FALSE),""))) ->  | F35: =IF(AND($B35<>"",$F$4="Capacity (Non-OSHPD)"),VLOOKUP($B35,'Non-prismatic'!$B$2:$U$274,8,FALSE)*VLOOKUP($F$4,Sheet1!$B$8:$N$10,4,FALSE),IF(AND($B35<>"",$F$4="Capacity (OSHPD)"),VLOOKUP($B35,'Non-prismatic'!$B$2:$U$274,8,FALSE)*VLOOKUP($F$4,Sheet1!$B$8:$N$10,4,FALSE),IF(AND($B35<>"",$F$4="R=3"),VLOOKUP($B35,'Non-prismatic'!$B$2:$U$274,8,FALSE)*VLOOKUP($F$4,Sheet1!$B$8:$N$10,4,FALSE),""))) ->  | G35: =IF(AND($B35<>"",$F$4="Capacity (Non-OSHPD)"),VLOOKUP($B35,'Non-prismatic'!$B$2:$U$274,9,FALSE)*VLOOKUP($F$4,Sheet1!$B$8:$N$10,5,FALSE),IF(AND($B35<>"",$F$4="Capacity (OSHPD)"),VLOOKUP($B35,'Non-prismatic'!$B$2:$U$274,9,FALSE)*VLOOKUP($F$4,Sheet1!$B$8:$N$10,5,FALSE),IF(AND($B35<>"",$F$4="R=3"),VLOOKUP($B35,'Non-prismatic'!$B$2:$U$274,9,FALSE)*VLOOKUP($F$4,Sheet1!$B$8:$N$10,5,FALSE),""))) ->  | H35: =IF(AND($B35<>"",$F$4="Capacity (Non-OSHPD)"),VLOOKUP($B35,'Non-prismatic'!$B$2:$U$274,10,FALSE)*VLOOKUP($F$4,Sheet1!$B$8:$N$10,6,FALSE),IF(AND($B35<>"",$F$4="Capacity (OSHPD)"),VLOOKUP($B35,'Non-prismatic'!$B$2:$U$274,10,FALSE)*VLOOKUP($F$4,Sheet1!$B$8:$N$10,6,FALSE),IF(AND($B35<>"",$F$4="R=3"),VLOOKUP($B35,'Non-prismatic'!$B$2:$U$274,10,FALSE)*VLOOKUP($F$4,Sheet1!$B$8:$N$10,6,FALSE),""))) ->  | I35: =IF(AND($B35<>"",$F$4="Capacity (Non-OSHPD)"),VLOOKUP($B35,'Non-prismatic'!$B$2:$U$274,12,FALSE)*VLOOKUP($F$4,Sheet1!$B$8:$N$10,7,FALSE),IF(AND($B35<>"",$F$4="Capacity (OSHPD)"),2*3*VLOOKUP($B35,'Non-prismatic'!$B$2:$U$274,9,FALSE)/VLOOKUP($B35,'Non-prismatic'!$B$2:$U$274,3,FALSE),IF(AND($B35<>"",$F$4="R=3"),VLOOKUP($B35,'Non-prismatic'!$B$2:$U$274,12,FALSE)*VLOOKUP($F$4,Sheet1!$B$8:$N$10,7,FALSE),""))) ->  | J35: =IF(AND($B35<>"",$F$4="Capacity (Non-OSHPD)"),VLOOKUP($B35,'Non-prismatic'!$B$2:$U$274,13,FALSE)*VLOOKUP($F$4,Sheet1!$B$8:$N$10,8,FALSE),IF(AND($B35<>"",$F$4="Capacity (OSHPD)"),VLOOKUP($B35,'Non-prismatic'!$B$2:$U$274,13,FALSE)*VLOOKUP($F$4,Sheet1!$B$8:$N$10,8,FALSE),IF(AND($B35<>"",$F$4="R=3"),VLOOKUP($B35,'Non-prismatic'!$B$2:$U$274,13,FALSE)*VLOOKUP($F$4,Sheet1!$B$8:$N$10,8,FALSE),""))) ->  | K35: =IF(AND($B35<>"",$F$4="Capacity (Non-OSHPD)"),VLOOKUP($B35,'Non-prismatic'!$B$2:$U$274,14,FALSE)*VLOOKUP($F$4,Sheet1!$B$8:$N$10,9,FALSE),IF(AND($B35<>"",$F$4="Capacity (OSHPD)"),VLOOKUP($B35,'Non-prismatic'!$B$2:$U$274,14,FALSE)*VLOOKUP($F$4,Sheet1!$B$8:$N$10,9,FALSE),IF(AND($B35<>"",$F$4="R=3"),VLOOKUP($B35,'Non-prismatic'!$B$2:$U$274,14,FALSE)*VLOOKUP($F$4,Sheet1!$B$8:$N$10,9,FALSE),""))) ->  | L35: =IF(AND($B35<>"",$F$4="Capacity (Non-OSHPD)"),VLOOKUP($B35,'Non-prismatic'!$B$2:$U$274,15,FALSE)*VLOOKUP($F$4,Sheet1!$B$8:$N$10,10,FALSE),IF(AND($B35<>"",$F$4="Capacity (OSHPD)"),VLOOKUP($B35,'Non-prismatic'!$B$2:$U$274,15,FALSE)*VLOOKUP($F$4,Sheet1!$B$8:$N$10,10,FALSE),IF(AND($B35<>"",$F$4="R=3"),VLOOKUP($B35,'Non-prismatic'!$B$2:$U$274,15,FALSE)*VLOOKUP($F$4,Sheet1!$B$8:$N$10,10,FALSE),""))) ->  | M35: =IF(AND($B35<>"",$F$4="Capacity (Non-OSHPD)"),VLOOKUP($B35,'Non-prismatic'!$B$2:$U$274,16,FALSE)*VLOOKUP($F$4,Sheet1!$B$8:$N$10,11,FALSE),IF(AND($B35<>"",$F$4="Capacity (OSHPD)"),1.15*2*3*VLOOKUP($B35,'Non-prismatic'!$B$2:$U$274,9,FALSE)/VLOOKUP($B35,'Non-prismatic'!$B$2:$U$274,3,FALSE),IF(AND($B35<>"",$F$4="R=3"),VLOOKUP($B35,'Non-prismatic'!$B$2:$U$274,16,FALSE)*VLOOKUP($F$4,Sheet1!$B$8:$N$10,11,FALSE),""))) ->  | N35: =IF(AND($B35<>"",$F$4="Capacity (Non-OSHPD)"),VLOOKUP($B35,'Non-prismatic'!$B$2:$U$274,17,FALSE)*VLOOKUP($F$4,Sheet1!$B$8:$N$10,12,FALSE),IF(AND($B35<>"",$F$4="Capacity (OSHPD)"),VLOOKUP($B35,'Non-prismatic'!$B$2:$U$274,17,FALSE)*VLOOKUP($F$4,Sheet1!$B$8:$N$10,12,FALSE),IF(AND($B35<>"",$F$4="R=3"),VLOOKUP($B35,'Non-prismatic'!$B$2:$U$274,17,FALSE)*VLOOKUP($F$4,Sheet1!$B$8:$N$10,12,FALSE),""))) ->  | O35: =IF(AND(B35<>"",$F$4="Capacity (Non-OSHPD)"),VLOOKUP($B35,'Non-prismatic'!$B$2:$U$274,18,FALSE),IF(AND(B35<>"",OR($F$4="Capacity (OSHPD)",$F$4="R=3")),VLOOKUP($B35,'Non-prismatic'!$B$2:$U$274,19,FALSE),"")) ->  | P35: =IF(B35<>"",VLOOKUP($B35,'Non-prismatic'!$B$2:$V$274,21,FALSE),"") ->  | Q35: =IF(B35<>"",VLOOKUP($B35,'Non-prismatic'!$B$2:$U$274,3,FALSE),"") -> 
C36: =IF(B36<>"",VLOOKUP($B36,'Non-prismatic'!$B$2:$U$274,4,FALSE),"") ->  | D36: =IF(AND($B36<>"",$F$4="Capacity (Non-OSHPD)"),VLOOKUP($B36,'Non-prismatic'!$B$2:$U$274,6,FALSE)*VLOOKUP($F$4,Sheet1!$B$8:$N$10,2,FALSE),IF(AND($B36<>"",$F$4="Capacity (OSHPD)"),VLOOKUP($B36,'Non-prismatic'!$B$2:$U$274,6,FALSE)*VLOOKUP($F$4,Sheet1!$B$8:$N$10,2,FALSE),IF(AND($B36<>"",$F$4="R=3"),VLOOKUP($B36,'Non-prismatic'!$B$2:$U$274,6,FALSE)*VLOOKUP($F$4,Sheet1!$B$8:$N$10,2,FALSE),""))) ->  | E36: =IF(AND($B36<>"",$F$4="Capacity (Non-OSHPD)"),VLOOKUP($B36,'Non-prismatic'!$B$2:$U$274,7,FALSE)*VLOOKUP($F$4,Sheet1!$B$8:$N$10,3,FALSE),IF(AND($B36<>"",$F$4="Capacity (OSHPD)"),VLOOKUP($B36,'Non-prismatic'!$B$2:$U$274,7,FALSE)*VLOOKUP($F$4,Sheet1!$B$8:$N$10,3,FALSE),IF(AND($B36<>"",$F$4="R=3"),VLOOKUP($B36,'Non-prismatic'!$B$2:$U$274,7,FALSE)*VLOOKUP($F$4,Sheet1!$B$8:$N$10,3,FALSE),""))) ->  | F36: =IF(AND($B36<>"",$F$4="Capacity (Non-OSHPD)"),VLOOKUP($B36,'Non-prismatic'!$B$2:$U$274,8,FALSE)*VLOOKUP($F$4,Sheet1!$B$8:$N$10,4,FALSE),IF(AND($B36<>"",$F$4="Capacity (OSHPD)"),VLOOKUP($B36,'Non-prismatic'!$B$2:$U$274,8,FALSE)*VLOOKUP($F$4,Sheet1!$B$8:$N$10,4,FALSE),IF(AND($B36<>"",$F$4="R=3"),VLOOKUP($B36,'Non-prismatic'!$B$2:$U$274,8,FALSE)*VLOOKUP($F$4,Sheet1!$B$8:$N$10,4,FALSE),""))) ->  | G36: =IF(AND($B36<>"",$F$4="Capacity (Non-OSHPD)"),VLOOKUP($B36,'Non-prismatic'!$B$2:$U$274,9,FALSE)*VLOOKUP($F$4,Sheet1!$B$8:$N$10,5,FALSE),IF(AND($B36<>"",$F$4="Capacity (OSHPD)"),VLOOKUP($B36,'Non-prismatic'!$B$2:$U$274,9,FALSE)*VLOOKUP($F$4,Sheet1!$B$8:$N$10,5,FALSE),IF(AND($B36<>"",$F$4="R=3"),VLOOKUP($B36,'Non-prismatic'!$B$2:$U$274,9,FALSE)*VLOOKUP($F$4,Sheet1!$B$8:$N$10,5,FALSE),""))) ->  | H36: =IF(AND($B36<>"",$F$4="Capacity (Non-OSHPD)"),VLOOKUP($B36,'Non-prismatic'!$B$2:$U$274,10,FALSE)*VLOOKUP($F$4,Sheet1!$B$8:$N$10,6,FALSE),IF(AND($B36<>"",$F$4="Capacity (OSHPD)"),VLOOKUP($B36,'Non-prismatic'!$B$2:$U$274,10,FALSE)*VLOOKUP($F$4,Sheet1!$B$8:$N$10,6,FALSE),IF(AND($B36<>"",$F$4="R=3"),VLOOKUP($B36,'Non-prismatic'!$B$2:$U$274,10,FALSE)*VLOOKUP($F$4,Sheet1!$B$8:$N$10,6,FALSE),""))) ->  | I36: =IF(AND($B36<>"",$F$4="Capacity (Non-OSHPD)"),VLOOKUP($B36,'Non-prismatic'!$B$2:$U$274,12,FALSE)*VLOOKUP($F$4,Sheet1!$B$8:$N$10,7,FALSE),IF(AND($B36<>"",$F$4="Capacity (OSHPD)"),2*3*VLOOKUP($B36,'Non-prismatic'!$B$2:$U$274,9,FALSE)/VLOOKUP($B36,'Non-prismatic'!$B$2:$U$274,3,FALSE),IF(AND($B36<>"",$F$4="R=3"),VLOOKUP($B36,'Non-prismatic'!$B$2:$U$274,12,FALSE)*VLOOKUP($F$4,Sheet1!$B$8:$N$10,7,FALSE),""))) ->  | J36: =IF(AND($B36<>"",$F$4="Capacity (Non-OSHPD)"),VLOOKUP($B36,'Non-prismatic'!$B$2:$U$274,13,FALSE)*VLOOKUP($F$4,Sheet1!$B$8:$N$10,8,FALSE),IF(AND($B36<>"",$F$4="Capacity (OSHPD)"),VLOOKUP($B36,'Non-prismatic'!$B$2:$U$274,13,FALSE)*VLOOKUP($F$4,Sheet1!$B$8:$N$10,8,FALSE),IF(AND($B36<>"",$F$4="R=3"),VLOOKUP($B36,'Non-prismatic'!$B$2:$U$274,13,FALSE)*VLOOKUP($F$4,Sheet1!$B$8:$N$10,8,FALSE),""))) ->  | K36: =IF(AND($B36<>"",$F$4="Capacity (Non-OSHPD)"),VLOOKUP($B36,'Non-prismatic'!$B$2:$U$274,14,FALSE)*VLOOKUP($F$4,Sheet1!$B$8:$N$10,9,FALSE),IF(AND($B36<>"",$F$4="Capacity (OSHPD)"),VLOOKUP($B36,'Non-prismatic'!$B$2:$U$274,14,FALSE)*VLOOKUP($F$4,Sheet1!$B$8:$N$10,9,FALSE),IF(AND($B36<>"",$F$4="R=3"),VLOOKUP($B36,'Non-prismatic'!$B$2:$U$274,14,FALSE)*VLOOKUP($F$4,Sheet1!$B$8:$N$10,9,FALSE),""))) ->  | L36: =IF(AND($B36<>"",$F$4="Capacity (Non-OSHPD)"),VLOOKUP($B36,'Non-prismatic'!$B$2:$U$274,15,FALSE)*VLOOKUP($F$4,Sheet1!$B$8:$N$10,10,FALSE),IF(AND($B36<>"",$F$4="Capacity (OSHPD)"),VLOOKUP($B36,'Non-prismatic'!$B$2:$U$274,15,FALSE)*VLOOKUP($F$4,Sheet1!$B$8:$N$10,10,FALSE),IF(AND($B36<>"",$F$4="R=3"),VLOOKUP($B36,'Non-prismatic'!$B$2:$U$274,15,FALSE)*VLOOKUP($F$4,Sheet1!$B$8:$N$10,10,FALSE),""))) ->  | M36: =IF(AND($B36<>"",$F$4="Capacity (Non-OSHPD)"),VLOOKUP($B36,'Non-prismatic'!$B$2:$U$274,16,FALSE)*VLOOKUP($F$4,Sheet1!$B$8:$N$10,11,FALSE),IF(AND($B36<>"",$F$4="Capacity (OSHPD)"),1.15*2*3*VLOOKUP($B36,'Non-prismatic'!$B$2:$U$274,9,FALSE)/VLOOKUP($B36,'Non-prismatic'!$B$2:$U$274,3,FALSE),IF(AND($B36<>"",$F$4="R=3"),VLOOKUP($B36,'Non-prismatic'!$B$2:$U$274,16,FALSE)*VLOOKUP($F$4,Sheet1!$B$8:$N$10,11,FALSE),""))) ->  | N36: =IF(AND($B36<>"",$F$4="Capacity (Non-OSHPD)"),VLOOKUP($B36,'Non-prismatic'!$B$2:$U$274,17,FALSE)*VLOOKUP($F$4,Sheet1!$B$8:$N$10,12,FALSE),IF(AND($B36<>"",$F$4="Capacity (OSHPD)"),VLOOKUP($B36,'Non-prismatic'!$B$2:$U$274,17,FALSE)*VLOOKUP($F$4,Sheet1!$B$8:$N$10,12,FALSE),IF(AND($B36<>"",$F$4="R=3"),VLOOKUP($B36,'Non-prismatic'!$B$2:$U$274,17,FALSE)*VLOOKUP($F$4,Sheet1!$B$8:$N$10,12,FALSE),""))) ->  | O36: =IF(AND(B36<>"",$F$4="Capacity (Non-OSHPD)"),VLOOKUP($B36,'Non-prismatic'!$B$2:$U$274,18,FALSE),IF(AND(B36<>"",OR($F$4="Capacity (OSHPD)",$F$4="R=3")),VLOOKUP($B36,'Non-prismatic'!$B$2:$U$274,19,FALSE),"")) ->  | P36: =IF(B36<>"",VLOOKUP($B36,'Non-prismatic'!$B$2:$V$274,21,FALSE),"") ->  | Q36: =IF(B36<>"",VLOOKUP($B36,'Non-prismatic'!$B$2:$U$274,3,FALSE),"") -> 
C37: =IF(B37<>"",VLOOKUP($B37,'Non-prismatic'!$B$2:$U$274,4,FALSE),"") ->  | D37: =IF(AND($B37<>"",$F$4="Capacity (Non-OSHPD)"),VLOOKUP($B37,'Non-prismatic'!$B$2:$U$274,6,FALSE)*VLOOKUP($F$4,Sheet1!$B$8:$N$10,2,FALSE),IF(AND($B37<>"",$F$4="Capacity (OSHPD)"),VLOOKUP($B37,'Non-prismatic'!$B$2:$U$274,6,FALSE)*VLOOKUP($F$4,Sheet1!$B$8:$N$10,2,FALSE),IF(AND($B37<>"",$F$4="R=3"),VLOOKUP($B37,'Non-prismatic'!$B$2:$U$274,6,FALSE)*VLOOKUP($F$4,Sheet1!$B$8:$N$10,2,FALSE),""))) ->  | E37: =IF(AND($B37<>"",$F$4="Capacity (Non-OSHPD)"),VLOOKUP($B37,'Non-prismatic'!$B$2:$U$274,7,FALSE)*VLOOKUP($F$4,Sheet1!$B$8:$N$10,3,FALSE),IF(AND($B37<>"",$F$4="Capacity (OSHPD)"),VLOOKUP($B37,'Non-prismatic'!$B$2:$U$274,7,FALSE)*VLOOKUP($F$4,Sheet1!$B$8:$N$10,3,FALSE),IF(AND($B37<>"",$F$4="R=3"),VLOOKUP($B37,'Non-prismatic'!$B$2:$U$274,7,FALSE)*VLOOKUP($F$4,Sheet1!$B$8:$N$10,3,FALSE),""))) ->  | F37: =IF(AND($B37<>"",$F$4="Capacity (Non-OSHPD)"),VLOOKUP($B37,'Non-prismatic'!$B$2:$U$274,8,FALSE)*VLOOKUP($F$4,Sheet1!$B$8:$N$10,4,FALSE),IF(AND($B37<>"",$F$4="Capacity (OSHPD)"),VLOOKUP($B37,'Non-prismatic'!$B$2:$U$274,8,FALSE)*VLOOKUP($F$4,Sheet1!$B$8:$N$10,4,FALSE),IF(AND($B37<>"",$F$4="R=3"),VLOOKUP($B37,'Non-prismatic'!$B$2:$U$274,8,FALSE)*VLOOKUP($F$4,Sheet1!$B$8:$N$10,4,FALSE),""))) ->  | G37: =IF(AND($B37<>"",$F$4="Capacity (Non-OSHPD)"),VLOOKUP($B37,'Non-prismatic'!$B$2:$U$274,9,FALSE)*VLOOKUP($F$4,Sheet1!$B$8:$N$10,5,FALSE),IF(AND($B37<>"",$F$4="Capacity (OSHPD)"),VLOOKUP($B37,'Non-prismatic'!$B$2:$U$274,9,FALSE)*VLOOKUP($F$4,Sheet1!$B$8:$N$10,5,FALSE),IF(AND($B37<>"",$F$4="R=3"),VLOOKUP($B37,'Non-prismatic'!$B$2:$U$274,9,FALSE)*VLOOKUP($F$4,Sheet1!$B$8:$N$10,5,FALSE),""))) ->  | H37: =IF(AND($B37<>"",$F$4="Capacity (Non-OSHPD)"),VLOOKUP($B37,'Non-prismatic'!$B$2:$U$274,10,FALSE)*VLOOKUP($F$4,Sheet1!$B$8:$N$10,6,FALSE),IF(AND($B37<>"",$F$4="Capacity (OSHPD)"),VLOOKUP($B37,'Non-prismatic'!$B$2:$U$274,10,FALSE)*VLOOKUP($F$4,Sheet1!$B$8:$N$10,6,FALSE),IF(AND($B37<>"",$F$4="R=3"),VLOOKUP($B37,'Non-prismatic'!$B$2:$U$274,10,FALSE)*VLOOKUP($F$4,Sheet1!$B$8:$N$10,6,FALSE),""))) ->  | I37: =IF(AND($B37<>"",$F$4="Capacity (Non-OSHPD)"),VLOOKUP($B37,'Non-prismatic'!$B$2:$U$274,12,FALSE)*VLOOKUP($F$4,Sheet1!$B$8:$N$10,7,FALSE),IF(AND($B37<>"",$F$4="Capacity (OSHPD)"),2*3*VLOOKUP($B37,'Non-prismatic'!$B$2:$U$274,9,FALSE)/VLOOKUP($B37,'Non-prismatic'!$B$2:$U$274,3,FALSE),IF(AND($B37<>"",$F$4="R=3"),VLOOKUP($B37,'Non-prismatic'!$B$2:$U$274,12,FALSE)*VLOOKUP($F$4,Sheet1!$B$8:$N$10,7,FALSE),""))) ->  | J37: =IF(AND($B37<>"",$F$4="Capacity (Non-OSHPD)"),VLOOKUP($B37,'Non-prismatic'!$B$2:$U$274,13,FALSE)*VLOOKUP($F$4,Sheet1!$B$8:$N$10,8,FALSE),IF(AND($B37<>"",$F$4="Capacity (OSHPD)"),VLOOKUP($B37,'Non-prismatic'!$B$2:$U$274,13,FALSE)*VLOOKUP($F$4,Sheet1!$B$8:$N$10,8,FALSE),IF(AND($B37<>"",$F$4="R=3"),VLOOKUP($B37,'Non-prismatic'!$B$2:$U$274,13,FALSE)*VLOOKUP($F$4,Sheet1!$B$8:$N$10,8,FALSE),""))) ->  | K37: =IF(AND($B37<>"",$F$4="Capacity (Non-OSHPD)"),VLOOKUP($B37,'Non-prismatic'!$B$2:$U$274,14,FALSE)*VLOOKUP($F$4,Sheet1!$B$8:$N$10,9,FALSE),IF(AND($B37<>"",$F$4="Capacity (OSHPD)"),VLOOKUP($B37,'Non-prismatic'!$B$2:$U$274,14,FALSE)*VLOOKUP($F$4,Sheet1!$B$8:$N$10,9,FALSE),IF(AND($B37<>"",$F$4="R=3"),VLOOKUP($B37,'Non-prismatic'!$B$2:$U$274,14,FALSE)*VLOOKUP($F$4,Sheet1!$B$8:$N$10,9,FALSE),""))) ->  | L37: =IF(AND($B37<>"",$F$4="Capacity (Non-OSHPD)"),VLOOKUP($B37,'Non-prismatic'!$B$2:$U$274,15,FALSE)*VLOOKUP($F$4,Sheet1!$B$8:$N$10,10,FALSE),IF(AND($B37<>"",$F$4="Capacity (OSHPD)"),VLOOKUP($B37,'Non-prismatic'!$B$2:$U$274,15,FALSE)*VLOOKUP($F$4,Sheet1!$B$8:$N$10,10,FALSE),IF(AND($B37<>"",$F$4="R=3"),VLOOKUP($B37,'Non-prismatic'!$B$2:$U$274,15,FALSE)*VLOOKUP($F$4,Sheet1!$B$8:$N$10,10,FALSE),""))) ->  | M37: =IF(AND($B37<>"",$F$4="Capacity (Non-OSHPD)"),VLOOKUP($B37,'Non-prismatic'!$B$2:$U$274,16,FALSE)*VLOOKUP($F$4,Sheet1!$B$8:$N$10,11,FALSE),IF(AND($B37<>"",$F$4="Capacity (OSHPD)"),1.15*2*3*VLOOKUP($B37,'Non-prismatic'!$B$2:$U$274,9,FALSE)/VLOOKUP($B37,'Non-prismatic'!$B$2:$U$274,3,FALSE),IF(AND($B37<>"",$F$4="R=3"),VLOOKUP($B37,'Non-prismatic'!$B$2:$U$274,16,FALSE)*VLOOKUP($F$4,Sheet1!$B$8:$N$10,11,FALSE),""))) ->  | N37: =IF(AND($B37<>"",$F$4="Capacity (Non-OSHPD)"),VLOOKUP($B37,'Non-prismatic'!$B$2:$U$274,17,FALSE)*VLOOKUP($F$4,Sheet1!$B$8:$N$10,12,FALSE),IF(AND($B37<>"",$F$4="Capacity (OSHPD)"),VLOOKUP($B37,'Non-prismatic'!$B$2:$U$274,17,FALSE)*VLOOKUP($F$4,Sheet1!$B$8:$N$10,12,FALSE),IF(AND($B37<>"",$F$4="R=3"),VLOOKUP($B37,'Non-prismatic'!$B$2:$U$274,17,FALSE)*VLOOKUP($F$4,Sheet1!$B$8:$N$10,12,FALSE),""))) ->  | O37: =IF(AND(B37<>"",$F$4="Capacity (Non-OSHPD)"),VLOOKUP($B37,'Non-prismatic'!$B$2:$U$274,18,FALSE),IF(AND(B37<>"",OR($F$4="Capacity (OSHPD)",$F$4="R=3")),VLOOKUP($B37,'Non-prismatic'!$B$2:$U$274,19,FALSE),"")) ->  | P37: =IF(B37<>"",VLOOKUP($B37,'Non-prismatic'!$B$2:$V$274,21,FALSE),"") ->  | Q37: =IF(B37<>"",VLOOKUP($B37,'Non-prismatic'!$B$2:$U$274,3,FALSE),"") -> 
C38: =IF(B38<>"",VLOOKUP($B38,'Non-prismatic'!$B$2:$U$274,4,FALSE),"") ->  | D38: =IF(AND($B38<>"",$F$4="Capacity (Non-OSHPD)"),VLOOKUP($B38,'Non-prismatic'!$B$2:$U$274,6,FALSE)*VLOOKUP($F$4,Sheet1!$B$8:$N$10,2,FALSE),IF(AND($B38<>"",$F$4="Capacity (OSHPD)"),VLOOKUP($B38,'Non-prismatic'!$B$2:$U$274,6,FALSE)*VLOOKUP($F$4,Sheet1!$B$8:$N$10,2,FALSE),IF(AND($B38<>"",$F$4="R=3"),VLOOKUP($B38,'Non-prismatic'!$B$2:$U$274,6,FALSE)*VLOOKUP($F$4,Sheet1!$B$8:$N$10,2,FALSE),""))) ->  | E38: =IF(AND($B38<>"",$F$4="Capacity (Non-OSHPD)"),VLOOKUP($B38,'Non-prismatic'!$B$2:$U$274,7,FALSE)*VLOOKUP($F$4,Sheet1!$B$8:$N$10,3,FALSE),IF(AND($B38<>"",$F$4="Capacity (OSHPD)"),VLOOKUP($B38,'Non-prismatic'!$B$2:$U$274,7,FALSE)*VLOOKUP($F$4,Sheet1!$B$8:$N$10,3,FALSE),IF(AND($B38<>"",$F$4="R=3"),VLOOKUP($B38,'Non-prismatic'!$B$2:$U$274,7,FALSE)*VLOOKUP($F$4,Sheet1!$B$8:$N$10,3,FALSE),""))) ->  | F38: =IF(AND($B38<>"",$F$4="Capacity (Non-OSHPD)"),VLOOKUP($B38,'Non-prismatic'!$B$2:$U$274,8,FALSE)*VLOOKUP($F$4,Sheet1!$B$8:$N$10,4,FALSE),IF(AND($B38<>"",$F$4="Capacity (OSHPD)"),VLOOKUP($B38,'Non-prismatic'!$B$2:$U$274,8,FALSE)*VLOOKUP($F$4,Sheet1!$B$8:$N$10,4,FALSE),IF(AND($B38<>"",$F$4="R=3"),VLOOKUP($B38,'Non-prismatic'!$B$2:$U$274,8,FALSE)*VLOOKUP($F$4,Sheet1!$B$8:$N$10,4,FALSE),""))) ->  | G38: =IF(AND($B38<>"",$F$4="Capacity (Non-OSHPD)"),VLOOKUP($B38,'Non-prismatic'!$B$2:$U$274,9,FALSE)*VLOOKUP($F$4,Sheet1!$B$8:$N$10,5,FALSE),IF(AND($B38<>"",$F$4="Capacity (OSHPD)"),VLOOKUP($B38,'Non-prismatic'!$B$2:$U$274,9,FALSE)*VLOOKUP($F$4,Sheet1!$B$8:$N$10,5,FALSE),IF(AND($B38<>"",$F$4="R=3"),VLOOKUP($B38,'Non-prismatic'!$B$2:$U$274,9,FALSE)*VLOOKUP($F$4,Sheet1!$B$8:$N$10,5,FALSE),""))) ->  | H38: =IF(AND($B38<>"",$F$4="Capacity (Non-OSHPD)"),VLOOKUP($B38,'Non-prismatic'!$B$2:$U$274,10,FALSE)*VLOOKUP($F$4,Sheet1!$B$8:$N$10,6,FALSE),IF(AND($B38<>"",$F$4="Capacity (OSHPD)"),VLOOKUP($B38,'Non-prismatic'!$B$2:$U$274,10,FALSE)*VLOOKUP($F$4,Sheet1!$B$8:$N$10,6,FALSE),IF(AND($B38<>"",$F$4="R=3"),VLOOKUP($B38,'Non-prismatic'!$B$2:$U$274,10,FALSE)*VLOOKUP($F$4,Sheet1!$B$8:$N$10,6,FALSE),""))) ->  | I38: =IF(AND($B38<>"",$F$4="Capacity (Non-OSHPD)"),VLOOKUP($B38,'Non-prismatic'!$B$2:$U$274,12,FALSE)*VLOOKUP($F$4,Sheet1!$B$8:$N$10,7,FALSE),IF(AND($B38<>"",$F$4="Capacity (OSHPD)"),2*3*VLOOKUP($B38,'Non-prismatic'!$B$2:$U$274,9,FALSE)/VLOOKUP($B38,'Non-prismatic'!$B$2:$U$274,3,FALSE),IF(AND($B38<>"",$F$4="R=3"),VLOOKUP($B38,'Non-prismatic'!$B$2:$U$274,12,FALSE)*VLOOKUP($F$4,Sheet1!$B$8:$N$10,7,FALSE),""))) ->  | J38: =IF(AND($B38<>"",$F$4="Capacity (Non-OSHPD)"),VLOOKUP($B38,'Non-prismatic'!$B$2:$U$274,13,FALSE)*VLOOKUP($F$4,Sheet1!$B$8:$N$10,8,FALSE),IF(AND($B38<>"",$F$4="Capacity (OSHPD)"),VLOOKUP($B38,'Non-prismatic'!$B$2:$U$274,13,FALSE)*VLOOKUP($F$4,Sheet1!$B$8:$N$10,8,FALSE),IF(AND($B38<>"",$F$4="R=3"),VLOOKUP($B38,'Non-prismatic'!$B$2:$U$274,13,FALSE)*VLOOKUP($F$4,Sheet1!$B$8:$N$10,8,FALSE),""))) ->  | K38: =IF(AND($B38<>"",$F$4="Capacity (Non-OSHPD)"),VLOOKUP($B38,'Non-prismatic'!$B$2:$U$274,14,FALSE)*VLOOKUP($F$4,Sheet1!$B$8:$N$10,9,FALSE),IF(AND($B38<>"",$F$4="Capacity (OSHPD)"),VLOOKUP($B38,'Non-prismatic'!$B$2:$U$274,14,FALSE)*VLOOKUP($F$4,Sheet1!$B$8:$N$10,9,FALSE),IF(AND($B38<>"",$F$4="R=3"),VLOOKUP($B38,'Non-prismatic'!$B$2:$U$274,14,FALSE)*VLOOKUP($F$4,Sheet1!$B$8:$N$10,9,FALSE),""))) ->  | L38: =IF(AND($B38<>"",$F$4="Capacity (Non-OSHPD)"),VLOOKUP($B38,'Non-prismatic'!$B$2:$U$274,15,FALSE)*VLOOKUP($F$4,Sheet1!$B$8:$N$10,10,FALSE),IF(AND($B38<>"",$F$4="Capacity (OSHPD)"),VLOOKUP($B38,'Non-prismatic'!$B$2:$U$274,15,FALSE)*VLOOKUP($F$4,Sheet1!$B$8:$N$10,10,FALSE),IF(AND($B38<>"",$F$4="R=3"),VLOOKUP($B38,'Non-prismatic'!$B$2:$U$274,15,FALSE)*VLOOKUP($F$4,Sheet1!$B$8:$N$10,10,FALSE),""))) ->  | M38: =IF(AND($B38<>"",$F$4="Capacity (Non-OSHPD)"),VLOOKUP($B38,'Non-prismatic'!$B$2:$U$274,16,FALSE)*VLOOKUP($F$4,Sheet1!$B$8:$N$10,11,FALSE),IF(AND($B38<>"",$F$4="Capacity (OSHPD)"),1.15*2*3*VLOOKUP($B38,'Non-prismatic'!$B$2:$U$274,9,FALSE)/VLOOKUP($B38,'Non-prismatic'!$B$2:$U$274,3,FALSE),IF(AND($B38<>"",$F$4="R=3"),VLOOKUP($B38,'Non-prismatic'!$B$2:$U$274,16,FALSE)*VLOOKUP($F$4,Sheet1!$B$8:$N$10,11,FALSE),""))) ->  | N38: =IF(AND($B38<>"",$F$4="Capacity (Non-OSHPD)"),VLOOKUP($B38,'Non-prismatic'!$B$2:$U$274,17,FALSE)*VLOOKUP($F$4,Sheet1!$B$8:$N$10,12,FALSE),IF(AND($B38<>"",$F$4="Capacity (OSHPD)"),VLOOKUP($B38,'Non-prismatic'!$B$2:$U$274,17,FALSE)*VLOOKUP($F$4,Sheet1!$B$8:$N$10,12,FALSE),IF(AND($B38<>"",$F$4="R=3"),VLOOKUP($B38,'Non-prismatic'!$B$2:$U$274,17,FALSE)*VLOOKUP($F$4,Sheet1!$B$8:$N$10,12,FALSE),""))) ->  | O38: =IF(AND(B38<>"",$F$4="Capacity (Non-OSHPD)"),VLOOKUP($B38,'Non-prismatic'!$B$2:$U$274,18,FALSE),IF(AND(B38<>"",OR($F$4="Capacity (OSHPD)",$F$4="R=3")),VLOOKUP($B38,'Non-prismatic'!$B$2:$U$274,19,FALSE),"")) ->  | P38: =IF(B38<>"",VLOOKUP($B38,'Non-prismatic'!$B$2:$V$274,21,FALSE),"") ->  | Q38: =IF(B38<>"",VLOOKUP($B38,'Non-prismatic'!$B$2:$U$274,3,FALSE),"") -> 
C39: =IF(B39<>"",VLOOKUP($B39,'Non-prismatic'!$B$2:$U$274,4,FALSE),"") ->  | D39: =IF(AND($B39<>"",$F$4="Capacity (Non-OSHPD)"),VLOOKUP($B39,'Non-prismatic'!$B$2:$U$274,6,FALSE)*VLOOKUP($F$4,Sheet1!$B$8:$N$10,2,FALSE),IF(AND($B39<>"",$F$4="Capacity (OSHPD)"),VLOOKUP($B39,'Non-prismatic'!$B$2:$U$274,6,FALSE)*VLOOKUP($F$4,Sheet1!$B$8:$N$10,2,FALSE),IF(AND($B39<>"",$F$4="R=3"),VLOOKUP($B39,'Non-prismatic'!$B$2:$U$274,6,FALSE)*VLOOKUP($F$4,Sheet1!$B$8:$N$10,2,FALSE),""))) ->  | E39: =IF(AND($B39<>"",$F$4="Capacity (Non-OSHPD)"),VLOOKUP($B39,'Non-prismatic'!$B$2:$U$274,7,FALSE)*VLOOKUP($F$4,Sheet1!$B$8:$N$10,3,FALSE),IF(AND($B39<>"",$F$4="Capacity (OSHPD)"),VLOOKUP($B39,'Non-prismatic'!$B$2:$U$274,7,FALSE)*VLOOKUP($F$4,Sheet1!$B$8:$N$10,3,FALSE),IF(AND($B39<>"",$F$4="R=3"),VLOOKUP($B39,'Non-prismatic'!$B$2:$U$274,7,FALSE)*VLOOKUP($F$4,Sheet1!$B$8:$N$10,3,FALSE),""))) ->  | F39: =IF(AND($B39<>"",$F$4="Capacity (Non-OSHPD)"),VLOOKUP($B39,'Non-prismatic'!$B$2:$U$274,8,FALSE)*VLOOKUP($F$4,Sheet1!$B$8:$N$10,4,FALSE),IF(AND($B39<>"",$F$4="Capacity (OSHPD)"),VLOOKUP($B39,'Non-prismatic'!$B$2:$U$274,8,FALSE)*VLOOKUP($F$4,Sheet1!$B$8:$N$10,4,FALSE),IF(AND($B39<>"",$F$4="R=3"),VLOOKUP($B39,'Non-prismatic'!$B$2:$U$274,8,FALSE)*VLOOKUP($F$4,Sheet1!$B$8:$N$10,4,FALSE),""))) ->  | G39: =IF(AND($B39<>"",$F$4="Capacity (Non-OSHPD)"),VLOOKUP($B39,'Non-prismatic'!$B$2:$U$274,9,FALSE)*VLOOKUP($F$4,Sheet1!$B$8:$N$10,5,FALSE),IF(AND($B39<>"",$F$4="Capacity (OSHPD)"),VLOOKUP($B39,'Non-prismatic'!$B$2:$U$274,9,FALSE)*VLOOKUP($F$4,Sheet1!$B$8:$N$10,5,FALSE),IF(AND($B39<>"",$F$4="R=3"),VLOOKUP($B39,'Non-prismatic'!$B$2:$U$274,9,FALSE)*VLOOKUP($F$4,Sheet1!$B$8:$N$10,5,FALSE),""))) ->  | H39: =IF(AND($B39<>"",$F$4="Capacity (Non-OSHPD)"),VLOOKUP($B39,'Non-prismatic'!$B$2:$U$274,10,FALSE)*VLOOKUP($F$4,Sheet1!$B$8:$N$10,6,FALSE),IF(AND($B39<>"",$F$4="Capacity (OSHPD)"),VLOOKUP($B39,'Non-prismatic'!$B$2:$U$274,10,FALSE)*VLOOKUP($F$4,Sheet1!$B$8:$N$10,6,FALSE),IF(AND($B39<>"",$F$4="R=3"),VLOOKUP($B39,'Non-prismatic'!$B$2:$U$274,10,FALSE)*VLOOKUP($F$4,Sheet1!$B$8:$N$10,6,FALSE),""))) ->  | I39: =IF(AND($B39<>"",$F$4="Capacity (Non-OSHPD)"),VLOOKUP($B39,'Non-prismatic'!$B$2:$U$274,12,FALSE)*VLOOKUP($F$4,Sheet1!$B$8:$N$10,7,FALSE),IF(AND($B39<>"",$F$4="Capacity (OSHPD)"),2*3*VLOOKUP($B39,'Non-prismatic'!$B$2:$U$274,9,FALSE)/VLOOKUP($B39,'Non-prismatic'!$B$2:$U$274,3,FALSE),IF(AND($B39<>"",$F$4="R=3"),VLOOKUP($B39,'Non-prismatic'!$B$2:$U$274,12,FALSE)*VLOOKUP($F$4,Sheet1!$B$8:$N$10,7,FALSE),""))) ->  | J39: =IF(AND($B39<>"",$F$4="Capacity (Non-OSHPD)"),VLOOKUP($B39,'Non-prismatic'!$B$2:$U$274,13,FALSE)*VLOOKUP($F$4,Sheet1!$B$8:$N$10,8,FALSE),IF(AND($B39<>"",$F$4="Capacity (OSHPD)"),VLOOKUP($B39,'Non-prismatic'!$B$2:$U$274,13,FALSE)*VLOOKUP($F$4,Sheet1!$B$8:$N$10,8,FALSE),IF(AND($B39<>"",$F$4="R=3"),VLOOKUP($B39,'Non-prismatic'!$B$2:$U$274,13,FALSE)*VLOOKUP($F$4,Sheet1!$B$8:$N$10,8,FALSE),""))) ->  | K39: =IF(AND($B39<>"",$F$4="Capacity (Non-OSHPD)"),VLOOKUP($B39,'Non-prismatic'!$B$2:$U$274,14,FALSE)*VLOOKUP($F$4,Sheet1!$B$8:$N$10,9,FALSE),IF(AND($B39<>"",$F$4="Capacity (OSHPD)"),VLOOKUP($B39,'Non-prismatic'!$B$2:$U$274,14,FALSE)*VLOOKUP($F$4,Sheet1!$B$8:$N$10,9,FALSE),IF(AND($B39<>"",$F$4="R=3"),VLOOKUP($B39,'Non-prismatic'!$B$2:$U$274,14,FALSE)*VLOOKUP($F$4,Sheet1!$B$8:$N$10,9,FALSE),""))) ->  | L39: =IF(AND($B39<>"",$F$4="Capacity (Non-OSHPD)"),VLOOKUP($B39,'Non-prismatic'!$B$2:$U$274,15,FALSE)*VLOOKUP($F$4,Sheet1!$B$8:$N$10,10,FALSE),IF(AND($B39<>"",$F$4="Capacity (OSHPD)"),VLOOKUP($B39,'Non-prismatic'!$B$2:$U$274,15,FALSE)*VLOOKUP($F$4,Sheet1!$B$8:$N$10,10,FALSE),IF(AND($B39<>"",$F$4="R=3"),VLOOKUP($B39,'Non-prismatic'!$B$2:$U$274,15,FALSE)*VLOOKUP($F$4,Sheet1!$B$8:$N$10,10,FALSE),""))) ->  | M39: =IF(AND($B39<>"",$F$4="Capacity (Non-OSHPD)"),VLOOKUP($B39,'Non-prismatic'!$B$2:$U$274,16,FALSE)*VLOOKUP($F$4,Sheet1!$B$8:$N$10,11,FALSE),IF(AND($B39<>"",$F$4="Capacity (OSHPD)"),1.15*2*3*VLOOKUP($B39,'Non-prismatic'!$B$2:$U$274,9,FALSE)/VLOOKUP($B39,'Non-prismatic'!$B$2:$U$274,3,FALSE),IF(AND($B39<>"",$F$4="R=3"),VLOOKUP($B39,'Non-prismatic'!$B$2:$U$274,16,FALSE)*VLOOKUP($F$4,Sheet1!$B$8:$N$10,11,FALSE),""))) ->  | N39: =IF(AND($B39<>"",$F$4="Capacity (Non-OSHPD)"),VLOOKUP($B39,'Non-prismatic'!$B$2:$U$274,17,FALSE)*VLOOKUP($F$4,Sheet1!$B$8:$N$10,12,FALSE),IF(AND($B39<>"",$F$4="Capacity (OSHPD)"),VLOOKUP($B39,'Non-prismatic'!$B$2:$U$274,17,FALSE)*VLOOKUP($F$4,Sheet1!$B$8:$N$10,12,FALSE),IF(AND($B39<>"",$F$4="R=3"),VLOOKUP($B39,'Non-prismatic'!$B$2:$U$274,17,FALSE)*VLOOKUP($F$4,Sheet1!$B$8:$N$10,12,FALSE),""))) ->  | O39: =IF(AND(B39<>"",$F$4="Capacity (Non-OSHPD)"),VLOOKUP($B39,'Non-prismatic'!$B$2:$U$274,18,FALSE),IF(AND(B39<>"",OR($F$4="Capacity (OSHPD)",$F$4="R=3")),VLOOKUP($B39,'Non-prismatic'!$B$2:$U$274,19,FALSE),"")) ->  | P39: =IF(B39<>"",VLOOKUP($B39,'Non-prismatic'!$B$2:$V$274,21,FALSE),"") ->  | Q39: =IF(B39<>"",VLOOKUP($B39,'Non-prismatic'!$B$2:$U$274,3,FALSE),"") -> 
C40: =IF(B40<>"",VLOOKUP($B40,'Non-prismatic'!$B$2:$U$274,4,FALSE),"") ->  | D40: =IF(AND($B40<>"",$F$4="Capacity (Non-OSHPD)"),VLOOKUP($B40,'Non-prismatic'!$B$2:$U$274,6,FALSE)*VLOOKUP($F$4,Sheet1!$B$8:$N$10,2,FALSE),IF(AND($B40<>"",$F$4="Capacity (OSHPD)"),VLOOKUP($B40,'Non-prismatic'!$B$2:$U$274,6,FALSE)*VLOOKUP($F$4,Sheet1!$B$8:$N$10,2,FALSE),IF(AND($B40<>"",$F$4="R=3"),VLOOKUP($B40,'Non-prismatic'!$B$2:$U$274,6,FALSE)*VLOOKUP($F$4,Sheet1!$B$8:$N$10,2,FALSE),""))) ->  | E40: =IF(AND($B40<>"",$F$4="Capacity (Non-OSHPD)"),VLOOKUP($B40,'Non-prismatic'!$B$2:$U$274,7,FALSE)*VLOOKUP($F$4,Sheet1!$B$8:$N$10,3,FALSE),IF(AND($B40<>"",$F$4="Capacity (OSHPD)"),VLOOKUP($B40,'Non-prismatic'!$B$2:$U$274,7,FALSE)*VLOOKUP($F$4,Sheet1!$B$8:$N$10,3,FALSE),IF(AND($B40<>"",$F$4="R=3"),VLOOKUP($B40,'Non-prismatic'!$B$2:$U$274,7,FALSE)*VLOOKUP($F$4,Sheet1!$B$8:$N$10,3,FALSE),""))) ->  | F40: =IF(AND($B40<>"",$F$4="Capacity (Non-OSHPD)"),VLOOKUP($B40,'Non-prismatic'!$B$2:$U$274,8,FALSE)*VLOOKUP($F$4,Sheet1!$B$8:$N$10,4,FALSE),IF(AND($B40<>"",$F$4="Capacity (OSHPD)"),VLOOKUP($B40,'Non-prismatic'!$B$2:$U$274,8,FALSE)*VLOOKUP($F$4,Sheet1!$B$8:$N$10,4,FALSE),IF(AND($B40<>"",$F$4="R=3"),VLOOKUP($B40,'Non-prismatic'!$B$2:$U$274,8,FALSE)*VLOOKUP($F$4,Sheet1!$B$8:$N$10,4,FALSE),""))) ->  | G40: =IF(AND($B40<>"",$F$4="Capacity (Non-OSHPD)"),VLOOKUP($B40,'Non-prismatic'!$B$2:$U$274,9,FALSE)*VLOOKUP($F$4,Sheet1!$B$8:$N$10,5,FALSE),IF(AND($B40<>"",$F$4="Capacity (OSHPD)"),VLOOKUP($B40,'Non-prismatic'!$B$2:$U$274,9,FALSE)*VLOOKUP($F$4,Sheet1!$B$8:$N$10,5,FALSE),IF(AND($B40<>"",$F$4="R=3"),VLOOKUP($B40,'Non-prismatic'!$B$2:$U$274,9,FALSE)*VLOOKUP($F$4,Sheet1!$B$8:$N$10,5,FALSE),""))) ->  | H40: =IF(AND($B40<>"",$F$4="Capacity (Non-OSHPD)"),VLOOKUP($B40,'Non-prismatic'!$B$2:$U$274,10,FALSE)*VLOOKUP($F$4,Sheet1!$B$8:$N$10,6,FALSE),IF(AND($B40<>"",$F$4="Capacity (OSHPD)"),VLOOKUP($B40,'Non-prismatic'!$B$2:$U$274,10,FALSE)*VLOOKUP($F$4,Sheet1!$B$8:$N$10,6,FALSE),IF(AND($B40<>"",$F$4="R=3"),VLOOKUP($B40,'Non-prismatic'!$B$2:$U$274,10,FALSE)*VLOOKUP($F$4,Sheet1!$B$8:$N$10,6,FALSE),""))) ->  | I40: =IF(AND($B40<>"",$F$4="Capacity (Non-OSHPD)"),VLOOKUP($B40,'Non-prismatic'!$B$2:$U$274,12,FALSE)*VLOOKUP($F$4,Sheet1!$B$8:$N$10,7,FALSE),IF(AND($B40<>"",$F$4="Capacity (OSHPD)"),2*3*VLOOKUP($B40,'Non-prismatic'!$B$2:$U$274,9,FALSE)/VLOOKUP($B40,'Non-prismatic'!$B$2:$U$274,3,FALSE),IF(AND($B40<>"",$F$4="R=3"),VLOOKUP($B40,'Non-prismatic'!$B$2:$U$274,12,FALSE)*VLOOKUP($F$4,Sheet1!$B$8:$N$10,7,FALSE),""))) ->  | J40: =IF(AND($B40<>"",$F$4="Capacity (Non-OSHPD)"),VLOOKUP($B40,'Non-prismatic'!$B$2:$U$274,13,FALSE)*VLOOKUP($F$4,Sheet1!$B$8:$N$10,8,FALSE),IF(AND($B40<>"",$F$4="Capacity (OSHPD)"),VLOOKUP($B40,'Non-prismatic'!$B$2:$U$274,13,FALSE)*VLOOKUP($F$4,Sheet1!$B$8:$N$10,8,FALSE),IF(AND($B40<>"",$F$4="R=3"),VLOOKUP($B40,'Non-prismatic'!$B$2:$U$274,13,FALSE)*VLOOKUP($F$4,Sheet1!$B$8:$N$10,8,FALSE),""))) ->  | K40: =IF(AND($B40<>"",$F$4="Capacity (Non-OSHPD)"),VLOOKUP($B40,'Non-prismatic'!$B$2:$U$274,14,FALSE)*VLOOKUP($F$4,Sheet1!$B$8:$N$10,9,FALSE),IF(AND($B40<>"",$F$4="Capacity (OSHPD)"),VLOOKUP($B40,'Non-prismatic'!$B$2:$U$274,14,FALSE)*VLOOKUP($F$4,Sheet1!$B$8:$N$10,9,FALSE),IF(AND($B40<>"",$F$4="R=3"),VLOOKUP($B40,'Non-prismatic'!$B$2:$U$274,14,FALSE)*VLOOKUP($F$4,Sheet1!$B$8:$N$10,9,FALSE),""))) ->  | L40: =IF(AND($B40<>"",$F$4="Capacity (Non-OSHPD)"),VLOOKUP($B40,'Non-prismatic'!$B$2:$U$274,15,FALSE)*VLOOKUP($F$4,Sheet1!$B$8:$N$10,10,FALSE),IF(AND($B40<>"",$F$4="Capacity (OSHPD)"),VLOOKUP($B40,'Non-prismatic'!$B$2:$U$274,15,FALSE)*VLOOKUP($F$4,Sheet1!$B$8:$N$10,10,FALSE),IF(AND($B40<>"",$F$4="R=3"),VLOOKUP($B40,'Non-prismatic'!$B$2:$U$274,15,FALSE)*VLOOKUP($F$4,Sheet1!$B$8:$N$10,10,FALSE),""))) ->  | M40: =IF(AND($B40<>"",$F$4="Capacity (Non-OSHPD)"),VLOOKUP($B40,'Non-prismatic'!$B$2:$U$274,16,FALSE)*VLOOKUP($F$4,Sheet1!$B$8:$N$10,11,FALSE),IF(AND($B40<>"",$F$4="Capacity (OSHPD)"),1.15*2*3*VLOOKUP($B40,'Non-prismatic'!$B$2:$U$274,9,FALSE)/VLOOKUP($B40,'Non-prismatic'!$B$2:$U$274,3,FALSE),IF(AND($B40<>"",$F$4="R=3"),VLOOKUP($B40,'Non-prismatic'!$B$2:$U$274,16,FALSE)*VLOOKUP($F$4,Sheet1!$B$8:$N$10,11,FALSE),""))) ->  | N40: =IF(AND($B40<>"",$F$4="Capacity (Non-OSHPD)"),VLOOKUP($B40,'Non-prismatic'!$B$2:$U$274,17,FALSE)*VLOOKUP($F$4,Sheet1!$B$8:$N$10,12,FALSE),IF(AND($B40<>"",$F$4="Capacity (OSHPD)"),VLOOKUP($B40,'Non-prismatic'!$B$2:$U$274,17,FALSE)*VLOOKUP($F$4,Sheet1!$B$8:$N$10,12,FALSE),IF(AND($B40<>"",$F$4="R=3"),VLOOKUP($B40,'Non-prismatic'!$B$2:$U$274,17,FALSE)*VLOOKUP($F$4,Sheet1!$B$8:$N$10,12,FALSE),""))) ->  | O40: =IF(AND(B40<>"",$F$4="Capacity (Non-OSHPD)"),VLOOKUP($B40,'Non-prismatic'!$B$2:$U$274,18,FALSE),IF(AND(B40<>"",OR($F$4="Capacity (OSHPD)",$F$4="R=3")),VLOOKUP($B40,'Non-prismatic'!$B$2:$U$274,19,FALSE),"")) ->  | P40: =IF(B40<>"",VLOOKUP($B40,'Non-prismatic'!$B$2:$V$274,21,FALSE),"") ->  | Q40: =IF(B40<>"",VLOOKUP($B40,'Non-prismatic'!$B$2:$U$274,3,FALSE),"") -> 
C41: =IF(B41<>"",VLOOKUP($B41,'Non-prismatic'!$B$2:$U$274,4,FALSE),"") ->  | D41: =IF(AND($B41<>"",$F$4="Capacity (Non-OSHPD)"),VLOOKUP($B41,'Non-prismatic'!$B$2:$U$274,6,FALSE)*VLOOKUP($F$4,Sheet1!$B$8:$N$10,2,FALSE),IF(AND($B41<>"",$F$4="Capacity (OSHPD)"),VLOOKUP($B41,'Non-prismatic'!$B$2:$U$274,6,FALSE)*VLOOKUP($F$4,Sheet1!$B$8:$N$10,2,FALSE),IF(AND($B41<>"",$F$4="R=3"),VLOOKUP($B41,'Non-prismatic'!$B$2:$U$274,6,FALSE)*VLOOKUP($F$4,Sheet1!$B$8:$N$10,2,FALSE),""))) ->  | E41: =IF(AND($B41<>"",$F$4="Capacity (Non-OSHPD)"),VLOOKUP($B41,'Non-prismatic'!$B$2:$U$274,7,FALSE)*VLOOKUP($F$4,Sheet1!$B$8:$N$10,3,FALSE),IF(AND($B41<>"",$F$4="Capacity (OSHPD)"),VLOOKUP($B41,'Non-prismatic'!$B$2:$U$274,7,FALSE)*VLOOKUP($F$4,Sheet1!$B$8:$N$10,3,FALSE),IF(AND($B41<>"",$F$4="R=3"),VLOOKUP($B41,'Non-prismatic'!$B$2:$U$274,7,FALSE)*VLOOKUP($F$4,Sheet1!$B$8:$N$10,3,FALSE),""))) ->  | F41: =IF(AND($B41<>"",$F$4="Capacity (Non-OSHPD)"),VLOOKUP($B41,'Non-prismatic'!$B$2:$U$274,8,FALSE)*VLOOKUP($F$4,Sheet1!$B$8:$N$10,4,FALSE),IF(AND($B41<>"",$F$4="Capacity (OSHPD)"),VLOOKUP($B41,'Non-prismatic'!$B$2:$U$274,8,FALSE)*VLOOKUP($F$4,Sheet1!$B$8:$N$10,4,FALSE),IF(AND($B41<>"",$F$4="R=3"),VLOOKUP($B41,'Non-prismatic'!$B$2:$U$274,8,FALSE)*VLOOKUP($F$4,Sheet1!$B$8:$N$10,4,FALSE),""))) ->  | G41: =IF(AND($B41<>"",$F$4="Capacity (Non-OSHPD)"),VLOOKUP($B41,'Non-prismatic'!$B$2:$U$274,9,FALSE)*VLOOKUP($F$4,Sheet1!$B$8:$N$10,5,FALSE),IF(AND($B41<>"",$F$4="Capacity (OSHPD)"),VLOOKUP($B41,'Non-prismatic'!$B$2:$U$274,9,FALSE)*VLOOKUP($F$4,Sheet1!$B$8:$N$10,5,FALSE),IF(AND($B41<>"",$F$4="R=3"),VLOOKUP($B41,'Non-prismatic'!$B$2:$U$274,9,FALSE)*VLOOKUP($F$4,Sheet1!$B$8:$N$10,5,FALSE),""))) ->  | H41: =IF(AND($B41<>"",$F$4="Capacity (Non-OSHPD)"),VLOOKUP($B41,'Non-prismatic'!$B$2:$U$274,10,FALSE)*VLOOKUP($F$4,Sheet1!$B$8:$N$10,6,FALSE),IF(AND($B41<>"",$F$4="Capacity (OSHPD)"),VLOOKUP($B41,'Non-prismatic'!$B$2:$U$274,10,FALSE)*VLOOKUP($F$4,Sheet1!$B$8:$N$10,6,FALSE),IF(AND($B41<>"",$F$4="R=3"),VLOOKUP($B41,'Non-prismatic'!$B$2:$U$274,10,FALSE)*VLOOKUP($F$4,Sheet1!$B$8:$N$10,6,FALSE),""))) ->  | I41: =IF(AND($B41<>"",$F$4="Capacity (Non-OSHPD)"),VLOOKUP($B41,'Non-prismatic'!$B$2:$U$274,12,FALSE)*VLOOKUP($F$4,Sheet1!$B$8:$N$10,7,FALSE),IF(AND($B41<>"",$F$4="Capacity (OSHPD)"),2*3*VLOOKUP($B41,'Non-prismatic'!$B$2:$U$274,9,FALSE)/VLOOKUP($B41,'Non-prismatic'!$B$2:$U$274,3,FALSE),IF(AND($B41<>"",$F$4="R=3"),VLOOKUP($B41,'Non-prismatic'!$B$2:$U$274,12,FALSE)*VLOOKUP($F$4,Sheet1!$B$8:$N$10,7,FALSE),""))) ->  | J41: =IF(AND($B41<>"",$F$4="Capacity (Non-OSHPD)"),VLOOKUP($B41,'Non-prismatic'!$B$2:$U$274,13,FALSE)*VLOOKUP($F$4,Sheet1!$B$8:$N$10,8,FALSE),IF(AND($B41<>"",$F$4="Capacity (OSHPD)"),VLOOKUP($B41,'Non-prismatic'!$B$2:$U$274,13,FALSE)*VLOOKUP($F$4,Sheet1!$B$8:$N$10,8,FALSE),IF(AND($B41<>"",$F$4="R=3"),VLOOKUP($B41,'Non-prismatic'!$B$2:$U$274,13,FALSE)*VLOOKUP($F$4,Sheet1!$B$8:$N$10,8,FALSE),""))) ->  | K41: =IF(AND($B41<>"",$F$4="Capacity (Non-OSHPD)"),VLOOKUP($B41,'Non-prismatic'!$B$2:$U$274,14,FALSE)*VLOOKUP($F$4,Sheet1!$B$8:$N$10,9,FALSE),IF(AND($B41<>"",$F$4="Capacity (OSHPD)"),VLOOKUP($B41,'Non-prismatic'!$B$2:$U$274,14,FALSE)*VLOOKUP($F$4,Sheet1!$B$8:$N$10,9,FALSE),IF(AND($B41<>"",$F$4="R=3"),VLOOKUP($B41,'Non-prismatic'!$B$2:$U$274,14,FALSE)*VLOOKUP($F$4,Sheet1!$B$8:$N$10,9,FALSE),""))) ->  | L41: =IF(AND($B41<>"",$F$4="Capacity (Non-OSHPD)"),VLOOKUP($B41,'Non-prismatic'!$B$2:$U$274,15,FALSE)*VLOOKUP($F$4,Sheet1!$B$8:$N$10,10,FALSE),IF(AND($B41<>"",$F$4="Capacity (OSHPD)"),VLOOKUP($B41,'Non-prismatic'!$B$2:$U$274,15,FALSE)*VLOOKUP($F$4,Sheet1!$B$8:$N$10,10,FALSE),IF(AND($B41<>"",$F$4="R=3"),VLOOKUP($B41,'Non-prismatic'!$B$2:$U$274,15,FALSE)*VLOOKUP($F$4,Sheet1!$B$8:$N$10,10,FALSE),""))) ->  | M41: =IF(AND($B41<>"",$F$4="Capacity (Non-OSHPD)"),VLOOKUP($B41,'Non-prismatic'!$B$2:$U$274,16,FALSE)*VLOOKUP($F$4,Sheet1!$B$8:$N$10,11,FALSE),IF(AND($B41<>"",$F$4="Capacity (OSHPD)"),1.15*2*3*VLOOKUP($B41,'Non-prismatic'!$B$2:$U$274,9,FALSE)/VLOOKUP($B41,'Non-prismatic'!$B$2:$U$274,3,FALSE),IF(AND($B41<>"",$F$4="R=3"),VLOOKUP($B41,'Non-prismatic'!$B$2:$U$274,16,FALSE)*VLOOKUP($F$4,Sheet1!$B$8:$N$10,11,FALSE),""))) ->  | N41: =IF(AND($B41<>"",$F$4="Capacity (Non-OSHPD)"),VLOOKUP($B41,'Non-prismatic'!$B$2:$U$274,17,FALSE)*VLOOKUP($F$4,Sheet1!$B$8:$N$10,12,FALSE),IF(AND($B41<>"",$F$4="Capacity (OSHPD)"),VLOOKUP($B41,'Non-prismatic'!$B$2:$U$274,17,FALSE)*VLOOKUP($F$4,Sheet1!$B$8:$N$10,12,FALSE),IF(AND($B41<>"",$F$4="R=3"),VLOOKUP($B41,'Non-prismatic'!$B$2:$U$274,17,FALSE)*VLOOKUP($F$4,Sheet1!$B$8:$N$10,12,FALSE),""))) ->  | O41: =IF(AND(B41<>"",$F$4="Capacity (Non-OSHPD)"),VLOOKUP($B41,'Non-prismatic'!$B$2:$U$274,18,FALSE),IF(AND(B41<>"",OR($F$4="Capacity (OSHPD)",$F$4="R=3")),VLOOKUP($B41,'Non-prismatic'!$B$2:$U$274,19,FALSE),"")) ->  | P41: =IF(B41<>"",VLOOKUP($B41,'Non-prismatic'!$B$2:$V$274,21,FALSE),"") ->  | Q41: =IF(B41<>"",VLOOKUP($B41,'Non-prismatic'!$B$2:$U$274,3,FALSE),"") -> 
C42: =IF(B42<>"",VLOOKUP($B42,'Non-prismatic'!$B$2:$U$274,4,FALSE),"") ->  | D42: =IF(AND($B42<>"",$F$4="Capacity (Non-OSHPD)"),VLOOKUP($B42,'Non-prismatic'!$B$2:$U$274,6,FALSE)*VLOOKUP($F$4,Sheet1!$B$8:$N$10,2,FALSE),IF(AND($B42<>"",$F$4="Capacity (OSHPD)"),VLOOKUP($B42,'Non-prismatic'!$B$2:$U$274,6,FALSE)*VLOOKUP($F$4,Sheet1!$B$8:$N$10,2,FALSE),IF(AND($B42<>"",$F$4="R=3"),VLOOKUP($B42,'Non-prismatic'!$B$2:$U$274,6,FALSE)*VLOOKUP($F$4,Sheet1!$B$8:$N$10,2,FALSE),""))) ->  | E42: =IF(AND($B42<>"",$F$4="Capacity (Non-OSHPD)"),VLOOKUP($B42,'Non-prismatic'!$B$2:$U$274,7,FALSE)*VLOOKUP($F$4,Sheet1!$B$8:$N$10,3,FALSE),IF(AND($B42<>"",$F$4="Capacity (OSHPD)"),VLOOKUP($B42,'Non-prismatic'!$B$2:$U$274,7,FALSE)*VLOOKUP($F$4,Sheet1!$B$8:$N$10,3,FALSE),IF(AND($B42<>"",$F$4="R=3"),VLOOKUP($B42,'Non-prismatic'!$B$2:$U$274,7,FALSE)*VLOOKUP($F$4,Sheet1!$B$8:$N$10,3,FALSE),""))) ->  | F42: =IF(AND($B42<>"",$F$4="Capacity (Non-OSHPD)"),VLOOKUP($B42,'Non-prismatic'!$B$2:$U$274,8,FALSE)*VLOOKUP($F$4,Sheet1!$B$8:$N$10,4,FALSE),IF(AND($B42<>"",$F$4="Capacity (OSHPD)"),VLOOKUP($B42,'Non-prismatic'!$B$2:$U$274,8,FALSE)*VLOOKUP($F$4,Sheet1!$B$8:$N$10,4,FALSE),IF(AND($B42<>"",$F$4="R=3"),VLOOKUP($B42,'Non-prismatic'!$B$2:$U$274,8,FALSE)*VLOOKUP($F$4,Sheet1!$B$8:$N$10,4,FALSE),""))) ->  | G42: =IF(AND($B42<>"",$F$4="Capacity (Non-OSHPD)"),VLOOKUP($B42,'Non-prismatic'!$B$2:$U$274,9,FALSE)*VLOOKUP($F$4,Sheet1!$B$8:$N$10,5,FALSE),IF(AND($B42<>"",$F$4="Capacity (OSHPD)"),VLOOKUP($B42,'Non-prismatic'!$B$2:$U$274,9,FALSE)*VLOOKUP($F$4,Sheet1!$B$8:$N$10,5,FALSE),IF(AND($B42<>"",$F$4="R=3"),VLOOKUP($B42,'Non-prismatic'!$B$2:$U$274,9,FALSE)*VLOOKUP($F$4,Sheet1!$B$8:$N$10,5,FALSE),""))) ->  | H42: =IF(AND($B42<>"",$F$4="Capacity (Non-OSHPD)"),VLOOKUP($B42,'Non-prismatic'!$B$2:$U$274,10,FALSE)*VLOOKUP($F$4,Sheet1!$B$8:$N$10,6,FALSE),IF(AND($B42<>"",$F$4="Capacity (OSHPD)"),VLOOKUP($B42,'Non-prismatic'!$B$2:$U$274,10,FALSE)*VLOOKUP($F$4,Sheet1!$B$8:$N$10,6,FALSE),IF(AND($B42<>"",$F$4="R=3"),VLOOKUP($B42,'Non-prismatic'!$B$2:$U$274,10,FALSE)*VLOOKUP($F$4,Sheet1!$B$8:$N$10,6,FALSE),""))) ->  | I42: =IF(AND($B42<>"",$F$4="Capacity (Non-OSHPD)"),VLOOKUP($B42,'Non-prismatic'!$B$2:$U$274,12,FALSE)*VLOOKUP($F$4,Sheet1!$B$8:$N$10,7,FALSE),IF(AND($B42<>"",$F$4="Capacity (OSHPD)"),2*3*VLOOKUP($B42,'Non-prismatic'!$B$2:$U$274,9,FALSE)/VLOOKUP($B42,'Non-prismatic'!$B$2:$U$274,3,FALSE),IF(AND($B42<>"",$F$4="R=3"),VLOOKUP($B42,'Non-prismatic'!$B$2:$U$274,12,FALSE)*VLOOKUP($F$4,Sheet1!$B$8:$N$10,7,FALSE),""))) ->  | J42: =IF(AND($B42<>"",$F$4="Capacity (Non-OSHPD)"),VLOOKUP($B42,'Non-prismatic'!$B$2:$U$274,13,FALSE)*VLOOKUP($F$4,Sheet1!$B$8:$N$10,8,FALSE),IF(AND($B42<>"",$F$4="Capacity (OSHPD)"),VLOOKUP($B42,'Non-prismatic'!$B$2:$U$274,13,FALSE)*VLOOKUP($F$4,Sheet1!$B$8:$N$10,8,FALSE),IF(AND($B42<>"",$F$4="R=3"),VLOOKUP($B42,'Non-prismatic'!$B$2:$U$274,13,FALSE)*VLOOKUP($F$4,Sheet1!$B$8:$N$10,8,FALSE),""))) ->  | K42: =IF(AND($B42<>"",$F$4="Capacity (Non-OSHPD)"),VLOOKUP($B42,'Non-prismatic'!$B$2:$U$274,14,FALSE)*VLOOKUP($F$4,Sheet1!$B$8:$N$10,9,FALSE),IF(AND($B42<>"",$F$4="Capacity (OSHPD)"),VLOOKUP($B42,'Non-prismatic'!$B$2:$U$274,14,FALSE)*VLOOKUP($F$4,Sheet1!$B$8:$N$10,9,FALSE),IF(AND($B42<>"",$F$4="R=3"),VLOOKUP($B42,'Non-prismatic'!$B$2:$U$274,14,FALSE)*VLOOKUP($F$4,Sheet1!$B$8:$N$10,9,FALSE),""))) ->  | L42: =IF(AND($B42<>"",$F$4="Capacity (Non-OSHPD)"),VLOOKUP($B42,'Non-prismatic'!$B$2:$U$274,15,FALSE)*VLOOKUP($F$4,Sheet1!$B$8:$N$10,10,FALSE),IF(AND($B42<>"",$F$4="Capacity (OSHPD)"),VLOOKUP($B42,'Non-prismatic'!$B$2:$U$274,15,FALSE)*VLOOKUP($F$4,Sheet1!$B$8:$N$10,10,FALSE),IF(AND($B42<>"",$F$4="R=3"),VLOOKUP($B42,'Non-prismatic'!$B$2:$U$274,15,FALSE)*VLOOKUP($F$4,Sheet1!$B$8:$N$10,10,FALSE),""))) ->  | M42: =IF(AND($B42<>"",$F$4="Capacity (Non-OSHPD)"),VLOOKUP($B42,'Non-prismatic'!$B$2:$U$274,16,FALSE)*VLOOKUP($F$4,Sheet1!$B$8:$N$10,11,FALSE),IF(AND($B42<>"",$F$4="Capacity (OSHPD)"),1.15*2*3*VLOOKUP($B42,'Non-prismatic'!$B$2:$U$274,9,FALSE)/VLOOKUP($B42,'Non-prismatic'!$B$2:$U$274,3,FALSE),IF(AND($B42<>"",$F$4="R=3"),VLOOKUP($B42,'Non-prismatic'!$B$2:$U$274,16,FALSE)*VLOOKUP($F$4,Sheet1!$B$8:$N$10,11,FALSE),""))) ->  | N42: =IF(AND($B42<>"",$F$4="Capacity (Non-OSHPD)"),VLOOKUP($B42,'Non-prismatic'!$B$2:$U$274,17,FALSE)*VLOOKUP($F$4,Sheet1!$B$8:$N$10,12,FALSE),IF(AND($B42<>"",$F$4="Capacity (OSHPD)"),VLOOKUP($B42,'Non-prismatic'!$B$2:$U$274,17,FALSE)*VLOOKUP($F$4,Sheet1!$B$8:$N$10,12,FALSE),IF(AND($B42<>"",$F$4="R=3"),VLOOKUP($B42,'Non-prismatic'!$B$2:$U$274,17,FALSE)*VLOOKUP($F$4,Sheet1!$B$8:$N$10,12,FALSE),""))) ->  | O42: =IF(AND(B42<>"",$F$4="Capacity (Non-OSHPD)"),VLOOKUP($B42,'Non-prismatic'!$B$2:$U$274,18,FALSE),IF(AND(B42<>"",OR($F$4="Capacity (OSHPD)",$F$4="R=3")),VLOOKUP($B42,'Non-prismatic'!$B$2:$U$274,19,FALSE),"")) ->  | P42: =IF(B42<>"",VLOOKUP($B42,'Non-prismatic'!$B$2:$V$274,21,FALSE),"") ->  | Q42: =IF(B42<>"",VLOOKUP($B42,'Non-prismatic'!$B$2:$U$274,3,FALSE),"") -> 
C43: =IF(B43<>"",VLOOKUP($B43,'Non-prismatic'!$B$2:$U$274,4,FALSE),"") ->  | D43: =IF(AND($B43<>"",$F$4="Capacity (Non-OSHPD)"),VLOOKUP($B43,'Non-prismatic'!$B$2:$U$274,6,FALSE)*VLOOKUP($F$4,Sheet1!$B$8:$N$10,2,FALSE),IF(AND($B43<>"",$F$4="Capacity (OSHPD)"),VLOOKUP($B43,'Non-prismatic'!$B$2:$U$274,6,FALSE)*VLOOKUP($F$4,Sheet1!$B$8:$N$10,2,FALSE),IF(AND($B43<>"",$F$4="R=3"),VLOOKUP($B43,'Non-prismatic'!$B$2:$U$274,6,FALSE)*VLOOKUP($F$4,Sheet1!$B$8:$N$10,2,FALSE),""))) ->  | E43: =IF(AND($B43<>"",$F$4="Capacity (Non-OSHPD)"),VLOOKUP($B43,'Non-prismatic'!$B$2:$U$274,7,FALSE)*VLOOKUP($F$4,Sheet1!$B$8:$N$10,3,FALSE),IF(AND($B43<>"",$F$4="Capacity (OSHPD)"),VLOOKUP($B43,'Non-prismatic'!$B$2:$U$274,7,FALSE)*VLOOKUP($F$4,Sheet1!$B$8:$N$10,3,FALSE),IF(AND($B43<>"",$F$4="R=3"),VLOOKUP($B43,'Non-prismatic'!$B$2:$U$274,7,FALSE)*VLOOKUP($F$4,Sheet1!$B$8:$N$10,3,FALSE),""))) ->  | F43: =IF(AND($B43<>"",$F$4="Capacity (Non-OSHPD)"),VLOOKUP($B43,'Non-prismatic'!$B$2:$U$274,8,FALSE)*VLOOKUP($F$4,Sheet1!$B$8:$N$10,4,FALSE),IF(AND($B43<>"",$F$4="Capacity (OSHPD)"),VLOOKUP($B43,'Non-prismatic'!$B$2:$U$274,8,FALSE)*VLOOKUP($F$4,Sheet1!$B$8:$N$10,4,FALSE),IF(AND($B43<>"",$F$4="R=3"),VLOOKUP($B43,'Non-prismatic'!$B$2:$U$274,8,FALSE)*VLOOKUP($F$4,Sheet1!$B$8:$N$10,4,FALSE),""))) ->  | G43: =IF(AND($B43<>"",$F$4="Capacity (Non-OSHPD)"),VLOOKUP($B43,'Non-prismatic'!$B$2:$U$274,9,FALSE)*VLOOKUP($F$4,Sheet1!$B$8:$N$10,5,FALSE),IF(AND($B43<>"",$F$4="Capacity (OSHPD)"),VLOOKUP($B43,'Non-prismatic'!$B$2:$U$274,9,FALSE)*VLOOKUP($F$4,Sheet1!$B$8:$N$10,5,FALSE),IF(AND($B43<>"",$F$4="R=3"),VLOOKUP($B43,'Non-prismatic'!$B$2:$U$274,9,FALSE)*VLOOKUP($F$4,Sheet1!$B$8:$N$10,5,FALSE),""))) ->  | H43: =IF(AND($B43<>"",$F$4="Capacity (Non-OSHPD)"),VLOOKUP($B43,'Non-prismatic'!$B$2:$U$274,10,FALSE)*VLOOKUP($F$4,Sheet1!$B$8:$N$10,6,FALSE),IF(AND($B43<>"",$F$4="Capacity (OSHPD)"),VLOOKUP($B43,'Non-prismatic'!$B$2:$U$274,10,FALSE)*VLOOKUP($F$4,Sheet1!$B$8:$N$10,6,FALSE),IF(AND($B43<>"",$F$4="R=3"),VLOOKUP($B43,'Non-prismatic'!$B$2:$U$274,10,FALSE)*VLOOKUP($F$4,Sheet1!$B$8:$N$10,6,FALSE),""))) ->  | I43: =IF(AND($B43<>"",$F$4="Capacity (Non-OSHPD)"),VLOOKUP($B43,'Non-prismatic'!$B$2:$U$274,12,FALSE)*VLOOKUP($F$4,Sheet1!$B$8:$N$10,7,FALSE),IF(AND($B43<>"",$F$4="Capacity (OSHPD)"),2*3*VLOOKUP($B43,'Non-prismatic'!$B$2:$U$274,9,FALSE)/VLOOKUP($B43,'Non-prismatic'!$B$2:$U$274,3,FALSE),IF(AND($B43<>"",$F$4="R=3"),VLOOKUP($B43,'Non-prismatic'!$B$2:$U$274,12,FALSE)*VLOOKUP($F$4,Sheet1!$B$8:$N$10,7,FALSE),""))) ->  | J43: =IF(AND($B43<>"",$F$4="Capacity (Non-OSHPD)"),VLOOKUP($B43,'Non-prismatic'!$B$2:$U$274,13,FALSE)*VLOOKUP($F$4,Sheet1!$B$8:$N$10,8,FALSE),IF(AND($B43<>"",$F$4="Capacity (OSHPD)"),VLOOKUP($B43,'Non-prismatic'!$B$2:$U$274,13,FALSE)*VLOOKUP($F$4,Sheet1!$B$8:$N$10,8,FALSE),IF(AND($B43<>"",$F$4="R=3"),VLOOKUP($B43,'Non-prismatic'!$B$2:$U$274,13,FALSE)*VLOOKUP($F$4,Sheet1!$B$8:$N$10,8,FALSE),""))) ->  | K43: =IF(AND($B43<>"",$F$4="Capacity (Non-OSHPD)"),VLOOKUP($B43,'Non-prismatic'!$B$2:$U$274,14,FALSE)*VLOOKUP($F$4,Sheet1!$B$8:$N$10,9,FALSE),IF(AND($B43<>"",$F$4="Capacity (OSHPD)"),VLOOKUP($B43,'Non-prismatic'!$B$2:$U$274,14,FALSE)*VLOOKUP($F$4,Sheet1!$B$8:$N$10,9,FALSE),IF(AND($B43<>"",$F$4="R=3"),VLOOKUP($B43,'Non-prismatic'!$B$2:$U$274,14,FALSE)*VLOOKUP($F$4,Sheet1!$B$8:$N$10,9,FALSE),""))) ->  | L43: =IF(AND($B43<>"",$F$4="Capacity (Non-OSHPD)"),VLOOKUP($B43,'Non-prismatic'!$B$2:$U$274,15,FALSE)*VLOOKUP($F$4,Sheet1!$B$8:$N$10,10,FALSE),IF(AND($B43<>"",$F$4="Capacity (OSHPD)"),VLOOKUP($B43,'Non-prismatic'!$B$2:$U$274,15,FALSE)*VLOOKUP($F$4,Sheet1!$B$8:$N$10,10,FALSE),IF(AND($B43<>"",$F$4="R=3"),VLOOKUP($B43,'Non-prismatic'!$B$2:$U$274,15,FALSE)*VLOOKUP($F$4,Sheet1!$B$8:$N$10,10,FALSE),""))) ->  | M43: =IF(AND($B43<>"",$F$4="Capacity (Non-OSHPD)"),VLOOKUP($B43,'Non-prismatic'!$B$2:$U$274,16,FALSE)*VLOOKUP($F$4,Sheet1!$B$8:$N$10,11,FALSE),IF(AND($B43<>"",$F$4="Capacity (OSHPD)"),1.15*2*3*VLOOKUP($B43,'Non-prismatic'!$B$2:$U$274,9,FALSE)/VLOOKUP($B43,'Non-prismatic'!$B$2:$U$274,3,FALSE),IF(AND($B43<>"",$F$4="R=3"),VLOOKUP($B43,'Non-prismatic'!$B$2:$U$274,16,FALSE)*VLOOKUP($F$4,Sheet1!$B$8:$N$10,11,FALSE),""))) ->  | N43: =IF(AND($B43<>"",$F$4="Capacity (Non-OSHPD)"),VLOOKUP($B43,'Non-prismatic'!$B$2:$U$274,17,FALSE)*VLOOKUP($F$4,Sheet1!$B$8:$N$10,12,FALSE),IF(AND($B43<>"",$F$4="Capacity (OSHPD)"),VLOOKUP($B43,'Non-prismatic'!$B$2:$U$274,17,FALSE)*VLOOKUP($F$4,Sheet1!$B$8:$N$10,12,FALSE),IF(AND($B43<>"",$F$4="R=3"),VLOOKUP($B43,'Non-prismatic'!$B$2:$U$274,17,FALSE)*VLOOKUP($F$4,Sheet1!$B$8:$N$10,12,FALSE),""))) ->  | O43: =IF(AND(B43<>"",$F$4="Capacity (Non-OSHPD)"),VLOOKUP($B43,'Non-prismatic'!$B$2:$U$274,18,FALSE),IF(AND(B43<>"",OR($F$4="Capacity (OSHPD)",$F$4="R=3")),VLOOKUP($B43,'Non-prismatic'!$B$2:$U$274,19,FALSE),"")) ->  | P43: =IF(B43<>"",VLOOKUP($B43,'Non-prismatic'!$B$2:$V$274,21,FALSE),"") ->  | Q43: =IF(B43<>"",VLOOKUP($B43,'Non-prismatic'!$B$2:$U$274,3,FALSE),"") -> 
C44: =IF(B44<>"",VLOOKUP($B44,'Non-prismatic'!$B$2:$U$274,4,FALSE),"") ->  | D44: =IF(AND($B44<>"",$F$4="Capacity (Non-OSHPD)"),VLOOKUP($B44,'Non-prismatic'!$B$2:$U$274,6,FALSE)*VLOOKUP($F$4,Sheet1!$B$8:$N$10,2,FALSE),IF(AND($B44<>"",$F$4="Capacity (OSHPD)"),VLOOKUP($B44,'Non-prismatic'!$B$2:$U$274,6,FALSE)*VLOOKUP($F$4,Sheet1!$B$8:$N$10,2,FALSE),IF(AND($B44<>"",$F$4="R=3"),VLOOKUP($B44,'Non-prismatic'!$B$2:$U$274,6,FALSE)*VLOOKUP($F$4,Sheet1!$B$8:$N$10,2,FALSE),""))) ->  | E44: =IF(AND($B44<>"",$F$4="Capacity (Non-OSHPD)"),VLOOKUP($B44,'Non-prismatic'!$B$2:$U$274,7,FALSE)*VLOOKUP($F$4,Sheet1!$B$8:$N$10,3,FALSE),IF(AND($B44<>"",$F$4="Capacity (OSHPD)"),VLOOKUP($B44,'Non-prismatic'!$B$2:$U$274,7,FALSE)*VLOOKUP($F$4,Sheet1!$B$8:$N$10,3,FALSE),IF(AND($B44<>"",$F$4="R=3"),VLOOKUP($B44,'Non-prismatic'!$B$2:$U$274,7,FALSE)*VLOOKUP($F$4,Sheet1!$B$8:$N$10,3,FALSE),""))) ->  | F44: =IF(AND($B44<>"",$F$4="Capacity (Non-OSHPD)"),VLOOKUP($B44,'Non-prismatic'!$B$2:$U$274,8,FALSE)*VLOOKUP($F$4,Sheet1!$B$8:$N$10,4,FALSE),IF(AND($B44<>"",$F$4="Capacity (OSHPD)"),VLOOKUP($B44,'Non-prismatic'!$B$2:$U$274,8,FALSE)*VLOOKUP($F$4,Sheet1!$B$8:$N$10,4,FALSE),IF(AND($B44<>"",$F$4="R=3"),VLOOKUP($B44,'Non-prismatic'!$B$2:$U$274,8,FALSE)*VLOOKUP($F$4,Sheet1!$B$8:$N$10,4,FALSE),""))) ->  | G44: =IF(AND($B44<>"",$F$4="Capacity (Non-OSHPD)"),VLOOKUP($B44,'Non-prismatic'!$B$2:$U$274,9,FALSE)*VLOOKUP($F$4,Sheet1!$B$8:$N$10,5,FALSE),IF(AND($B44<>"",$F$4="Capacity (OSHPD)"),VLOOKUP($B44,'Non-prismatic'!$B$2:$U$274,9,FALSE)*VLOOKUP($F$4,Sheet1!$B$8:$N$10,5,FALSE),IF(AND($B44<>"",$F$4="R=3"),VLOOKUP($B44,'Non-prismatic'!$B$2:$U$274,9,FALSE)*VLOOKUP($F$4,Sheet1!$B$8:$N$10,5,FALSE),""))) ->  | H44: =IF(AND($B44<>"",$F$4="Capacity (Non-OSHPD)"),VLOOKUP($B44,'Non-prismatic'!$B$2:$U$274,10,FALSE)*VLOOKUP($F$4,Sheet1!$B$8:$N$10,6,FALSE),IF(AND($B44<>"",$F$4="Capacity (OSHPD)"),VLOOKUP($B44,'Non-prismatic'!$B$2:$U$274,10,FALSE)*VLOOKUP($F$4,Sheet1!$B$8:$N$10,6,FALSE),IF(AND($B44<>"",$F$4="R=3"),VLOOKUP($B44,'Non-prismatic'!$B$2:$U$274,10,FALSE)*VLOOKUP($F$4,Sheet1!$B$8:$N$10,6,FALSE),""))) ->  | I44: =IF(AND($B44<>"",$F$4="Capacity (Non-OSHPD)"),VLOOKUP($B44,'Non-prismatic'!$B$2:$U$274,12,FALSE)*VLOOKUP($F$4,Sheet1!$B$8:$N$10,7,FALSE),IF(AND($B44<>"",$F$4="Capacity (OSHPD)"),2*3*VLOOKUP($B44,'Non-prismatic'!$B$2:$U$274,9,FALSE)/VLOOKUP($B44,'Non-prismatic'!$B$2:$U$274,3,FALSE),IF(AND($B44<>"",$F$4="R=3"),VLOOKUP($B44,'Non-prismatic'!$B$2:$U$274,12,FALSE)*VLOOKUP($F$4,Sheet1!$B$8:$N$10,7,FALSE),""))) ->  | J44: =IF(AND($B44<>"",$F$4="Capacity (Non-OSHPD)"),VLOOKUP($B44,'Non-prismatic'!$B$2:$U$274,13,FALSE)*VLOOKUP($F$4,Sheet1!$B$8:$N$10,8,FALSE),IF(AND($B44<>"",$F$4="Capacity (OSHPD)"),VLOOKUP($B44,'Non-prismatic'!$B$2:$U$274,13,FALSE)*VLOOKUP($F$4,Sheet1!$B$8:$N$10,8,FALSE),IF(AND($B44<>"",$F$4="R=3"),VLOOKUP($B44,'Non-prismatic'!$B$2:$U$274,13,FALSE)*VLOOKUP($F$4,Sheet1!$B$8:$N$10,8,FALSE),""))) ->  | K44: =IF(AND($B44<>"",$F$4="Capacity (Non-OSHPD)"),VLOOKUP($B44,'Non-prismatic'!$B$2:$U$274,14,FALSE)*VLOOKUP($F$4,Sheet1!$B$8:$N$10,9,FALSE),IF(AND($B44<>"",$F$4="Capacity (OSHPD)"),VLOOKUP($B44,'Non-prismatic'!$B$2:$U$274,14,FALSE)*VLOOKUP($F$4,Sheet1!$B$8:$N$10,9,FALSE),IF(AND($B44<>"",$F$4="R=3"),VLOOKUP($B44,'Non-prismatic'!$B$2:$U$274,14,FALSE)*VLOOKUP($F$4,Sheet1!$B$8:$N$10,9,FALSE),""))) ->  | L44: =IF(AND($B44<>"",$F$4="Capacity (Non-OSHPD)"),VLOOKUP($B44,'Non-prismatic'!$B$2:$U$274,15,FALSE)*VLOOKUP($F$4,Sheet1!$B$8:$N$10,10,FALSE),IF(AND($B44<>"",$F$4="Capacity (OSHPD)"),VLOOKUP($B44,'Non-prismatic'!$B$2:$U$274,15,FALSE)*VLOOKUP($F$4,Sheet1!$B$8:$N$10,10,FALSE),IF(AND($B44<>"",$F$4="R=3"),VLOOKUP($B44,'Non-prismatic'!$B$2:$U$274,15,FALSE)*VLOOKUP($F$4,Sheet1!$B$8:$N$10,10,FALSE),""))) ->  | M44: =IF(AND($B44<>"",$F$4="Capacity (Non-OSHPD)"),VLOOKUP($B44,'Non-prismatic'!$B$2:$U$274,16,FALSE)*VLOOKUP($F$4,Sheet1!$B$8:$N$10,11,FALSE),IF(AND($B44<>"",$F$4="Capacity (OSHPD)"),1.15*2*3*VLOOKUP($B44,'Non-prismatic'!$B$2:$U$274,9,FALSE)/VLOOKUP($B44,'Non-prismatic'!$B$2:$U$274,3,FALSE),IF(AND($B44<>"",$F$4="R=3"),VLOOKUP($B44,'Non-prismatic'!$B$2:$U$274,16,FALSE)*VLOOKUP($F$4,Sheet1!$B$8:$N$10,11,FALSE),""))) ->  | N44: =IF(AND($B44<>"",$F$4="Capacity (Non-OSHPD)"),VLOOKUP($B44,'Non-prismatic'!$B$2:$U$274,17,FALSE)*VLOOKUP($F$4,Sheet1!$B$8:$N$10,12,FALSE),IF(AND($B44<>"",$F$4="Capacity (OSHPD)"),VLOOKUP($B44,'Non-prismatic'!$B$2:$U$274,17,FALSE)*VLOOKUP($F$4,Sheet1!$B$8:$N$10,12,FALSE),IF(AND($B44<>"",$F$4="R=3"),VLOOKUP($B44,'Non-prismatic'!$B$2:$U$274,17,FALSE)*VLOOKUP($F$4,Sheet1!$B$8:$N$10,12,FALSE),""))) ->  | O44: =IF(AND(B44<>"",$F$4="Capacity (Non-OSHPD)"),VLOOKUP($B44,'Non-prismatic'!$B$2:$U$274,18,FALSE),IF(AND(B44<>"",OR($F$4="Capacity (OSHPD)",$F$4="R=3")),VLOOKUP($B44,'Non-prismatic'!$B$2:$U$274,19,FALSE),"")) ->  | P44: =IF(B44<>"",VLOOKUP($B44,'Non-prismatic'!$B$2:$V$274,21,FALSE),"") ->  | Q44: =IF(B44<>"",VLOOKUP($B44,'Non-prismatic'!$B$2:$U$274,3,FALSE),"") -> 
C45: =IF(B45<>"",VLOOKUP($B45,'Non-prismatic'!$B$2:$U$274,4,FALSE),"") ->  | D45: =IF(AND($B45<>"",$F$4="Capacity (Non-OSHPD)"),VLOOKUP($B45,'Non-prismatic'!$B$2:$U$274,6,FALSE)*VLOOKUP($F$4,Sheet1!$B$8:$N$10,2,FALSE),IF(AND($B45<>"",$F$4="Capacity (OSHPD)"),VLOOKUP($B45,'Non-prismatic'!$B$2:$U$274,6,FALSE)*VLOOKUP($F$4,Sheet1!$B$8:$N$10,2,FALSE),IF(AND($B45<>"",$F$4="R=3"),VLOOKUP($B45,'Non-prismatic'!$B$2:$U$274,6,FALSE)*VLOOKUP($F$4,Sheet1!$B$8:$N$10,2,FALSE),""))) ->  | E45: =IF(AND($B45<>"",$F$4="Capacity (Non-OSHPD)"),VLOOKUP($B45,'Non-prismatic'!$B$2:$U$274,7,FALSE)*VLOOKUP($F$4,Sheet1!$B$8:$N$10,3,FALSE),IF(AND($B45<>"",$F$4="Capacity (OSHPD)"),VLOOKUP($B45,'Non-prismatic'!$B$2:$U$274,7,FALSE)*VLOOKUP($F$4,Sheet1!$B$8:$N$10,3,FALSE),IF(AND($B45<>"",$F$4="R=3"),VLOOKUP($B45,'Non-prismatic'!$B$2:$U$274,7,FALSE)*VLOOKUP($F$4,Sheet1!$B$8:$N$10,3,FALSE),""))) ->  | F45: =IF(AND($B45<>"",$F$4="Capacity (Non-OSHPD)"),VLOOKUP($B45,'Non-prismatic'!$B$2:$U$274,8,FALSE)*VLOOKUP($F$4,Sheet1!$B$8:$N$10,4,FALSE),IF(AND($B45<>"",$F$4="Capacity (OSHPD)"),VLOOKUP($B45,'Non-prismatic'!$B$2:$U$274,8,FALSE)*VLOOKUP($F$4,Sheet1!$B$8:$N$10,4,FALSE),IF(AND($B45<>"",$F$4="R=3"),VLOOKUP($B45,'Non-prismatic'!$B$2:$U$274,8,FALSE)*VLOOKUP($F$4,Sheet1!$B$8:$N$10,4,FALSE),""))) ->  | G45: =IF(AND($B45<>"",$F$4="Capacity (Non-OSHPD)"),VLOOKUP($B45,'Non-prismatic'!$B$2:$U$274,9,FALSE)*VLOOKUP($F$4,Sheet1!$B$8:$N$10,5,FALSE),IF(AND($B45<>"",$F$4="Capacity (OSHPD)"),VLOOKUP($B45,'Non-prismatic'!$B$2:$U$274,9,FALSE)*VLOOKUP($F$4,Sheet1!$B$8:$N$10,5,FALSE),IF(AND($B45<>"",$F$4="R=3"),VLOOKUP($B45,'Non-prismatic'!$B$2:$U$274,9,FALSE)*VLOOKUP($F$4,Sheet1!$B$8:$N$10,5,FALSE),""))) ->  | H45: =IF(AND($B45<>"",$F$4="Capacity (Non-OSHPD)"),VLOOKUP($B45,'Non-prismatic'!$B$2:$U$274,10,FALSE)*VLOOKUP($F$4,Sheet1!$B$8:$N$10,6,FALSE),IF(AND($B45<>"",$F$4="Capacity (OSHPD)"),VLOOKUP($B45,'Non-prismatic'!$B$2:$U$274,10,FALSE)*VLOOKUP($F$4,Sheet1!$B$8:$N$10,6,FALSE),IF(AND($B45<>"",$F$4="R=3"),VLOOKUP($B45,'Non-prismatic'!$B$2:$U$274,10,FALSE)*VLOOKUP($F$4,Sheet1!$B$8:$N$10,6,FALSE),""))) ->  | I45: =IF(AND($B45<>"",$F$4="Capacity (Non-OSHPD)"),VLOOKUP($B45,'Non-prismatic'!$B$2:$U$274,12,FALSE)*VLOOKUP($F$4,Sheet1!$B$8:$N$10,7,FALSE),IF(AND($B45<>"",$F$4="Capacity (OSHPD)"),2*3*VLOOKUP($B45,'Non-prismatic'!$B$2:$U$274,9,FALSE)/VLOOKUP($B45,'Non-prismatic'!$B$2:$U$274,3,FALSE),IF(AND($B45<>"",$F$4="R=3"),VLOOKUP($B45,'Non-prismatic'!$B$2:$U$274,12,FALSE)*VLOOKUP($F$4,Sheet1!$B$8:$N$10,7,FALSE),""))) ->  | J45: =IF(AND($B45<>"",$F$4="Capacity (Non-OSHPD)"),VLOOKUP($B45,'Non-prismatic'!$B$2:$U$274,13,FALSE)*VLOOKUP($F$4,Sheet1!$B$8:$N$10,8,FALSE),IF(AND($B45<>"",$F$4="Capacity (OSHPD)"),VLOOKUP($B45,'Non-prismatic'!$B$2:$U$274,13,FALSE)*VLOOKUP($F$4,Sheet1!$B$8:$N$10,8,FALSE),IF(AND($B45<>"",$F$4="R=3"),VLOOKUP($B45,'Non-prismatic'!$B$2:$U$274,13,FALSE)*VLOOKUP($F$4,Sheet1!$B$8:$N$10,8,FALSE),""))) ->  | K45: =IF(AND($B45<>"",$F$4="Capacity (Non-OSHPD)"),VLOOKUP($B45,'Non-prismatic'!$B$2:$U$274,14,FALSE)*VLOOKUP($F$4,Sheet1!$B$8:$N$10,9,FALSE),IF(AND($B45<>"",$F$4="Capacity (OSHPD)"),VLOOKUP($B45,'Non-prismatic'!$B$2:$U$274,14,FALSE)*VLOOKUP($F$4,Sheet1!$B$8:$N$10,9,FALSE),IF(AND($B45<>"",$F$4="R=3"),VLOOKUP($B45,'Non-prismatic'!$B$2:$U$274,14,FALSE)*VLOOKUP($F$4,Sheet1!$B$8:$N$10,9,FALSE),""))) ->  | L45: =IF(AND($B45<>"",$F$4="Capacity (Non-OSHPD)"),VLOOKUP($B45,'Non-prismatic'!$B$2:$U$274,15,FALSE)*VLOOKUP($F$4,Sheet1!$B$8:$N$10,10,FALSE),IF(AND($B45<>"",$F$4="Capacity (OSHPD)"),VLOOKUP($B45,'Non-prismatic'!$B$2:$U$274,15,FALSE)*VLOOKUP($F$4,Sheet1!$B$8:$N$10,10,FALSE),IF(AND($B45<>"",$F$4="R=3"),VLOOKUP($B45,'Non-prismatic'!$B$2:$U$274,15,FALSE)*VLOOKUP($F$4,Sheet1!$B$8:$N$10,10,FALSE),""))) ->  | M45: =IF(AND($B45<>"",$F$4="Capacity (Non-OSHPD)"),VLOOKUP($B45,'Non-prismatic'!$B$2:$U$274,16,FALSE)*VLOOKUP($F$4,Sheet1!$B$8:$N$10,11,FALSE),IF(AND($B45<>"",$F$4="Capacity (OSHPD)"),1.15*2*3*VLOOKUP($B45,'Non-prismatic'!$B$2:$U$274,9,FALSE)/VLOOKUP($B45,'Non-prismatic'!$B$2:$U$274,3,FALSE),IF(AND($B45<>"",$F$4="R=3"),VLOOKUP($B45,'Non-prismatic'!$B$2:$U$274,16,FALSE)*VLOOKUP($F$4,Sheet1!$B$8:$N$10,11,FALSE),""))) ->  | N45: =IF(AND($B45<>"",$F$4="Capacity (Non-OSHPD)"),VLOOKUP($B45,'Non-prismatic'!$B$2:$U$274,17,FALSE)*VLOOKUP($F$4,Sheet1!$B$8:$N$10,12,FALSE),IF(AND($B45<>"",$F$4="Capacity (OSHPD)"),VLOOKUP($B45,'Non-prismatic'!$B$2:$U$274,17,FALSE)*VLOOKUP($F$4,Sheet1!$B$8:$N$10,12,FALSE),IF(AND($B45<>"",$F$4="R=3"),VLOOKUP($B45,'Non-prismatic'!$B$2:$U$274,17,FALSE)*VLOOKUP($F$4,Sheet1!$B$8:$N$10,12,FALSE),""))) ->  | O45: =IF(AND(B45<>"",$F$4="Capacity (Non-OSHPD)"),VLOOKUP($B45,'Non-prismatic'!$B$2:$U$274,18,FALSE),IF(AND(B45<>"",OR($F$4="Capacity (OSHPD)",$F$4="R=3")),VLOOKUP($B45,'Non-prismatic'!$B$2:$U$274,19,FALSE),"")) ->  | P45: =IF(B45<>"",VLOOKUP($B45,'Non-prismatic'!$B$2:$V$274,21,FALSE),"") ->  | Q45: =IF(B45<>"",VLOOKUP($B45,'Non-prismatic'!$B$2:$U$274,3,FALSE),"") -> 
C46: =IF(B46<>"",VLOOKUP($B46,'Non-prismatic'!$B$2:$U$274,4,FALSE),"") ->  | D46: =IF(AND($B46<>"",$F$4="Capacity (Non-OSHPD)"),VLOOKUP($B46,'Non-prismatic'!$B$2:$U$274,6,FALSE)*VLOOKUP($F$4,Sheet1!$B$8:$N$10,2,FALSE),IF(AND($B46<>"",$F$4="Capacity (OSHPD)"),VLOOKUP($B46,'Non-prismatic'!$B$2:$U$274,6,FALSE)*VLOOKUP($F$4,Sheet1!$B$8:$N$10,2,FALSE),IF(AND($B46<>"",$F$4="R=3"),VLOOKUP($B46,'Non-prismatic'!$B$2:$U$274,6,FALSE)*VLOOKUP($F$4,Sheet1!$B$8:$N$10,2,FALSE),""))) ->  | E46: =IF(AND($B46<>"",$F$4="Capacity (Non-OSHPD)"),VLOOKUP($B46,'Non-prismatic'!$B$2:$U$274,7,FALSE)*VLOOKUP($F$4,Sheet1!$B$8:$N$10,3,FALSE),IF(AND($B46<>"",$F$4="Capacity (OSHPD)"),VLOOKUP($B46,'Non-prismatic'!$B$2:$U$274,7,FALSE)*VLOOKUP($F$4,Sheet1!$B$8:$N$10,3,FALSE),IF(AND($B46<>"",$F$4="R=3"),VLOOKUP($B46,'Non-prismatic'!$B$2:$U$274,7,FALSE)*VLOOKUP($F$4,Sheet1!$B$8:$N$10,3,FALSE),""))) ->  | F46: =IF(AND($B46<>"",$F$4="Capacity (Non-OSHPD)"),VLOOKUP($B46,'Non-prismatic'!$B$2:$U$274,8,FALSE)*VLOOKUP($F$4,Sheet1!$B$8:$N$10,4,FALSE),IF(AND($B46<>"",$F$4="Capacity (OSHPD)"),VLOOKUP($B46,'Non-prismatic'!$B$2:$U$274,8,FALSE)*VLOOKUP($F$4,Sheet1!$B$8:$N$10,4,FALSE),IF(AND($B46<>"",$F$4="R=3"),VLOOKUP($B46,'Non-prismatic'!$B$2:$U$274,8,FALSE)*VLOOKUP($F$4,Sheet1!$B$8:$N$10,4,FALSE),""))) ->  | G46: =IF(AND($B46<>"",$F$4="Capacity (Non-OSHPD)"),VLOOKUP($B46,'Non-prismatic'!$B$2:$U$274,9,FALSE)*VLOOKUP($F$4,Sheet1!$B$8:$N$10,5,FALSE),IF(AND($B46<>"",$F$4="Capacity (OSHPD)"),VLOOKUP($B46,'Non-prismatic'!$B$2:$U$274,9,FALSE)*VLOOKUP($F$4,Sheet1!$B$8:$N$10,5,FALSE),IF(AND($B46<>"",$F$4="R=3"),VLOOKUP($B46,'Non-prismatic'!$B$2:$U$274,9,FALSE)*VLOOKUP($F$4,Sheet1!$B$8:$N$10,5,FALSE),""))) ->  | H46: =IF(AND($B46<>"",$F$4="Capacity (Non-OSHPD)"),VLOOKUP($B46,'Non-prismatic'!$B$2:$U$274,10,FALSE)*VLOOKUP($F$4,Sheet1!$B$8:$N$10,6,FALSE),IF(AND($B46<>"",$F$4="Capacity (OSHPD)"),VLOOKUP($B46,'Non-prismatic'!$B$2:$U$274,10,FALSE)*VLOOKUP($F$4,Sheet1!$B$8:$N$10,6,FALSE),IF(AND($B46<>"",$F$4="R=3"),VLOOKUP($B46,'Non-prismatic'!$B$2:$U$274,10,FALSE)*VLOOKUP($F$4,Sheet1!$B$8:$N$10,6,FALSE),""))) ->  | I46: =IF(AND($B46<>"",$F$4="Capacity (Non-OSHPD)"),VLOOKUP($B46,'Non-prismatic'!$B$2:$U$274,12,FALSE)*VLOOKUP($F$4,Sheet1!$B$8:$N$10,7,FALSE),IF(AND($B46<>"",$F$4="Capacity (OSHPD)"),2*3*VLOOKUP($B46,'Non-prismatic'!$B$2:$U$274,9,FALSE)/VLOOKUP($B46,'Non-prismatic'!$B$2:$U$274,3,FALSE),IF(AND($B46<>"",$F$4="R=3"),VLOOKUP($B46,'Non-prismatic'!$B$2:$U$274,12,FALSE)*VLOOKUP($F$4,Sheet1!$B$8:$N$10,7,FALSE),""))) ->  | J46: =IF(AND($B46<>"",$F$4="Capacity (Non-OSHPD)"),VLOOKUP($B46,'Non-prismatic'!$B$2:$U$274,13,FALSE)*VLOOKUP($F$4,Sheet1!$B$8:$N$10,8,FALSE),IF(AND($B46<>"",$F$4="Capacity (OSHPD)"),VLOOKUP($B46,'Non-prismatic'!$B$2:$U$274,13,FALSE)*VLOOKUP($F$4,Sheet1!$B$8:$N$10,8,FALSE),IF(AND($B46<>"",$F$4="R=3"),VLOOKUP($B46,'Non-prismatic'!$B$2:$U$274,13,FALSE)*VLOOKUP($F$4,Sheet1!$B$8:$N$10,8,FALSE),""))) ->  | K46: =IF(AND($B46<>"",$F$4="Capacity (Non-OSHPD)"),VLOOKUP($B46,'Non-prismatic'!$B$2:$U$274,14,FALSE)*VLOOKUP($F$4,Sheet1!$B$8:$N$10,9,FALSE),IF(AND($B46<>"",$F$4="Capacity (OSHPD)"),VLOOKUP($B46,'Non-prismatic'!$B$2:$U$274,14,FALSE)*VLOOKUP($F$4,Sheet1!$B$8:$N$10,9,FALSE),IF(AND($B46<>"",$F$4="R=3"),VLOOKUP($B46,'Non-prismatic'!$B$2:$U$274,14,FALSE)*VLOOKUP($F$4,Sheet1!$B$8:$N$10,9,FALSE),""))) ->  | L46: =IF(AND($B46<>"",$F$4="Capacity (Non-OSHPD)"),VLOOKUP($B46,'Non-prismatic'!$B$2:$U$274,15,FALSE)*VLOOKUP($F$4,Sheet1!$B$8:$N$10,10,FALSE),IF(AND($B46<>"",$F$4="Capacity (OSHPD)"),VLOOKUP($B46,'Non-prismatic'!$B$2:$U$274,15,FALSE)*VLOOKUP($F$4,Sheet1!$B$8:$N$10,10,FALSE),IF(AND($B46<>"",$F$4="R=3"),VLOOKUP($B46,'Non-prismatic'!$B$2:$U$274,15,FALSE)*VLOOKUP($F$4,Sheet1!$B$8:$N$10,10,FALSE),""))) ->  | M46: =IF(AND($B46<>"",$F$4="Capacity (Non-OSHPD)"),VLOOKUP($B46,'Non-prismatic'!$B$2:$U$274,16,FALSE)*VLOOKUP($F$4,Sheet1!$B$8:$N$10,11,FALSE),IF(AND($B46<>"",$F$4="Capacity (OSHPD)"),1.15*2*3*VLOOKUP($B46,'Non-prismatic'!$B$2:$U$274,9,FALSE)/VLOOKUP($B46,'Non-prismatic'!$B$2:$U$274,3,FALSE),IF(AND($B46<>"",$F$4="R=3"),VLOOKUP($B46,'Non-prismatic'!$B$2:$U$274,16,FALSE)*VLOOKUP($F$4,Sheet1!$B$8:$N$10,11,FALSE),""))) ->  | N46: =IF(AND($B46<>"",$F$4="Capacity (Non-OSHPD)"),VLOOKUP($B46,'Non-prismatic'!$B$2:$U$274,17,FALSE)*VLOOKUP($F$4,Sheet1!$B$8:$N$10,12,FALSE),IF(AND($B46<>"",$F$4="Capacity (OSHPD)"),VLOOKUP($B46,'Non-prismatic'!$B$2:$U$274,17,FALSE)*VLOOKUP($F$4,Sheet1!$B$8:$N$10,12,FALSE),IF(AND($B46<>"",$F$4="R=3"),VLOOKUP($B46,'Non-prismatic'!$B$2:$U$274,17,FALSE)*VLOOKUP($F$4,Sheet1!$B$8:$N$10,12,FALSE),""))) ->  | O46: =IF(AND(B46<>"",$F$4="Capacity (Non-OSHPD)"),VLOOKUP($B46,'Non-prismatic'!$B$2:$U$274,18,FALSE),IF(AND(B46<>"",OR($F$4="Capacity (OSHPD)",$F$4="R=3")),VLOOKUP($B46,'Non-prismatic'!$B$2:$U$274,19,FALSE),"")) ->  | P46: =IF(B46<>"",VLOOKUP($B46,'Non-prismatic'!$B$2:$V$274,21,FALSE),"") ->  | Q46: =IF(B46<>"",VLOOKUP($B46,'Non-prismatic'!$B$2:$U$274,3,FALSE),"") -> 
C47: =IF(B47<>"",VLOOKUP($B47,'Non-prismatic'!$B$2:$U$274,4,FALSE),"") ->  | D47: =IF(AND($B47<>"",$F$4="Capacity (Non-OSHPD)"),VLOOKUP($B47,'Non-prismatic'!$B$2:$U$274,6,FALSE)*VLOOKUP($F$4,Sheet1!$B$8:$N$10,2,FALSE),IF(AND($B47<>"",$F$4="Capacity (OSHPD)"),VLOOKUP($B47,'Non-prismatic'!$B$2:$U$274,6,FALSE)*VLOOKUP($F$4,Sheet1!$B$8:$N$10,2,FALSE),IF(AND($B47<>"",$F$4="R=3"),VLOOKUP($B47,'Non-prismatic'!$B$2:$U$274,6,FALSE)*VLOOKUP($F$4,Sheet1!$B$8:$N$10,2,FALSE),""))) ->  | E47: =IF(AND($B47<>"",$F$4="Capacity (Non-OSHPD)"),VLOOKUP($B47,'Non-prismatic'!$B$2:$U$274,7,FALSE)*VLOOKUP($F$4,Sheet1!$B$8:$N$10,3,FALSE),IF(AND($B47<>"",$F$4="Capacity (OSHPD)"),VLOOKUP($B47,'Non-prismatic'!$B$2:$U$274,7,FALSE)*VLOOKUP($F$4,Sheet1!$B$8:$N$10,3,FALSE),IF(AND($B47<>"",$F$4="R=3"),VLOOKUP($B47,'Non-prismatic'!$B$2:$U$274,7,FALSE)*VLOOKUP($F$4,Sheet1!$B$8:$N$10,3,FALSE),""))) ->  | F47: =IF(AND($B47<>"",$F$4="Capacity (Non-OSHPD)"),VLOOKUP($B47,'Non-prismatic'!$B$2:$U$274,8,FALSE)*VLOOKUP($F$4,Sheet1!$B$8:$N$10,4,FALSE),IF(AND($B47<>"",$F$4="Capacity (OSHPD)"),VLOOKUP($B47,'Non-prismatic'!$B$2:$U$274,8,FALSE)*VLOOKUP($F$4,Sheet1!$B$8:$N$10,4,FALSE),IF(AND($B47<>"",$F$4="R=3"),VLOOKUP($B47,'Non-prismatic'!$B$2:$U$274,8,FALSE)*VLOOKUP($F$4,Sheet1!$B$8:$N$10,4,FALSE),""))) ->  | G47: =IF(AND($B47<>"",$F$4="Capacity (Non-OSHPD)"),VLOOKUP($B47,'Non-prismatic'!$B$2:$U$274,9,FALSE)*VLOOKUP($F$4,Sheet1!$B$8:$N$10,5,FALSE),IF(AND($B47<>"",$F$4="Capacity (OSHPD)"),VLOOKUP($B47,'Non-prismatic'!$B$2:$U$274,9,FALSE)*VLOOKUP($F$4,Sheet1!$B$8:$N$10,5,FALSE),IF(AND($B47<>"",$F$4="R=3"),VLOOKUP($B47,'Non-prismatic'!$B$2:$U$274,9,FALSE)*VLOOKUP($F$4,Sheet1!$B$8:$N$10,5,FALSE),""))) ->  | H47: =IF(AND($B47<>"",$F$4="Capacity (Non-OSHPD)"),VLOOKUP($B47,'Non-prismatic'!$B$2:$U$274,10,FALSE)*VLOOKUP($F$4,Sheet1!$B$8:$N$10,6,FALSE),IF(AND($B47<>"",$F$4="Capacity (OSHPD)"),VLOOKUP($B47,'Non-prismatic'!$B$2:$U$274,10,FALSE)*VLOOKUP($F$4,Sheet1!$B$8:$N$10,6,FALSE),IF(AND($B47<>"",$F$4="R=3"),VLOOKUP($B47,'Non-prismatic'!$B$2:$U$274,10,FALSE)*VLOOKUP($F$4,Sheet1!$B$8:$N$10,6,FALSE),""))) ->  | I47: =IF(AND($B47<>"",$F$4="Capacity (Non-OSHPD)"),VLOOKUP($B47,'Non-prismatic'!$B$2:$U$274,12,FALSE)*VLOOKUP($F$4,Sheet1!$B$8:$N$10,7,FALSE),IF(AND($B47<>"",$F$4="Capacity (OSHPD)"),2*3*VLOOKUP($B47,'Non-prismatic'!$B$2:$U$274,9,FALSE)/VLOOKUP($B47,'Non-prismatic'!$B$2:$U$274,3,FALSE),IF(AND($B47<>"",$F$4="R=3"),VLOOKUP($B47,'Non-prismatic'!$B$2:$U$274,12,FALSE)*VLOOKUP($F$4,Sheet1!$B$8:$N$10,7,FALSE),""))) ->  | J47: =IF(AND($B47<>"",$F$4="Capacity (Non-OSHPD)"),VLOOKUP($B47,'Non-prismatic'!$B$2:$U$274,13,FALSE)*VLOOKUP($F$4,Sheet1!$B$8:$N$10,8,FALSE),IF(AND($B47<>"",$F$4="Capacity (OSHPD)"),VLOOKUP($B47,'Non-prismatic'!$B$2:$U$274,13,FALSE)*VLOOKUP($F$4,Sheet1!$B$8:$N$10,8,FALSE),IF(AND($B47<>"",$F$4="R=3"),VLOOKUP($B47,'Non-prismatic'!$B$2:$U$274,13,FALSE)*VLOOKUP($F$4,Sheet1!$B$8:$N$10,8,FALSE),""))) ->  | K47: =IF(AND($B47<>"",$F$4="Capacity (Non-OSHPD)"),VLOOKUP($B47,'Non-prismatic'!$B$2:$U$274,14,FALSE)*VLOOKUP($F$4,Sheet1!$B$8:$N$10,9,FALSE),IF(AND($B47<>"",$F$4="Capacity (OSHPD)"),VLOOKUP($B47,'Non-prismatic'!$B$2:$U$274,14,FALSE)*VLOOKUP($F$4,Sheet1!$B$8:$N$10,9,FALSE),IF(AND($B47<>"",$F$4="R=3"),VLOOKUP($B47,'Non-prismatic'!$B$2:$U$274,14,FALSE)*VLOOKUP($F$4,Sheet1!$B$8:$N$10,9,FALSE),""))) ->  | L47: =IF(AND($B47<>"",$F$4="Capacity (Non-OSHPD)"),VLOOKUP($B47,'Non-prismatic'!$B$2:$U$274,15,FALSE)*VLOOKUP($F$4,Sheet1!$B$8:$N$10,10,FALSE),IF(AND($B47<>"",$F$4="Capacity (OSHPD)"),VLOOKUP($B47,'Non-prismatic'!$B$2:$U$274,15,FALSE)*VLOOKUP($F$4,Sheet1!$B$8:$N$10,10,FALSE),IF(AND($B47<>"",$F$4="R=3"),VLOOKUP($B47,'Non-prismatic'!$B$2:$U$274,15,FALSE)*VLOOKUP($F$4,Sheet1!$B$8:$N$10,10,FALSE),""))) ->  | M47: =IF(AND($B47<>"",$F$4="Capacity (Non-OSHPD)"),VLOOKUP($B47,'Non-prismatic'!$B$2:$U$274,16,FALSE)*VLOOKUP($F$4,Sheet1!$B$8:$N$10,11,FALSE),IF(AND($B47<>"",$F$4="Capacity (OSHPD)"),1.15*2*3*VLOOKUP($B47,'Non-prismatic'!$B$2:$U$274,9,FALSE)/VLOOKUP($B47,'Non-prismatic'!$B$2:$U$274,3,FALSE),IF(AND($B47<>"",$F$4="R=3"),VLOOKUP($B47,'Non-prismatic'!$B$2:$U$274,16,FALSE)*VLOOKUP($F$4,Sheet1!$B$8:$N$10,11,FALSE),""))) ->  | N47: =IF(AND($B47<>"",$F$4="Capacity (Non-OSHPD)"),VLOOKUP($B47,'Non-prismatic'!$B$2:$U$274,17,FALSE)*VLOOKUP($F$4,Sheet1!$B$8:$N$10,12,FALSE),IF(AND($B47<>"",$F$4="Capacity (OSHPD)"),VLOOKUP($B47,'Non-prismatic'!$B$2:$U$274,17,FALSE)*VLOOKUP($F$4,Sheet1!$B$8:$N$10,12,FALSE),IF(AND($B47<>"",$F$4="R=3"),VLOOKUP($B47,'Non-prismatic'!$B$2:$U$274,17,FALSE)*VLOOKUP($F$4,Sheet1!$B$8:$N$10,12,FALSE),""))) ->  | O47: =IF(AND(B47<>"",$F$4="Capacity (Non-OSHPD)"),VLOOKUP($B47,'Non-prismatic'!$B$2:$U$274,18,FALSE),IF(AND(B47<>"",OR($F$4="Capacity (OSHPD)",$F$4="R=3")),VLOOKUP($B47,'Non-prismatic'!$B$2:$U$274,19,FALSE),"")) ->  | P47: =IF(B47<>"",VLOOKUP($B47,'Non-prismatic'!$B$2:$V$274,21,FALSE),"") ->  | Q47: =IF(B47<>"",VLOOKUP($B47,'Non-prismatic'!$B$2:$U$274,3,FALSE),"") -> 
C48: =IF(B48<>"",VLOOKUP($B48,'Non-prismatic'!$B$2:$U$274,4,FALSE),"") ->  | D48: =IF(AND($B48<>"",$F$4="Capacity (Non-OSHPD)"),VLOOKUP($B48,'Non-prismatic'!$B$2:$U$274,6,FALSE)*VLOOKUP($F$4,Sheet1!$B$8:$N$10,2,FALSE),IF(AND($B48<>"",$F$4="Capacity (OSHPD)"),VLOOKUP($B48,'Non-prismatic'!$B$2:$U$274,6,FALSE)*VLOOKUP($F$4,Sheet1!$B$8:$N$10,2,FALSE),IF(AND($B48<>"",$F$4="R=3"),VLOOKUP($B48,'Non-prismatic'!$B$2:$U$274,6,FALSE)*VLOOKUP($F$4,Sheet1!$B$8:$N$10,2,FALSE),""))) ->  | E48: =IF(AND($B48<>"",$F$4="Capacity (Non-OSHPD)"),VLOOKUP($B48,'Non-prismatic'!$B$2:$U$274,7,FALSE)*VLOOKUP($F$4,Sheet1!$B$8:$N$10,3,FALSE),IF(AND($B48<>"",$F$4="Capacity (OSHPD)"),VLOOKUP($B48,'Non-prismatic'!$B$2:$U$274,7,FALSE)*VLOOKUP($F$4,Sheet1!$B$8:$N$10,3,FALSE),IF(AND($B48<>"",$F$4="R=3"),VLOOKUP($B48,'Non-prismatic'!$B$2:$U$274,7,FALSE)*VLOOKUP($F$4,Sheet1!$B$8:$N$10,3,FALSE),""))) ->  | F48: =IF(AND($B48<>"",$F$4="Capacity (Non-OSHPD)"),VLOOKUP($B48,'Non-prismatic'!$B$2:$U$274,8,FALSE)*VLOOKUP($F$4,Sheet1!$B$8:$N$10,4,FALSE),IF(AND($B48<>"",$F$4="Capacity (OSHPD)"),VLOOKUP($B48,'Non-prismatic'!$B$2:$U$274,8,FALSE)*VLOOKUP($F$4,Sheet1!$B$8:$N$10,4,FALSE),IF(AND($B48<>"",$F$4="R=3"),VLOOKUP($B48,'Non-prismatic'!$B$2:$U$274,8,FALSE)*VLOOKUP($F$4,Sheet1!$B$8:$N$10,4,FALSE),""))) ->  | G48: =IF(AND($B48<>"",$F$4="Capacity (Non-OSHPD)"),VLOOKUP($B48,'Non-prismatic'!$B$2:$U$274,9,FALSE)*VLOOKUP($F$4,Sheet1!$B$8:$N$10,5,FALSE),IF(AND($B48<>"",$F$4="Capacity (OSHPD)"),VLOOKUP($B48,'Non-prismatic'!$B$2:$U$274,9,FALSE)*VLOOKUP($F$4,Sheet1!$B$8:$N$10,5,FALSE),IF(AND($B48<>"",$F$4="R=3"),VLOOKUP($B48,'Non-prismatic'!$B$2:$U$274,9,FALSE)*VLOOKUP($F$4,Sheet1!$B$8:$N$10,5,FALSE),""))) ->  | H48: =IF(AND($B48<>"",$F$4="Capacity (Non-OSHPD)"),VLOOKUP($B48,'Non-prismatic'!$B$2:$U$274,10,FALSE)*VLOOKUP($F$4,Sheet1!$B$8:$N$10,6,FALSE),IF(AND($B48<>"",$F$4="Capacity (OSHPD)"),VLOOKUP($B48,'Non-prismatic'!$B$2:$U$274,10,FALSE)*VLOOKUP($F$4,Sheet1!$B$8:$N$10,6,FALSE),IF(AND($B48<>"",$F$4="R=3"),VLOOKUP($B48,'Non-prismatic'!$B$2:$U$274,10,FALSE)*VLOOKUP($F$4,Sheet1!$B$8:$N$10,6,FALSE),""))) ->  | I48: =IF(AND($B48<>"",$F$4="Capacity (Non-OSHPD)"),VLOOKUP($B48,'Non-prismatic'!$B$2:$U$274,12,FALSE)*VLOOKUP($F$4,Sheet1!$B$8:$N$10,7,FALSE),IF(AND($B48<>"",$F$4="Capacity (OSHPD)"),2*3*VLOOKUP($B48,'Non-prismatic'!$B$2:$U$274,9,FALSE)/VLOOKUP($B48,'Non-prismatic'!$B$2:$U$274,3,FALSE),IF(AND($B48<>"",$F$4="R=3"),VLOOKUP($B48,'Non-prismatic'!$B$2:$U$274,12,FALSE)*VLOOKUP($F$4,Sheet1!$B$8:$N$10,7,FALSE),""))) ->  | J48: =IF(AND($B48<>"",$F$4="Capacity (Non-OSHPD)"),VLOOKUP($B48,'Non-prismatic'!$B$2:$U$274,13,FALSE)*VLOOKUP($F$4,Sheet1!$B$8:$N$10,8,FALSE),IF(AND($B48<>"",$F$4="Capacity (OSHPD)"),VLOOKUP($B48,'Non-prismatic'!$B$2:$U$274,13,FALSE)*VLOOKUP($F$4,Sheet1!$B$8:$N$10,8,FALSE),IF(AND($B48<>"",$F$4="R=3"),VLOOKUP($B48,'Non-prismatic'!$B$2:$U$274,13,FALSE)*VLOOKUP($F$4,Sheet1!$B$8:$N$10,8,FALSE),""))) ->  | K48: =IF(AND($B48<>"",$F$4="Capacity (Non-OSHPD)"),VLOOKUP($B48,'Non-prismatic'!$B$2:$U$274,14,FALSE)*VLOOKUP($F$4,Sheet1!$B$8:$N$10,9,FALSE),IF(AND($B48<>"",$F$4="Capacity (OSHPD)"),VLOOKUP($B48,'Non-prismatic'!$B$2:$U$274,14,FALSE)*VLOOKUP($F$4,Sheet1!$B$8:$N$10,9,FALSE),IF(AND($B48<>"",$F$4="R=3"),VLOOKUP($B48,'Non-prismatic'!$B$2:$U$274,14,FALSE)*VLOOKUP($F$4,Sheet1!$B$8:$N$10,9,FALSE),""))) ->  | L48: =IF(AND($B48<>"",$F$4="Capacity (Non-OSHPD)"),VLOOKUP($B48,'Non-prismatic'!$B$2:$U$274,15,FALSE)*VLOOKUP($F$4,Sheet1!$B$8:$N$10,10,FALSE),IF(AND($B48<>"",$F$4="Capacity (OSHPD)"),VLOOKUP($B48,'Non-prismatic'!$B$2:$U$274,15,FALSE)*VLOOKUP($F$4,Sheet1!$B$8:$N$10,10,FALSE),IF(AND($B48<>"",$F$4="R=3"),VLOOKUP($B48,'Non-prismatic'!$B$2:$U$274,15,FALSE)*VLOOKUP($F$4,Sheet1!$B$8:$N$10,10,FALSE),""))) ->  | M48: =IF(AND($B48<>"",$F$4="Capacity (Non-OSHPD)"),VLOOKUP($B48,'Non-prismatic'!$B$2:$U$274,16,FALSE)*VLOOKUP($F$4,Sheet1!$B$8:$N$10,11,FALSE),IF(AND($B48<>"",$F$4="Capacity (OSHPD)"),1.15*2*3*VLOOKUP($B48,'Non-prismatic'!$B$2:$U$274,9,FALSE)/VLOOKUP($B48,'Non-prismatic'!$B$2:$U$274,3,FALSE),IF(AND($B48<>"",$F$4="R=3"),VLOOKUP($B48,'Non-prismatic'!$B$2:$U$274,16,FALSE)*VLOOKUP($F$4,Sheet1!$B$8:$N$10,11,FALSE),""))) ->  | N48: =IF(AND($B48<>"",$F$4="Capacity (Non-OSHPD)"),VLOOKUP($B48,'Non-prismatic'!$B$2:$U$274,17,FALSE)*VLOOKUP($F$4,Sheet1!$B$8:$N$10,12,FALSE),IF(AND($B48<>"",$F$4="Capacity (OSHPD)"),VLOOKUP($B48,'Non-prismatic'!$B$2:$U$274,17,FALSE)*VLOOKUP($F$4,Sheet1!$B$8:$N$10,12,FALSE),IF(AND($B48<>"",$F$4="R=3"),VLOOKUP($B48,'Non-prismatic'!$B$2:$U$274,17,FALSE)*VLOOKUP($F$4,Sheet1!$B$8:$N$10,12,FALSE),""))) ->  | O48: =IF(AND(B48<>"",$F$4="Capacity (Non-OSHPD)"),VLOOKUP($B48,'Non-prismatic'!$B$2:$U$274,18,FALSE),IF(AND(B48<>"",OR($F$4="Capacity (OSHPD)",$F$4="R=3")),VLOOKUP($B48,'Non-prismatic'!$B$2:$U$274,19,FALSE),"")) ->  | P48: =IF(B48<>"",VLOOKUP($B48,'Non-prismatic'!$B$2:$V$274,21,FALSE),"") ->  | Q48: =IF(B48<>"",VLOOKUP($B48,'Non-prismatic'!$B$2:$U$274,3,FALSE),"") -> 
C49: =IF(B49<>"",VLOOKUP($B49,'Non-prismatic'!$B$2:$U$274,4,FALSE),"") ->  | D49: =IF(AND($B49<>"",$F$4="Capacity (Non-OSHPD)"),VLOOKUP($B49,'Non-prismatic'!$B$2:$U$274,6,FALSE)*VLOOKUP($F$4,Sheet1!$B$8:$N$10,2,FALSE),IF(AND($B49<>"",$F$4="Capacity (OSHPD)"),VLOOKUP($B49,'Non-prismatic'!$B$2:$U$274,6,FALSE)*VLOOKUP($F$4,Sheet1!$B$8:$N$10,2,FALSE),IF(AND($B49<>"",$F$4="R=3"),VLOOKUP($B49,'Non-prismatic'!$B$2:$U$274,6,FALSE)*VLOOKUP($F$4,Sheet1!$B$8:$N$10,2,FALSE),""))) ->  | E49: =IF(AND($B49<>"",$F$4="Capacity (Non-OSHPD)"),VLOOKUP($B49,'Non-prismatic'!$B$2:$U$274,7,FALSE)*VLOOKUP($F$4,Sheet1!$B$8:$N$10,3,FALSE),IF(AND($B49<>"",$F$4="Capacity (OSHPD)"),VLOOKUP($B49,'Non-prismatic'!$B$2:$U$274,7,FALSE)*VLOOKUP($F$4,Sheet1!$B$8:$N$10,3,FALSE),IF(AND($B49<>"",$F$4="R=3"),VLOOKUP($B49,'Non-prismatic'!$B$2:$U$274,7,FALSE)*VLOOKUP($F$4,Sheet1!$B$8:$N$10,3,FALSE),""))) ->  | F49: =IF(AND($B49<>"",$F$4="Capacity (Non-OSHPD)"),VLOOKUP($B49,'Non-prismatic'!$B$2:$U$274,8,FALSE)*VLOOKUP($F$4,Sheet1!$B$8:$N$10,4,FALSE),IF(AND($B49<>"",$F$4="Capacity (OSHPD)"),VLOOKUP($B49,'Non-prismatic'!$B$2:$U$274,8,FALSE)*VLOOKUP($F$4,Sheet1!$B$8:$N$10,4,FALSE),IF(AND($B49<>"",$F$4="R=3"),VLOOKUP($B49,'Non-prismatic'!$B$2:$U$274,8,FALSE)*VLOOKUP($F$4,Sheet1!$B$8:$N$10,4,FALSE),""))) ->  | G49: =IF(AND($B49<>"",$F$4="Capacity (Non-OSHPD)"),VLOOKUP($B49,'Non-prismatic'!$B$2:$U$274,9,FALSE)*VLOOKUP($F$4,Sheet1!$B$8:$N$10,5,FALSE),IF(AND($B49<>"",$F$4="Capacity (OSHPD)"),VLOOKUP($B49,'Non-prismatic'!$B$2:$U$274,9,FALSE)*VLOOKUP($F$4,Sheet1!$B$8:$N$10,5,FALSE),IF(AND($B49<>"",$F$4="R=3"),VLOOKUP($B49,'Non-prismatic'!$B$2:$U$274,9,FALSE)*VLOOKUP($F$4,Sheet1!$B$8:$N$10,5,FALSE),""))) ->  | H49: =IF(AND($B49<>"",$F$4="Capacity (Non-OSHPD)"),VLOOKUP($B49,'Non-prismatic'!$B$2:$U$274,10,FALSE)*VLOOKUP($F$4,Sheet1!$B$8:$N$10,6,FALSE),IF(AND($B49<>"",$F$4="Capacity (OSHPD)"),VLOOKUP($B49,'Non-prismatic'!$B$2:$U$274,10,FALSE)*VLOOKUP($F$4,Sheet1!$B$8:$N$10,6,FALSE),IF(AND($B49<>"",$F$4="R=3"),VLOOKUP($B49,'Non-prismatic'!$B$2:$U$274,10,FALSE)*VLOOKUP($F$4,Sheet1!$B$8:$N$10,6,FALSE),""))) ->  | I49: =IF(AND($B49<>"",$F$4="Capacity (Non-OSHPD)"),VLOOKUP($B49,'Non-prismatic'!$B$2:$U$274,12,FALSE)*VLOOKUP($F$4,Sheet1!$B$8:$N$10,7,FALSE),IF(AND($B49<>"",$F$4="Capacity (OSHPD)"),2*3*VLOOKUP($B49,'Non-prismatic'!$B$2:$U$274,9,FALSE)/VLOOKUP($B49,'Non-prismatic'!$B$2:$U$274,3,FALSE),IF(AND($B49<>"",$F$4="R=3"),VLOOKUP($B49,'Non-prismatic'!$B$2:$U$274,12,FALSE)*VLOOKUP($F$4,Sheet1!$B$8:$N$10,7,FALSE),""))) ->  | J49: =IF(AND($B49<>"",$F$4="Capacity (Non-OSHPD)"),VLOOKUP($B49,'Non-prismatic'!$B$2:$U$274,13,FALSE)*VLOOKUP($F$4,Sheet1!$B$8:$N$10,8,FALSE),IF(AND($B49<>"",$F$4="Capacity (OSHPD)"),VLOOKUP($B49,'Non-prismatic'!$B$2:$U$274,13,FALSE)*VLOOKUP($F$4,Sheet1!$B$8:$N$10,8,FALSE),IF(AND($B49<>"",$F$4="R=3"),VLOOKUP($B49,'Non-prismatic'!$B$2:$U$274,13,FALSE)*VLOOKUP($F$4,Sheet1!$B$8:$N$10,8,FALSE),""))) ->  | K49: =IF(AND($B49<>"",$F$4="Capacity (Non-OSHPD)"),VLOOKUP($B49,'Non-prismatic'!$B$2:$U$274,14,FALSE)*VLOOKUP($F$4,Sheet1!$B$8:$N$10,9,FALSE),IF(AND($B49<>"",$F$4="Capacity (OSHPD)"),VLOOKUP($B49,'Non-prismatic'!$B$2:$U$274,14,FALSE)*VLOOKUP($F$4,Sheet1!$B$8:$N$10,9,FALSE),IF(AND($B49<>"",$F$4="R=3"),VLOOKUP($B49,'Non-prismatic'!$B$2:$U$274,14,FALSE)*VLOOKUP($F$4,Sheet1!$B$8:$N$10,9,FALSE),""))) ->  | L49: =IF(AND($B49<>"",$F$4="Capacity (Non-OSHPD)"),VLOOKUP($B49,'Non-prismatic'!$B$2:$U$274,15,FALSE)*VLOOKUP($F$4,Sheet1!$B$8:$N$10,10,FALSE),IF(AND($B49<>"",$F$4="Capacity (OSHPD)"),VLOOKUP($B49,'Non-prismatic'!$B$2:$U$274,15,FALSE)*VLOOKUP($F$4,Sheet1!$B$8:$N$10,10,FALSE),IF(AND($B49<>"",$F$4="R=3"),VLOOKUP($B49,'Non-prismatic'!$B$2:$U$274,15,FALSE)*VLOOKUP($F$4,Sheet1!$B$8:$N$10,10,FALSE),""))) ->  | M49: =IF(AND($B49<>"",$F$4="Capacity (Non-OSHPD)"),VLOOKUP($B49,'Non-prismatic'!$B$2:$U$274,16,FALSE)*VLOOKUP($F$4,Sheet1!$B$8:$N$10,11,FALSE),IF(AND($B49<>"",$F$4="Capacity (OSHPD)"),1.15*2*3*VLOOKUP($B49,'Non-prismatic'!$B$2:$U$274,9,FALSE)/VLOOKUP($B49,'Non-prismatic'!$B$2:$U$274,3,FALSE),IF(AND($B49<>"",$F$4="R=3"),VLOOKUP($B49,'Non-prismatic'!$B$2:$U$274,16,FALSE)*VLOOKUP($F$4,Sheet1!$B$8:$N$10,11,FALSE),""))) ->  | N49: =IF(AND($B49<>"",$F$4="Capacity (Non-OSHPD)"),VLOOKUP($B49,'Non-prismatic'!$B$2:$U$274,17,FALSE)*VLOOKUP($F$4,Sheet1!$B$8:$N$10,12,FALSE),IF(AND($B49<>"",$F$4="Capacity (OSHPD)"),VLOOKUP($B49,'Non-prismatic'!$B$2:$U$274,17,FALSE)*VLOOKUP($F$4,Sheet1!$B$8:$N$10,12,FALSE),IF(AND($B49<>"",$F$4="R=3"),VLOOKUP($B49,'Non-prismatic'!$B$2:$U$274,17,FALSE)*VLOOKUP($F$4,Sheet1!$B$8:$N$10,12,FALSE),""))) ->  | O49: =IF(AND(B49<>"",$F$4="Capacity (Non-OSHPD)"),VLOOKUP($B49,'Non-prismatic'!$B$2:$U$274,18,FALSE),IF(AND(B49<>"",OR($F$4="Capacity (OSHPD)",$F$4="R=3")),VLOOKUP($B49,'Non-prismatic'!$B$2:$U$274,19,FALSE),"")) ->  | P49: =IF(B49<>"",VLOOKUP($B49,'Non-prismatic'!$B$2:$V$274,21,FALSE),"") ->  | Q49: =IF(B49<>"",VLOOKUP($B49,'Non-prismatic'!$B$2:$U$274,3,FALSE),"") -> 
C50: =IF(B50<>"",VLOOKUP($B50,'Non-prismatic'!$B$2:$U$274,4,FALSE),"") ->  | D50: =IF(AND($B50<>"",$F$4="Capacity (Non-OSHPD)"),VLOOKUP($B50,'Non-prismatic'!$B$2:$U$274,6,FALSE)*VLOOKUP($F$4,Sheet1!$B$8:$N$10,2,FALSE),IF(AND($B50<>"",$F$4="Capacity (OSHPD)"),VLOOKUP($B50,'Non-prismatic'!$B$2:$U$274,6,FALSE)*VLOOKUP($F$4,Sheet1!$B$8:$N$10,2,FALSE),IF(AND($B50<>"",$F$4="R=3"),VLOOKUP($B50,'Non-prismatic'!$B$2:$U$274,6,FALSE)*VLOOKUP($F$4,Sheet1!$B$8:$N$10,2,FALSE),""))) ->  | E50: =IF(AND($B50<>"",$F$4="Capacity (Non-OSHPD)"),VLOOKUP($B50,'Non-prismatic'!$B$2:$U$274,7,FALSE)*VLOOKUP($F$4,Sheet1!$B$8:$N$10,3,FALSE),IF(AND($B50<>"",$F$4="Capacity (OSHPD)"),VLOOKUP($B50,'Non-prismatic'!$B$2:$U$274,7,FALSE)*VLOOKUP($F$4,Sheet1!$B$8:$N$10,3,FALSE),IF(AND($B50<>"",$F$4="R=3"),VLOOKUP($B50,'Non-prismatic'!$B$2:$U$274,7,FALSE)*VLOOKUP($F$4,Sheet1!$B$8:$N$10,3,FALSE),""))) ->  | F50: =IF(AND($B50<>"",$F$4="Capacity (Non-OSHPD)"),VLOOKUP($B50,'Non-prismatic'!$B$2:$U$274,8,FALSE)*VLOOKUP($F$4,Sheet1!$B$8:$N$10,4,FALSE),IF(AND($B50<>"",$F$4="Capacity (OSHPD)"),VLOOKUP($B50,'Non-prismatic'!$B$2:$U$274,8,FALSE)*VLOOKUP($F$4,Sheet1!$B$8:$N$10,4,FALSE),IF(AND($B50<>"",$F$4="R=3"),VLOOKUP($B50,'Non-prismatic'!$B$2:$U$274,8,FALSE)*VLOOKUP($F$4,Sheet1!$B$8:$N$10,4,FALSE),""))) ->  | G50: =IF(AND($B50<>"",$F$4="Capacity (Non-OSHPD)"),VLOOKUP($B50,'Non-prismatic'!$B$2:$U$274,9,FALSE)*VLOOKUP($F$4,Sheet1!$B$8:$N$10,5,FALSE),IF(AND($B50<>"",$F$4="Capacity (OSHPD)"),VLOOKUP($B50,'Non-prismatic'!$B$2:$U$274,9,FALSE)*VLOOKUP($F$4,Sheet1!$B$8:$N$10,5,FALSE),IF(AND($B50<>"",$F$4="R=3"),VLOOKUP($B50,'Non-prismatic'!$B$2:$U$274,9,FALSE)*VLOOKUP($F$4,Sheet1!$B$8:$N$10,5,FALSE),""))) ->  | H50: =IF(AND($B50<>"",$F$4="Capacity (Non-OSHPD)"),VLOOKUP($B50,'Non-prismatic'!$B$2:$U$274,10,FALSE)*VLOOKUP($F$4,Sheet1!$B$8:$N$10,6,FALSE),IF(AND($B50<>"",$F$4="Capacity (OSHPD)"),VLOOKUP($B50,'Non-prismatic'!$B$2:$U$274,10,FALSE)*VLOOKUP($F$4,Sheet1!$B$8:$N$10,6,FALSE),IF(AND($B50<>"",$F$4="R=3"),VLOOKUP($B50,'Non-prismatic'!$B$2:$U$274,10,FALSE)*VLOOKUP($F$4,Sheet1!$B$8:$N$10,6,FALSE),""))) ->  | I50: =IF(AND($B50<>"",$F$4="Capacity (Non-OSHPD)"),VLOOKUP($B50,'Non-prismatic'!$B$2:$U$274,12,FALSE)*VLOOKUP($F$4,Sheet1!$B$8:$N$10,7,FALSE),IF(AND($B50<>"",$F$4="Capacity (OSHPD)"),2*3*VLOOKUP($B50,'Non-prismatic'!$B$2:$U$274,9,FALSE)/VLOOKUP($B50,'Non-prismatic'!$B$2:$U$274,3,FALSE),IF(AND($B50<>"",$F$4="R=3"),VLOOKUP($B50,'Non-prismatic'!$B$2:$U$274,12,FALSE)*VLOOKUP($F$4,Sheet1!$B$8:$N$10,7,FALSE),""))) ->  | J50: =IF(AND($B50<>"",$F$4="Capacity (Non-OSHPD)"),VLOOKUP($B50,'Non-prismatic'!$B$2:$U$274,13,FALSE)*VLOOKUP($F$4,Sheet1!$B$8:$N$10,8,FALSE),IF(AND($B50<>"",$F$4="Capacity (OSHPD)"),VLOOKUP($B50,'Non-prismatic'!$B$2:$U$274,13,FALSE)*VLOOKUP($F$4,Sheet1!$B$8:$N$10,8,FALSE),IF(AND($B50<>"",$F$4="R=3"),VLOOKUP($B50,'Non-prismatic'!$B$2:$U$274,13,FALSE)*VLOOKUP($F$4,Sheet1!$B$8:$N$10,8,FALSE),""))) ->  | K50: =IF(AND($B50<>"",$F$4="Capacity (Non-OSHPD)"),VLOOKUP($B50,'Non-prismatic'!$B$2:$U$274,14,FALSE)*VLOOKUP($F$4,Sheet1!$B$8:$N$10,9,FALSE),IF(AND($B50<>"",$F$4="Capacity (OSHPD)"),VLOOKUP($B50,'Non-prismatic'!$B$2:$U$274,14,FALSE)*VLOOKUP($F$4,Sheet1!$B$8:$N$10,9,FALSE),IF(AND($B50<>"",$F$4="R=3"),VLOOKUP($B50,'Non-prismatic'!$B$2:$U$274,14,FALSE)*VLOOKUP($F$4,Sheet1!$B$8:$N$10,9,FALSE),""))) ->  | L50: =IF(AND($B50<>"",$F$4="Capacity (Non-OSHPD)"),VLOOKUP($B50,'Non-prismatic'!$B$2:$U$274,15,FALSE)*VLOOKUP($F$4,Sheet1!$B$8:$N$10,10,FALSE),IF(AND($B50<>"",$F$4="Capacity (OSHPD)"),VLOOKUP($B50,'Non-prismatic'!$B$2:$U$274,15,FALSE)*VLOOKUP($F$4,Sheet1!$B$8:$N$10,10,FALSE),IF(AND($B50<>"",$F$4="R=3"),VLOOKUP($B50,'Non-prismatic'!$B$2:$U$274,15,FALSE)*VLOOKUP($F$4,Sheet1!$B$8:$N$10,10,FALSE),""))) ->  | M50: =IF(AND($B50<>"",$F$4="Capacity (Non-OSHPD)"),VLOOKUP($B50,'Non-prismatic'!$B$2:$U$274,16,FALSE)*VLOOKUP($F$4,Sheet1!$B$8:$N$10,11,FALSE),IF(AND($B50<>"",$F$4="Capacity (OSHPD)"),1.15*2*3*VLOOKUP($B50,'Non-prismatic'!$B$2:$U$274,9,FALSE)/VLOOKUP($B50,'Non-prismatic'!$B$2:$U$274,3,FALSE),IF(AND($B50<>"",$F$4="R=3"),VLOOKUP($B50,'Non-prismatic'!$B$2:$U$274,16,FALSE)*VLOOKUP($F$4,Sheet1!$B$8:$N$10,11,FALSE),""))) ->  | N50: =IF(AND($B50<>"",$F$4="Capacity (Non-OSHPD)"),VLOOKUP($B50,'Non-prismatic'!$B$2:$U$274,17,FALSE)*VLOOKUP($F$4,Sheet1!$B$8:$N$10,12,FALSE),IF(AND($B50<>"",$F$4="Capacity (OSHPD)"),VLOOKUP($B50,'Non-prismatic'!$B$2:$U$274,17,FALSE)*VLOOKUP($F$4,Sheet1!$B$8:$N$10,12,FALSE),IF(AND($B50<>"",$F$4="R=3"),VLOOKUP($B50,'Non-prismatic'!$B$2:$U$274,17,FALSE)*VLOOKUP($F$4,Sheet1!$B$8:$N$10,12,FALSE),""))) ->  | O50: =IF(AND(B50<>"",$F$4="Capacity (Non-OSHPD)"),VLOOKUP($B50,'Non-prismatic'!$B$2:$U$274,18,FALSE),IF(AND(B50<>"",OR($F$4="Capacity (OSHPD)",$F$4="R=3")),VLOOKUP($B50,'Non-prismatic'!$B$2:$U$274,19,FALSE),"")) ->  | P50: =IF(B50<>"",VLOOKUP($B50,'Non-prismatic'!$B$2:$V$274,21,FALSE),"") ->  | Q50: =IF(B50<>"",VLOOKUP($B50,'Non-prismatic'!$B$2:$U$274,3,FALSE),"") -> 
C51: =IF(B51<>"",VLOOKUP($B51,'Non-prismatic'!$B$2:$U$274,4,FALSE),"") ->  | D51: =IF(AND($B51<>"",$F$4="Capacity (Non-OSHPD)"),VLOOKUP($B51,'Non-prismatic'!$B$2:$U$274,6,FALSE)*VLOOKUP($F$4,Sheet1!$B$8:$N$10,2,FALSE),IF(AND($B51<>"",$F$4="Capacity (OSHPD)"),VLOOKUP($B51,'Non-prismatic'!$B$2:$U$274,6,FALSE)*VLOOKUP($F$4,Sheet1!$B$8:$N$10,2,FALSE),IF(AND($B51<>"",$F$4="R=3"),VLOOKUP($B51,'Non-prismatic'!$B$2:$U$274,6,FALSE)*VLOOKUP($F$4,Sheet1!$B$8:$N$10,2,FALSE),""))) ->  | E51: =IF(AND($B51<>"",$F$4="Capacity (Non-OSHPD)"),VLOOKUP($B51,'Non-prismatic'!$B$2:$U$274,7,FALSE)*VLOOKUP($F$4,Sheet1!$B$8:$N$10,3,FALSE),IF(AND($B51<>"",$F$4="Capacity (OSHPD)"),VLOOKUP($B51,'Non-prismatic'!$B$2:$U$274,7,FALSE)*VLOOKUP($F$4,Sheet1!$B$8:$N$10,3,FALSE),IF(AND($B51<>"",$F$4="R=3"),VLOOKUP($B51,'Non-prismatic'!$B$2:$U$274,7,FALSE)*VLOOKUP($F$4,Sheet1!$B$8:$N$10,3,FALSE),""))) ->  | F51: =IF(AND($B51<>"",$F$4="Capacity (Non-OSHPD)"),VLOOKUP($B51,'Non-prismatic'!$B$2:$U$274,8,FALSE)*VLOOKUP($F$4,Sheet1!$B$8:$N$10,4,FALSE),IF(AND($B51<>"",$F$4="Capacity (OSHPD)"),VLOOKUP($B51,'Non-prismatic'!$B$2:$U$274,8,FALSE)*VLOOKUP($F$4,Sheet1!$B$8:$N$10,4,FALSE),IF(AND($B51<>"",$F$4="R=3"),VLOOKUP($B51,'Non-prismatic'!$B$2:$U$274,8,FALSE)*VLOOKUP($F$4,Sheet1!$B$8:$N$10,4,FALSE),""))) ->  | G51: =IF(AND($B51<>"",$F$4="Capacity (Non-OSHPD)"),VLOOKUP($B51,'Non-prismatic'!$B$2:$U$274,9,FALSE)*VLOOKUP($F$4,Sheet1!$B$8:$N$10,5,FALSE),IF(AND($B51<>"",$F$4="Capacity (OSHPD)"),VLOOKUP($B51,'Non-prismatic'!$B$2:$U$274,9,FALSE)*VLOOKUP($F$4,Sheet1!$B$8:$N$10,5,FALSE),IF(AND($B51<>"",$F$4="R=3"),VLOOKUP($B51,'Non-prismatic'!$B$2:$U$274,9,FALSE)*VLOOKUP($F$4,Sheet1!$B$8:$N$10,5,FALSE),""))) ->  | H51: =IF(AND($B51<>"",$F$4="Capacity (Non-OSHPD)"),VLOOKUP($B51,'Non-prismatic'!$B$2:$U$274,10,FALSE)*VLOOKUP($F$4,Sheet1!$B$8:$N$10,6,FALSE),IF(AND($B51<>"",$F$4="Capacity (OSHPD)"),VLOOKUP($B51,'Non-prismatic'!$B$2:$U$274,10,FALSE)*VLOOKUP($F$4,Sheet1!$B$8:$N$10,6,FALSE),IF(AND($B51<>"",$F$4="R=3"),VLOOKUP($B51,'Non-prismatic'!$B$2:$U$274,10,FALSE)*VLOOKUP($F$4,Sheet1!$B$8:$N$10,6,FALSE),""))) ->  | I51: =IF(AND($B51<>"",$F$4="Capacity (Non-OSHPD)"),VLOOKUP($B51,'Non-prismatic'!$B$2:$U$274,12,FALSE)*VLOOKUP($F$4,Sheet1!$B$8:$N$10,7,FALSE),IF(AND($B51<>"",$F$4="Capacity (OSHPD)"),2*3*VLOOKUP($B51,'Non-prismatic'!$B$2:$U$274,9,FALSE)/VLOOKUP($B51,'Non-prismatic'!$B$2:$U$274,3,FALSE),IF(AND($B51<>"",$F$4="R=3"),VLOOKUP($B51,'Non-prismatic'!$B$2:$U$274,12,FALSE)*VLOOKUP($F$4,Sheet1!$B$8:$N$10,7,FALSE),""))) ->  | J51: =IF(AND($B51<>"",$F$4="Capacity (Non-OSHPD)"),VLOOKUP($B51,'Non-prismatic'!$B$2:$U$274,13,FALSE)*VLOOKUP($F$4,Sheet1!$B$8:$N$10,8,FALSE),IF(AND($B51<>"",$F$4="Capacity (OSHPD)"),VLOOKUP($B51,'Non-prismatic'!$B$2:$U$274,13,FALSE)*VLOOKUP($F$4,Sheet1!$B$8:$N$10,8,FALSE),IF(AND($B51<>"",$F$4="R=3"),VLOOKUP($B51,'Non-prismatic'!$B$2:$U$274,13,FALSE)*VLOOKUP($F$4,Sheet1!$B$8:$N$10,8,FALSE),""))) ->  | K51: =IF(AND($B51<>"",$F$4="Capacity (Non-OSHPD)"),VLOOKUP($B51,'Non-prismatic'!$B$2:$U$274,14,FALSE)*VLOOKUP($F$4,Sheet1!$B$8:$N$10,9,FALSE),IF(AND($B51<>"",$F$4="Capacity (OSHPD)"),VLOOKUP($B51,'Non-prismatic'!$B$2:$U$274,14,FALSE)*VLOOKUP($F$4,Sheet1!$B$8:$N$10,9,FALSE),IF(AND($B51<>"",$F$4="R=3"),VLOOKUP($B51,'Non-prismatic'!$B$2:$U$274,14,FALSE)*VLOOKUP($F$4,Sheet1!$B$8:$N$10,9,FALSE),""))) ->  | L51: =IF(AND($B51<>"",$F$4="Capacity (Non-OSHPD)"),VLOOKUP($B51,'Non-prismatic'!$B$2:$U$274,15,FALSE)*VLOOKUP($F$4,Sheet1!$B$8:$N$10,10,FALSE),IF(AND($B51<>"",$F$4="Capacity (OSHPD)"),VLOOKUP($B51,'Non-prismatic'!$B$2:$U$274,15,FALSE)*VLOOKUP($F$4,Sheet1!$B$8:$N$10,10,FALSE),IF(AND($B51<>"",$F$4="R=3"),VLOOKUP($B51,'Non-prismatic'!$B$2:$U$274,15,FALSE)*VLOOKUP($F$4,Sheet1!$B$8:$N$10,10,FALSE),""))) ->  | M51: =IF(AND($B51<>"",$F$4="Capacity (Non-OSHPD)"),VLOOKUP($B51,'Non-prismatic'!$B$2:$U$274,16,FALSE)*VLOOKUP($F$4,Sheet1!$B$8:$N$10,11,FALSE),IF(AND($B51<>"",$F$4="Capacity (OSHPD)"),1.15*2*3*VLOOKUP($B51,'Non-prismatic'!$B$2:$U$274,9,FALSE)/VLOOKUP($B51,'Non-prismatic'!$B$2:$U$274,3,FALSE),IF(AND($B51<>"",$F$4="R=3"),VLOOKUP($B51,'Non-prismatic'!$B$2:$U$274,16,FALSE)*VLOOKUP($F$4,Sheet1!$B$8:$N$10,11,FALSE),""))) ->  | N51: =IF(AND($B51<>"",$F$4="Capacity (Non-OSHPD)"),VLOOKUP($B51,'Non-prismatic'!$B$2:$U$274,17,FALSE)*VLOOKUP($F$4,Sheet1!$B$8:$N$10,12,FALSE),IF(AND($B51<>"",$F$4="Capacity (OSHPD)"),VLOOKUP($B51,'Non-prismatic'!$B$2:$U$274,17,FALSE)*VLOOKUP($F$4,Sheet1!$B$8:$N$10,12,FALSE),IF(AND($B51<>"",$F$4="R=3"),VLOOKUP($B51,'Non-prismatic'!$B$2:$U$274,17,FALSE)*VLOOKUP($F$4,Sheet1!$B$8:$N$10,12,FALSE),""))) ->  | O51: =IF(AND(B51<>"",$F$4="Capacity (Non-OSHPD)"),VLOOKUP($B51,'Non-prismatic'!$B$2:$U$274,18,FALSE),IF(AND(B51<>"",OR($F$4="Capacity (OSHPD)",$F$4="R=3")),VLOOKUP($B51,'Non-prismatic'!$B$2:$U$274,19,FALSE),"")) ->  | P51: =IF(B51<>"",VLOOKUP($B51,'Non-prismatic'!$B$2:$V$274,21,FALSE),"") ->  | Q51: =IF(B51<>"",VLOOKUP($B51,'Non-prismatic'!$B$2:$U$274,3,FALSE),"") -> 
C52: =IF(B52<>"",VLOOKUP($B52,'Non-prismatic'!$B$2:$U$274,4,FALSE),"") ->  | D52: =IF(AND($B52<>"",$F$4="Capacity (Non-OSHPD)"),VLOOKUP($B52,'Non-prismatic'!$B$2:$U$274,6,FALSE)*VLOOKUP($F$4,Sheet1!$B$8:$N$10,2,FALSE),IF(AND($B52<>"",$F$4="Capacity (OSHPD)"),VLOOKUP($B52,'Non-prismatic'!$B$2:$U$274,6,FALSE)*VLOOKUP($F$4,Sheet1!$B$8:$N$10,2,FALSE),IF(AND($B52<>"",$F$4="R=3"),VLOOKUP($B52,'Non-prismatic'!$B$2:$U$274,6,FALSE)*VLOOKUP($F$4,Sheet1!$B$8:$N$10,2,FALSE),""))) ->  | E52: =IF(AND($B52<>"",$F$4="Capacity (Non-OSHPD)"),VLOOKUP($B52,'Non-prismatic'!$B$2:$U$274,7,FALSE)*VLOOKUP($F$4,Sheet1!$B$8:$N$10,3,FALSE),IF(AND($B52<>"",$F$4="Capacity (OSHPD)"),VLOOKUP($B52,'Non-prismatic'!$B$2:$U$274,7,FALSE)*VLOOKUP($F$4,Sheet1!$B$8:$N$10,3,FALSE),IF(AND($B52<>"",$F$4="R=3"),VLOOKUP($B52,'Non-prismatic'!$B$2:$U$274,7,FALSE)*VLOOKUP($F$4,Sheet1!$B$8:$N$10,3,FALSE),""))) ->  | F52: =IF(AND($B52<>"",$F$4="Capacity (Non-OSHPD)"),VLOOKUP($B52,'Non-prismatic'!$B$2:$U$274,8,FALSE)*VLOOKUP($F$4,Sheet1!$B$8:$N$10,4,FALSE),IF(AND($B52<>"",$F$4="Capacity (OSHPD)"),VLOOKUP($B52,'Non-prismatic'!$B$2:$U$274,8,FALSE)*VLOOKUP($F$4,Sheet1!$B$8:$N$10,4,FALSE),IF(AND($B52<>"",$F$4="R=3"),VLOOKUP($B52,'Non-prismatic'!$B$2:$U$274,8,FALSE)*VLOOKUP($F$4,Sheet1!$B$8:$N$10,4,FALSE),""))) ->  | G52: =IF(AND($B52<>"",$F$4="Capacity (Non-OSHPD)"),VLOOKUP($B52,'Non-prismatic'!$B$2:$U$274,9,FALSE)*VLOOKUP($F$4,Sheet1!$B$8:$N$10,5,FALSE),IF(AND($B52<>"",$F$4="Capacity (OSHPD)"),VLOOKUP($B52,'Non-prismatic'!$B$2:$U$274,9,FALSE)*VLOOKUP($F$4,Sheet1!$B$8:$N$10,5,FALSE),IF(AND($B52<>"",$F$4="R=3"),VLOOKUP($B52,'Non-prismatic'!$B$2:$U$274,9,FALSE)*VLOOKUP($F$4,Sheet1!$B$8:$N$10,5,FALSE),""))) ->  | H52: =IF(AND($B52<>"",$F$4="Capacity (Non-OSHPD)"),VLOOKUP($B52,'Non-prismatic'!$B$2:$U$274,10,FALSE)*VLOOKUP($F$4,Sheet1!$B$8:$N$10,6,FALSE),IF(AND($B52<>"",$F$4="Capacity (OSHPD)"),VLOOKUP($B52,'Non-prismatic'!$B$2:$U$274,10,FALSE)*VLOOKUP($F$4,Sheet1!$B$8:$N$10,6,FALSE),IF(AND($B52<>"",$F$4="R=3"),VLOOKUP($B52,'Non-prismatic'!$B$2:$U$274,10,FALSE)*VLOOKUP($F$4,Sheet1!$B$8:$N$10,6,FALSE),""))) ->  | I52: =IF(AND($B52<>"",$F$4="Capacity (Non-OSHPD)"),VLOOKUP($B52,'Non-prismatic'!$B$2:$U$274,12,FALSE)*VLOOKUP($F$4,Sheet1!$B$8:$N$10,7,FALSE),IF(AND($B52<>"",$F$4="Capacity (OSHPD)"),2*3*VLOOKUP($B52,'Non-prismatic'!$B$2:$U$274,9,FALSE)/VLOOKUP($B52,'Non-prismatic'!$B$2:$U$274,3,FALSE),IF(AND($B52<>"",$F$4="R=3"),VLOOKUP($B52,'Non-prismatic'!$B$2:$U$274,12,FALSE)*VLOOKUP($F$4,Sheet1!$B$8:$N$10,7,FALSE),""))) ->  | J52: =IF(AND($B52<>"",$F$4="Capacity (Non-OSHPD)"),VLOOKUP($B52,'Non-prismatic'!$B$2:$U$274,13,FALSE)*VLOOKUP($F$4,Sheet1!$B$8:$N$10,8,FALSE),IF(AND($B52<>"",$F$4="Capacity (OSHPD)"),VLOOKUP($B52,'Non-prismatic'!$B$2:$U$274,13,FALSE)*VLOOKUP($F$4,Sheet1!$B$8:$N$10,8,FALSE),IF(AND($B52<>"",$F$4="R=3"),VLOOKUP($B52,'Non-prismatic'!$B$2:$U$274,13,FALSE)*VLOOKUP($F$4,Sheet1!$B$8:$N$10,8,FALSE),""))) ->  | K52: =IF(AND($B52<>"",$F$4="Capacity (Non-OSHPD)"),VLOOKUP($B52,'Non-prismatic'!$B$2:$U$274,14,FALSE)*VLOOKUP($F$4,Sheet1!$B$8:$N$10,9,FALSE),IF(AND($B52<>"",$F$4="Capacity (OSHPD)"),VLOOKUP($B52,'Non-prismatic'!$B$2:$U$274,14,FALSE)*VLOOKUP($F$4,Sheet1!$B$8:$N$10,9,FALSE),IF(AND($B52<>"",$F$4="R=3"),VLOOKUP($B52,'Non-prismatic'!$B$2:$U$274,14,FALSE)*VLOOKUP($F$4,Sheet1!$B$8:$N$10,9,FALSE),""))) ->  | L52: =IF(AND($B52<>"",$F$4="Capacity (Non-OSHPD)"),VLOOKUP($B52,'Non-prismatic'!$B$2:$U$274,15,FALSE)*VLOOKUP($F$4,Sheet1!$B$8:$N$10,10,FALSE),IF(AND($B52<>"",$F$4="Capacity (OSHPD)"),VLOOKUP($B52,'Non-prismatic'!$B$2:$U$274,15,FALSE)*VLOOKUP($F$4,Sheet1!$B$8:$N$10,10,FALSE),IF(AND($B52<>"",$F$4="R=3"),VLOOKUP($B52,'Non-prismatic'!$B$2:$U$274,15,FALSE)*VLOOKUP($F$4,Sheet1!$B$8:$N$10,10,FALSE),""))) ->  | M52: =IF(AND($B52<>"",$F$4="Capacity (Non-OSHPD)"),VLOOKUP($B52,'Non-prismatic'!$B$2:$U$274,16,FALSE)*VLOOKUP($F$4,Sheet1!$B$8:$N$10,11,FALSE),IF(AND($B52<>"",$F$4="Capacity (OSHPD)"),1.15*2*3*VLOOKUP($B52,'Non-prismatic'!$B$2:$U$274,9,FALSE)/VLOOKUP($B52,'Non-prismatic'!$B$2:$U$274,3,FALSE),IF(AND($B52<>"",$F$4="R=3"),VLOOKUP($B52,'Non-prismatic'!$B$2:$U$274,16,FALSE)*VLOOKUP($F$4,Sheet1!$B$8:$N$10,11,FALSE),""))) ->  | N52: =IF(AND($B52<>"",$F$4="Capacity (Non-OSHPD)"),VLOOKUP($B52,'Non-prismatic'!$B$2:$U$274,17,FALSE)*VLOOKUP($F$4,Sheet1!$B$8:$N$10,12,FALSE),IF(AND($B52<>"",$F$4="Capacity (OSHPD)"),VLOOKUP($B52,'Non-prismatic'!$B$2:$U$274,17,FALSE)*VLOOKUP($F$4,Sheet1!$B$8:$N$10,12,FALSE),IF(AND($B52<>"",$F$4="R=3"),VLOOKUP($B52,'Non-prismatic'!$B$2:$U$274,17,FALSE)*VLOOKUP($F$4,Sheet1!$B$8:$N$10,12,FALSE),""))) ->  | O52: =IF(AND(B52<>"",$F$4="Capacity (Non-OSHPD)"),VLOOKUP($B52,'Non-prismatic'!$B$2:$U$274,18,FALSE),IF(AND(B52<>"",OR($F$4="Capacity (OSHPD)",$F$4="R=3")),VLOOKUP($B52,'Non-prismatic'!$B$2:$U$274,19,FALSE),"")) ->  | P52: =IF(B52<>"",VLOOKUP($B52,'Non-prismatic'!$B$2:$V$274,21,FALSE),"") ->  | Q52: =IF(B52<>"",VLOOKUP($B52,'Non-prismatic'!$B$2:$U$274,3,FALSE),"") -> 

Sheet SAP-SP_NP-assign (hidden)
I2: Project No: | J2: XXX
I3: Project Name: | J3: XXX
I4: Date: | J4: =TODAY() -> 2021-05-04
I5: Reviewed by: | J5: XX
A7: SAP2000 Assign Section by Group
B10: Group to be replaced | C10: New Section | E10: Notes
B11: Lateral Roof | C11: W18X50NPSP | E11: 1. You must have your SAP2000 model opened
B12: Lateral Level 03 | C12: W21X83NPSP | E12: 2. You can only have 1 SAP2000 model opened at the time you use this spreadsheet
B13: Lateral Level 02 | C13: W24X94NPSP
E14: Instructions
E15: 1. Create groups for the sections that you want to replace: Define -> Group definitions
E16: 2. Assign beams to the groups created
E17: 3. Use column "B" to write the groups of beams that you want to change the section
E18: 4. Use column "C" to write the name of the new section. Ex: W36X170NPSP
E19: 5. Once you have added all the sections you want to change, click the button "Assign Sections to Group"
E21: 6. All sections within the group will be replaced with the new section defined.

Sheet Non-prismatic (hidden)
B1: Size | D1: SP depth | E1: SP length | G1: Area | H1: Shear A2 | I1: Shear A3 | J1: Ixx | K1: Iyy | M1: Sxx | N1: Syy | O1: rx | P1: ry | Q1: Zx | R1: Zy | S1: Tor. | T1: Tor. | V1: Bf | AA1: Materials | AB1: Units
B2: W44X335 | D2: 48 | E2: 34 | G2: 98.5 | H2: 45.32 | I2: 56.286 | J2: 31100 | K2: 1200 | M2: 1410 | N2: 150 | O2: 17.8 | P2: 3.49 | Q2: 1620 | R2: 236 | S2: 100 | T2: 74.7 | V2: 16 | AB2: 4 | AE2: 1 | AF2: lb_in_F
B3: W44X290 | D3: 47 | E3: 34 | G3: 85.4 | H3: 37.714 | I3: 49.928 | J3: 27000 | K3: 1040 | M3: 1240 | N3: 132 | O3: 17.8 | P3: 3.49 | Q3: 1410 | R3: 205 | S3: 100 | T3: 50.9 | V3: 15.875 | AA3: A992Fy50 | AB3: 1 | AE3: 2 | AF3: lb_ft_F
B4: W44X262 | D4: 47 | E4: 33 | G4: 77.2 | H4: 33.9905 | I4: 44.872 | J4: 24100 | K4: 923 | M4: 1110 | N4: 117 | O4: 17.7 | P4: 3.47 | Q4: 1270 | R4: 182 | S4: 100 | T4: 37.3 | V4: 15.75 | AA4: 4000Psi | AE4: 3 | AF4: kip_in_F
B5: W44X230 | D5: 47 | E5: 33 | G5: 67.8 | H5: 30.459 | I5: 38.552 | J5: 20800 | K5: 796 | M5: 971 | N5: 101 | O5: 17.5 | P5: 3.43 | Q5: 1100 | R5: 157 | S5: 100 | T5: 24.9 | V5: 15.75 | AE5: 4 | AF5: kip_ft_F
B6: W40X593 | D6: 46 | E6: 31 | G6: 174 | H6: 76.97 | I6: 107.882 | J6: 50400 | K6: 2520 | M6: 2340 | N6: 302 | O6: 17 | P6: 3.8 | Q6: 2760 | R6: 481 | S6: 100 | T6: 445 | V6: 16.75 | AE6: 5 | AF6: kN_mm_C
B7: W40X503 | D7: 46 | E7: 31 | G7: 148 | H7: 64.834 | I7: 90.528 | J7: 41600 | K7: 2040 | M7: 1980 | N7: 249 | O7: 16.8 | P7: 3.72 | Q7: 2320 | R7: 394 | S7: 100 | T7: 277 | V7: 16.375 | AE7: 6 | AF7: kN_m_C
B8: W40X431 | D8: 46 | E8: 31 | G8: 127 | H8: 55.342 | I8: 76.464 | J8: 34800 | K8: 1690 | M8: 1690 | N8: 208 | O8: 16.6 | P8: 3.65 | Q8: 1960 | R8: 328 | S8: 100 | T8: 177 | V8: 16.25 | AE8: 7 | AF8: kgf_mm_C
B9: W40X397 | D9: 46 | E9: 31 | G9: 117 | H9: 50.02 | I9: 70.84 | J9: 32000 | K9: 1540 | M9: 1560 | N9: 191 | O9: 16.6 | P9: 3.64 | Q9: 1800 | R9: 300 | S9: 100 | T9: 142 | V9: 16.125 | AE9: 8 | AF9: kgf_m_C
B10: W40X372 | D10: 44.6 | E10: 31 | G10: 110 | H10: 47.096 | I10: 66.01 | J10: 29600 | K10: 1420 | M10: 1460 | N10: 177 | O10: 16.5 | P10: 3.6 | Q10: 1680 | R10: 277 | S10: 100 | T10: 116 | V10: 16.125 | AE10: 9 | AF10: N_mm_C
B11: W40X362 | D11: 44.6 | E11: 31 | G11: 106 | H11: 45.472 | I11: 64.32 | J11: 28900 | K11: 1380 | M11: 1420 | N11: 173 | O11: 16.5 | P11: 3.6 | Q11: 1640 | R11: 270 | S11: 100 | T11: 109 | V11: 16 | AE11: 10 | AF11: N_m_C
B12: W40X324 | D12: 44.5 | E12: 31 | G12: 95.3 | H12: 40.2 | I12: 57.558 | J12: 25600 | K12: 1220 | M12: 1280 | N12: 153 | O12: 16.4 | P12: 3.58 | Q12: 1460 | R12: 239 | S12: 100 | T12: 79.4 | V12: 15.875 | AE12: 11 | AF12: Ton_mm_C
B13: W40X297 | D13: 44 | E13: 31 | G13: 87.3 | H13: 37.014 | I13: 52.14 | J13: 23200 | K13: 1090 | M13: 1170 | N13: 138 | O13: 16.3 | P13: 3.54 | Q13: 1330 | R13: 215 | S13: 100 | T13: 61.2 | V13: 15.875 | AE13: 12 | AF13: Ton_m_C
B14: W40X277 | D14: 43.5 | E14: 31 | G14: 81.5 | H14: 32.951 | I14: 49.928 | J14: 21900 | K14: 1040 | M14: 1100 | N14: 132 | O14: 16.4 | P14: 3.58 | Q14: 1250 | R14: 204 | S14: 100 | T14: 51.5 | V14: 15.875 | AE14: 13 | AF14: kN_cm_C
B15: W40X249 | D15: 43 | E15: 30 | G15: 73.5 | H15: 29.55 | I15: 44.872 | J15: 19600 | K15: 926 | M15: 993 | N15: 118 | O15: 16.3 | P15: 3.55 | Q15: 1120 | R15: 182 | S15: 100 | T15: 38.1 | V15: 15.75 | AE15: 14 | AF15: kgf_cm_C
B16: W40X215 | D16: 43 | E16: 30 | G16: 63.5 | H16: 25.35 | I16: 38.552 | J16: 16700 | K16: 803 | M16: 859 | N16: 101 | O16: 16.2 | P16: 3.54 | Q16: 964 | R16: 156 | S16: 100 | T16: 24.8 | V16: 15.75 | AE16: 15 | AF16: N_cm_C
B17: W40X199 | D17: 43 | E17: 30 | G17: 58.8 | H17: 25.155 | I17: 33.812 | J17: 14900 | K17: 695 | M17: 770 | N17: 88.2 | O17: 16 | P17: 3.45 | Q17: 869 | R17: 137 | S17: 100 | T17: 18.3 | V17: 15.75 | AE17: 16 | AF17: Ton_cm_C
B18: W40X392 | D18: 45.6 | E18: 32 | G18: 116 | H18: 59.072 | I18: 62.496 | J18: 29900 | K18: 803 | M18: 1440 | N18: 130 | O18: 16.1 | P18: 2.64 | Q18: 1710 | R18: 212 | S18: 100 | T18: 172 | V18: 12.375
B19: W40X331 | D19: 45 | E19: 31 | G19: 97.7 | H19: 49.776 | I19: 51.972 | J19: 24700 | K19: 644 | M19: 1210 | N19: 106 | O19: 15.9 | P19: 2.57 | Q19: 1430 | R19: 172 | S19: 100 | T19: 105 | V19: 12.125
B20: W40X327 | D20: 45 | E20: 31 | G20: 95.9 | H20: 48.144 | I20: 51.546 | J20: 24500 | K20: 640 | M20: 1200 | N20: 105 | O20: 16 | P20: 2.58 | Q20: 1410 | R20: 170 | S20: 100 | T20: 103 | V20: 12.125
B21: W40X294 | D21: 44 | E21: 31 | G21: 86.2 | H21: 42.824 | I21: 46.32 | J21: 21900 | K21: 562 | M21: 1080 | N21: 93.5 | O21: 15.9 | P21: 2.55 | Q21: 1270 | R21: 150 | S21: 100 | T21: 76.6 | V21: 12 | AA21: STEELBRB
B22: W40X278 | D22: 44 | E22: 31 | G22: 82.3 | H22: 41.406 | I22: 43.44 | J22: 20500 | K22: 521 | M22: 1020 | N22: 87.1 | O22: 15.8 | P22: 2.52 | Q22: 1190 | R22: 140 | S22: 100 | T22: 65 | V22: 12 | AA22: A615Gr60
B23: W40X264 | D23: 44 | E23: 31 | G23: 77.4 | H23: 38.4 | I23: 41.174 | J23: 19400 | K23: 493 | M23: 971 | N23: 82.6 | O23: 15.8 | P23: 2.52 | Q23: 1130 | R23: 132 | S23: 100 | T23: 56.1 | V23: 11.875 | AA23: A416Gr270
B24: W40X235 | D24: 44 | E24: 31 | G24: 69.1 | H24: 32.951 | I24: 37.604 | J24: 17400 | K24: 444 | M24: 875 | N24: 74.6 | O24: 15.9 | P24: 2.54 | Q24: 1010 | R24: 118 | S24: 100 | T24: 41.3 | V24: 11.875
B25: W40X211 | D25: 43 | E25: 30 | G25: 62.1 | H25: 29.55 | I25: 33.512 | J25: 15500 | K25: 390 | M25: 786 | N25: 66.1 | O25: 15.8 | P25: 2.51 | Q25: 906 | R25: 105 | S25: 100 | T25: 30.4 | V25: 11.75
B26: W40X183 | D26: 42 | E26: 30 | G26: 53.3 | H26: 25.35 | I26: 28.32 | J26: 13200 | K26: 331 | M26: 675 | N26: 56 | O26: 15.7 | P26: 2.49 | Q26: 774 | R26: 88.3 | S26: 100 | T26: 19.3 | V26: 11.75
B27: W40X167 | D27: 42 | E27: 30 | G27: 49.3 | H27: 25.09 | I27: 24.308 | J27: 11600 | K27: 283 | M27: 600 | N27: 47.9 | O27: 15.3 | P27: 2.4 | Q27: 693 | R27: 76 | S27: 100 | T27: 14 | V27: 11.75
B28: W40X149 | D28: 42 | E28: 29 | G28: 43.8 | H28: 24.066 | I28: 19.588 | J28: 9800 | K28: 229 | M28: 513 | N28: 38.8 | O28: 15 | P28: 2.29 | Q28: 598 | R28: 62.2 | S28: 100 | T28: 9.36 | V28: 11.75
B29: W36X652 | D29: 44 | E29: 31 | G29: 192 | H29: 80.967 | I29: 124.608 | J29: 50600 | K29: 3230 | M29: 2460 | N29: 367 | O29: 16.2 | P29: 4.1 | Q29: 2910 | R29: 581 | S29: 100 | T29: 593 | V29: 17.625
B30: W36X529 | D30: 44 | E30: 31 | G30: 156 | H30: 64.078 | I30: 100.104 | J30: 39600 | K30: 2490 | M30: 1990 | N30: 289 | O30: 16 | P30: 4 | Q30: 2330 | R30: 454 | S30: 100 | T30: 327 | V30: 17.25
B31: W36X487 | D31: 44 | E31: 31 | G31: 143 | H31: 58.95 | I31: 91.656 | J31: 36000 | K31: 2250 | M31: 1830 | N31: 263 | O31: 15.8 | P31: 3.96 | Q31: 2130 | R31: 412 | S31: 100 | T31: 258 | V31: 17.125
B32: W36X441 | D32: 42.9 | E32: 31 | G32: 130 | H32: 52.904 | I32: 82.96 | J32: 32100 | K32: 1990 | M32: 1650 | N32: 235 | O32: 15.7 | P32: 3.92 | Q32: 1910 | R32: 368 | S32: 100 | T32: 194 | V32: 17
B33: W36X395 | D33: 42.4 | E33: 31 | G33: 116 | H33: 46.848 | I33: 73.92 | J33: 28500 | K33: 1750 | M33: 1490 | N33: 208 | O33: 15.7 | P33: 3.88 | Q33: 1710 | R33: 325 | S33: 100 | T33: 142 | V33: 16.875
B34: W36X361 | D34: 42 | E34: 31 | G34: 106 | H34: 42.56 | I34: 67.134 | J34: 25700 | K34: 1570 | M34: 1350 | N34: 188 | O34: 15.6 | P34: 3.85 | Q34: 1550 | R34: 293 | S34: 100 | T34: 109 | V34: 16.75
B35: W36X330 | D35: 41.7 | E35: 31 | G35: 96.9 | H35: 38.454 | I35: 61.42 | J35: 23300 | K35: 1420 | M35: 1240 | N35: 171 | O35: 15.5 | P35: 3.83 | Q35: 1410 | R35: 265 | S35: 100 | T35: 84.3 | V35: 16.625
B36: W36X302 | D36: 41.5 | E36: 31 | G36: 89 | H36: 35.2485 | I36: 56.112 | J36: 21100 | K36: 1300 | M36: 1130 | N36: 156 | O36: 15.4 | P36: 3.82 | Q36: 1280 | R36: 241 | S36: 100 | T36: 64.3 | V36: 16.625
B37: W36X282 | D37: 41 | E37: 31 | G37: 82.9 | H37: 32.8335 | I37: 52.124 | J37: 19600 | K37: 1200 | M37: 1050 | N37: 144 | O37: 15.4 | P37: 3.8 | Q37: 1190 | R37: 223 | S37: 100 | T37: 52.7 | V37: 16.625
B38: W36X262 | D38: 40.5 | E38: 31 | G38: 77.2 | H38: 30.996 | I38: 47.808 | J38: 17900 | K38: 1090 | M38: 972 | N38: 132 | O38: 15.3 | P38: 3.76 | Q38: 1100 | R38: 204 | S38: 100 | T38: 41.6 | V38: 16.5
B39: W36X247 | D39: 40 | E39: 31 | G39: 72.5 | H39: 29.36 | I39: 44.55 | J39: 16700 | K39: 1010 | M39: 913 | N39: 123 | O39: 15.2 | P39: 3.74 | Q39: 1030 | R39: 190 | S39: 100 | T39: 34.7 | V39: 16.5
B40: W36X231 | D40: 39.5 | E40: 31 | G40: 68.2 | H40: 27.74 | I40: 41.58 | J40: 15600 | K40: 940 | M40: 854 | N40: 114 | O40: 15.1 | P40: 3.71 | Q40: 963 | R40: 176 | S40: 100 | T40: 28.7 | V40: 16.5
B41: W36X256 | D41: 41.5 | E41: 29 | G41: 75.3 | H41: 35.904 | I41: 42.212 | J41: 16800 | K41: 528 | M41: 895 | N41: 86.5 | O41: 14.9 | P41: 2.65 | Q41: 1040 | R41: 137 | S41: 100 | T41: 52.9 | V41: 12.25
B42: W36X232 | D42: 41 | E42: 29 | G42: 68 | H42: 32.277 | I42: 37.994 | J42: 15000 | K42: 468 | M42: 809 | N42: 77.2 | O42: 14.8 | P42: 2.62 | Q42: 936 | R42: 122 | S42: 100 | T42: 39.6 | V42: 12.125
B43: W36X210 | D43: 41 | E43: 28 | G43: 61.9 | H43: 30.461 | I43: 33.184 | J43: 13200 | K43: 411 | M43: 719 | N43: 67.5 | O43: 14.6 | P43: 2.58 | Q43: 833 | R43: 107 | S43: 100 | T43: 28 | V43: 12.125
B44: W36X194 | D44: 40 | E44: 28 | G44: 57 | H44: 27.9225 | I44: 30.492 | J44: 12100 | K44: 375 | M44: 664 | N44: 61.9 | O44: 14.6 | P44: 2.56 | Q44: 767 | R44: 97.7 | S44: 100 | T44: 22.2 | V44: 12.125
B45: W36X182 | D45: 40 | E45: 28 | G45: 53.6 | H45: 26.3175 | I45: 28.556 | J45: 11300 | K45: 347 | M45: 623 | N45: 57.6 | O45: 14.5 | P45: 2.55 | Q45: 718 | R45: 90.7 | S45: 100 | T45: 18.5 | V45: 12.125
B46: W36X170 | D46: 39 | E46: 28 | G46: 50 | H46: 24.616 | I46: 26.4 | J46: 10500 | K46: 320 | M46: 581 | N46: 53.2 | O46: 14.5 | P46: 2.53 | Q46: 668 | R46: 83.8 | S46: 100 | T46: 15.1 | V46: 12
B47: W36X160 | D47: 39 | E47: 28 | G47: 47 | H47: 23.4 | I47: 24.48 | J47: 9760 | K47: 295 | M47: 542 | N47: 49.1 | O47: 14.4 | P47: 2.5 | Q47: 624 | R47: 77.3 | S47: 100 | T47: 12.4 | V47: 12
B48: W36X150 | D48: 39 | E48: 28 | G48: 44.3 | H48: 22.4375 | I48: 22.56 | J48: 9040 | K48: 270 | M48: 504 | N48: 45.1 | O48: 14.3 | P48: 2.47 | Q48: 581 | R48: 70.9 | S48: 100 | T48: 10.1 | V48: 12
B49: W36X135 | D49: 39 | E49: 27 | G49: 39.9 | H49: 21.36 | I49: 18.96 | J49: 7800 | K49: 225 | M49: 439 | N49: 37.7 | O49: 14 | P49: 2.38 | Q49: 509 | R49: 59.7 | S49: 100 | T49: 7 | V49: 12
B50: W33X387 | D50: 40 | E50: 30 | G50: 114 | H50: 45.36 | I50: 73.872 | J50: 24300 | K50: 1620 | M50: 1350 | N50: 200 | O50: 14.6 | P50: 3.77 | Q50: 1560 | R50: 312 | S50: 100 | T50: 148 | V50: 16.25
B51: W33X354 | D51: 39.6 | E51: 30 | G51: 104 | H51: 41.296 | I51: 67.298 | J51: 22000 | K51: 1460 | M51: 1240 | N51: 181 | O51: 14.5 | P51: 3.74 | Q51: 1420 | R51: 282 | S51: 100 | T51: 115 | V51: 16.125
B52: W33X318 | D52: 39.5 | E52: 30 | G52: 93.7 | H52: 36.608 | I52: 60.48 | J52: 19500 | K52: 1290 | M52: 1110 | N52: 161 | O52: 14.5 | P52: 3.71 | Q52: 1270 | R52: 250 | S52: 100 | T52: 84.4 | V52: 16
B53: W33X291 | D53: 39 | E53: 30 | G53: 85.6 | H53: 33.408 | I53: 55.014 | J53: 17700 | K53: 1160 | M53: 1020 | N53: 146 | O53: 14.4 | P53: 3.68 | Q53: 1160 | R53: 226 | S53: 100 | T53: 65.1 | V53: 15.875
B54: W33X263 | D54: 38 | E54: 30 | G54: 77.4 | H54: 30.015 | I54: 49.612 | J54: 15900 | K54: 1040 | M54: 919 | N54: 131 | O54: 14.3 | P54: 3.66 | Q54: 1040 | R54: 202 | S54: 100 | T54: 48.7 | V54: 15.75
B55: W33X241 | D55: 37.5 | E55: 30 | G55: 71.1 | H55: 28.386 | I55: 44.52 | J55: 14200 | K55: 933 | M55: 831 | N55: 118 | O55: 14.1 | P55: 3.62 | Q55: 940 | R55: 182 | S55: 100 | T55: 36.2 | V55: 15.875
B56: W33X221 | D56: 37 | E56: 30 | G56: 65.3 | H56: 26.2725 | I56: 40.448 | J56: 12900 | K56: 840 | M56: 759 | N56: 106 | O56: 14.1 | P56: 3.59 | Q56: 857 | R56: 164 | S56: 100 | T56: 27.8 | V56: 15.75
B57: W33X201 | D57: 36.5 | E57: 30 | G57: 59.1 | H57: 24.0955 | I57: 36.11 | J57: 11600 | K57: 749 | M57: 686 | N57: 95.2 | O57: 14 | P57: 3.56 | Q57: 773 | R57: 147 | S57: 100 | T57: 20.8 | V57: 15.75
B58: W33X169 | D58: 37 | E58: 26 | G58: 49.5 | H58: 22.646 | I58: 28.06 | J58: 9290 | K58: 310 | M58: 549 | N58: 53.9 | O58: 13.7 | P58: 2.5 | Q58: 629 | R58: 84.4 | S58: 100 | T58: 17.7 | V58: 11.5
B59: W33X152 | D59: 37 | E59: 26 | G59: 44.9 | H59: 21.2725 | I59: 24.592 | J59: 8160 | K59: 273 | M59: 487 | N59: 47.2 | O59: 13.5 | P59: 2.47 | Q59: 559 | R59: 73.9 | S59: 100 | T59: 12.4 | V59: 11.625
B60: W33X141 | D60: 36 | E60: 26 | G60: 41.5 | H60: 20.1465 | I60: 22.08 | J60: 7450 | K60: 246 | M60: 448 | N60: 42.7 | O60: 13.4 | P60: 2.43 | Q60: 514 | R60: 66.9 | S60: 100 | T60: 9.7 | V60: 11.5
B61: W33X130 | D61: 36 | E61: 25 | G61: 38.3 | H61: 19.198 | I61: 19.665 | J61: 6710 | K61: 218 | M61: 406 | N61: 37.9 | O61: 13.2 | P61: 2.39 | Q61: 467 | R61: 59.5 | S61: 100 | T61: 7.37 | V61: 11.5
B62: W33X118 | D62: 35 | E62: 25 | G62: 34.7 | H62: 18.095 | I62: 17.02 | J62: 5900 | K62: 187 | M62: 359 | N62: 32.6 | O62: 13 | P62: 2.32 | Q62: 415 | R62: 51.3 | S62: 100 | T62: 5.3 | V62: 11.5
B63: W30X391 | D63: 37.2 | E63: 27 | G63: 115 | H63: 45.152 | I63: 76.128 | J63: 20700 | K63: 1550 | M63: 1250 | N63: 198 | O63: 13.4 | P63: 3.67 | Q63: 1450 | R63: 310 | S63: 100 | T63: 173 | V63: 15.625
B64: W30X357 | D64: 36.8 | E64: 27 | G64: 105 | H64: 40.672 | I64: 69.44 | J64: 18700 | K64: 1390 | M64: 1140 | N64: 179 | O64: 13.3 | P64: 3.64 | Q64: 1320 | R64: 279 | S64: 100 | T64: 134 | V64: 15.5
B65: W30X326 | D65: 36.4 | E65: 27 | G65: 95.9 | H65: 36.936 | I65: 63.14 | J65: 16800 | K65: 1240 | M65: 1040 | N65: 162 | O65: 13.2 | P65: 3.6 | Q65: 1190 | R65: 252 | S65: 100 | T65: 103 | V65: 15.375
B66: W30X292 | D66: 36.5 | E66: 27 | G66: 86 | H66: 32.64 | I66: 56.61 | J66: 14900 | K66: 1100 | M66: 930 | N66: 144 | O66: 13.2 | P66: 3.58 | Q66: 1060 | R66: 223 | S66: 100 | T66: 75.2 | V66: 15.25
B67: W30X261 | D67: 35.5 | E67: 27 | G67: 77 | H67: 29.388 | I67: 50.16 | J67: 13100 | K67: 959 | M67: 829 | N67: 127 | O67: 13.1 | P67: 3.53 | Q67: 943 | R67: 196 | S67: 100 | T67: 54.1 | V67: 15.125
B68: W30X235 | D68: 34 | E68: 27 | G68: 69.3 | H68: 25.979 | I68: 45.3 | J68: 11700 | K68: 855 | M68: 748 | N68: 114 | O68: 13 | P68: 3.51 | Q68: 847 | R68: 175 | S68: 100 | T68: 40.3 | V68: 15
B69: W30X211 | D69: 34 | E69: 27 | G69: 62.3 | H69: 23.9475 | I69: 39.864 | J69: 10300 | K69: 757 | M69: 665 | N69: 100 | O69: 12.9 | P69: 3.49 | Q69: 751 | R69: 155 | S69: 100 | T69: 28.4 | V69: 15.125
B70: W30X191 | D70: 33.5 | E70: 27 | G70: 56.1 | H70: 21.797 | I70: 35.7 | J70: 9200 | K70: 673 | M70: 600 | N70: 89.5 | O70: 12.8 | P70: 3.46 | Q70: 675 | R70: 138 | S70: 100 | T70: 21 | V70: 15
B71: W30X173 | D71: 33 | E71: 27 | G71: 50.9 | H71: 19.912 | I71: 32.1 | J71: 8230 | K71: 598 | M71: 541 | N71: 79.8 | O71: 12.7 | P71: 3.42 | Q71: 607 | R71: 123 | S71: 100 | T71: 15.6 | V71: 15
B72: W30X148 | D72: 33.5 | E72: 24 | G72: 43.6 | H72: 19.955 | I72: 24.78 | J72: 6680 | K72: 227 | M72: 436 | N72: 43.3 | O72: 12.4 | P72: 2.28 | Q72: 500 | R72: 68 | S72: 100 | T72: 14.5 | V72: 10.5
B73: W30X132 | D73: 33 | E73: 23 | G73: 38.8 | H73: 18.6345 | I73: 21 | J73: 5770 | K73: 196 | M73: 380 | N73: 37.2 | O73: 12.2 | P73: 2.25 | Q73: 437 | R73: 58.4 | S73: 100 | T73: 9.72 | V73: 10.5
B74: W30X124 | D74: 33 | E74: 23 | G74: 36.5 | H74: 17.667 | I74: 19.53 | J74: 5360 | K74: 181 | M74: 355 | N74: 34.4 | O74: 12.1 | P74: 2.23 | Q74: 408 | R74: 54 | S74: 100 | T74: 7.99 | V74: 10.5
B75: W30X116 | D75: 33 | E75: 23 | G75: 34.2 | H75: 16.95 | I75: 17.85 | J75: 4930 | K75: 164 | M75: 329 | N75: 31.3 | O75: 12 | P75: 2.19 | Q75: 378 | R75: 49.2 | S75: 100 | T75: 6.43 | V75: 10.5
B76: W30X108 | D76: 33 | E76: 23 | G76: 31.7 | H76: 16.241 | I76: 15.96 | J76: 4470 | K76: 146 | M76: 299 | N76: 27.9 | O76: 11.9 | P76: 2.15 | Q76: 346 | R76: 43.9 | S76: 100 | T76: 4.99 | V76: 10.5
B77: W30X99 | D77: 33 | E77: 23 | G77: 29 | H77: 15.444 | I77: 14.07 | J77: 3990 | K77: 128 | M77: 269 | N77: 24.5 | O77: 11.7 | P77: 2.1 | Q77: 312 | R77: 38.6 | S77: 100 | T77: 3.77 | V77: 10.5
B78: W30X90 | D78: 33 | E78: 23 | G78: 26.3 | H78: 13.865 | I78: 12.688 | J78: 3610 | K78: 115 | M78: 245 | N78: 22.1 | O78: 11.7 | P78: 2.09 | Q78: 283 | R78: 34.7 | S78: 100 | T78: 2.84 | V78: 10.375
B79: W27X539 | D79: 36 | E79: 27 | G79: 159 | H79: 64.025 | I79: 108.324 | J79: 25600 | K79: 2110 | M79: 1570 | N79: 277 | O79: 12.7 | P79: 3.65 | Q79: 1890 | R79: 437 | S79: 100 | T79: 496 | V79: 15.25
B80: W27X368 | D80: 34.4 | E80: 27 | G80: 109 | H80: 41.952 | I80: 72.912 | J80: 16200 | K80: 1310 | M80: 1060 | N80: 179 | O80: 12.2 | P80: 3.48 | Q80: 1240 | R80: 279 | S80: 100 | T80: 170 | V80: 14.625
B81: W27X336 | D81: 34 | E81: 27 | G81: 99.2 | H81: 37.8 | I81: 66.576 | J81: 14600 | K81: 1180 | M81: 972 | N81: 162 | O81: 12.1 | P81: 3.45 | Q81: 1130 | R81: 252 | S81: 100 | T81: 131 | V81: 14.5
B82: W27X307 | D82: 34.5 | E82: 27 | G82: 90.2 | H82: 34.336 | I82: 60.192 | J82: 13100 | K82: 1050 | M82: 887 | N82: 146 | O82: 12 | P82: 3.41 | Q82: 1030 | R82: 227 | S82: 100 | T82: 101 | V82: 14.5
B83: W27X281 | D83: 33.5 | E83: 27 | G83: 83.1 | H83: 31.058 | I83: 55.584 | J83: 11900 | K83: 953 | M83: 814 | N83: 133 | O83: 12 | P83: 3.39 | Q83: 936 | R83: 206 | S83: 100 | T83: 79.5 | V83: 14.375
B84: W27X258 | D84: 33 | E84: 27 | G84: 76.1 | H84: 28.42 | I84: 50.622 | J84: 10800 | K84: 859 | M84: 745 | N84: 120 | O84: 11.9 | P84: 3.36 | Q84: 852 | R84: 187 | S84: 100 | T84: 61.6 | V84: 14.25
B85: W27X235 | D85: 33.5 | E85: 27 | G85: 69.4 | H85: 26.117 | I85: 45.724 | J85: 9700 | K85: 769 | M85: 677 | N85: 108 | O85: 11.8 | P85: 3.33 | Q85: 772 | R85: 168 | S85: 100 | T85: 47 | V85: 14.25
B86: W27X217 | D86: 32.5 | E86: 27 | G86: 63.9 | H86: 23.572 | I86: 42.3 | J86: 8910 | K86: 704 | M86: 627 | N86: 100 | O86: 11.8 | P86: 3.32 | Q86: 711 | R86: 154 | S86: 100 | T86: 37.6 | V86: 14.125
B87: W27X194 | D87: 32 | E87: 27 | G87: 57.1 | H87: 21.075 | I87: 37.52 | J87: 7860 | K87: 619 | M87: 559 | N87: 88.1 | O87: 11.7 | P87: 3.29 | Q87: 631 | R87: 136 | S87: 100 | T87: 27.1 | V87: 14
B88: W27X178 | D88: 31 | E88: 27 | G88: 52.5 | H88: 20.155 | I88: 33.558 | J88: 7020 | K88: 555 | M88: 505 | N88: 78.8 | O88: 11.6 | P88: 3.25 | Q88: 570 | R88: 122 | S88: 100 | T88: 20.1 | V88: 14.125
B89: W27X161 | D89: 31 | E89: 27 | G89: 47.6 | H89: 18.216 | I89: 30.24 | J89: 6310 | K89: 497 | M89: 458 | N89: 70.9 | O89: 11.5 | P89: 3.23 | Q89: 515 | R89: 109 | S89: 100 | T89: 15.1 | V89: 14
B90: W27X146 | D90: 30 | E90: 27 | G90: 43.2 | H90: 16.577 | I90: 27.3 | J90: 5660 | K90: 443 | M90: 414 | N90: 63.5 | O90: 11.5 | P90: 3.2 | Q90: 464 | R90: 97.7 | S90: 100 | T90: 11.3 | V90: 14
B91: W27X129 | D91: 30 | E91: 21 | G91: 37.8 | H91: 16.836 | I91: 22 | J91: 4760 | K91: 184 | M91: 345 | N91: 36.8 | O91: 11.2 | P91: 2.21 | Q91: 395 | R91: 57.6 | S91: 100 | T91: 11.1 | V91: 10
B92: W27X114 | D92: 30 | E92: 21 | G92: 33.6 | H92: 15.561 | I92: 18.786 | J92: 4080 | K92: 159 | M92: 299 | N92: 31.5 | O92: 11 | P92: 2.18 | Q92: 343 | R92: 49.3 | S92: 100 | T92: 7.33 | V92: 10.125
B93: W27X102 | D93: 30 | E93: 21 | G93: 30 | H93: 13.9565 | I93: 16.6 | J93: 3620 | K93: 139 | M93: 267 | N93: 27.8 | O93: 11 | P93: 2.15 | Q93: 305 | R93: 43.4 | S93: 100 | T93: 5.28 | V93: 10
B94: W27X94 | D94: 30 | E94: 21 | G94: 27.6 | H94: 13.181 | I94: 14.9 | J94: 3270 | K94: 124 | M94: 243 | N94: 24.8 | O94: 10.9 | P94: 2.12 | Q94: 278 | R94: 38.8 | S94: 100 | T94: 4.03 | V94: 10
B95: W27X84 | D95: 30 | E95: 21 | G95: 24.7 | H95: 12.282 | I95: 12.8 | J95: 2850 | K95: 106 | M95: 213 | N95: 21.2 | O95: 10.7 | P95: 2.07 | Q95: 244 | R95: 33.2 | S95: 100 | T95: 2.81 | V95: 10
B96: W24X370 | D96: 32 | E96: 24 | G96: 109 | H96: 42.56 | I96: 74.528 | J96: 13400 | K96: 1160 | M96: 957 | N96: 170 | O96: 11.1 | P96: 3.27 | Q96: 1130 | R96: 267 | S96: 100 | T96: 201 | V96: 13.625
B97: W24X335 | D97: 31.5 | E97: 24 | G97: 98.3 | H97: 37.95 | I97: 66.96 | J97: 11900 | K97: 1030 | M97: 864 | N97: 152 | O97: 11 | P97: 3.23 | Q97: 1020 | R97: 238 | S97: 100 | T97: 152 | V97: 13.5
B98: W24X306 | D98: 31.1 | E98: 24 | G98: 89.7 | H98: 34.146 | I98: 61.104 | J98: 10700 | K98: 919 | M98: 789 | N98: 137 | O98: 10.9 | P98: 3.2 | Q98: 922 | R98: 214 | S98: 100 | T98: 117 | V98: 13.375
B99: W24X279 | D99: 31.5 | E99: 24 | G99: 81.9 | H99: 30.972 | I99: 55.594 | J99: 9600 | K99: 823 | M99: 718 | N99: 124 | O99: 10.8 | P99: 3.17 | Q99: 835 | R99: 193 | S99: 100 | T99: 90.5 | V99: 13.25
B100: W24X250 | D100: 31 | E100: 24 | G100: 73.5 | H100: 27.352 | I100: 49.896 | J100: 8490 | K100: 724 | M100: 644 | N100: 110 | O100: 10.7 | P100: 3.14 | Q100: 744 | R100: 171 | S100: 100 | T100: 66.6 | V100: 13.125
B101: W24X229 | D101: 30 | E101: 24 | G101: 67.2 | H101: 24.96 | I101: 45.326 | J101: 7650 | K101: 651 | M101: 588 | N101: 99.4 | O101: 10.7 | P101: 3.11 | Q101: 675 | R101: 154 | S101: 100 | T101: 51.3 | V101: 13.125
B102: W24X207 | D102: 29.5 | E102: 24 | G102: 60.7 | H102: 22.359 | I102: 40.82 | J102: 6820 | K102: 578 | M102: 531 | N102: 88.8 | O102: 10.6 | P102: 3.08 | Q102: 606 | R102: 137 | S102: 100 | T102: 38.3 | V102: 13
B103: W24X192 | D103: 29 | E103: 24 | G103: 56.5 | H103: 20.655 | I103: 37.96 | J103: 6260 | K103: 530 | M103: 491 | N103: 81.8 | O103: 10.5 | P103: 3.07 | Q103: 559 | R103: 126 | S103: 100 | T103: 30.8 | V103: 13
B104: W24X176 | D104: 28.5 | E104: 24 | G104: 51.7 | H104: 18.9 | I104: 34.572 | J104: 5680 | K104: 479 | M104: 450 | N104: 74.3 | O104: 10.5 | P104: 3.04 | Q104: 511 | R104: 115 | S104: 100 | T104: 23.9 | V104: 12.875
B105: W24X162 | D105: 28 | E105: 24 | G105: 47.8 | H105: 17.625 | I105: 31.72 | J105: 5170 | K105: 443 | M105: 414 | N105: 68.4 | O105: 10.4 | P105: 3.05 | Q105: 468 | R105: 105 | S105: 100 | T105: 18.5 | V105: 13
B106: W24X146 | D106: 27.5 | E106: 24 | G106: 43 | H106: 16.055 | I106: 28.122 | J106: 4580 | K106: 391 | M106: 371 | N106: 60.5 | O106: 10.3 | P106: 3.01 | Q106: 418 | R106: 93.2 | S106: 100 | T106: 13.4 | V106: 12.875
B107: W24X131 | D107: 27 | E107: 24 | G107: 38.6 | H107: 14.8225 | I107: 24.768 | J107: 4020 | K107: 340 | M107: 329 | N107: 53 | O107: 10.2 | P107: 2.97 | Q107: 370 | R107: 81.5 | S107: 100 | T107: 9.5 | V107: 12.875
B108: W24X117 | D108: 27 | E108: 24 | G108: 34.4 | H108: 13.365 | I108: 21.76 | J108: 3540 | K108: 297 | M108: 291 | N108: 46.5 | O108: 10.1 | P108: 2.94 | Q108: 327 | R108: 71.4 | S108: 100 | T108: 6.72 | V108: 12.75
B109: W24X104 | D109: 27 | E109: 24 | G109: 30.7 | H109: 12.05 | I109: 19.2 | J109: 3100 | K109: 259 | M109: 258 | N109: 40.7 | O109: 10.1 | P109: 2.91 | Q109: 289 | R109: 62.4 | S109: 100 | T109: 4.72 | V109: 12.75
B110: W24X103 | D110: 27 | E110: 19 | G110: 30.3 | H110: 13.475 | I110: 17.64 | J110: 3000 | K110: 119 | M110: 245 | N110: 26.5 | O110: 10 | P110: 1.99 | Q110: 280 | R110: 41.5 | S110: 100 | T110: 7.07 | V110: 9
B111: W24X94 | D111: 27 | E111: 19 | G111: 27.7 | H111: 12.5145 | I111: 15.8725 | J111: 2700 | K111: 109 | M111: 222 | N111: 24 | O111: 9.87 | P111: 1.98 | Q111: 254 | R111: 37.5 | S111: 100 | T111: 5.26 | V111: 9.125
B112: W24X84 | D112: 27 | E112: 19 | G112: 24.7 | H112: 11.327 | I112: 13.8908 | J112: 2370 | K112: 94.4 | M112: 196 | N112: 20.9 | O112: 9.79 | P112: 1.95 | Q112: 224 | R112: 32.6 | S112: 100 | T112: 3.7 | V112: 9
B113: W24X76 | D113: 27 | E113: 18 | G113: 22.4 | H113: 10.516 | I113: 12.2264 | J113: 2100 | K113: 82.5 | M113: 176 | N113: 18.4 | O113: 9.69 | P113: 1.92 | Q113: 200 | R113: 28.6 | S113: 100 | T113: 2.68 | V113: 9
B114: W24X68 | D114: 27 | E114: 18 | G114: 20.1 | H114: 9.8355 | I114: 10.4949 | J114: 1830 | K114: 70.4 | M114: 154 | N114: 15.7 | O114: 9.55 | P114: 1.87 | Q114: 177 | R114: 24.5 | S114: 100 | T114: 1.87 | V114: 9
B115: W24X62 | D115: 27 | E115: 18 | G115: 18.2 | H115: 10.191 | I115: 8.3072 | J115: 1550 | K115: 34.5 | M115: 131 | N115: 9.8 | O115: 9.23 | P115: 1.38 | Q115: 153 | R115: 15.7 | S115: 100 | T115: 1.71 | V115: 7
B116: W24X55 | D116: 27 | E116: 18 | G116: 16.2 | H116: 9.322 | I116: 7.0801 | J116: 1350 | K116: 29.1 | M116: 114 | N116: 8.3 | O116: 9.11 | P116: 1.34 | Q116: 134 | R116: 13.3 | S116: 100 | T116: 1.18 | V116: 7
B117: W21X201 | D117: 28 | E117: 21 | G117: 59.3 | H117: 20.93 | I117: 41.076 | J117: 5310 | K117: 542 | M117: 461 | N117: 86.1 | O117: 9.47 | P117: 3.02 | Q117: 530 | R117: 133 | S117: 100 | T117: 40.9 | V117: 12.625
B118: W21X182 | D118: 27 | E118: 21 | G118: 53.6 | H118: 18.841 | I118: 37 | J118: 4730 | K118: 483 | M118: 417 | N118: 77.2 | O118: 9.4 | P118: 3 | Q118: 476 | R118: 119 | S118: 100 | T118: 30.7 | V118: 12.5
B119: W21X166 | D119: 26.5 | E119: 21 | G119: 48.8 | H119: 16.875 | I119: 33.728 | J119: 4280 | K119: 435 | M119: 380 | N119: 70 | O119: 9.36 | P119: 2.99 | Q119: 432 | R119: 108 | S119: 100 | T119: 23.6 | V119: 12.375
B120: W21X147 | D120: 25.5 | E120: 21 | G120: 43.2 | H120: 15.912 | I120: 28.75 | J120: 3630 | K120: 376 | M120: 329 | N120: 60.1 | O120: 9.17 | P120: 2.95 | Q120: 373 | R120: 92.6 | S120: 100 | T120: 15.4 | V120: 12.5
B121: W21X132 | D121: 25 | E121: 21 | G121: 38.8 | H121: 14.17 | I121: 25.792 | J121: 3220 | K121: 333 | M121: 295 | N121: 53.5 | O121: 9.12 | P121: 2.93 | Q121: 333 | R121: 82.3 | S121: 100 | T121: 11.3 | V121: 12.5
B122: W21X122 | D122: 24.5 | E122: 21 | G122: 35.9 | H122: 13.02 | I122: 23.808 | J122: 2960 | K122: 305 | M122: 273 | N122: 49.2 | O122: 9.09 | P122: 2.92 | Q122: 307 | R122: 75.6 | S122: 100 | T122: 8.98 | V122: 12.375
B123: W21X111 | D123: 24 | E123: 21 | G123: 32.6 | H123: 11.825 | I123: 21.525 | J123: 2670 | K123: 274 | M123: 249 | N123: 44.5 | O123: 9.05 | P123: 2.9 | Q123: 279 | R123: 68.2 | S123: 100 | T123: 6.83 | V123: 12.375
B124: W21X101 | D124: 24 | E124: 18 | G124: 29.8 | H124: 10.7 | I124: 19.68 | J124: 2420 | K124: 248 | M124: 227 | N124: 40.3 | O124: 9.02 | P124: 2.89 | Q124: 253 | R124: 61.7 | S124: 100 | T124: 5.21 | V124: 12.25
B125: W21X93 | D125: 24 | E125: 17 | G125: 27.3 | H125: 12.528 | I125: 15.6612 | J125: 2070 | K125: 92.9 | M125: 192 | N125: 22.1 | O125: 8.7 | P125: 1.84 | Q125: 221 | R125: 34.7 | S125: 100 | T125: 6.03 | V125: 8.375
B126: W21X83 | D126: 24 | E126: 16 | G126: 24.4 | H126: 11.021 | I126: 13.9612 | J126: 1830 | K126: 81.4 | M126: 171 | N126: 19.5 | O126: 8.67 | P126: 1.83 | Q126: 196 | R126: 30.5 | S126: 100 | T126: 4.34 | V126: 8.375
B127: W21X73 | D127: 24 | E127: 16 | G127: 21.5 | H127: 9.646 | I127: 12.284 | J127: 1600 | K127: 70.6 | M127: 151 | N127: 17 | O127: 8.64 | P127: 1.81 | Q127: 172 | R127: 26.6 | S127: 100 | T127: 3.02 | V127: 8.25
B128: W21X68 | D128: 24 | E128: 16 | G128: 20 | H128: 9.073 | I128: 11.3299 | J128: 1480 | K128: 64.7 | M128: 140 | N128: 15.7 | O128: 8.6 | P128: 1.8 | Q128: 160 | R128: 24.4 | S128: 100 | T128: 2.45 | V128: 8.25
B129: W21X62 | D129: 24 | E129: 16 | G129: 18.3 | H129: 8.4 | I129: 10.1352 | J129: 1330 | K129: 57.5 | M129: 127 | N129: 14 | O129: 8.54 | P129: 1.77 | Q129: 144 | R129: 21.7 | S129: 100 | T129: 1.83 | V129: 8.25
B130: W21X55 | D130: 24 | E130: 16 | G130: 16.2 | H130: 7.8 | I130: 8.58168 | J130: 1140 | K130: 48.4 | M130: 110 | N130: 11.8 | O130: 8.4 | P130: 1.73 | Q130: 126 | R130: 18.4 | S130: 100 | T130: 1.24 | V130: 8.25
B131: W21X48 | D131: 24 | E131: 16 | G131: 14.1 | H131: 7.21 | I131: 7.0004 | J131: 959 | K131: 38.7 | M131: 93 | N131: 9.52 | O131: 8.24 | P131: 1.66 | Q131: 107 | R131: 14.9 | S131: 100 | T131: 0.803 | V131: 8.125
B132: W21X57 | D132: 24 | E132: 16 | G132: 16.7 | H132: 8.5455 | I132: 8.528 | J132: 1170 | K132: 30.6 | M132: 111 | N132: 9.35 | O132: 8.36 | P132: 1.35 | Q132: 129 | R132: 14.8 | S132: 100 | T132: 1.77 | V132: 6.5
B133: W21X50 | D133: 24 | E133: 16 | G133: 14.7 | H133: 7.904 | I133: 6.9871 | J133: 984 | K133: 24.9 | M133: 94.5 | N133: 7.64 | O133: 8.18 | P133: 1.3 | Q133: 110 | R133: 12.2 | S133: 100 | T133: 1.14 | V133: 6.5
B134: W21X44 | D134: 24 | E134: 16 | G134: 13 | H134: 7.245 | I134: 5.85 | J134: 843 | K134: 20.7 | M134: 81.6 | N134: 6.37 | O134: 8.06 | P134: 1.26 | Q134: 95.4 | R134: 10.2 | S134: 100 | T134: 0.77 | V134: 6.5
B135: W18X311 | D135: 26.3 | E135: 18 | G135: 91.6 | H135: 33.896 | I135: 65.76 | J135: 6970 | K135: 795 | M135: 624 | N135: 132 | O135: 8.72 | P135: 2.95 | Q135: 754 | R135: 207 | S135: 100 | T135: 176 | V135: 12
B136: W18X283 | D136: 25.9 | E136: 18 | G136: 83.3 | H136: 30.66 | I136: 59.5 | J136: 6170 | K136: 704 | M136: 565 | N136: 118 | O136: 8.61 | P136: 2.91 | Q136: 676 | R136: 185 | S136: 100 | T136: 134 | V136: 11.875
B137: W18X258 | D137: 25.5 | E137: 18 | G137: 76 | H137: 27.52 | I137: 54.28 | J137: 5510 | K137: 628 | M137: 514 | N137: 107 | O137: 8.53 | P137: 2.88 | Q137: 611 | R137: 166 | S137: 100 | T137: 103 | V137: 11.75
B138: W18X234 | D138: 25.1 | E138: 18 | G138: 68.6 | H138: 24.476 | I138: 49.374 | J138: 4900 | K138: 558 | M138: 466 | N138: 95.8 | O138: 8.44 | P138: 2.85 | Q138: 549 | R138: 149 | S138: 100 | T138: 78.7 | V138: 11.625
B139: W18X211 | D139: 24.7 | E139: 18 | G139: 62.3 | H139: 21.942 | I139: 44.312 | J139: 4330 | K139: 493 | M139: 419 | N139: 85.3 | O139: 8.35 | P139: 2.82 | Q139: 490 | R139: 132 | S139: 100 | T139: 58.6 | V139: 11.5
B140: W18X192 | D140: 24.4 | E140: 18 | G140: 56.2 | H140: 19.584 | I140: 40.25 | J140: 3870 | K140: 440 | M140: 380 | N140: 76.8 | O140: 8.28 | P140: 2.79 | Q140: 442 | R140: 119 | S140: 100 | T140: 44.7 | V140: 11.5
B141: W18X175 | D141: 23.5 | E141: 18 | G141: 51.4 | H141: 17.8 | I141: 36.252 | J141: 3450 | K141: 391 | M141: 344 | N141: 68.8 | O141: 8.2 | P141: 2.76 | Q141: 398 | R141: 106 | S141: 100 | T141: 33.8 | V141: 11.375
B142: W18X158 | D142: 24 | E142: 18 | G142: 46.3 | H142: 15.957 | I142: 32.544 | J142: 3060 | K142: 347 | M142: 310 | N142: 61.4 | O142: 8.12 | P142: 2.74 | Q142: 356 | R142: 94.8 | S142: 100 | T142: 25.2 | V142: 11.25
B143: W18X143 | D143: 23 | E143: 18 | G143: 42 | H143: 14.235 | I143: 29.568 | J143: 2750 | K143: 311 | M143: 282 | N143: 55.5 | O143: 8.09 | P143: 2.72 | Q143: 322 | R143: 85.4 | S143: 100 | T143: 19.2 | V143: 11.25
B144: W18X130 | D144: 22.5 | E144: 18 | G144: 38.3 | H144: 12.931 | I144: 26.88 | J144: 2460 | K144: 278 | M144: 256 | N144: 49.9 | O144: 8.03 | P144: 2.7 | Q144: 290 | R144: 76.7 | S144: 100 | T144: 14.5 | V144: 11.125
B145: W18X119 | D145: 22 | E145: 18 | G145: 35.1 | H145: 12.445 | I145: 23.956 | J145: 2190 | K145: 253 | M145: 231 | N145: 44.9 | O145: 7.9 | P145: 2.69 | Q145: 262 | R145: 69.1 | S145: 100 | T145: 10.6 | V145: 11.25
B146: W18X106 | D146: 21.5 | E146: 18 | G146: 31.1 | H146: 11.033 | I146: 21.056 | J146: 1910 | K146: 220 | M146: 204 | N146: 39.4 | O146: 7.84 | P146: 2.66 | Q146: 230 | R146: 60.5 | S146: 100 | T146: 7.48 | V146: 11.25
B147: W18X97 | D147: 21 | E147: 18 | G147: 28.5 | H147: 9.951 | I147: 19.314 | J147: 1750 | K147: 201 | M147: 188 | N147: 36.1 | O147: 7.82 | P147: 2.65 | Q147: 211 | R147: 55.3 | S147: 100 | T147: 5.86 | V147: 11.125
B148: W18X86 | D148: 21 | E148: 18 | G148: 25.3 | H148: 8.832 | I148: 17.094 | J148: 1530 | K148: 175 | M148: 166 | N148: 31.6 | O148: 7.77 | P148: 2.63 | Q148: 186 | R148: 48.4 | S148: 100 | T148: 4.1 | V148: 11.125
B149: W18X76 | D149: 21 | E149: 18 | G149: 22.3 | H149: 7.735 | I149: 14.96 | J149: 1330 | K149: 152 | M149: 146 | N149: 27.6 | O149: 7.73 | P149: 2.61 | Q149: 163 | R149: 42.2 | S149: 100 | T149: 2.83 | V149: 11
B150: W18X71 | D150: 21 | E150: 16 | G150: 20.9 | H150: 9.1575 | I150: 12.3768 | J150: 1170 | K150: 60.3 | M150: 127 | N150: 15.8 | O150: 7.5 | P150: 1.7 | Q150: 146 | R150: 24.7 | S150: 100 | T150: 3.49 | V150: 7.625
B151: W18X65 | D151: 21 | E151: 16 | G151: 19.1 | H151: 8.28 | I151: 11.385 | J151: 1070 | K151: 54.8 | M151: 117 | N151: 14.4 | O151: 7.49 | P151: 1.69 | Q151: 133 | R151: 22.5 | S151: 100 | T151: 2.73 | V151: 7.625
B152: W18X60 | D152: 21 | E152: 16 | G152: 17.6 | H152: 7.553 | I152: 10.5084 | J152: 984 | K152: 50.1 | M152: 108 | N152: 13.3 | O152: 7.47 | P152: 1.68 | Q152: 123 | R152: 20.6 | S152: 100 | T152: 2.17 | V152: 7.5
B153: W18X55 | D153: 21 | E153: 16 | G153: 16.2 | H153: 7.059 | I153: 9.4878 | J153: 890 | K153: 44.9 | M153: 98.3 | N153: 11.9 | O153: 7.41 | P153: 1.67 | Q153: 112 | R153: 18.5 | S153: 100 | T153: 1.66 | V153: 7.5
B154: W18X50 | D154: 21 | E154: 16 | G154: 14.7 | H154: 6.39 | I154: 8.55 | J154: 800 | K154: 40.1 | M154: 88.9 | N154: 10.7 | O154: 7.38 | P154: 1.65 | Q154: 101 | R154: 16.6 | S154: 100 | T154: 1.24 | V154: 7.5
B155: W18X46 | D155: 21 | E155: 16 | G155: 13.5 | H155: 6.516 | I155: 7.3326 | J155: 712 | K155: 22.5 | M155: 78.8 | N155: 7.43 | O155: 7.25 | P155: 1.29 | Q155: 90.7 | R155: 11.7 | S155: 100 | T155: 1.22 | V155: 6
B156: W18X40 | D156: 21 | E156: 16 | G156: 11.8 | H156: 5.6385 | I156: 6.321 | J156: 612 | K156: 19.1 | M156: 68.4 | N156: 6.35 | O156: 7.21 | P156: 1.27 | Q156: 78.4 | R156: 10 | S156: 100 | T156: 0.81 | V156: 6
B157: W18X35 | D157: 21 | E157: 16 | G157: 10.3 | H157: 5.31 | I157: 5.1 | J157: 510 | K157: 15.3 | M157: 57.6 | N157: 5.12 | O157: 7.04 | P157: 1.22 | Q157: 66.5 | R157: 8.06 | S157: 100 | T157: 0.506 | V157: 6
B158: W16X100 | D158: 19 | E158: 16 | G158: 29.4 | H158: 9.945 | I158: 20.488 | J158: 1490 | K158: 186 | M158: 175 | N158: 35.7 | O158: 7.1 | P158: 2.51 | Q158: 198 | R158: 54.9 | S158: 100 | T158: 7.73 | V158: 10.375
B159: W16X89 | D159: 19 | E159: 16 | G159: 26.2 | H159: 8.82 | I159: 18.2 | J159: 1300 | K159: 163 | M159: 155 | N159: 31.4 | O159: 7.05 | P159: 2.49 | Q159: 175 | R159: 48.1 | S159: 100 | T159: 5.45 | V159: 10.375
B160: W16X77 | D160: 19 | E160: 16 | G160: 22.6 | H160: 7.5075 | I160: 15.656 | J160: 1110 | K160: 138 | M160: 134 | N160: 26.9 | O160: 7 | P160: 2.47 | Q160: 150 | R160: 41.1 | S160: 100 | T160: 3.57 | V160: 10.25
B161: W16X67 | D161: 19 | E161: 16 | G161: 19.6 | H161: 6.4385 | I161: 13.566 | J161: 954 | K161: 119 | M161: 117 | N161: 23.2 | O161: 6.96 | P161: 2.46 | Q161: 130 | R161: 35.5 | S161: 100 | T161: 2.39 | V161: 10.25
B162: W16X57 | D162: 19 | E162: 16 | G162: 16.8 | H162: 7.052 | I162: 10.1816 | J162: 758 | K162: 43.1 | M162: 92.2 | N162: 12.1 | O162: 6.72 | P162: 1.6 | Q162: 105 | R162: 18.9 | S162: 100 | T162: 2.22 | V162: 7.125
B163: W16X50 | D163: 19 | E163: 16 | G163: 14.7 | H163: 6.194 | I163: 8.9082 | J163: 659 | K163: 37.2 | M163: 81 | N163: 10.5 | O163: 6.68 | P163: 1.59 | Q163: 92 | R163: 16.3 | S163: 100 | T163: 1.52 | V163: 7.125
B164: W16X45 | D164: 19 | E164: 16 | G164: 13.3 | H164: 5.5545 | I164: 7.9552 | J164: 586 | K164: 32.8 | M164: 72.7 | N164: 9.34 | O164: 6.65 | P164: 1.57 | Q164: 82.3 | R164: 14.5 | S164: 100 | T164: 1.11 | V164: 7
B165: W16X40 | D165: 19 | E165: 16 | G165: 11.8 | H165: 4.88 | I165: 7.07 | J165: 518 | K165: 28.9 | M165: 64.7 | N165: 8.25 | O165: 6.63 | P165: 1.57 | Q165: 73 | R165: 12.7 | S165: 100 | T165: 0.794 | V165: 7
B166: W16X36 | D166: 19 | E166: 16 | G166: 10.6 | H166: 4.6905 | I166: 6.0114 | J166: 448 | K166: 24.5 | M166: 56.5 | N166: 7 | O166: 6.51 | P166: 1.52 | Q166: 64 | R166: 10.8 | S166: 100 | T166: 0.545 | V166: 7
B167: W16X31 | D167: 19 | E167: 16 | G167: 9.13 | H167: 4.3725 | I167: 4.8664 | J167: 375 | K167: 12.4 | M167: 47.2 | N167: 4.49 | O167: 6.41 | P167: 1.17 | Q167: 54 | R167: 7.03 | S167: 100 | T167: 0.461 | V167: 5.5
B168: W16X26 | D168: 19 | E168: 16 | G168: 7.68 | H168: 3.925 | I168: 3.795 | J168: 301 | K168: 9.59 | M168: 38.4 | N168: 3.49 | O168: 6.26 | P168: 1.12 | Q168: 44.2 | R168: 5.48 | S168: 100 | T168: 0.262 | V168: 5.5
B169: W14X730 | D169: 24 | E169: 14 | G169: 215 | H169: 68.768 | I169: 175.778 | J169: 14300 | K169: 4720 | M169: 1280 | N169: 527 | O169: 8.17 | P169: 4.69 | Q169: 1660 | R169: 816 | S169: 100 | T169: 1450 | V169: 17.875
B170: W14X665 | D170: 24 | E170: 14 | G170: 196 | H170: 61.128 | I170: 160.008 | J170: 12400 | K170: 4170 | M170: 1150 | N170: 472 | O170: 7.98 | P170: 4.62 | Q170: 1480 | R170: 730 | S170: 100 | T170: 1120 | V170: 17.625
B171: W14X605 | D171: 24 | E171: 14 | G171: 178 | H171: 54.34 | I171: 144.768 | J171: 10800 | K171: 3680 | M171: 1040 | N171: 423 | O171: 7.8 | P171: 4.55 | Q171: 1320 | R171: 652 | S171: 100 | T171: 869 | V171: 17.375
B172: W14X550 | D172: 24 | E172: 14 | G172: 162 | H172: 48.076 | I172: 131.408 | J172: 9430 | K172: 3250 | M172: 931 | N172: 378 | O172: 7.63 | P172: 4.49 | Q172: 1180 | R172: 583 | S172: 100 | T172: 669 | V172: 17.25
B173: W14X500 | D173: 24 | E173: 14 | G173: 147 | H173: 42.924 | I173: 119 | J173: 8210 | K173: 2880 | M173: 838 | N173: 339 | O173: 7.48 | P173: 4.43 | Q173: 1050 | R173: 522 | S173: 100 | T173: 514 | V173: 17
B174: W14X455 | D174: 23 | E174: 14 | G174: 134 | H174: 38.38 | I174: 107.856 | J174: 7190 | K174: 2560 | M174: 756 | N174: 304 | O174: 7.33 | P174: 4.38 | Q174: 936 | R174: 468 | S174: 100 | T174: 395 | V174: 16.875
B175: W14X426 | D175: 23 | E175: 14 | G175: 125 | H175: 35.156 | I175: 101.536 | J175: 6600 | K175: 2360 | M175: 706 | N175: 283 | O175: 7.26 | P175: 4.34 | Q175: 869 | R175: 434 | S175: 100 | T175: 331 | V175: 16.75
B176: W14X398 | D176: 23 | E176: 14 | G176: 117 | H176: 32.391 | I176: 94.62 | J176: 6000 | K176: 2170 | M176: 656 | N176: 262 | O176: 7.16 | P176: 4.31 | Q176: 801 | R176: 402 | S176: 100 | T176: 273 | V176: 16.625
B177: W14X370 | D177: 22 | E177: 14 | G177: 109 | H177: 29.714 | I177: 87.78 | J177: 5440 | K177: 1990 | M177: 607 | N177: 241 | O177: 7.07 | P177: 4.27 | Q177: 736 | R177: 370 | S177: 100 | T177: 222 | V177: 16.5
B178: W14X342 | D178: 22 | E178: 14 | G178: 101 | H178: 26.95 | I178: 81.016 | J178: 4900 | K178: 1810 | M178: 558 | N178: 221 | O178: 6.98 | P178: 4.24 | Q178: 672 | R178: 338 | S178: 100 | T178: 178 | V178: 16.375
B179: W14X311 | D179: 22 | E179: 14 | G179: 91.4 | H179: 24.111 | I179: 73.224 | J179: 4330 | K179: 1610 | M179: 506 | N179: 199 | O179: 6.88 | P179: 4.2 | Q179: 603 | R179: 304 | S179: 100 | T179: 136 | V179: 16.25
B180: W14X283 | D180: 22 | E180: 14 | G180: 83.3 | H180: 21.543 | I180: 66.654 | J180: 3840 | K180: 1440 | M180: 459 | N180: 179 | O180: 6.79 | P180: 4.17 | Q180: 542 | R180: 274 | S180: 100 | T180: 104 | V180: 16.125
B181: W14X257 | D181: 22 | E181: 14 | G181: 75.6 | H181: 19.352 | I181: 60.48 | J181: 3400 | K181: 1290 | M181: 415 | N181: 161 | O181: 6.71 | P181: 4.13 | Q181: 487 | R181: 246 | S181: 100 | T181: 79.1 | V181: 16
B182: W14X233 | D182: 20 | E182: 14 | G182: 68.5 | H182: 17.12 | I182: 54.696 | J182: 3010 | K182: 1150 | M182: 375 | N182: 145 | O182: 6.63 | P182: 4.1 | Q182: 436 | R182: 221 | S182: 100 | T182: 59.5 | V182: 15.875
B183: W14X211 | D183: 20 | E183: 14 | G183: 62 | H183: 15.386 | I183: 49.296 | J183: 2660 | K183: 1030 | M183: 338 | N183: 130 | O183: 6.55 | P183: 4.07 | Q183: 390 | R183: 198 | S183: 100 | T183: 44.6 | V183: 15.75
B184: W14X193 | D184: 19.5 | E184: 14 | G184: 56.8 | H184: 13.795 | I184: 45.216 | J184: 2400 | K184: 931 | M184: 310 | N184: 119 | O184: 6.5 | P184: 4.05 | Q184: 355 | R184: 180 | S184: 100 | T184: 34.8 | V184: 15.75
B185: W14X176 | D185: 19.2 | E185: 14 | G185: 51.8 | H185: 12.616 | I185: 41.134 | J185: 2140 | K185: 838 | M185: 281 | N185: 107 | O185: 6.43 | P185: 4.02 | Q185: 320 | R185: 163 | S185: 100 | T185: 26.5 | V185: 15.625
B186: W14X159 | D186: 19 | E186: 14 | G186: 46.7 | H186: 11.175 | I186: 37.128 | J186: 1900 | K186: 748 | M186: 254 | N186: 96.2 | O186: 6.38 | P186: 4 | Q186: 287 | R186: 146 | S186: 100 | T186: 19.7 | V186: 15.625
B187: W14X145 | D187: 18.8 | E187: 14 | G187: 42.7 | H187: 10.064 | I187: 33.79 | J187: 1710 | K187: 677 | M187: 232 | N187: 87.3 | O187: 6.33 | P187: 3.98 | Q187: 260 | R187: 133 | S187: 100 | T187: 15.2 | V187: 15.5
B188: W14X132 | D188: 18 | E188: 14 | G188: 38.8 | H188: 9.4815 | I188: 30.282 | J188: 1530 | K188: 548 | M188: 209 | N188: 74.5 | O188: 6.28 | P188: 3.76 | Q188: 234 | R188: 113 | S188: 100 | T188: 12.3 | V188: 14.75
B189: W14X120 | D189: 17 | E189: 14 | G189: 35.3 | H189: 8.555 | I189: 27.636 | J189: 1380 | K189: 495 | M189: 190 | N189: 67.5 | O189: 6.24 | P189: 3.74 | Q189: 212 | R189: 102 | S189: 100 | T189: 9.37 | V189: 14.625
B190: W14X109 | D190: 17 | E190: 14 | G190: 32 | H190: 7.5075 | I190: 25.112 | J190: 1240 | K190: 447 | M190: 173 | N190: 61.2 | O190: 6.22 | P190: 3.73 | Q190: 192 | R190: 92.7 | S190: 100 | T190: 7.12 | V190: 14.625
B191: W14X99 | D191: 17 | E191: 14 | G191: 29.1 | H191: 6.887 | I191: 22.776 | J191: 1110 | K191: 402 | M191: 157 | N191: 55.2 | O191: 6.17 | P191: 3.71 | Q191: 173 | R191: 83.6 | S191: 100 | T191: 5.37 | V191: 14.625
B192: W14X90 | D192: 17 | E192: 14 | G192: 26.5 | H192: 6.16 | I192: 20.59 | J192: 999 | K192: 362 | M192: 143 | N192: 49.9 | O192: 6.14 | P192: 3.7 | Q192: 157 | R192: 75.6 | S192: 100 | T192: 4.06 | V192: 14.5
B193: W14X82 | D193: 17 | E193: 14 | G193: 24 | H193: 7.293 | I193: 17.271 | J193: 881 | K193: 148 | M193: 123 | N193: 29.3 | O193: 6.05 | P193: 2.48 | Q193: 139 | R193: 44.8 | S193: 100 | T193: 5.07 | V193: 10.125
B194: W14X74 | D194: 17 | E194: 14 | G194: 21.8 | H194: 6.39 | I194: 15.857 | J194: 795 | K194: 134 | M194: 112 | N194: 26.6 | O194: 6.04 | P194: 2.48 | Q194: 126 | R194: 40.5 | S194: 100 | T194: 3.87 | V194: 10.125
B195: W14X68 | D195: 17 | E195: 14 | G195: 20 | H195: 5.81 | I195: 14.4 | J195: 722 | K195: 121 | M195: 103 | N195: 24.2 | O195: 6.01 | P195: 2.46 | Q195: 115 | R195: 36.9 | S195: 100 | T195: 3.01 | V195: 10
B196: W14X61 | D196: 17 | E196: 14 | G196: 17.9 | H196: 5.2125 | I196: 12.9 | J196: 640 | K196: 107 | M196: 92.1 | N196: 21.5 | O196: 5.98 | P196: 2.45 | Q196: 102 | R196: 32.8 | S196: 100 | T196: 2.19 | V196: 10
B197: W14X53 | D197: 17 | E197: 14 | G197: 15.6 | H197: 5.143 | I197: 10.6392 | J197: 541 | K197: 57.7 | M197: 77.8 | N197: 14.3 | O197: 5.89 | P197: 1.92 | Q197: 87.1 | R197: 22 | S197: 100 | T197: 1.94 | V197: 8
B198: W14X48 | D198: 17 | E198: 14 | G198: 14.1 | H198: 4.692 | I198: 9.5557 | J198: 484 | K198: 51.4 | M198: 70.2 | N198: 12.8 | O198: 5.85 | P198: 1.91 | Q198: 78.4 | R198: 19.6 | S198: 100 | T198: 1.45 | V198: 8
B199: W14X43 | D199: 17 | E199: 14 | G199: 12.6 | H199: 4.1785 | I199: 8.48 | J199: 428 | K199: 45.2 | M199: 62.6 | N199: 11.3 | O199: 5.82 | P199: 1.89 | Q199: 69.6 | R199: 17.3 | S199: 100 | T199: 1.05 | V199: 8
B200: W14X38 | D200: 17 | E200: 14 | G200: 11.2 | H200: 4.371 | I200: 6.9731 | J200: 385 | K200: 26.7 | M200: 54.6 | N200: 7.88 | O200: 5.87 | P200: 1.55 | Q200: 61.5 | R200: 12.1 | S200: 100 | T200: 0.798 | V200: 6.75
... 74 more rows

Sheet Sheet1 (hidden)
B6: Multiplication factor for NPSP beams
C7: Area | D7: Shear A2 | E7: Shear A3 | F7: Ixx | G7: Iyy | H7: Sxx | I7: Syy | J7: rx | K7: ry | L7: Zx | M7: Zy | N7: Tor.
B8: Capacity (Non-OSHPD) | C8: 3 | D8: 3 | E8: 3 | F8: 3 | G8: 3 | H8: 3 | I8: 3 | J8: 3 | K8: 3 | L8: 3 | M8: 3 | N8: 1
B9: Capacity (OSHPD) | C9: 1 | D9: 1 | E9: 1 | F9: 3 | G9: 1 | H9: see below | I9: 1 | J9: 1 | K9: 1 | L9: see below | M9: 1 | N9: 1
B10: R=3 | C10: 1 | D10: 1 | E10: 1 | F10: 1 | G10: 1 | H10: 3 | I10: 3 | J10: 1 | K10: 1 | L10: 3 | M10: 3 | N10: 1
B11: Multiplication factor for NPSP beams
C12: Area | D12: Shear A2 | E12: Shear A3 | F12: Ixx | G12: Iyy | H12: Sxx | I12: Syy | J12: rx | K12: ry | L12: Zx | M12: Zy | N12: Tor.
B13: Capacity (Non-OSHPD) | C13: 3 | D13: 3 | E13: 3 | F13: 3 | G13: 3 | H13: 3 | I13: 3 | J13: 3 | K13: 3 | L13: 3 | M13: 3 | N13: 1
B14: Capacity (OSHPD) | C14: 1 | D14: 1 | E14: 1 | F14: 3 | G14: 1 | H14: 2*(3*Ixx)/DimB | I14: 1 | J14: 1 | K14: 1 | L14: 1.15*Sxx | M14: 1 | N14: 1
B15: R=3 | C15: 1 | D15: 1 | E15: 1 | F15: 1 | G15: 1 | H15: 3 | I15: 3 | J15: 1 | K15: 1 | L15: 3 | M15: 3 | N15: 1
